Workbook

Sheet Содержание
A2: Базовые таблицы «затраты-выпуск» Российской Федерации за 2016 год (в текущих ценах, млн. руб.)
A4: Список таблиц:
A5: 1 | B5: ТР | C5: Таблица ресурсов товаров и услуг
A6: 2 | B6: ТИцп | C6: Таблица использования товаров и услуг в ценах покупателей
A7: 3 | B7: ТИоц | C7: Таблица использования товаров и услуг в основных ценах
A8: 4 | B8: М-торг | C8: Таблица торговых наценок
A9: 5 | B9: М-трансп | C9: Таблица транспортных наценок
A10: 6 | B10: М-чистнал | C10: Таблица налогов за вычетом субсидий на продукты
A11: 7 | B11: М-отеч | C11: Таблица использования отечественной продукции в основных ценах
A12: 8 | B12: М-имп | C12: Таблица использования импортной продукции в ценах сиф
A13: 9 | B13: Симм ТЗВ | C13: Симметричная таблица «затраты - выпуск»
A14: 10 | B14: Симм отеч | C14: Симметричная таблица «затраты - выпуск» отечественной продукции
A15: 11 | B15: Симм имп | C15: Симметричная таблица «затраты - выпуск» импорта
A16: 12 | B16: КПЗ | C16: Коэффициенты полных затрат
A17: 13 | B17: КПЗ отеч | C17: Коэффициенты полных затрат отечественной продукции
A18: 14 | B18: КПЗ имп | C18: Коэффициенты полных затрат импортной продукции
A21: Примечание
A22: Незначительные расхождения между итогом и суммой слагаемых объясняются округлением данных.
A24: Периодичность составления
A25: Базовые таблицы «затраты - выпуск» разрабатываются раз в пять лет за годы, оканчивающиеся на 1 и 6.
A27: Опубликовано Росстатом
A28: 30 января 2020 года

Sheet ТР
A1: ТАБЛИЦА РЕСУРСОВ ТОВАРОВ И УСЛУГ за 2016 год (млн. руб.)
D2: Сельское хозяйство | E2: Предоставление услуг в области растениеводства и животноводства, кроме ветеринарных услуг; декоративное садоводство | F2: Охота и разведение диких животных, включая предоставление услуг в этих областях | G2: Лесное хозяйство и предоставление услуг в этой области | H2: Рыболовство, рыбоводство и предоставление услуг в этих областях | I2: Добыча каменного угля, бурого угля и торфа | J2: Добыча сырой нефти и нефтяного (попутного) газа; извлечение фракций из нефтяного (попутного) газа | K2: Добыча природного газа и газового конденсата; сжижение и регазификация природного газа для транспортирования | L2: Предоставление услуг по добыче нефти и газа | M2: Добыча урановой и ториевой руд | N2: Добыча и обогащение железных руд | O2: Добыча и обогащение руд нежелезных металлов, кроме урановой и ториевой руд | P2: Добыча прочих полезных ископаемых | Q2: Производство мяса и мясопродуктов | R2: Переработка и консервирование рыбо- и морепродуктов | S2: Переработка и консервирование картофеля, фруктов и овощей | T2: Производство растительных и животных масел и жиров | U2: Производство молочных продуктов | V2: Производство продуктов мукомольно-крупяной промышленности, крахмалов и крахмалопродуктов | W2: Производство готовых кормов для животных | X2: Производство прочих пищевых продуктов | Y2: Производство напитков | Z2: Производство табачных изделий | AA2: Текстильное производство | AB2: Производство одежды; выделка и крашение меха | AC2: Производство кожи, изделий из кожи и производство обуви | AD2: Обработка древесины и производство изделий из дерева и пробки, кроме мебели | AE2: Производство целлюлозы, древесной массы, бумаги, картона и изделий из них | AF2: Издательская деятельность | AG2: Деятельность полиграфическая и копирование носителей информации | AH2: Производство кокса | AI2: Производство нефтепродуктов | AJ2: Производство основных химических веществ | AK2: Производство химических средств защиты растений (пестицидов) и прочих агрохимических продуктов | AL2: Производство красок и лаков | AM2: Производство фармацевтической продукции | AN2: Производство мыла; моющих, чистящих и полирующих средств; парфюмерных и косметических средств | AO2: Производство прочих химических продуктов (без производства взрывчатых веществ) | AP2: Производство искусственных и синтетических волокон | AQ2: Производство резиновых изделий | AR2: Производство пластмассовых изделий | AS2: Производство стекла и изделий из стекла | AT2: Производство керамических изделий и кирпича | AU2: Производство цемента, извести и гипса | AV2: Производство неметаллических минеральных изделий, кроме стеклянных и керамических | AW2: Производство чугуна, стали и ферросплавов, чугунных и стальных труб, прочая первичная обработка чугуна и стали | AX2: Производство цветных металлов | AY2: Производство отливок | AZ2: Производство строительных металлических конструкций и изделий, металлических резервуаров, радиаторов и паровых котлов, ядерных реакторов | BA2: Ковка, прессование, штамповка и профилирование, порошковая металлургия; обработка металлов и нанесение покрытий на металлы, обработка металлических изделий с использованием основных технологических процессов | BB2: Производство ножевых изделий, столовых приборов, инструментов, замочных и скобяных изделий и прочих готовых металлических изделий | BC2: Производство механического оборудования, станков и прочего оборудования общего или специального назначения | BD2: Производство бытовых приборов, не включенных в другие группировки | BE2: Производство офисного оборудования | BF2: Производство электронных вычислительных машин и прочего оборудования для обработки информации | BG2: Производство электрических машин и электрооборудования | BH2: Производство электронных компонентов, аппаратуры для радио, телевидения и связи | BI2: Приборы и инструменты для измерения, контроля, испытаний, навигации, управления, регулирования; приборы оптические, фото- и кинооборудование; часы | BJ2: Производство медицинских изделий, включая хирургическое оборудование, и ортопедических приспособлений | BK2: Производство автомобилей, прицепов и полуприцепов | BL2: Производство судов, летательных и космических аппаратов, прочих транспортных средств и оборудования | BM2: Производство мебели | BN2: Производство ювелирных изделий, медалей и технических изделий из драгоценных металлов и драгоценных камней; производство монет | BO2: Производство прочей различной продукции, не включенной в другие группировки | BP2: Обработка вторичного сырья | BQ2: Производство, передача и распределение электроэнергии | BR2: Производство и распределение газообразного топлива | BS2: Производство, передача и распределение пара и горячей воды (тепловой энергии) | BT2: Сбор, очистка и распределение воды | BU2: Строительство | BV2: Торговля автотранспортными средствами и мотоциклами, их техническое обслуживание и ремонт | BW2: Оптовая торговля, включая торговлю через агентов, кроме торговли автотранспортными средствами и мотоциклами | BX2: Розничная торговля, кроме торговли автотранспортными средствами и мотоциклами; ремонт бытовых изделий и предметов личного пользования; розничная торговля моторным топливом | BY2: Деятельность гостиниц и прочих мест для временного проживания | BZ2: Деятельность ресторанов, баров, столовых при предприятиях и учреждениях и поставка продукции общественного питания | CA2: Деятельность железнодорожного транспорта | CB2: Деятельность прочего сухопутного транспорта | CC2: Транспортирование по трубопроводам | CD2: Деятельность водного транспорта | CE2: Деятельность воздушного и космического транспорта | CF2: Услуги транспортные вспомогательные и дополнительные; услуги туристических агентств | CG2: Услуги почты и электросвязи | CH2: Финансовое посредничество | CI2: Страхование | CJ2: Вспомогательная деятельность в сфере финансового посредничества и страхования | CK2: Операции с недвижимым имуществом | CL2: Аренда машин и оборудования без оператора; прокат бытовых изделий и предметов личного пользования | CM2: Деятельность, связанная с использованием вычислительной техники и информационных технологий | CN2: Научные исследования и разработки | CO2: Прочие услуги, связанные с предпринимательской деятельностью | CP2: Государственное управление и обеспечение военной безопасности; социальное обеспечение | CQ2: Образование | CR2: Здравоохранение и предоставление социальных услуг | CS2: Сбор сточных вод, отходов и аналогичная деятельность | CT2: Деятельность общественных объединений | CU2: Деятельность по организации отдыха и развлечений, культуры и спорта | CV2: Предоставление персональных услуг | CW2: Деятельность домашних хозяйств с наемными работниками | CX2: Итого выпуск в основных ценах (сумма граф 001-098) | CY2: Импорт | CZ2: Итого ресурсы в основных ценах (сумма граф 099-100) | DA2: Торговые наценки | DB2: Транспортные наценки | DC2: Налоги за вычетом субсидий на продукты | DD2: Итого ресурсы в ценах покупателей (сумма граф 101-104)
B3: Коды | D3: 01.1 + 01.2 + 01.3 | E3: 01.4 | F3: 01.5 | G3: 02 | H3: 05 | I3: 10 | J3: 11.10.1 | K3: 11.10.2 + 11.10.3 | L3: 11.2 | M3: 12 | N3: 13.1 | O3: 13.2 | P3: 14 | Q3: 15.1 | R3: 15.2 | S3: 15.3 | T3: 15.4 | U3: 15.5 | V3: 15.6 | W3: 15.7 | X3: 15.8 | Y3: 15.9 | Z3: 16 | AA3: 17 | AB3: 18 | AC3: 19 | AD3: 20 | AE3: 21 | AF3: 22.1 | AG3: 22.2 + 22.3 | AH3: 23.1 | AI3: 23.2 | AJ3: 24.1 | AK3: 24.2 | AL3: 24.3 | AM3: 24.4 | AN3: 24.5 | AO3: 24.6 без 24.61 | AP3: 24.7 | AQ3: 25.1 | AR3: 25.2 | AS3: 26.1 | AT3: 26.2 + 26.3 + 26.4 | AU3: 26.5 | AV3: 26.6 + 26.7 + 26.8 | AW3: 27.1 + 27.2 + 27.3 | AX3: 27.4 | AY3: 27.5 | AZ3: 28.1 + 28.2 + 28.3 | BA3: 28.4 + 28.5 | BB3: 28.6 + 28.7 | BC3: 29.1 + 29.2 + 29.3 + 29.4 + 29.5 | BD3: 29.7 | BE3: 30.01 | BF3: 30.02 | BG3: 31 | BH3: 32 | BI3: 33 без 33.1 | BJ3: 33.1 | BK3: 34 | BL3: 35 + 39.9* | BM3: 36.1 | BN3: 36.2 | BO3: 36.3 + 36.4 + 36.5 + 36.6 | BP3: 37 | BQ3: 40.1 | BR3: 40.2 | BS3: 40.3 | BT3: 41 | BU3: 45 | BV3: 50 без 50.5 | BW3: 51 | BX3: 52 + 50.5 | BY3: 55.1 + 55.2 | BZ3: 55.3 + 55.4 + 55.5 | CA3: 60.1 | CB3: 60.2 | CC3: 60.3 | CD3: 61 | CE3: 62 | CF3: 63 | CG3: 64 | CH3: 65 | CI3: 66 | CJ3: 67 | CK3: 70 | CL3: 71 | CM3: 72 | CN3: 73 | CO3: 74 | CP3: 75 | CQ3: 80 | CR3: 85 | CS3: 90 | CT3: 91 | CU3: 92 | CV3: 93 | CW3: 95 | CX3: P1 | CY3: P7 | CZ3: (P1+P7)BP | DA3: P1G | DB3: P1H | DC3: D21-D31 | DD3: (P1+P7)PP
A4: №№ | D4: 001 | E4: 002 | F4: 003 | G4: 004 | H4: 005 | I4: 006 | J4: 007 | K4: 008 | L4: 009 | M4: 010 | N4: 011 | O4: 012 | P4: 013 | Q4: 014 | R4: 015 | S4: 016 | T4: 017 | U4: 018 | V4: 019 | W4: 020 | X4: 021 | Y4: 022 | Z4: 023 | AA4: 024 | AB4: 025 | AC4: 026 | AD4: 027 | AE4: 028 | AF4: 029 | AG4: 030 | AH4: 031 | AI4: 032 | AJ4: 033 | AK4: 034 | AL4: 035 | AM4: 036 | AN4: 037 | AO4: 038 | AP4: 039 | AQ4: 040 | AR4: 041 | AS4: 042 | AT4: 043 | AU4: 044 | AV4: 045 | AW4: 046 | AX4: 047 | AY4: 048 | AZ4: 049 | BA4: 050 | BB4: 051 | BC4: 052 | BD4: 053 | BE4: 054 | BF4: 055 | BG4: 056 | BH4: 057 | BI4: 058 | BJ4: 059 | BK4: 060 | BL4: 061 | BM4: 062 | BN4: 063 | BO4: 064 | BP4: 065 | BQ4: 066 | BR4: 067 | BS4: 068 | BT4: 069 | BU4: 070 | BV4: 071 | BW4: 072 | BX4: 073 | BY4: 074 | BZ4: 075 | CA4: 076 | CB4: 077 | CC4: 078 | CD4: 079 | CE4: 080 | CF4: 081 | CG4: 082 | CH4: 083 | CI4: 084 | CJ4: 085 | CK4: 086 | CL4: 087 | CM4: 088 | CN4: 089 | CO4: 090 | CP4: 091 | CQ4: 092 | CR4: 093 | CS4: 094 | CT4: 095 | CU4: 096 | CV4: 097 | CW4: 098 | CX4: 099 | CY4: 100 | CZ4: 101 | DA4: 102 | DB4: 103 | DC4: 104 | DD4: 105
A5: 001 | B5: 01.11.1 + 01.11.22 + 01.11.60.110 | C5: Культуры зерновые и зернобобовые | D5: 1042414 | E5: 585 | F5: 0 | G5: 0 | H5: 26 | I5: 0 | J5: 0 | K5: 0 | L5: 0 | M5: 0 | N5: 0 | O5: 0 | P5: 4 | Q5: 1417 | R5: 16 | S5: 720 | T5: 0 | U5: 272 | V5: 525 | W5: 9 | X5: 111 | Y5: 27 | Z5: 0 | AA5: 69 | AB5: 0 | AC5: 0 | AD5: 0 | AE5: 0 | AF5: 0 | AG5: 0 | AH5: 0 | AI5: 0 | AJ5: 12 | AK5: 0 | AL5: 0 | AM5: 57 | AN5: 0 | AO5: 0 | AP5: 0 | AQ5: 0 | AR5: 15 | AS5: 0 | AT5: 2 | AU5: 0 | AV5: 0 | AW5: 0 | AX5: 0 | AY5: 0 | AZ5: 0 | BA5: 7 | BB5: 0 | BC5: 0 | BD5: 0 | BE5: 0 | BF5: 0 | BG5: 0 | BH5: 6 | BI5: 0 | BJ5: 0 | BK5: 0 | BL5: 34 | BM5: 0 | BN5: 0 | BO5: 0 | BP5: 0 | BQ5: 0 | BR5: 0 | BS5: 0 | BT5: 1 | BU5: 178 | BV5: 0 | BW5: 5 | BX5: 6 | BY5: 0 | BZ5: 0 | CA5: 0 | CB5: 0 | CC5: 0 | CD5: 0 | CE5: 0 | CF5: 47 | CG5: 10 | CH5: 0 | CI5: 0 | CJ5: 0 | CK5: 73 | CL5: 0 | CM5: 0 | CN5: 22 | CO5: 0 | CP5: 0 | CQ5: 0 | CR5: 0 | CS5: 0 | CT5: 1 | CU5: 0 | CV5: 0 | CW5: 0 | CX5: 1046672 | CY5: 20268 | CZ5: 1066940 | DA5: 104732 | DB5: 4789 | DC5: -273 | DD5: 1176188
A6: 002 | B6: 01.11.21 + 01.11.23 | C6: Картофель; корнеплоды столовые и клубнеплоды с высоким содержанием крахмала или инулина | D6: 317287 | E6: 0 | F6: 0 | G6: 0 | H6: 1 | I6: 0 | J6: 0 | K6: 0 | L6: 0 | M6: 0 | N6: 0 | O6: 0 | P6: 0 | Q6: 171 | R6: 0 | S6: 0 | T6: 0 | U6: 0 | V6: 0 | W6: 0 | X6: 0 | Y6: 0 | Z6: 0 | AA6: 82 | AB6: 0 | AC6: 0 | AD6: 0 | AE6: 0 | AF6: 0 | AG6: 0 | AH6: 0 | AI6: 0 | AJ6: 0 | AK6: 0 | AL6: 0 | AM6: 0 | AN6: 0 | AO6: 0 | AP6: 0 | AQ6: 0 | AR6: 0 | AS6: 0 | AT6: 0 | AU6: 0 | AV6: 0 | AW6: 0 | AX6: 0 | AY6: 0 | AZ6: 0 | BA6: 48 | BB6: 0 | BC6: 0 | BD6: 0 | BE6: 0 | BF6: 0 | BG6: 0 | BH6: 0 | BI6: 0 | BJ6: 0 | BK6: 0 | BL6: 0 | BM6: 0 | BN6: 0 | BO6: 0 | BP6: 0 | BQ6: 0 | BR6: 0 | BS6: 0 | BT6: 0 | BU6: 0 | BV6: 0 | BW6: 18 | BX6: 0 | BY6: 0 | BZ6: 0 | CA6: 0 | CB6: 0 | CC6: 0 | CD6: 0 | CE6: 0 | CF6: 0 | CG6: 0 | CH6: 0 | CI6: 0 | CJ6: 0 | CK6: 0 | CL6: 0 | CM6: 0 | CN6: 0 | CO6: 0 | CP6: 0 | CQ6: 0 | CR6: 0 | CS6: 0 | CT6: 0 | CU6: 0 | CV6: 0 | CW6: 0 | CX6: 317608 | CY6: 8733 | CZ6: 326341 | DA6: 24361 | DB6: 307 | DC6: 6042 | DD6: 357051
A7: 003 | B7: 01.11.3 | C7: Семена и плоды масличных культур | D7: 364309 | E7: 206 | F7: 0 | G7: 0 | H7: 50 | I7: 0 | J7: 0 | K7: 0 | L7: 0 | M7: 0 | N7: 0 | O7: 0 | P7: 0 | Q7: 72 | R7: 0 | S7: 0 | T7: 0 | U7: 24 | V7: 0 | W7: 0 | X7: 0 | Y7: 0 | Z7: 0 | AA7: 0 | AB7: 0 | AC7: 0 | AD7: 0 | AE7: 0 | AF7: 0 | AG7: 0 | AH7: 0 | AI7: 0 | AJ7: 0 | AK7: 0 | AL7: 0 | AM7: 0 | AN7: 0 | AO7: 0 | AP7: 0 | AQ7: 0 | AR7: 0 | AS7: 0 | AT7: 0 | AU7: 0 | AV7: 0 | AW7: 0 | AX7: 0 | AY7: 0 | AZ7: 0 | BA7: 0 | BB7: 0 | BC7: 0 | BD7: 0 | BE7: 0 | BF7: 0 | BG7: 0 | BH7: 2 | BI7: 0 | BJ7: 0 | BK7: 0 | BL7: 0 | BM7: 0 | BN7: 0 | BO7: 0 | BP7: 0 | BQ7: 0 | BR7: 0 | BS7: 0 | BT7: 0 | BU7: 0 | BV7: 0 | BW7: 0 | BX7: 0 | BY7: 0 | BZ7: 0 | CA7: 0 | CB7: 0 | CC7: 0 | CD7: 0 | CE7: 0 | CF7: 0 | CG7: 0 | CH7: 0 | CI7: 0 | CJ7: 0 | CK7: 0 | CL7: 0 | CM7: 0 | CN7: 0 | CO7: 0 | CP7: 0 | CQ7: 0 | CR7: 0 | CS7: 0 | CT7: 0 | CU7: 0 | CV7: 0 | CW7: 0 | CX7: 364663 | CY7: 95194 | CZ7: 459857 | DA7: 8554 | DB7: 1944 | DC7: 976 | DD7: 471331
A8: 004 | B8: 01.11.4 | C8: Табак необработанный и махорка | D8: 1 | E8: 0 | F8: 0 | G8: 0 | H8: 0 | I8: 0 | J8: 0 | K8: 0 | L8: 0 | M8: 0 | N8: 0 | O8: 0 | P8: 0 | Q8: 0 | R8: 0 | S8: 0 | T8: 0 | U8: 0 | V8: 0 | W8: 0 | X8: 0 | Y8: 0 | Z8: 0 | AA8: 0 | AB8: 0 | AC8: 0 | AD8: 0 | AE8: 0 | AF8: 0 | AG8: 0 | AH8: 0 | AI8: 0 | AJ8: 0 | AK8: 0 | AL8: 0 | AM8: 0 | AN8: 0 | AO8: 0 | AP8: 0 | AQ8: 0 | AR8: 0 | AS8: 0 | AT8: 0 | AU8: 0 | AV8: 0 | AW8: 0 | AX8: 0 | AY8: 0 | AZ8: 0 | BA8: 0 | BB8: 0 | BC8: 0 | BD8: 0 | BE8: 0 | BF8: 0 | BG8: 0 | BH8: 0 | BI8: 0 | BJ8: 0 | BK8: 0 | BL8: 0 | BM8: 0 | BN8: 0 | BO8: 0 | BP8: 0 | BQ8: 0 | BR8: 0 | BS8: 0 | BT8: 0 | BU8: 0 | BV8: 0 | BW8: 0 | BX8: 0 | BY8: 0 | BZ8: 0 | CA8: 0 | CB8: 0 | CC8: 0 | CD8: 0 | CE8: 0 | CF8: 0 | CG8: 0 | CH8: 0 | CI8: 0 | CJ8: 0 | CK8: 0 | CL8: 0 | CM8: 0 | CN8: 0 | CO8: 0 | CP8: 0 | CQ8: 0 | CR8: 0 | CS8: 0 | CT8: 0 | CU8: 0 | CV8: 0 | CW8: 0 | CX8: 1 | CY8: 59277 | CZ8: 59278 | DA8: 10240 | DB8: 21 | DC8: 2032 | DD8: 71570
A9: 005 | B9: 01.11.5 | C9: Растения, используемые для производства сахара | D9: 132435 | E9: 51 | F9: 0 | G9: 0 | H9: 0 | I9: 0 | J9: 0 | K9: 0 | L9: 0 | M9: 0 | N9: 0 | O9: 0 | P9: 0 | Q9: 12 | R9: 0 | S9: 0 | T9: 0 | U9: 0 | V9: 0 | W9: 0 | X9: 0 | Y9: 0 | Z9: 0 | AA9: 0 | AB9: 0 | AC9: 0 | AD9: 0 | AE9: 0 | AF9: 0 | AG9: 0 | AH9: 0 | AI9: 0 | AJ9: 0 | AK9: 0 | AL9: 0 | AM9: 0 | AN9: 0 | AO9: 0 | AP9: 0 | AQ9: 0 | AR9: 0 | AS9: 0 | AT9: 0 | AU9: 0 | AV9: 0 | AW9: 0 | AX9: 0 | AY9: 0 | AZ9: 0 | BA9: 0 | BB9: 0 | BC9: 0 | BD9: 0 | BE9: 0 | BF9: 0 | BG9: 0 | BH9: 0 | BI9: 0 | BJ9: 0 | BK9: 0 | BL9: 0 | BM9: 0 | BN9: 0 | BO9: 0 | BP9: 0 | BQ9: 0 | BR9: 0 | BS9: 0 | BT9: 0 | BU9: 0 | BV9: 0 | BW9: 0 | BX9: 0 | BY9: 0 | BZ9: 0 | CA9: 0 | CB9: 0 | CC9: 0 | CD9: 0 | CE9: 0 | CF9: 0 | CG9: 0 | CH9: 0 | CI9: 0 | CJ9: 0 | CK9: 0 | CL9: 0 | CM9: 0 | CN9: 0 | CO9: 0 | CP9: 0 | CQ9: 0 | CR9: 0 | CS9: 0 | CT9: 0 | CU9: 0 | CV9: 0 | CW9: 0 | CX9: 132498 | CY9: 0 | CZ9: 132498 | DA9: 2764 | DB9: 1012 | DC9: -149 | DD9: 136125
A10: 006 | B10: 01.11.6 кроме 01.11.60.110 | C10: Солома и культуры кормовые | D10: 133339 | E10: 10 | F10: 0 | G10: 0 | H10: 0 | I10: 0 | J10: 0 | K10: 0 | L10: 0 | M10: 0 | N10: 0 | O10: 0 | P10: 0 | Q10: 9 | R10: 0 | S10: 0 | T10: 0 | U10: 1 | V10: 13 | W10: 0 | X10: 0 | Y10: 0 | Z10: 0 | AA10: 1 | AB10: 0 | AC10: 0 | AD10: 0 | AE10: 0 | AF10: 0 | AG10: 0 | AH10: 0 | AI10: 0 | AJ10: 0 | AK10: 0 | AL10: 0 | AM10: 0 | AN10: 0 | AO10: 0 | AP10: 0 | AQ10: 0 | AR10: 0 | AS10: 0 | AT10: 0 | AU10: 0 | AV10: 0 | AW10: 0 | AX10: 0 | AY10: 0 | AZ10: 0 | BA10: 0 | BB10: 0 | BC10: 0 | BD10: 0 | BE10: 0 | BF10: 0 | BG10: 0 | BH10: 0 | BI10: 0 | BJ10: 0 | BK10: 0 | BL10: 0 | BM10: 0 | BN10: 0 | BO10: 0 | BP10: 0 | BQ10: 0 | BR10: 0 | BS10: 0 | BT10: 0 | BU10: 0 | BV10: 0 | BW10: 0 | BX10: 0 | BY10: 0 | BZ10: 0 | CA10: 0 | CB10: 0 | CC10: 0 | CD10: 0 | CE10: 0 | CF10: 0 | CG10: 0 | CH10: 0 | CI10: 0 | CJ10: 0 | CK10: 0 | CL10: 0 | CM10: 0 | CN10: 52 | CO10: 0 | CP10: 0 | CQ10: 0 | CR10: 0 | CS10: 0 | CT10: 0 | CU10: 0 | CV10: 0 | CW10: 0 | CX10: 133426 | CY10: 20 | CZ10: 133446 | DA10: 13631 | DB10: 151 | DC10: -178 | DD10: 147050
A11: 007 | B11: 01.11.7 + 01.11.8 + 01.11.9 | C11: Прочая продукция растениеводства | D11: 6161 | E11: 1 | F11: 0 | G11: 0 | H11: 0 | I11: 0 | J11: 0 | K11: 0 | L11: 0 | M11: 0 | N11: 0 | O11: 0 | P11: 0 | Q11: 0 | R11: 0 | S11: 0 | T11: 0 | U11: 0 | V11: 0 | W11: 0 | X11: 8 | Y11: 0 | Z11: 0 | AA11: 0 | AB11: 0 | AC11: 0 | AD11: 0 | AE11: 0 | AF11: 0 | AG11: 0 | AH11: 0 | AI11: 0 | AJ11: 0 | AK11: 0 | AL11: 0 | AM11: 0 | AN11: 0 | AO11: 0 | AP11: 0 | AQ11: 0 | AR11: 0 | AS11: 0 | AT11: 0 | AU11: 0 | AV11: 0 | AW11: 0 | AX11: 0 | AY11: 0 | AZ11: 0 | BA11: 2 | BB11: 0 | BC11: 0 | BD11: 0 | BE11: 0 | BF11: 0 | BG11: 0 | BH11: 0 | BI11: 0 | BJ11: 0 | BK11: 0 | BL11: 0 | BM11: 0 | BN11: 0 | BO11: 0 | BP11: 0 | BQ11: 0 | BR11: 0 | BS11: 25 | BT11: 0 | BU11: 0 | BV11: 0 | BW11: 0 | BX11: 0 | BY11: 0 | BZ11: 0 | CA11: 0 | CB11: 0 | CC11: 0 | CD11: 0 | CE11: 0 | CF11: 0 | CG11: 0 | CH11: 0 | CI11: 0 | CJ11: 0 | CK11: 0 | CL11: 0 | CM11: 0 | CN11: 0 | CO11: 0 | CP11: 0 | CQ11: 0 | CR11: 0 | CS11: 2 | CT11: 0 | CU11: 0 | CV11: 0 | CW11: 0 | CX11: 6199 | CY11: 26612 | CZ11: 32811 | DA11: 6532 | DB11: 272 | DC11: 152 | DD11: 39767
A12: 008 | B12: 01.12.1 | C12: Овощи свежие или охлажденные, не включенные в другие группировки | D12: 430817 | E12: 10 | F12: 0 | G12: 0 | H12: 2 | I12: 0 | J12: 0 | K12: 0 | L12: 0 | M12: 0 | N12: 0 | O12: 0 | P12: 1 | Q12: 42 | R12: 0 | S12: 78 | T12: 0 | U12: 0 | V12: 0 | W12: 0 | X12: 0 | Y12: 0 | Z12: 0 | AA12: 0 | AB12: 0 | AC12: 0 | AD12: 0 | AE12: 2 | AF12: 0 | AG12: 0 | AH12: 0 | AI12: 0 | AJ12: 0 | AK12: 0 | AL12: 0 | AM12: 0 | AN12: 0 | AO12: 0 | AP12: 0 | AQ12: 0 | AR12: 0 | AS12: 0 | AT12: 0 | AU12: 0 | AV12: 0 | AW12: 0 | AX12: 0 | AY12: 0 | AZ12: 1 | BA12: 0 | BB12: 0 | BC12: 1 | BD12: 0 | BE12: 0 | BF12: 0 | BG12: 0 | BH12: 1 | BI12: 6 | BJ12: 0 | BK12: 0 | BL12: 6 | BM12: 0 | BN12: 0 | BO12: 0 | BP12: 0 | BQ12: 6 | BR12: 0 | BS12: 0 | BT12: 0 | BU12: 0 | BV12: 0 | BW12: 1 | BX12: 0 | BY12: 0 | BZ12: 0 | CA12: 0 | CB12: 0 | CC12: 7 | CD12: 0 | CE12: 0 | CF12: 0 | CG12: 0 | CH12: 0 | CI12: 0 | CJ12: 0 | CK12: 0 | CL12: 0 | CM12: 0 | CN12: 0 | CO12: 0 | CP12: 0 | CQ12: 0 | CR12: 0 | CS12: 4 | CT12: 0 | CU12: 0 | CV12: 1 | CW12: 0 | CX12: 430988 | CY12: 98494 | CZ12: 529482 | DA12: 218824 | DB12: 8780 | DC12: 20149 | DD12: 777234
A13: 009 | B13: 01.12.2 | C13: Растения живые; цветы и бутоны цветочные срезанные; семена цветов и фруктовых деревьев; семена овощей | D13: 26041 | E13: 131 | F13: 0 | G13: 0 | H13: 0 | I13: 0 | J13: 0 | K13: 0 | L13: 0 | M13: 0 | N13: 0 | O13: 0 | P13: 0 | Q13: 0 | R13: 0 | S13: 0 | T13: 0 | U13: 0 | V13: 0 | W13: 0 | X13: 0 | Y13: 0 | Z13: 0 | AA13: 0 | AB13: 0 | AC13: 0 | AD13: 0 | AE13: 0 | AF13: 0 | AG13: 0 | AH13: 0 | AI13: 0 | AJ13: 0 | AK13: 0 | AL13: 0 | AM13: 0 | AN13: 0 | AO13: 0 | AP13: 0 | AQ13: 0 | AR13: 0 | AS13: 0 | AT13: 0 | AU13: 0 | AV13: 0 | AW13: 0 | AX13: 0 | AY13: 0 | AZ13: 0 | BA13: 0 | BB13: 0 | BC13: 0 | BD13: 0 | BE13: 0 | BF13: 0 | BG13: 0 | BH13: 0 | BI13: 3 | BJ13: 0 | BK13: 0 | BL13: 36 | BM13: 0 | BN13: 0 | BO13: 0 | BP13: 0 | BQ13: 0 | BR13: 0 | BS13: 0 | BT13: 0 | BU13: 1 | BV13: 0 | BW13: 0 | BX13: 0 | BY13: 0 | BZ13: 0 | CA13: 0 | CB13: 0 | CC13: 0 | CD13: 0 | CE13: 0 | CF13: 0 | CG13: 0 | CH13: 0 | CI13: 0 | CJ13: 0 | CK13: 0 | CL13: 0 | CM13: 0 | CN13: 0 | CO13: 0 | CP13: 0 | CQ13: 0 | CR13: 0 | CS13: 15 | CT13: 0 | CU13: 0 | CV13: 1 | CW13: 0 | CX13: 26228 | CY13: 43212 | CZ13: 69440 | DA13: 104373 | DB13: 120 | DC13: 5823 | DD13: 179756
A14: 010 | B14: 01.13.1 + 01.13.2 | C14: Фрукты, ягоды и орехи | D14: 250203 | E14: 0 | F14: 0 | G14: 0 | H14: 4 | I14: 0 | J14: 0 | K14: 0 | L14: 0 | M14: 0 | N14: 0 | O14: 0 | P14: 0 | Q14: 0 | R14: 0 | S14: 0 | T14: 0 | U14: 0 | V14: 0 | W14: 0 | X14: 0 | Y14: 149 | Z14: 0 | AA14: 0 | AB14: 0 | AC14: 0 | AD14: 0 | AE14: 0 | AF14: 0 | AG14: 0 | AH14: 0 | AI14: 0 | AJ14: 0 | AK14: 0 | AL14: 0 | AM14: 0 | AN14: 0 | AO14: 0 | AP14: 0 | AQ14: 0 | AR14: 0 | AS14: 0 | AT14: 0 | AU14: 0 | AV14: 0 | AW14: 0 | AX14: 0 | AY14: 0 | AZ14: 0 | BA14: 0 | BB14: 0 | BC14: 0 | BD14: 0 | BE14: 0 | BF14: 0 | BG14: 0 | BH14: 0 | BI14: 0 | BJ14: 0 | BK14: 0 | BL14: 0 | BM14: 0 | BN14: 0 | BO14: 0 | BP14: 0 | BQ14: 0 | BR14: 0 | BS14: 0 | BT14: 0 | BU14: 0 | BV14: 0 | BW14: 0 | BX14: 0 | BY14: 0 | BZ14: 0 | CA14: 0 | CB14: 0 | CC14: 0 | CD14: 0 | CE14: 0 | CF14: 0 | CG14: 0 | CH14: 0 | CI14: 0 | CJ14: 0 | CK14: 0 | CL14: 0 | CM14: 0 | CN14: 0 | CO14: 0 | CP14: 0 | CQ14: 2 | CR14: 0 | CS14: 0 | CT14: 4 | CU14: 0 | CV14: 0 | CW14: 0 | CX14: 250363 | CY14: 275734 | CZ14: 526098 | DA14: 264228 | DB14: 8372 | DC14: 33493 | DD14: 832192
A15: 011 | B15: 01.13.3 + 01.13.4 | C15: Культуры для производства напитков, пряности необработанные | D15: 1591 | E15: 0 | F15: 0 | G15: 0 | H15: 0 | I15: 0 | J15: 0 | K15: 0 | L15: 0 | M15: 0 | N15: 0 | O15: 0 | P15: 0 | Q15: 0 | R15: 0 | S15: 0 | T15: 0 | U15: 0 | V15: 0 | W15: 0 | X15: 0 | Y15: 124 | Z15: 0 | AA15: 0 | AB15: 0 | AC15: 0 | AD15: 0 | AE15: 0 | AF15: 0 | AG15: 0 | AH15: 0 | AI15: 0 | AJ15: 0 | AK15: 0 | AL15: 0 | AM15: 0 | AN15: 0 | AO15: 0 | AP15: 0 | AQ15: 0 | AR15: 0 | AS15: 0 | AT15: 0 | AU15: 0 | AV15: 0 | AW15: 0 | AX15: 0 | AY15: 0 | AZ15: 0 | BA15: 0 | BB15: 0 | BC15: 0 | BD15: 0 | BE15: 0 | BF15: 0 | BG15: 0 | BH15: 0 | BI15: 0 | BJ15: 0 | BK15: 0 | BL15: 0 | BM15: 0 | BN15: 0 | BO15: 0 | BP15: 0 | BQ15: 0 | BR15: 0 | BS15: 0 | BT15: 0 | BU15: 0 | BV15: 0 | BW15: 0 | BX15: 0 | BY15: 0 | BZ15: 0 | CA15: 0 | CB15: 0 | CC15: 0 | CD15: 0 | CE15: 0 | CF15: 0 | CG15: 0 | CH15: 0 | CI15: 0 | CJ15: 0 | CK15: 0 | CL15: 0 | CM15: 0 | CN15: 0 | CO15: 0 | CP15: 0 | CQ15: 0 | CR15: 0 | CS15: 0 | CT15: 0 | CU15: 0 | CV15: 0 | CW15: 0 | CX15: 1716 | CY15: 39710 | CZ15: 41425 | DA15: 7323 | DB15: 55 | DC15: 171 | DD15: 48975
A16: 012 | B16: 01.21 | C16: Скот крупный рогатый живой и продукция его разведения, животные дикие жвачные живые | D16: 1075163 | E16: 506 | F16: 0 | G16: 1 | H16: 227 | I16: 0 | J16: 0 | K16: 0 | L16: 0 | M16: 0 | N16: 0 | O16: 0 | P16: 2 | Q16: 1868 | R16: 38 | S16: 0 | T16: 0 | U16: 1055 | V16: 32 | W16: 3 | X16: 8 | Y16: 0 | Z16: 0 | AA16: 5 | AB16: 0 | AC16: 0 | AD16: 0 | AE16: 2 | AF16: 0 | AG16: 0 | AH16: 0 | AI16: 0 | AJ16: 0 | AK16: 0 | AL16: 0 | AM16: 1 | AN16: 0 | AO16: 0 | AP16: 0 | AQ16: 0 | AR16: 0 | AS16: 1 | AT16: 0 | AU16: 0 | AV16: 0 | AW16: 0 | AX16: 0 | AY16: 0 | AZ16: 3 | BA16: 51 | BB16: 0 | BC16: 0 | BD16: 0 | BE16: 0 | BF16: 0 | BG16: 0 | BH16: 0 | BI16: 0 | BJ16: 0 | BK16: 0 | BL16: 9 | BM16: 0 | BN16: 0 | BO16: 0 | BP16: 0 | BQ16: 0 | BR16: 0 | BS16: 9 | BT16: 0 | BU16: 95 | BV16: 0 | BW16: 0 | BX16: 0 | BY16: 0 | BZ16: 0 | CA16: 0 | CB16: 1 | CC16: 0 | CD16: 0 | CE16: 0 | CF16: 6 | CG16: 0 | CH16: 0 | CI16: 0 | CJ16: 0 | CK16: 136 | CL16: 0 | CM16: 0 | CN16: 64 | CO16: 0 | CP16: 0 | CQ16: 0 | CR16: 0 | CS16: 0 | CT16: 1 | CU16: 0 | CV16: 0 | CW16: 0 | CX16: 1079287 | CY16: 7679 | CZ16: 1086967 | DA16: 11631 | DB16: 126 | DC16: -2400 | DD16: 1096324
A17: 013 | B17: 01.22 | C17: Овцы, козы, лошади, ослы, мулы и лошаки живые и продукция их разведения | D17: 92926 | E17: 19 | F17: 0 | G17: 0 | H17: 0 | I17: 0 | J17: 0 | K17: 0 | L17: 0 | M17: 0 | N17: 0 | O17: 0 | P17: 9 | Q17: 0 | R17: 0 | S17: 0 | T17: 0 | U17: 81 | V17: 0 | W17: 0 | X17: 0 | Y17: 0 | Z17: 0 | AA17: 0 | AB17: 0 | AC17: 0 | AD17: 0 | AE17: 0 | AF17: 0 | AG17: 0 | AH17: 0 | AI17: 0 | AJ17: 0 | AK17: 0 | AL17: 0 | AM17: 0 | AN17: 0 | AO17: 0 | AP17: 0 | AQ17: 0 | AR17: 0 | AS17: 0 | AT17: 0 | AU17: 0 | AV17: 0 | AW17: 0 | AX17: 0 | AY17: 0 | AZ17: 0 | BA17: 0 | BB17: 0 | BC17: 0 | BD17: 0 | BE17: 0 | BF17: 0 | BG17: 0 | BH17: 0 | BI17: 0 | BJ17: 0 | BK17: 0 | BL17: 0 | BM17: 0 | BN17: 0 | BO17: 0 | BP17: 0 | BQ17: 0 | BR17: 0 | BS17: 0 | BT17: 0 | BU17: 0 | BV17: 0 | BW17: 0 | BX17: 0 | BY17: 0 | BZ17: 0 | CA17: 0 | CB17: 0 | CC17: 0 | CD17: 0 | CE17: 0 | CF17: 0 | CG17: 0 | CH17: 0 | CI17: 0 | CJ17: 0 | CK17: 0 | CL17: 0 | CM17: 0 | CN17: 0 | CO17: 0 | CP17: 0 | CQ17: 0 | CR17: 1 | CS17: 0 | CT17: 0 | CU17: 0 | CV17: 0 | CW17: 0 | CX17: 93038 | CY17: 367 | CZ17: 93405 | DA17: 1738 | DB17: 2 | DC17: -1687 | DD17: 93458
A18: 014 | B18: 01.23 | C18: Свиньи живые | D18: 446396 | E18: 0 | F18: 0 | G18: 0 | H18: 0 | I18: 0 | J18: 0 | K18: 0 | L18: 0 | M18: 0 | N18: 0 | O18: 40 | P18: 0 | Q18: 6803 | R18: 0 | S18: 0 | T18: 0 | U18: 5 | V18: 4 | W18: 0 | X18: 3 | Y18: 0 | Z18: 0 | AA18: 0 | AB18: 0 | AC18: 0 | AD18: 0 | AE18: 0 | AF18: 0 | AG18: 0 | AH18: 0 | AI18: 0 | AJ18: 0 | AK18: 0 | AL18: 0 | AM18: 0 | AN18: 0 | AO18: 0 | AP18: 0 | AQ18: 0 | AR18: 0 | AS18: 0 | AT18: 0 | AU18: 0 | AV18: 0 | AW18: 0 | AX18: 0 | AY18: 0 | AZ18: 0 | BA18: 0 | BB18: 0 | BC18: 0 | BD18: 0 | BE18: 0 | BF18: 0 | BG18: 0 | BH18: 0 | BI18: 0 | BJ18: 0 | BK18: 0 | BL18: 0 | BM18: 0 | BN18: 0 | BO18: 0 | BP18: 0 | BQ18: 0 | BR18: 0 | BS18: 0 | BT18: 0 | BU18: 0 | BV18: 0 | BW18: 68 | BX18: 29 | BY18: 0 | BZ18: 0 | CA18: 0 | CB18: 0 | CC18: 0 | CD18: 0 | CE18: 0 | CF18: 0 | CG18: 0 | CH18: 0 | CI18: 0 | CJ18: 0 | CK18: 109 | CL18: 0 | CM18: 0 | CN18: 55 | CO18: 0 | CP18: 0 | CQ18: 9 | CR18: 0 | CS18: 0 | CT18: 0 | CU18: 0 | CV18: 0 | CW18: 0 | CX18: 453522 | CY18: 857 | CZ18: 454379 | DA18: 1950 | DB18: 88 | DC18: -1011 | DD18: 455406
A19: 015 | B19: 01.24.1 | C19: Птица сельскохозяйственная живая | D19: 456144 | E19: 0 | F19: 0 | G19: 0 | H19: 0 | I19: 0 | J19: 0 | K19: 0 | L19: 0 | M19: 0 | N19: 0 | O19: 0 | P19: 292 | Q19: 8657 | R19: 0 | S19: 0 | T19: 0 | U19: 3 | V19: 47 | W19: 0 | X19: 0 | Y19: 0 | Z19: 0 | AA19: 0 | AB19: 1 | AC19: 0 | AD19: 0 | AE19: 0 | AF19: 0 | AG19: 0 | AH19: 0 | AI19: 0 | AJ19: 0 | AK19: 0 | AL19: 0 | AM19: 0 | AN19: 0 | AO19: 0 | AP19: 0 | AQ19: 0 | AR19: 5 | AS19: 0 | AT19: 0 | AU19: 0 | AV19: 0 | AW19: 0 | AX19: 0 | AY19: 0 | AZ19: 0 | BA19: 23 | BB19: 0 | BC19: 0 | BD19: 0 | BE19: 0 | BF19: 0 | BG19: 0 | BH19: 0 | BI19: 0 | BJ19: 0 | BK19: 0 | BL19: 0 | BM19: 0 | BN19: 0 | BO19: 0 | BP19: 0 | BQ19: 0 | BR19: 0 | BS19: 0 | BT19: 0 | BU19: 0 | BV19: 0 | BW19: 0 | BX19: 1 | BY19: 0 | BZ19: 0 | CA19: 0 | CB19: 0 | CC19: 0 | CD19: 0 | CE19: 0 | CF19: 0 | CG19: 0 | CH19: 0 | CI19: 0 | CJ19: 0 | CK19: 0 | CL19: 0 | CM19: 0 | CN19: 0 | CO19: 0 | CP19: 0 | CQ19: 0 | CR19: 0 | CS19: 0 | CT19: 0 | CU19: 0 | CV19: 0 | CW19: 0 | CX19: 465174 | CY19: 2445 | CZ19: 467619 | DA19: 2152 | DB19: 83 | DC19: -705 | DD19: 469150
A20: 016 | B20: 01.24.2 | C20: Яйца в скорлупе | D20: 202510 | E20: 0 | F20: 0 | G20: 0 | H20: 0 | I20: 0 | J20: 0 | K20: 0 | L20: 0 | M20: 0 | N20: 0 | O20: 0 | P20: 0 | Q20: 0 | R20: 0 | S20: 0 | T20: 0 | U20: 0 | V20: 0 | W20: 0 | X20: 0 | Y20: 0 | Z20: 0 | AA20: 0 | AB20: 0 | AC20: 0 | AD20: 0 | AE20: 0 | AF20: 0 | AG20: 0 | AH20: 0 | AI20: 0 | AJ20: 0 | AK20: 0 | AL20: 0 | AM20: 0 | AN20: 0 | AO20: 0 | AP20: 0 | AQ20: 0 | AR20: 0 | AS20: 0 | AT20: 0 | AU20: 0 | AV20: 0 | AW20: 0 | AX20: 0 | AY20: 0 | AZ20: 0 | BA20: 0 | BB20: 0 | BC20: 0 | BD20: 0 | BE20: 0 | BF20: 0 | BG20: 0 | BH20: 0 | BI20: 0 | BJ20: 0 | BK20: 0 | BL20: 0 | BM20: 0 | BN20: 0 | BO20: 0 | BP20: 0 | BQ20: 0 | BR20: 0 | BS20: 0 | BT20: 0 | BU20: 0 | BV20: 0 | BW20: 0 | BX20: 0 | BY20: 0 | BZ20: 0 | CA20: 0 | CB20: 0 | CC20: 0 | CD20: 0 | CE20: 0 | CF20: 0 | CG20: 0 | CH20: 0 | CI20: 0 | CJ20: 0 | CK20: 0 | CL20: 0 | CM20: 0 | CN20: 0 | CO20: 0 | CP20: 0 | CQ20: 0 | CR20: 0 | CS20: 0 | CT20: 0 | CU20: 0 | CV20: 0 | CW20: 0 | CX20: 202510 | CY20: 15286 | CZ20: 217796 | DA20: 67783 | DB20: 73 | DC20: 13774 | DD20: 299426
A21: 017 | B21: 01.25 | C21: Животные живые прочие и продукция их разведения | D21: 78918 | E21: 0 | F21: 0 | G21: 1 | H21: 16 | I21: 0 | J21: 0 | K21: 0 | L21: 0 | M21: 0 | N21: 0 | O21: 0 | P21: 0 | Q21: 0 | R21: 0 | S21: 0 | T21: 0 | U21: 1 | V21: 0 | W21: 0 | X21: 0 | Y21: 0 | Z21: 0 | AA21: 0 | AB21: 0 | AC21: 0 | AD21: 0 | AE21: 0 | AF21: 0 | AG21: 0 | AH21: 0 | AI21: 0 | AJ21: 0 | AK21: 0 | AL21: 0 | AM21: 4 | AN21: 0 | AO21: 0 | AP21: 0 | AQ21: 0 | AR21: 0 | AS21: 0 | AT21: 0 | AU21: 0 | AV21: 0 | AW21: 0 | AX21: 0 | AY21: 0 | AZ21: 0 | BA21: 0 | BB21: 0 | BC21: 2 | BD21: 0 | BE21: 0 | BF21: 0 | BG21: 0 | BH21: 0 | BI21: 0 | BJ21: 0 | BK21: 0 | BL21: 0 | BM21: 0 | BN21: 0 | BO21: 0 | BP21: 0 | BQ21: 0 | BR21: 0 | BS21: 0 | BT21: 1 | BU21: 0 | BV21: 0 | BW21: 0 | BX21: 0 | BY21: 0 | BZ21: 0 | CA21: 0 | CB21: 0 | CC21: 0 | CD21: 0 | CE21: 0 | CF21: 0 | CG21: 0 | CH21: 0 | CI21: 0 | CJ21: 0 | CK21: 199 | CL21: 0 | CM21: 0 | CN21: 0 | CO21: 0 | CP21: 0 | CQ21: 0 | CR21: 0 | CS21: 0 | CT21: 0 | CU21: 0 | CV21: 0 | CW21: 0 | CX21: 79141 | CY21: 1791 | CZ21: 80931 | DA21: 10367 | DB21: 42 | DC21: -2841 | DD21: 88499
A22: 018 | B22: 01.4 | C22: Услуги в области растениеводства и животноводства, кроме ветеринарных услуг, услуги в области декоративного садоводства | D22: 7497 | E22: 95962 | F22: 0 | G22: 1 | H22: 6 | I22: 0 | J22: 0 | K22: 0 | L22: 0 | M22: 0 | N22: 0 | O22: 0 | P22: 0 | Q22: 35 | R22: 0 | S22: 103 | T22: 60 | U22: 38 | V22: 32 | W22: 18 | X22: 20 | Y22: 0 | Z22: 0 | AA22: 0 | AB22: 0 | AC22: 0 | AD22: 0 | AE22: 0 | AF22: 0 | AG22: 0 | AH22: 0 | AI22: 0 | AJ22: 33 | AK22: 0 | AL22: 0 | AM22: 0 | AN22: 0 | AO22: 0 | AP22: 0 | AQ22: 0 | AR22: 0 | AS22: 0 | AT22: 0 | AU22: 0 | AV22: 0 | AW22: 0 | AX22: 0 | AY22: 0 | AZ22: 0 | BA22: 0 | BB22: 0 | BC22: 0 | BD22: 0 | BE22: 0 | BF22: 0 | BG22: 0 | BH22: 0 | BI22: 0 | BJ22: 0 | BK22: 0 | BL22: 0 | BM22: 0 | BN22: 0 | BO22: 1 | BP22: 0 | BQ22: 14 | BR22: 0 | BS22: 13 | BT22: 10 | BU22: 132 | BV22: 0 | BW22: 121 | BX22: 12 | BY22: 0 | BZ22: 0 | CA22: 0 | CB22: 378 | CC22: 0 | CD22: 9 | CE22: 0 | CF22: 68 | CG22: 0 | CH22: 0 | CI22: 0 | CJ22: 0 | CK22: 54 | CL22: 21 | CM22: 0 | CN22: 0 | CO22: 93 | CP22: 0 | CQ22: 0 | CR22: 0 | CS22: 456 | CT22: 0 | CU22: 1 | CV22: 14 | CW22: 0 | CX22: 105204 | CY22: 1670 | CZ22: 106874 | DA22: 0 | DB22: 0 | DC22: 2489 | DD22: 109363
A23: 019 | B23: 01.5 | C23: Услуги, связанные с охотой, ловлей и разведением диких животных | D23: 14 | E23: 0 | F23: 8389 | G23: 0 | H23: 3 | I23: 0 | J23: 0 | K23: 0 | L23: 0 | M23: 0 | N23: 0 | O23: 0 | P23: 0 | Q23: 0 | R23: 1 | S23: 0 | T23: 0 | U23: 0 | V23: 0 | W23: 0 | X23: 0 | Y23: 0 | Z23: 0 | AA23: 0 | AB23: 0 | AC23: 0 | AD23: 0 | AE23: 0 | AF23: 0 | AG23: 0 | AH23: 0 | AI23: 0 | AJ23: 1 | AK23: 0 | AL23: 0 | AM23: 0 | AN23: 0 | AO23: 0 | AP23: 0 | AQ23: 0 | AR23: 0 | AS23: 0 | AT23: 0 | AU23: 0 | AV23: 0 | AW23: 0 | AX23: 0 | AY23: 0 | AZ23: 0 | BA23: 1 | BB23: 0 | BC23: 0 | BD23: 0 | BE23: 0 | BF23: 0 | BG23: 0 | BH23: 0 | BI23: 0 | BJ23: 0 | BK23: 0 | BL23: 2 | BM23: 0 | BN23: 0 | BO23: 0 | BP23: 0 | BQ23: 0 | BR23: 0 | BS23: 0 | BT23: 0 | BU23: 0 | BV23: 0 | BW23: 0 | BX23: 0 | BY23: 10 | BZ23: 0 | CA23: 0 | CB23: 1 | CC23: 0 | CD23: 0 | CE23: 0 | CF23: 0 | CG23: 0 | CH23: 0 | CI23: 0 | CJ23: 0 | CK23: 0 | CL23: 0 | CM23: 0 | CN23: 0 | CO23: 0 | CP23: 0 | CQ23: 0 | CR23: 0 | CS23: 6 | CT23: 321 | CU23: 0 | CV23: 0 | CW23: 0 | CX23: 8749 | CY23: 0 | CZ23: 8749 | DA23: 0 | DB23: 0 | DC23: 236 | DD23: 8985
A24: 020 | B24: 02.01 | C24: Древесина необработанная; смолы природные; пробка натуральная; продукция лесоводства прочая | D24: 449 | E24: 132 | F24: 12 | G24: 223300 | H24: 4 | I24: 0 | J24: 0 | K24: 0 | L24: 0 | M24: 0 | N24: 0 | O24: 190 | P24: 0 | Q24: 0 | R24: 1 | S24: 0 | T24: 0 | U24: 0 | V24: 0 | W24: 0 | X24: 0 | Y24: 0 | Z24: 0 | AA24: 0 | AB24: 0 | AC24: 0 | AD24: 10899 | AE24: 7825 | AF24: 0 | AG24: 0 | AH24: 0 | AI24: 0 | AJ24: 78 | AK24: 0 | AL24: 0 | AM24: 0 | AN24: 0 | AO24: 0 | AP24: 0 | AQ24: 0 | AR24: 0 | AS24: 0 | AT24: 0 | AU24: 0 | AV24: 0 | AW24: 0 | AX24: 4 | AY24: 0 | AZ24: 0 | BA24: 0 | BB24: 0 | BC24: 1 | BD24: 0 | BE24: 0 | BF24: 0 | BG24: 0 | BH24: 0 | BI24: 0 | BJ24: 0 | BK24: 0 | BL24: 0 | BM24: 133 | BN24: 0 | BO24: 1 | BP24: 0 | BQ24: 3 | BR24: 0 | BS24: 29 | BT24: 4 | BU24: 303 | BV24: 0 | BW24: 51 | BX24: 0 | BY24: 0 | BZ24: 0 | CA24: 80 | CB24: 0 | CC24: 0 | CD24: 8 | CE24: 0 | CF24: 10 | CG24: 0 | CH24: 0 | CI24: 0 | CJ24: 0 | CK24: 25 | CL24: 0 | CM24: 0 | CN24: 11 | CO24: 0 | CP24: 0 | CQ24: 0 | CR24: 0 | CS24: 3 | CT24: 0 | CU24: 0 | CV24: 0 | CW24: 0 | CX24: 243558 | CY24: 3570 | CZ24: 247128 | DA24: 90904 | DB24: 10668 | DC24: 19429 | DD24: 368128
A25: 021 | B25: 02.02 | C25: Услуги, связанные с лесоводством и лесозаготовками | D25: 2 | E25: 0 | F25: 0 | G25: 36683 | H25: 2 | I25: 0 | J25: 0 | K25: 0 | L25: 0 | M25: 0 | N25: 0 | O25: 0 | P25: 1 | Q25: 0 | R25: 0 | S25: 0 | T25: 0 | U25: 0 | V25: 0 | W25: 0 | X25: 0 | Y25: 0 | Z25: 0 | AA25: 0 | AB25: 0 | AC25: 0 | AD25: 267 | AE25: 75 | AF25: 0 | AG25: 0 | AH25: 0 | AI25: 0 | AJ25: 6 | AK25: 0 | AL25: 0 | AM25: 0 | AN25: 0 | AO25: 0 | AP25: 0 | AQ25: 0 | AR25: 0 | AS25: 0 | AT25: 0 | AU25: 0 | AV25: 0 | AW25: 0 | AX25: 0 | AY25: 0 | AZ25: 0 | BA25: 0 | BB25: 0 | BC25: 0 | BD25: 0 | BE25: 0 | BF25: 0 | BG25: 0 | BH25: 0 | BI25: 0 | BJ25: 0 | BK25: 0 | BL25: 0 | BM25: 0 | BN25: 0 | BO25: 0 | BP25: 0 | BQ25: 0 | BR25: 0 | BS25: 1 | BT25: 0 | BU25: 28 | BV25: 0 | BW25: 76 | BX25: 0 | BY25: 0 | BZ25: 0 | CA25: 0 | CB25: 0 | CC25: 0 | CD25: 0 | CE25: 0 | CF25: 39 | CG25: 0 | CH25: 0 | CI25: 0 | CJ25: 0 | CK25: 0 | CL25: 23 | CM25: 0 | CN25: 0 | CO25: 3 | CP25: 0 | CQ25: 25 | CR25: 0 | CS25: 0 | CT25: 0 | CU25: 0 | CV25: 0 | CW25: 0 | CX25: 37230 | CY25: 11 | CZ25: 37241 | DA25: 0 | DB25: 0 | DC25: 1099 | DD25: 38341
A26: 022 | B26: 05 | C26: Рыба и прочая продукция рыболовства и рыбоводства; услуги, связанные с рыболовством и рыбоводством | D26: 102 | E26: 0 | F26: 0 | G26: 0 | H26: 251989 | I26: 0 | J26: 0 | K26: 0 | L26: 0 | M26: 0 | N26: 0 | O26: 0 | P26: 5 | Q26: 0 | R26: 1663 | S26: 0 | T26: 0 | U26: 0 | V26: 3 | W26: 1 | X26: 0 | Y26: 0 | Z26: 0 | AA26: 0 | AB26: 0 | AC26: 0 | AD26: 0 | AE26: 357 | AF26: 0 | AG26: 0 | AH26: 0 | AI26: 0 | AJ26: 535 | AK26: 0 | AL26: 0 | AM26: 0 | AN26: 17 | AO26: 25 | AP26: 0 | AQ26: 0 | AR26: 136 | AS26: 0 | AT26: 0 | AU26: 0 | AV26: 0 | AW26: 0 | AX26: 0 | AY26: 0 | AZ26: 0 | BA26: 0 | BB26: 0 | BC26: 0 | BD26: 0 | BE26: 0 | BF26: 0 | BG26: 0 | BH26: 0 | BI26: 0 | BJ26: 0 | BK26: 0 | BL26: 2 | BM26: 0 | BN26: 0 | BO26: 0 | BP26: 0 | BQ26: 6 | BR26: 0 | BS26: 1 | BT26: 0 | BU26: 0 | BV26: 0 | BW26: 52 | BX26: 2 | BY26: 0 | BZ26: 0 | CA26: 0 | CB26: 0 | CC26: 2 | CD26: 0 | CE26: 0 | CF26: 0 | CG26: 0 | CH26: 0 | CI26: 0 | CJ26: 0 | CK26: 214 | CL26: 0 | CM26: 0 | CN26: 0 | CO26: 0 | CP26: 0 | CQ26: 0 | CR26: 0 | CS26: 0 | CT26: 21 | CU26: 0 | CV26: 0 | CW26: 0 | CX26: 255132 | CY26: 13603 | CZ26: 268736 | DA26: 26434 | DB26: 248 | DC26: 2530 | DD26: 297948
A27: 023 | B27: 10.1 + 10.2 | C27: Уголь | D27: 0 | E27: 0 | F27: 0 | G27: 0 | H27: 0 | I27: 901248 | J27: 0 | K27: 0 | L27: 0 | M27: 0 | N27: 0 | O27: 0 | P27: 0 | Q27: 0 | R27: 0 | S27: 0 | T27: 0 | U27: 0 | V27: 0 | W27: 0 | X27: 0 | Y27: 0 | Z27: 0 | AA27: 0 | AB27: 0 | AC27: 0 | AD27: 0 | AE27: 0 | AF27: 0 | AG27: 0 | AH27: 0 | AI27: 0 | AJ27: 0 | AK27: 0 | AL27: 0 | AM27: 0 | AN27: 0 | AO27: 0 | AP27: 0 | AQ27: 0 | AR27: 0 | AS27: 0 | AT27: 0 | AU27: 0 | AV27: 0 | AW27: 0 | AX27: 118 | AY27: 0 | AZ27: 0 | BA27: 0 | BB27: 0 | BC27: 0 | BD27: 0 | BE27: 0 | BF27: 0 | BG27: 0 | BH27: 0 | BI27: 0 | BJ27: 0 | BK27: 0 | BL27: 1067 | BM27: 0 | BN27: 0 | BO27: 0 | BP27: 0 | BQ27: 0 | BR27: 0 | BS27: 0 | BT27: 0 | BU27: 0 | BV27: 0 | BW27: 294 | BX27: 0 | BY27: 0 | BZ27: 0 | CA27: 0 | CB27: 0 | CC27: 0 | CD27: 231 | CE27: 0 | CF27: 0 | CG27: 0 | CH27: 0 | CI27: 0 | CJ27: 0 | CK27: 3 | CL27: 0 | CM27: 0 | CN27: 0 | CO27: 107 | CP27: 0 | CQ27: 0 | CR27: 0 | CS27: 0 | CT27: 0 | CU27: 0 | CV27: 0 | CW27: 0 | CX27: 903068 | CY27: 18972 | CZ27: 922040 | DA27: 87236 | DB27: 253625 | DC27: 4026 | DD27: 1266927
A28: 024 | B28: 10.3 | C28: Торф | D28: 0 | E28: 0 | F28: 0 | G28: 0 | H28: 0 | I28: 2769 | J28: 0 | K28: 1 | L28: 0 | M28: 0 | N28: 0 | O28: 0 | P28: 0 | Q28: 0 | R28: 0 | S28: 0 | T28: 0 | U28: 0 | V28: 0 | W28: 0 | X28: 0 | Y28: 0 | Z28: 0 | AA28: 0 | AB28: 0 | AC28: 0 | AD28: 0 | AE28: 0 | AF28: 0 | AG28: 0 | AH28: 0 | AI28: 1 | AJ28: 0 | AK28: 0 | AL28: 0 | AM28: 0 | AN28: 0 | AO28: 0 | AP28: 0 | AQ28: 0 | AR28: 0 | AS28: 0 | AT28: 0 | AU28: 0 | AV28: 2 | AW28: 0 | AX28: 0 | AY28: 0 | AZ28: 0 | BA28: 0 | BB28: 0 | BC28: 16 | BD28: 0 | BE28: 0 | BF28: 0 | BG28: 0 | BH28: 0 | BI28: 0 | BJ28: 0 | BK28: 0 | BL28: 0 | BM28: 0 | BN28: 0 | BO28: 0 | BP28: 0 | BQ28: 0 | BR28: 0 | BS28: 0 | BT28: 0 | BU28: 0 | BV28: 0 | BW28: 5 | BX28: 0 | BY28: 0 | BZ28: 0 | CA28: 0 | CB28: 0 | CC28: 0 | CD28: 0 | CE28: 0 | CF28: 0 | CG28: 0 | CH28: 0 | CI28: 0 | CJ28: 0 | CK28: 0 | CL28: 0 | CM28: 0 | CN28: 0 | CO28: 4 | CP28: 0 | CQ28: 0 | CR28: 0 | CS28: 0 | CT28: 0 | CU28: 0 | CV28: 0 | CW28: 0 | CX28: 2798 | CY28: 97 | CZ28: 2895 | DA28: 296 | DB28: 292 | DC28: 34 | DD28: 3518
A29: 025 | B29: 11.10.1 + 11.10.4 | C29: Нефть, включая нефть, получаемую из битуминозных минералов; сланцы горючие (битуминозные) и песчаники битуминозные | D29: 0 | E29: 0 | F29: 0 | G29: 0 | H29: 0 | I29: 0 | J29: 5278257 | K29: 154119 | L29: 309 | M29: 0 | N29: 0 | O29: 0 | P29: 0 | Q29: 0 | R29: 0 | S29: 0 | T29: 0 | U29: 0 | V29: 0 | W29: 0 | X29: 0 | Y29: 0 | Z29: 0 | AA29: 0 | AB29: 0 | AC29: 0 | AD29: 0 | AE29: 0 | AF29: 0 | AG29: 0 | AH29: 0 | AI29: 886886 | AJ29: 0 | AK29: 0 | AL29: 0 | AM29: 0 | AN29: 0 | AO29: 0 | AP29: 0 | AQ29: 0 | AR29: 0 | AS29: 0 | AT29: 0 | AU29: 0 | AV29: 0 | AW29: 0 | AX29: 0 | AY29: 0 | AZ29: 0 | BA29: 0 | BB29: 0 | BC29: 0 | BD29: 0 | BE29: 0 | BF29: 0 | BG29: 0 | BH29: 0 | BI29: 0 | BJ29: 0 | BK29: 0 | BL29: 0 | BM29: 0 | BN29: 0 | BO29: 0 | BP29: 0 | BQ29: 0 | BR29: 0 | BS29: 0 | BT29: 0 | BU29: 0 | BV29: 0 | BW29: 0 | BX29: 0 | BY29: 0 | BZ29: 0 | CA29: 0 | CB29: 0 | CC29: 0 | CD29: 0 | CE29: 0 | CF29: 0 | CG29: 0 | CH29: 0 | CI29: 0 | CJ29: 0 | CK29: 0 | CL29: 0 | CM29: 0 | CN29: 0 | CO29: 1078 | CP29: 0 | CQ29: 0 | CR29: 0 | CS29: 0 | CT29: 0 | CU29: 0 | CV29: 0 | CW29: 0 | CX29: 6320650 | CY29: 5351 | CZ29: 6326001 | DA29: 149977 | DB29: 201052 | DC29: 1030781 | DD29: 7707811
A30: 026 | B30: 11.10.2 + 11.10.3 | C30: Газ природный в газообразном или сжиженном состоянии, включая услуги по сжижению и регазификации природного газа для транспортирования | D30: 0 | E30: 0 | F30: 0 | G30: 0 | H30: 0 | I30: 0 | J30: 163836 | K30: 1208836 | L30: 226 | M30: 0 | N30: 0 | O30: 0 | P30: 0 | Q30: 0 | R30: 0 | S30: 0 | T30: 0 | U30: 0 | V30: 0 | W30: 0 | X30: 0 | Y30: 0 | Z30: 0 | AA30: 0 | AB30: 0 | AC30: 0 | AD30: 0 | AE30: 0 | AF30: 0 | AG30: 0 | AH30: 0 | AI30: 38200 | AJ30: 0 | AK30: 0 | AL30: 0 | AM30: 0 | AN30: 0 | AO30: 0 | AP30: 0 | AQ30: 0 | AR30: 0 | AS30: 0 | AT30: 0 | AU30: 0 | AV30: 0 | AW30: 0 | AX30: 0 | AY30: 0 | AZ30: 0 | BA30: 0 | BB30: 0 | BC30: 0 | BD30: 0 | BE30: 0 | BF30: 0 | BG30: 0 | BH30: 0 | BI30: 0 | BJ30: 0 | BK30: 0 | BL30: 0 | BM30: 0 | BN30: 0 | BO30: 0 | BP30: 0 | BQ30: 1 | BR30: 137 | BS30: 34 | BT30: 0 | BU30: 90 | BV30: 0 | BW30: 489 | BX30: 0 | BY30: 0 | BZ30: 0 | CA30: 0 | CB30: 0 | CC30: 345 | CD30: 0 | CE30: 0 | CF30: 0 | CG30: 0 | CH30: 0 | CI30: 0 | CJ30: 0 | CK30: 0 | CL30: 0 | CM30: 0 | CN30: 0 | CO30: 40 | CP30: 0 | CQ30: 0 | CR30: 0 | CS30: 0 | CT30: 0 | CU30: 0 | CV30: 0 | CW30: 0 | CX30: 1412235 | CY30: 0 | CZ30: 1412235 | DA30: 1491347 | DB30: 0 | DC30: 582182 | DD30: 3485763
A31: 027 | B31: 11.2 | C31: Услуги, связанные с добычей нефти и горючего природного газа, кроме геологоразведочных работ | D31: 0 | E31: 0 | F31: 0 | G31: 0 | H31: 0 | I31: 0 | J31: 97137 | K31: 11710 | L31: 1390763 | M31: 0 | N31: 0 | O31: 0 | P31: 0 | Q31: 0 | R31: 0 | S31: 0 | T31: 0 | U31: 0 | V31: 0 | W31: 0 | X31: 0 | Y31: 0 | Z31: 0 | AA31: 0 | AB31: 0 | AC31: 0 | AD31: 0 | AE31: 0 | AF31: 0 | AG31: 0 | AH31: 0 | AI31: 68 | AJ31: 0 | AK31: 0 | AL31: 0 | AM31: 0 | AN31: 0 | AO31: 257 | AP31: 0 | AQ31: 0 | AR31: 0 | AS31: 0 | AT31: 0 | AU31: 0 | AV31: 83 | AW31: 0 | AX31: 0 | AY31: 0 | AZ31: 0 | BA31: 670 | BB31: 0 | BC31: 4664 | BD31: 0 | BE31: 0 | BF31: 0 | BG31: 0 | BH31: 0 | BI31: 0 | BJ31: 0 | BK31: 0 | BL31: 9 | BM31: 0 | BN31: 0 | BO31: 0 | BP31: 0 | BQ31: 0 | BR31: 0 | BS31: 0 | BT31: 0 | BU31: 21588 | BV31: 0 | BW31: 772 | BX31: 0 | BY31: 0 | BZ31: 0 | CA31: 0 | CB31: 899 | CC31: 344 | CD31: 0 | CE31: 0 | CF31: 293 | CG31: 0 | CH31: 0 | CI31: 0 | CJ31: 0 | CK31: 0 | CL31: 692 | CM31: 178 | CN31: 3642 | CO31: 2991 | CP31: 0 | CQ31: 0 | CR31: 0 | CS31: 0 | CT31: 0 | CU31: 0 | CV31: 0 | CW31: 0 | CX31: 1536760 | CY31: 156777 | CZ31: 1693537 | DA31: 0 | DB31: 0 | DC31: 0 | DD31: 1693537
A32: 028 | B32: 12 | C32: Руды урановые и ториевые | D32: 0 | E32: 0 | F32: 0 | G32: 0 | H32: 0 | I32: 0 | J32: 0 | K32: 0 | L32: 0 | M32: 4423 | N32: 0 | O32: 0 | P32: 0 | Q32: 0 | R32: 0 | S32: 0 | T32: 0 | U32: 0 | V32: 0 | W32: 0 | X32: 0 | Y32: 0 | Z32: 0 | AA32: 0 | AB32: 0 | AC32: 0 | AD32: 0 | AE32: 0 | AF32: 0 | AG32: 0 | AH32: 0 | AI32: 0 | AJ32: 0 | AK32: 0 | AL32: 0 | AM32: 0 | AN32: 0 | AO32: 0 | AP32: 0 | AQ32: 0 | AR32: 0 | AS32: 0 | AT32: 0 | AU32: 0 | AV32: 0 | AW32: 0 | AX32: 0 | AY32: 0 | AZ32: 0 | BA32: 0 | BB32: 0 | BC32: 0 | BD32: 0 | BE32: 0 | BF32: 0 | BG32: 0 | BH32: 0 | BI32: 0 | BJ32: 0 | BK32: 0 | BL32: 0 | BM32: 0 | BN32: 0 | BO32: 0 | BP32: 0 | BQ32: 0 | BR32: 0 | BS32: 0 | BT32: 0 | BU32: 0 | BV32: 0 | BW32: 0 | BX32: 0 | BY32: 0 | BZ32: 0 | CA32: 0 | CB32: 0 | CC32: 0 | CD32: 0 | CE32: 0 | CF32: 0 | CG32: 0 | CH32: 0 | CI32: 0 | CJ32: 0 | CK32: 0 | CL32: 0 | CM32: 0 | CN32: 0 | CO32: 0 | CP32: 0 | CQ32: 0 | CR32: 0 | CS32: 0 | CT32: 0 | CU32: 0 | CV32: 0 | CW32: 0 | CX32: 4423 | CY32: 1 | CZ32: 4424 | DA32: 0 | DB32: 3 | DC32: 0 | DD32: 4427
A33: 029 | B33: 13.1 | C33: Руды железные | D33: 0 | E33: 0 | F33: 0 | G33: 0 | H33: 0 | I33: 0 | J33: 0 | K33: 0 | L33: 0 | M33: 0 | N33: 248973 | O33: 0 | P33: 5 | Q33: 0 | R33: 0 | S33: 0 | T33: 0 | U33: 0 | V33: 0 | W33: 0 | X33: 0 | Y33: 0 | Z33: 0 | AA33: 0 | AB33: 0 | AC33: 0 | AD33: 0 | AE33: 0 | AF33: 0 | AG33: 0 | AH33: 0 | AI33: 0 | AJ33: 0 | AK33: 0 | AL33: 0 | AM33: 0 | AN33: 0 | AO33: 0 | AP33: 0 | AQ33: 0 | AR33: 0 | AS33: 0 | AT33: 0 | AU33: 0 | AV33: 0 | AW33: 0 | AX33: 70 | AY33: 0 | AZ33: 0 | BA33: 0 | BB33: 0 | BC33: 0 | BD33: 0 | BE33: 0 | BF33: 0 | BG33: 0 | BH33: 0 | BI33: 0 | BJ33: 0 | BK33: 0 | BL33: 0 | BM33: 0 | BN33: 0 | BO33: 0 | BP33: 0 | BQ33: 0 | BR33: 0 | BS33: 0 | BT33: 0 | BU33: 0 | BV33: 0 | BW33: 0 | BX33: 0 | BY33: 0 | BZ33: 0 | CA33: 0 | CB33: 0 | CC33: 0 | CD33: 0 | CE33: 0 | CF33: 0 | CG33: 0 | CH33: 0 | CI33: 0 | CJ33: 0 | CK33: 0 | CL33: 0 | CM33: 0 | CN33: 0 | CO33: 0 | CP33: 0 | CQ33: 0 | CR33: 0 | CS33: 0 | CT33: 0 | CU33: 0 | CV33: 0 | CW33: 0 | CX33: 249047 | CY33: 25616 | CZ33: 274663 | DA33: 6881 | DB33: 7051 | DC33: 0 | DD33: 288595
A34: 030 | B34: 13.2 | C34: Руды цветных металлов, кроме урановых и ториевых руд | D34: 0 | E34: 0 | F34: 0 | G34: 139 | H34: 0 | I34: 0 | J34: 0 | K34: 0 | L34: 0 | M34: 0 | N34: 1932 | O34: 231729 | P34: 92 | Q34: 0 | R34: 0 | S34: 0 | T34: 0 | U34: 0 | V34: 0 | W34: 0 | X34: 0 | Y34: 0 | Z34: 0 | AA34: 0 | AB34: 0 | AC34: 0 | AD34: 0 | AE34: 0 | AF34: 0 | AG34: 0 | AH34: 0 | AI34: 0 | AJ34: 0 | AK34: 0 | AL34: 0 | AM34: 0 | AN34: 0 | AO34: 0 | AP34: 0 | AQ34: 0 | AR34: 0 | AS34: 0 | AT34: 0 | AU34: 0 | AV34: 0 | AW34: 6566 | AX34: 1170 | AY34: 0 | AZ34: 0 | BA34: 0 | BB34: 0 | BC34: 0 | BD34: 0 | BE34: 0 | BF34: 0 | BG34: 0 | BH34: 0 | BI34: 0 | BJ34: 0 | BK34: 0 | BL34: 0 | BM34: 0 | BN34: 0 | BO34: 0 | BP34: 0 | BQ34: 0 | BR34: 0 | BS34: 0 | BT34: 0 | BU34: 12823 | BV34: 0 | BW34: 201 | BX34: 0 | BY34: 0 | BZ34: 0 | CA34: 0 | CB34: 23 | CC34: 0 | CD34: 0 | CE34: 0 | CF34: 0 | CG34: 0 | CH34: 0 | CI34: 0 | CJ34: 0 | CK34: 0 | CL34: 0 | CM34: 0 | CN34: 0 | CO34: 4757 | CP34: 0 | CQ34: 0 | CR34: 0 | CS34: 0 | CT34: 0 | CU34: 0 | CV34: 0 | CW34: 0 | CX34: 259433 | CY34: 37465 | CZ34: 296898 | DA34: 14557 | DB34: 17786 | DC34: 534 | DD34: 329775
A35: 031 | B35: 14.1 | C35: Камень | D35: 0 | E35: 0 | F35: 0 | G35: 0 | H35: 0 | I35: 5 | J35: 0 | K35: 0 | L35: 0 | M35: 0 | N35: 1912 | O35: 292 | P35: 56370 | Q35: 0 | R35: 0 | S35: 0 | T35: 0 | U35: 0 | V35: 0 | W35: 0 | X35: 0 | Y35: 0 | Z35: 0 | AA35: 0 | AB35: 0 | AC35: 0 | AD35: 0 | AE35: 0 | AF35: 0 | AG35: 0 | AH35: 0 | AI35: 0 | AJ35: 55 | AK35: 0 | AL35: 0 | AM35: 0 | AN35: 0 | AO35: 0 | AP35: 0 | AQ35: 8 | AR35: 0 | AS35: 0 | AT35: 7 | AU35: 2310 | AV35: 1626 | AW35: 570 | AX35: 513 | AY35: 0 | AZ35: 0 | BA35: 0 | BB35: 0 | BC35: 0 | BD35: 0 | BE35: 0 | BF35: 0 | BG35: 0 | BH35: 0 | BI35: 0 | BJ35: 0 | BK35: 0 | BL35: 0 | BM35: 0 | BN35: 0 | BO35: 0 | BP35: 0 | BQ35: 0 | BR35: 0 | BS35: 0 | BT35: 0 | BU35: 184 | BV35: 0 | BW35: 435 | BX35: 655 | BY35: 0 | BZ35: 0 | CA35: 0 | CB35: 0 | CC35: 168 | CD35: 0 | CE35: 0 | CF35: 63 | CG35: 0 | CH35: 0 | CI35: 0 | CJ35: 0 | CK35: 0 | CL35: 0 | CM35: 0 | CN35: 0 | CO35: 89 | CP35: 0 | CQ35: 0 | CR35: 0 | CS35: 0 | CT35: 0 | CU35: 0 | CV35: 0 | CW35: 0 | CX35: 65261 | CY35: 992 | CZ35: 66253 | DA35: 10681 | DB35: 1069 | DC35: 213 | DD35: 78216
A36: 032 | B36: 14.2 | C36: Гравий, песок и глина | D36: 9 | E36: 0 | F36: 0 | G36: 0 | H36: 5 | I36: 97 | J36: 705 | K36: 166 | L36: 3153 | M36: 0 | N36: 2419 | O36: 28 | P36: 150586 | Q36: 0 | R36: 0 | S36: 0 | T36: 0 | U36: 1 | V36: 0 | W36: 0 | X36: 0 | Y36: 0 | Z36: 0 | AA36: 0 | AB36: 0 | AC36: 0 | AD36: 0 | AE36: 0 | AF36: 0 | AG36: 0 | AH36: 0 | AI36: 0 | AJ36: 8 | AK36: 0 | AL36: 0 | AM36: 0 | AN36: 0 | AO36: 0 | AP36: 0 | AQ36: 0 | AR36: 0 | AS36: 0 | AT36: 121 | AU36: 1576 | AV36: 1447 | AW36: 1291 | AX36: 547 | AY36: 1 | AZ36: 0 | BA36: 17 | BB36: 40 | BC36: 0 | BD36: 0 | BE36: 0 | BF36: 0 | BG36: 0 | BH36: 0 | BI36: 0 | BJ36: 0 | BK36: 113 | BL36: 8 | BM36: 0 | BN36: 0 | BO36: 0 | BP36: 134 | BQ36: 0 | BR36: 82 | BS36: 12 | BT36: 76 | BU36: 4144 | BV36: 0 | BW36: 13 | BX36: 0 | BY36: 0 | BZ36: 2 | CA36: 0 | CB36: 378 | CC36: 14 | CD36: 1237 | CE36: 0 | CF36: 927 | CG36: 0 | CH36: 0 | CI36: 0 | CJ36: 0 | CK36: 21 | CL36: 0 | CM36: 0 | CN36: 0 | CO36: 438 | CP36: 0 | CQ36: 0 | CR36: 0 | CS36: 49 | CT36: 0 | CU36: 0 | CV36: 0 | CW36: 0 | CX36: 169865 | CY36: 13107 | CZ36: 182972 | DA36: 44747 | DB36: 37446 | DC36: 894 | DD36: 266058
A37: 033 | B37: 14.3 | C37: Сырье минеральное для химических производств и производства удобрений | D37: 0 | E37: 0 | F37: 0 | G37: 0 | H37: 0 | I37: 0 | J37: 0 | K37: 0 | L37: 0 | M37: 0 | N37: 23084 | O37: 0 | P37: 73935 | Q37: 0 | R37: 0 | S37: 0 | T37: 0 | U37: 0 | V37: 0 | W37: 0 | X37: 0 | Y37: 0 | Z37: 0 | AA37: 0 | AB37: 0 | AC37: 0 | AD37: 0 | AE37: 0 | AF37: 0 | AG37: 0 | AH37: 0 | AI37: 0 | AJ37: 1441 | AK37: 0 | AL37: 0 | AM37: 0 | AN37: 0 | AO37: 0 | AP37: 0 | AQ37: 0 | AR37: 0 | AS37: 0 | AT37: 0 | AU37: 0 | AV37: 0 | AW37: 0 | AX37: 9 | AY37: 0 | AZ37: 0 | BA37: 0 | BB37: 0 | BC37: 0 | BD37: 0 | BE37: 0 | BF37: 0 | BG37: 0 | BH37: 0 | BI37: 0 | BJ37: 0 | BK37: 0 | BL37: 0 | BM37: 0 | BN37: 0 | BO37: 0 | BP37: 0 | BQ37: 0 | BR37: 0 | BS37: 0 | BT37: 0 | BU37: 0 | BV37: 0 | BW37: 0 | BX37: 0 | BY37: 0 | BZ37: 0 | CA37: 0 | CB37: 0 | CC37: 0 | CD37: 0 | CE37: 0 | CF37: 0 | CG37: 0 | CH37: 0 | CI37: 0 | CJ37: 0 | CK37: 0 | CL37: 0 | CM37: 0 | CN37: 0 | CO37: 0 | CP37: 0 | CQ37: 0 | CR37: 0 | CS37: 0 | CT37: 0 | CU37: 0 | CV37: 0 | CW37: 0 | CX37: 98469 | CY37: 7323 | CZ37: 105792 | DA37: 17702 | DB37: 2313 | DC37: 189 | DD37: 125995
A38: 034 | B38: 14.4 | C38: Соль | D38: 0 | E38: 0 | F38: 0 | G38: 0 | H38: 0 | I38: 0 | J38: 0 | K38: 0 | L38: 0 | M38: 0 | N38: 0 | O38: 0 | P38: 5479 | Q38: 0 | R38: 0 | S38: 0 | T38: 0 | U38: 0 | V38: 0 | W38: 0 | X38: 0 | Y38: 0 | Z38: 0 | AA38: 0 | AB38: 0 | AC38: 0 | AD38: 0 | AE38: 0 | AF38: 0 | AG38: 0 | AH38: 0 | AI38: 0 | AJ38: 1403 | AK38: 0 | AL38: 0 | AM38: 0 | AN38: 5 | AO38: 0 | AP38: 0 | AQ38: 0 | AR38: 0 | AS38: 0 | AT38: 0 | AU38: 0 | AV38: 0 | AW38: 0 | AX38: 0 | AY38: 0 | AZ38: 0 | BA38: 0 | BB38: 0 | BC38: 0 | BD38: 0 | BE38: 0 | BF38: 0 | BG38: 0 | BH38: 0 | BI38: 0 | BJ38: 0 | BK38: 0 | BL38: 0 | BM38: 0 | BN38: 0 | BO38: 0 | BP38: 0 | BQ38: 0 | BR38: 0 | BS38: 6 | BT38: 0 | BU38: 0 | BV38: 0 | BW38: 0 | BX38: 0 | BY38: 0 | BZ38: 0 | CA38: 0 | CB38: 0 | CC38: 0 | CD38: 0 | CE38: 0 | CF38: 0 | CG38: 0 | CH38: 0 | CI38: 0 | CJ38: 0 | CK38: 0 | CL38: 0 | CM38: 0 | CN38: 0 | CO38: 0 | CP38: 0 | CQ38: 0 | CR38: 0 | CS38: 0 | CT38: 0 | CU38: 0 | CV38: 0 | CW38: 0 | CX38: 6893 | CY38: 5871 | CZ38: 12764 | DA38: 5026 | DB38: 106 | DC38: 1315 | DD38: 19210
A39: 035 | B39: 14.5 | C39: Продукция горнодобывающих производств, не включенная в другие группировки, прочая | D39: 0 | E39: 0 | F39: 0 | G39: 0 | H39: 0 | I39: 0 | J39: 0 | K39: 0 | L39: 0 | M39: 0 | N39: 0 | O39: 0 | P39: 350080 | Q39: 0 | R39: 0 | S39: 0 | T39: 0 | U39: 0 | V39: 0 | W39: 0 | X39: 0 | Y39: 0 | Z39: 0 | AA39: 0 | AB39: 0 | AC39: 0 | AD39: 0 | AE39: 0 | AF39: 0 | AG39: 0 | AH39: 0 | AI39: 0 | AJ39: 25 | AK39: 0 | AL39: 0 | AM39: 0 | AN39: 0 | AO39: 0 | AP39: 0 | AQ39: 0 | AR39: 0 | AS39: 0 | AT39: 1244 | AU39: 0 | AV39: 0 | AW39: 814 | AX39: 0 | AY39: 0 | AZ39: 0 | BA39: 0 | BB39: 0 | BC39: 0 | BD39: 0 | BE39: 0 | BF39: 0 | BG39: 0 | BH39: 0 | BI39: 0 | BJ39: 0 | BK39: 0 | BL39: 0 | BM39: 0 | BN39: 0 | BO39: 0 | BP39: 0 | BQ39: 46 | BR39: 0 | BS39: 0 | BT39: 0 | BU39: 0 | BV39: 0 | BW39: 0 | BX39: 0 | BY39: 0 | BZ39: 0 | CA39: 0 | CB39: 0 | CC39: 0 | CD39: 0 | CE39: 0 | CF39: 0 | CG39: 0 | CH39: 0 | CI39: 0 | CJ39: 0 | CK39: 0 | CL39: 0 | CM39: 0 | CN39: 0 | CO39: 0 | CP39: 0 | CQ39: 0 | CR39: 0 | CS39: 0 | CT39: 0 | CU39: 0 | CV39: 0 | CW39: 0 | CX39: 352210 | CY39: 13666 | CZ39: 365876 | DA39: 11519 | DB39: 56 | DC39: 13659 | DD39: 391109
A40: 036 | B40: 15.1 | C40: Мясо, продукты мясные и прочая продукция переработки животных | D40: 439693 | E40: 0 | F40: 0 | G40: 0 | H40: 10 | I40: 0 | J40: 0 | K40: 0 | L40: 0 | M40: 0 | N40: 0 | O40: 0 | P40: 31 | Q40: 1616779 | R40: 445 | S40: 228 | T40: 2478 | U40: 1384 | V40: 90 | W40: 14 | X40: 7100 | Y40: 0 | Z40: 0 | AA40: 3 | AB40: 0 | AC40: 0 | AD40: 0 | AE40: 0 | AF40: 0 | AG40: 0 | AH40: 0 | AI40: 0 | AJ40: 0 | AK40: 0 | AL40: 0 | AM40: 1 | AN40: 0 | AO40: 0 | AP40: 0 | AQ40: 0 | AR40: 0 | AS40: 0 | AT40: 0 | AU40: 0 | AV40: 0 | AW40: 0 | AX40: 0 | AY40: 0 | AZ40: 0 | BA40: 108 | BB40: 898 | BC40: 0 | BD40: 0 | BE40: 0 | BF40: 0 | BG40: 0 | BH40: 0 | BI40: 0 | BJ40: 0 | BK40: 0 | BL40: 15 | BM40: 0 | BN40: 0 | BO40: 0 | BP40: 0 | BQ40: 0 | BR40: 0 | BS40: 0 | BT40: 0 | BU40: 1 | BV40: 6 | BW40: 2052 | BX40: 41189 | BY40: 0 | BZ40: 206 | CA40: 0 | CB40: 0 | CC40: 0 | CD40: 0 | CE40: 0 | CF40: 98 | CG40: 0 | CH40: 0 | CI40: 0 | CJ40: 0 | CK40: 0 | CL40: 343 | CM40: 0 | CN40: 48 | CO40: 0 | CP40: 0 | CQ40: 0 | CR40: 36 | CS40: 48 | CT40: 5 | CU40: 0 | CV40: 0 | CW40: 0 | CX40: 2113308 | CY40: 202749 | CZ40: 2316057 | DA40: 994929 | DB40: 1461 | DC40: 280480 | DD40: 3592927
A41: 037 | B41: 15.2 | C41: Рыба и морепродукты переработанные и консервированные | D41: 175 | E41: 0 | F41: 4 | G41: 0 | H41: 132545 | I41: 0 | J41: 0 | K41: 0 | L41: 0 | M41: 0 | N41: 0 | O41: 0 | P41: 0 | Q41: 1669 | R41: 304703 | S41: 12 | T41: 0 | U41: 167 | V41: 0 | W41: 0 | X41: 201 | Y41: 38 | Z41: 0 | AA41: 0 | AB41: 0 | AC41: 0 | AD41: 0 | AE41: 3 | AF41: 0 | AG41: 0 | AH41: 0 | AI41: 0 | AJ41: 0 | AK41: 0 | AL41: 0 | AM41: 0 | AN41: 0 | AO41: 0 | AP41: 0 | AQ41: 0 | AR41: 0 | AS41: 0 | AT41: 0 | AU41: 0 | AV41: 0 | AW41: 0 | AX41: 0 | AY41: 0 | AZ41: 0 | BA41: 0 | BB41: 658 | BC41: 0 | BD41: 0 | BE41: 0 | BF41: 0 | BG41: 0 | BH41: 0 | BI41: 0 | BJ41: 0 | BK41: 0 | BL41: 0 | BM41: 0 | BN41: 0 | BO41: 0 | BP41: 0 | BQ41: 0 | BR41: 0 | BS41: 0 | BT41: 0 | BU41: 0 | BV41: 0 | BW41: 461 | BX41: 2864 | BY41: 0 | BZ41: 0 | CA41: 0 | CB41: 19 | CC41: 0 | CD41: 1006 | CE41: 0 | CF41: 0 | CG41: 0 | CH41: 0 | CI41: 0 | CJ41: 0 | CK41: 0 | CL41: 0 | CM41: 0 | CN41: 0 | CO41: 0 | CP41: 0 | CQ41: 0 | CR41: 0 | CS41: 0 | CT41: 94 | CU41: 0 | CV41: 0 | CW41: 0 | CX41: 444619 | CY41: 113910 | CZ41: 558529 | DA41: 277928 | DB41: 23 | DC41: 63575 | DD41: 900055
A42: 038 | B42: 15.31 | C42: Картофель переработанный и консервированный | D42: 403 | E42: 0 | F42: 0 | G42: 0 | H42: 0 | I42: 0 | J42: 0 | K42: 0 | L42: 0 | M42: 0 | N42: 0 | O42: 0 | P42: 0 | Q42: 189 | R42: 0 | S42: 20268 | T42: 0 | U42: 24 | V42: 60 | W42: 0 | X42: 3612 | Y42: 0 | Z42: 0 | AA42: 0 | AB42: 0 | AC42: 0 | AD42: 0 | AE42: 0 | AF42: 0 | AG42: 0 | AH42: 0 | AI42: 0 | AJ42: 0 | AK42: 0 | AL42: 0 | AM42: 0 | AN42: 0 | AO42: 0 | AP42: 0 | AQ42: 0 | AR42: 0 | AS42: 0 | AT42: 0 | AU42: 0 | AV42: 0 | AW42: 0 | AX42: 0 | AY42: 0 | AZ42: 0 | BA42: 0 | BB42: 0 | BC42: 0 | BD42: 0 | BE42: 0 | BF42: 0 | BG42: 0 | BH42: 0 | BI42: 0 | BJ42: 0 | BK42: 0 | BL42: 0 | BM42: 0 | BN42: 0 | BO42: 0 | BP42: 0 | BQ42: 0 | BR42: 0 | BS42: 0 | BT42: 0 | BU42: 0 | BV42: 0 | BW42: 270 | BX42: 16 | BY42: 0 | BZ42: 0 | CA42: 0 | CB42: 29 | CC42: 0 | CD42: 0 | CE42: 0 | CF42: 0 | CG42: 0 | CH42: 0 | CI42: 0 | CJ42: 0 | CK42: 0 | CL42: 0 | CM42: 0 | CN42: 0 | CO42: 0 | CP42: 0 | CQ42: 0 | CR42: 0 | CS42: 0 | CT42: 0 | CU42: 0 | CV42: 0 | CW42: 0 | CX42: 24870 | CY42: 8669 | CZ42: 33539 | DA42: 15646 | DB42: 8 | DC42: 7187 | DD42: 56380
A43: 039 | B43: 15.32 | C43: Соки фруктовые и овощные | D43: 621 | E43: 0 | F43: 0 | G43: 0 | H43: 0 | I43: 0 | J43: 0 | K43: 0 | L43: 0 | M43: 0 | N43: 0 | O43: 0 | P43: 0 | Q43: 2 | R43: 0 | S43: 57729 | T43: 279 | U43: 1517 | V43: 0 | W43: 0 | X43: 372 | Y43: 875 | Z43: 0 | AA43: 0 | AB43: 0 | AC43: 0 | AD43: 0 | AE43: 0 | AF43: 0 | AG43: 0 | AH43: 0 | AI43: 0 | AJ43: 0 | AK43: 0 | AL43: 0 | AM43: 0 | AN43: 0 | AO43: 0 | AP43: 0 | AQ43: 0 | AR43: 0 | AS43: 0 | AT43: 0 | AU43: 0 | AV43: 0 | AW43: 0 | AX43: 0 | AY43: 0 | AZ43: 0 | BA43: 0 | BB43: 0 | BC43: 0 | BD43: 0 | BE43: 0 | BF43: 0 | BG43: 0 | BH43: 0 | BI43: 0 | BJ43: 0 | BK43: 0 | BL43: 0 | BM43: 0 | BN43: 0 | BO43: 0 | BP43: 0 | BQ43: 0 | BR43: 0 | BS43: 0 | BT43: 0 | BU43: 0 | BV43: 0 | BW43: 953 | BX43: 2 | BY43: 0 | BZ43: 0 | CA43: 0 | CB43: 0 | CC43: 0 | CD43: 0 | CE43: 0 | CF43: 0 | CG43: 0 | CH43: 0 | CI43: 0 | CJ43: 0 | CK43: 0 | CL43: 0 | CM43: 0 | CN43: 0 | CO43: 0 | CP43: 0 | CQ43: 0 | CR43: 0 | CS43: 0 | CT43: 0 | CU43: 0 | CV43: 0 | CW43: 0 | CX43: 62351 | CY43: 21343 | CZ43: 83695 | DA43: 40704 | DB43: 27 | DC43: 14433 | DD43: 138859
A44: 040 | B44: 15.33 | C44: Фрукты и овощи переработанные и консервированные, не включенные в другие группировки | D44: 957 | E44: 0 | F44: 0 | G44: 0 | H44: 0 | I44: 0 | J44: 0 | K44: 0 | L44: 0 | M44: 0 | N44: 0 | O44: 0 | P44: 0 | Q44: 425 | R44: 17 | S44: 72201 | T44: 772 | U44: 3362 | V44: 17 | W44: 0 | X44: 2789 | Y44: 7 | Z44: 0 | AA44: 0 | AB44: 0 | AC44: 0 | AD44: 0 | AE44: 0 | AF44: 0 | AG44: 0 | AH44: 0 | AI44: 0 | AJ44: 0 | AK44: 0 | AL44: 0 | AM44: 0 | AN44: 0 | AO44: 0 | AP44: 0 | AQ44: 0 | AR44: 0 | AS44: 0 | AT44: 0 | AU44: 0 | AV44: 0 | AW44: 0 | AX44: 0 | AY44: 0 | AZ44: 0 | BA44: 57 | BB44: 1 | BC44: 0 | BD44: 0 | BE44: 0 | BF44: 0 | BG44: 0 | BH44: 0 | BI44: 0 | BJ44: 0 | BK44: 0 | BL44: 0 | BM44: 0 | BN44: 0 | BO44: 0 | BP44: 0 | BQ44: 0 | BR44: 0 | BS44: 0 | BT44: 0 | BU44: 0 | BV44: 0 | BW44: 967 | BX44: 1152 | BY44: 0 | BZ44: 2 | CA44: 0 | CB44: 0 | CC44: 0 | CD44: 0 | CE44: 0 | CF44: 0 | CG44: 0 | CH44: 0 | CI44: 0 | CJ44: 0 | CK44: 0 | CL44: 0 | CM44: 0 | CN44: 0 | CO44: 0 | CP44: 0 | CQ44: 0 | CR44: 0 | CS44: 0 | CT44: 0 | CU44: 0 | CV44: 0 | CW44: 0 | CX44: 82727 | CY44: 67272 | CZ44: 149998 | DA44: 68886 | DB44: 90 | DC44: 29666 | DD44: 248639
A45: 041 | B45: 15.41 + 15.42 | C45: Масла и жиры нерафинированные и рафинированные | D45: 4849 | E45: 1 | F45: 0 | G45: 0 | H45: 177 | I45: 0 | J45: 0 | K45: 0 | L45: 0 | M45: 0 | N45: 0 | O45: 0 | P45: 0 | Q45: 2127 | R45: 30 | S45: 0 | T45: 331602 | U45: 4 | V45: 215 | W45: 33902 | X45: 6403 | Y45: 0 | Z45: 0 | AA45: 0 | AB45: 0 | AC45: 0 | AD45: 0 | AE45: 0 | AF45: 0 | AG45: 0 | AH45: 0 | AI45: 0 | AJ45: 0 | AK45: 0 | AL45: 0 | AM45: 0 | AN45: 18 | AO45: 0 | AP45: 0 | AQ45: 0 | AR45: 0 | AS45: 0 | AT45: 0 | AU45: 0 | AV45: 0 | AW45: 0 | AX45: 0 | AY45: 0 | AZ45: 0 | BA45: 0 | BB45: 0 | BC45: 0 | BD45: 0 | BE45: 0 | BF45: 0 | BG45: 0 | BH45: 0 | BI45: 0 | BJ45: 0 | BK45: 0 | BL45: 0 | BM45: 0 | BN45: 0 | BO45: 0 | BP45: 0 | BQ45: 0 | BR45: 0 | BS45: 4 | BT45: 0 | BU45: 0 | BV45: 0 | BW45: 1004 | BX45: 0 | BY45: 0 | BZ45: 0 | CA45: 0 | CB45: 0 | CC45: 0 | CD45: 0 | CE45: 0 | CF45: 502 | CG45: 0 | CH45: 0 | CI45: 0 | CJ45: 0 | CK45: 0 | CL45: 0 | CM45: 0 | CN45: 0 | CO45: 1 | CP45: 0 | CQ45: 0 | CR45: 0 | CS45: 0 | CT45: 0 | CU45: 0 | CV45: 0 | CW45: 0 | CX45: 380839 | CY45: 80469 | CZ45: 461308 | DA45: 109314 | DB45: 1614 | DC45: 21519 | DD45: 593755
A46: 042 | B46: 15.43 | C46: Маргарин и аналогичные жиры пищевые | D46: 0 | E46: 0 | F46: 0 | G46: 0 | H46: 0 | I46: 0 | J46: 0 | K46: 0 | L46: 0 | M46: 0 | N46: 0 | O46: 0 | P46: 0 | Q46: 0 | R46: 0 | S46: 255 | T46: 73704 | U46: 7044 | V46: 28 | W46: 0 | X46: 8727 | Y46: 0 | Z46: 0 | AA46: 0 | AB46: 0 | AC46: 0 | AD46: 0 | AE46: 0 | AF46: 0 | AG46: 0 | AH46: 0 | AI46: 0 | AJ46: 0 | AK46: 0 | AL46: 0 | AM46: 0 | AN46: 0 | AO46: 0 | AP46: 0 | AQ46: 0 | AR46: 0 | AS46: 0 | AT46: 0 | AU46: 0 | AV46: 0 | AW46: 0 | AX46: 0 | AY46: 0 | AZ46: 0 | BA46: 0 | BB46: 0 | BC46: 0 | BD46: 0 | BE46: 0 | BF46: 0 | BG46: 0 | BH46: 0 | BI46: 0 | BJ46: 0 | BK46: 0 | BL46: 0 | BM46: 0 | BN46: 0 | BO46: 0 | BP46: 0 | BQ46: 0 | BR46: 0 | BS46: 0 | BT46: 0 | BU46: 0 | BV46: 0 | BW46: 0 | BX46: 0 | BY46: 0 | BZ46: 0 | CA46: 0 | CB46: 0 | CC46: 0 | CD46: 0 | CE46: 0 | CF46: 0 | CG46: 0 | CH46: 0 | CI46: 0 | CJ46: 0 | CK46: 0 | CL46: 0 | CM46: 0 | CN46: 0 | CO46: 0 | CP46: 0 | CQ46: 0 | CR46: 0 | CS46: 0 | CT46: 0 | CU46: 0 | CV46: 0 | CW46: 0 | CX46: 89758 | CY46: 5174 | CZ46: 94932 | DA46: 39432 | DB46: 105 | DC46: 14232 | DD46: 148702
A47: 043 | B47: 15.51 | C47: Продукты молочные | D47: 28570 | E47: 0 | F47: 0 | G47: 0 | H47: 9 | I47: 0 | J47: 0 | K47: 0 | L47: 0 | M47: 0 | N47: 0 | O47: 0 | P47: 45 | Q47: 2623 | R47: 33 | S47: 138 | T47: 5162 | U47: 891999 | V47: 31 | W47: 0 | X47: 234 | Y47: 43 | Z47: 0 | AA47: 0 | AB47: 0 | AC47: 0 | AD47: 0 | AE47: 0 | AF47: 0 | AG47: 0 | AH47: 0 | AI47: 0 | AJ47: 0 | AK47: 0 | AL47: 0 | AM47: 13 | AN47: 0 | AO47: 0 | AP47: 0 | AQ47: 0 | AR47: 0 | AS47: 0 | AT47: 0 | AU47: 0 | AV47: 0 | AW47: 0 | AX47: 0 | AY47: 0 | AZ47: 0 | BA47: 67 | BB47: 0 | BC47: 0 | BD47: 0 | BE47: 0 | BF47: 0 | BG47: 0 | BH47: 0 | BI47: 0 | BJ47: 0 | BK47: 0 | BL47: 2 | BM47: 0 | BN47: 0 | BO47: 0 | BP47: 0 | BQ47: 0 | BR47: 0 | BS47: 89 | BT47: 0 | BU47: 26 | BV47: 0 | BW47: 1534 | BX47: 19 | BY47: 0 | BZ47: 39 | CA47: 0 | CB47: 10 | CC47: 0 | CD47: 0 | CE47: 0 | CF47: 0 | CG47: 0 | CH47: 0 | CI47: 0 | CJ47: 0 | CK47: 20 | CL47: 0 | CM47: 0 | CN47: 249 | CO47: 9 | CP47: 0 | CQ47: 0 | CR47: 52 | CS47: 0 | CT47: 0 | CU47: 0 | CV47: 0 | CW47: 0 | CX47: 931017 | CY47: 145124 | CZ47: 1076141 | DA47: 512579 | DB47: 220 | DC47: 139490 | DD47: 1728430
A48: 044 | B48: 15.52 | C48: Мороженое и десерты замороженные прочие | D48: 169 | E48: 0 | F48: 0 | G48: 0 | H48: 0 | I48: 0 | J48: 0 | K48: 0 | L48: 0 | M48: 0 | N48: 0 | O48: 0 | P48: 0 | Q48: 65 | R48: 410 | S48: 0 | T48: 0 | U48: 48623 | V48: 0 | W48: 0 | X48: 17 | Y48: 0 | Z48: 0 | AA48: 0 | AB48: 0 | AC48: 0 | AD48: 0 | AE48: 0 | AF48: 0 | AG48: 0 | AH48: 0 | AI48: 0 | AJ48: 0 | AK48: 0 | AL48: 0 | AM48: 0 | AN48: 10307 | AO48: 0 | AP48: 0 | AQ48: 0 | AR48: 0 | AS48: 0 | AT48: 0 | AU48: 0 | AV48: 0 | AW48: 0 | AX48: 0 | AY48: 0 | AZ48: 0 | BA48: 0 | BB48: 0 | BC48: 0 | BD48: 0 | BE48: 0 | BF48: 0 | BG48: 0 | BH48: 0 | BI48: 0 | BJ48: 0 | BK48: 0 | BL48: 0 | BM48: 0 | BN48: 0 | BO48: 0 | BP48: 0 | BQ48: 0 | BR48: 0 | BS48: 0 | BT48: 0 | BU48: 0 | BV48: 0 | BW48: 267 | BX48: 0 | BY48: 0 | BZ48: 0 | CA48: 0 | CB48: 0 | CC48: 0 | CD48: 0 | CE48: 0 | CF48: 35 | CG48: 0 | CH48: 0 | CI48: 0 | CJ48: 0 | CK48: 24 | CL48: 0 | CM48: 0 | CN48: 0 | CO48: 0 | CP48: 0 | CQ48: 0 | CR48: 0 | CS48: 0 | CT48: 0 | CU48: 0 | CV48: 0 | CW48: 0 | CX48: 59918 | CY48: 2083 | CZ48: 62001 | DA48: 43600 | DB48: 20 | DC48: 14898 | DD48: 120518
A49: 045 | B49: 15.61 | C49: Продукция мукомольно-крупяного производства | D49: 5673 | E49: 2 | F49: 0 | G49: 0 | H49: 13 | I49: 0 | J49: 0 | K49: 0 | L49: 0 | M49: 0 | N49: 0 | O49: 0 | P49: 0 | Q49: 226 | R49: 54 | S49: 0 | T49: 1365 | U49: 75 | V49: 184936 | W49: 13972 | X49: 17513 | Y49: 2 | Z49: 0 | AA49: 0 | AB49: 0 | AC49: 0 | AD49: 0 | AE49: 0 | AF49: 0 | AG49: 0 | AH49: 0 | AI49: 0 | AJ49: 0 | AK49: 0 | AL49: 0 | AM49: 0 | AN49: 0 | AO49: 0 | AP49: 0 | AQ49: 0 | AR49: 0 | AS49: 0 | AT49: 0 | AU49: 0 | AV49: 0 | AW49: 0 | AX49: 0 | AY49: 0 | AZ49: 0 | BA49: 82 | BB49: 0 | BC49: 0 | BD49: 0 | BE49: 0 | BF49: 0 | BG49: 0 | BH49: 0 | BI49: 3 | BJ49: 0 | BK49: 0 | BL49: 0 | BM49: 0 | BN49: 0 | BO49: 0 | BP49: 0 | BQ49: 0 | BR49: 0 | BS49: 0 | BT49: 0 | BU49: 0 | BV49: 0 | BW49: 2160 | BX49: 37 | BY49: 0 | BZ49: 0 | CA49: 0 | CB49: 85 | CC49: 0 | CD49: 0 | CE49: 0 | CF49: 518 | CG49: 0 | CH49: 0 | CI49: 0 | CJ49: 0 | CK49: 1 | CL49: 0 | CM49: 0 | CN49: 0 | CO49: 10 | CP49: 0 | CQ49: 0 | CR49: 0 | CS49: 0 | CT49: 0 | CU49: 0 | CV49: 0 | CW49: 0 | CX49: 226726 | CY49: 13515 | CZ49: 240242 | DA49: 117202 | DB49: 1018 | DC49: 20677 | DD49: 379139
A50: 046 | B50: 15.62 | C50: Крахмалы и крахмалопродукты | D50: 4 | E50: 0 | F50: 0 | G50: 0 | H50: 0 | I50: 0 | J50: 0 | K50: 0 | L50: 0 | M50: 0 | N50: 0 | O50: 0 | P50: 0 | Q50: 0 | R50: 0 | S50: 0 | T50: 5509 | U50: 0 | V50: 15725 | W50: 0 | X50: 114 | Y50: 0 | Z50: 0 | AA50: 0 | AB50: 0 | AC50: 0 | AD50: 0 | AE50: 0 | AF50: 0 | AG50: 0 | AH50: 0 | AI50: 0 | AJ50: 0 | AK50: 0 | AL50: 0 | AM50: 0 | AN50: 0 | AO50: 0 | AP50: 0 | AQ50: 0 | AR50: 0 | AS50: 0 | AT50: 0 | AU50: 0 | AV50: 0 | AW50: 0 | AX50: 0 | AY50: 0 | AZ50: 0 | BA50: 0 | BB50: 0 | BC50: 0 | BD50: 0 | BE50: 0 | BF50: 0 | BG50: 0 | BH50: 0 | BI50: 0 | BJ50: 0 | BK50: 0 | BL50: 0 | BM50: 0 | BN50: 0 | BO50: 0 | BP50: 0 | BQ50: 0 | BR50: 0 | BS50: 0 | BT50: 0 | BU50: 0 | BV50: 0 | BW50: 0 | BX50: 0 | BY50: 0 | BZ50: 0 | CA50: 0 | CB50: 0 | CC50: 0 | CD50: 0 | CE50: 0 | CF50: 0 | CG50: 0 | CH50: 0 | CI50: 0 | CJ50: 0 | CK50: 0 | CL50: 0 | CM50: 0 | CN50: 0 | CO50: 0 | CP50: 0 | CQ50: 0 | CR50: 0 | CS50: 0 | CT50: 0 | CU50: 0 | CV50: 0 | CW50: 0 | CX50: 21351 | CY50: 14563 | CZ50: 35914 | DA50: 10236 | DB50: 59 | DC50: 2897 | DD50: 49106
A51: 047 | B51: 15.71 | C51: Корма готовые для сельскохозяйственных животных | D51: 15975 | E51: 0 | F51: 0 | G51: 0 | H51: 0 | I51: 0 | J51: 0 | K51: 0 | L51: 0 | M51: 0 | N51: 0 | O51: 0 | P51: 0 | Q51: 798 | R51: 0 | S51: 0 | T51: 4728 | U51: 286 | V51: 14129 | W51: 324895 | X51: 673 | Y51: 1050 | Z51: 0 | AA51: 0 | AB51: 0 | AC51: 2 | AD51: 0 | AE51: 180 | AF51: 0 | AG51: 0 | AH51: 0 | AI51: 0 | AJ51: 132 | AK51: 0 | AL51: 0 | AM51: 0 | AN51: 145 | AO51: 322 | AP51: 0 | AQ51: 0 | AR51: 0 | AS51: 0 | AT51: 0 | AU51: 0 | AV51: 0 | AW51: 0 | AX51: 0 | AY51: 0 | AZ51: 0 | BA51: 0 | BB51: 0 | BC51: 0 | BD51: 0 | BE51: 0 | BF51: 0 | BG51: 0 | BH51: 0 | BI51: 0 | BJ51: 0 | BK51: 0 | BL51: 0 | BM51: 0 | BN51: 0 | BO51: 0 | BP51: 0 | BQ51: 0 | BR51: 0 | BS51: 0 | BT51: 0 | BU51: 25 | BV51: 0 | BW51: 23 | BX51: 0 | BY51: 0 | BZ51: 0 | CA51: 0 | CB51: 0 | CC51: 0 | CD51: 0 | CE51: 0 | CF51: 40 | CG51: 0 | CH51: 0 | CI51: 0 | CJ51: 0 | CK51: 0 | CL51: 0 | CM51: 0 | CN51: 16 | CO51: 0 | CP51: 0 | CQ51: 0 | CR51: 0 | CS51: 14 | CT51: 0 | CU51: 0 | CV51: 0 | CW51: 0 | CX51: 363431 | CY51: 24347 | CZ51: 387778 | DA51: 64021 | DB51: 1358 | DC51: 961 | DD51: 454117
A52: 048 | B52: 15.72 | C52: Корм готовый для домашних животных | D52: 49 | E52: 0 | F52: 0 | G52: 0 | H52: 0 | I52: 0 | J52: 0 | K52: 0 | L52: 0 | M52: 0 | N52: 0 | O52: 0 | P52: 0 | Q52: 418 | R52: 0 | S52: 0 | T52: 0 | U52: 0 | V52: 437 | W52: 20725 | X52: 59206 | Y52: 6 | Z52: 0 | AA52: 0 | AB52: 0 | AC52: 0 | AD52: 0 | AE52: 0 | AF52: 0 | AG52: 0 | AH52: 0 | AI52: 0 | AJ52: 0 | AK52: 0 | AL52: 0 | AM52: 0 | AN52: 0 | AO52: 0 | AP52: 0 | AQ52: 0 | AR52: 0 | AS52: 0 | AT52: 0 | AU52: 0 | AV52: 0 | AW52: 0 | AX52: 0 | AY52: 0 | AZ52: 0 | BA52: 0 | BB52: 0 | BC52: 0 | BD52: 0 | BE52: 0 | BF52: 0 | BG52: 0 | BH52: 0 | BI52: 0 | BJ52: 0 | BK52: 0 | BL52: 0 | BM52: 0 | BN52: 0 | BO52: 0 | BP52: 0 | BQ52: 0 | BR52: 0 | BS52: 0 | BT52: 0 | BU52: 0 | BV52: 0 | BW52: 196 | BX52: 0 | BY52: 0 | BZ52: 0 | CA52: 0 | CB52: 0 | CC52: 0 | CD52: 0 | CE52: 0 | CF52: 1 | CG52: 0 | CH52: 0 | CI52: 0 | CJ52: 0 | CK52: 0 | CL52: 0 | CM52: 0 | CN52: 0 | CO52: 0 | CP52: 0 | CQ52: 0 | CR52: 0 | CS52: 0 | CT52: 0 | CU52: 0 | CV52: 0 | CW52: 0 | CX52: 81039 | CY52: 13258 | CZ52: 94297 | DA52: 47615 | DB52: 69 | DC52: 17921 | DD52: 159902
A53: 049 | B53: 15.81 + 15.82 | C53: Изделия хлебобулочные, мучные кондитерские, торты и пирожные | D53: 2349 | E53: 0 | F53: 0 | G53: 6 | H53: 1 | I53: 0 | J53: 0 | K53: 0 | L53: 0 | M53: 0 | N53: 0 | O53: 16 | P53: 0 | Q53: 3955 | R53: 19 | S53: 4206 | T53: 0 | U53: 535 | V53: 819 | W53: 73 | X53: 533545 | Y53: 388 | Z53: 0 | AA53: 0 | AB53: 4 | AC53: 0 | AD53: 0 | AE53: 0 | AF53: 0 | AG53: 0 | AH53: 0 | AI53: 0 | AJ53: 0 | AK53: 0 | AL53: 23 | AM53: 0 | AN53: 0 | AO53: 0 | AP53: 0 | AQ53: 0 | AR53: 0 | AS53: 0 | AT53: 0 | AU53: 2 | AV53: 0 | AW53: 0 | AX53: 3 | AY53: 0 | AZ53: 0 | BA53: 0 | BB53: 3 | BC53: 3 | BD53: 0 | BE53: 0 | BF53: 0 | BG53: 11 | BH53: 0 | BI53: 2 | BJ53: 0 | BK53: 0 | BL53: 112 | BM53: 0 | BN53: 0 | BO53: 0 | BP53: 0 | BQ53: 1 | BR53: 0 | BS53: 2 | BT53: 0 | BU53: 0 | BV53: 0 | BW53: 4511 | BX53: 21343 | BY53: 27 | BZ53: 882 | CA53: 0 | CB53: 215 | CC53: 0 | CD53: 0 | CE53: 3 | CF53: 65 | CG53: 0 | CH53: 0 | CI53: 0 | CJ53: 0 | CK53: 458 | CL53: 0 | CM53: 0 | CN53: 0 | CO53: 0 | CP53: 0 | CQ53: 1 | CR53: 25 | CS53: 0 | CT53: 76 | CU53: 0 | CV53: 0 | CW53: 0 | CX53: 573684 | CY53: 16845 | CZ53: 590530 | DA53: 364891 | DB53: 203 | DC53: 132799 | DD53: 1088422
A54: 050 | B54: 15.83 | C54: Сахар | D54: 10498 | E54: 0 | F54: 0 | G54: 0 | H54: 0 | I54: 0 | J54: 0 | K54: 0 | L54: 0 | M54: 0 | N54: 0 | O54: 0 | P54: 0 | Q54: 41 | R54: 0 | S54: 0 | T54: 0 | U54: 1 | V54: 0 | W54: 0 | X54: 231779 | Y54: 0 | Z54: 0 | AA54: 0 | AB54: 0 | AC54: 0 | AD54: 0 | AE54: 0 | AF54: 0 | AG54: 0 | AH54: 0 | AI54: 0 | AJ54: 0 | AK54: 0 | AL54: 0 | AM54: 0 | AN54: 0 | AO54: 0 | AP54: 0 | AQ54: 0 | AR54: 0 | AS54: 0 | AT54: 0 | AU54: 0 | AV54: 0 | AW54: 0 | AX54: 0 | AY54: 0 | AZ54: 0 | BA54: 0 | BB54: 0 | BC54: 0 | BD54: 0 | BE54: 0 | BF54: 0 | BG54: 0 | BH54: 0 | BI54: 0 | BJ54: 0 | BK54: 0 | BL54: 0 | BM54: 0 | BN54: 0 | BO54: 0 | BP54: 0 | BQ54: 0 | BR54: 0 | BS54: 0 | BT54: 0 | BU54: 0 | BV54: 0 | BW54: 147 | BX54: 0 | BY54: 0 | BZ54: 0 | CA54: 0 | CB54: 0 | CC54: 0 | CD54: 0 | CE54: 0 | CF54: 0 | CG54: 0 | CH54: 0 | CI54: 0 | CJ54: 0 | CK54: 0 | CL54: 0 | CM54: 0 | CN54: 0 | CO54: 0 | CP54: 0 | CQ54: 0 | CR54: 0 | CS54: 0 | CT54: 0 | CU54: 0 | CV54: 0 | CW54: 0 | CX54: 242467 | CY54: 18662 | CZ54: 261129 | DA54: 92834 | DB54: 204 | DC54: 24984 | DD54: 379151
A55: 051 | B55: 15.84 | C55: Какао, шоколад и изделия кондитерские сахаристые | D55: 0 | E55: 0 | F55: 0 | G55: 0 | H55: 0 | I55: 0 | J55: 0 | K55: 0 | L55: 0 | M55: 0 | N55: 0 | O55: 0 | P55: 0 | Q55: 642 | R55: 136 | S55: 1480 | T55: 21 | U55: 53 | V55: 0 | W55: 0 | X55: 405073 | Y55: 16 | Z55: 0 | AA55: 0 | AB55: 0 | AC55: 0 | AD55: 0 | AE55: 0 | AF55: 0 | AG55: 0 | AH55: 0 | AI55: 0 | AJ55: 0 | AK55: 0 | AL55: 0 | AM55: 0 | AN55: 0 | AO55: 0 | AP55: 0 | AQ55: 0 | AR55: 0 | AS55: 0 | AT55: 0 | AU55: 0 | AV55: 0 | AW55: 0 | AX55: 0 | AY55: 0 | AZ55: 0 | BA55: 0 | BB55: 0 | BC55: 0 | BD55: 0 | BE55: 0 | BF55: 0 | BG55: 0 | BH55: 0 | BI55: 0 | BJ55: 0 | BK55: 0 | BL55: 0 | BM55: 0 | BN55: 0 | BO55: 0 | BP55: 0 | BQ55: 0 | BR55: 0 | BS55: 0 | BT55: 0 | BU55: 0 | BV55: 0 | BW55: 0 | BX55: 20 | BY55: 0 | BZ55: 263 | CA55: 0 | CB55: 0 | CC55: 0 | CD55: 0 | CE55: 0 | CF55: 0 | CG55: 0 | CH55: 0 | CI55: 0 | CJ55: 0 | CK55: 0 | CL55: 0 | CM55: 0 | CN55: 0 | CO55: 0 | CP55: 0 | CQ55: 0 | CR55: 0 | CS55: 0 | CT55: 0 | CU55: 0 | CV55: 0 | CW55: 0 | CX55: 407703 | CY55: 71143 | CZ55: 478846 | DA55: 272696 | DB55: 326 | DC55: 98447 | DD55: 850315
A56: 052 | B56: 15.85 | C56: Изделия макаронные, кускус и аналогичные изделия мучные | D56: 13 | E56: 0 | F56: 0 | G56: 0 | H56: 0 | I56: 0 | J56: 0 | K56: 0 | L56: 0 | M56: 0 | N56: 0 | O56: 0 | P56: 0 | Q56: 1385 | R56: 0 | S56: 0 | T56: 0 | U56: 0 | V56: 2498 | W56: 1232 | X56: 61249 | Y56: 0 | Z56: 0 | AA56: 0 | AB56: 0 | AC56: 0 | AD56: 0 | AE56: 0 | AF56: 0 | AG56: 0 | AH56: 0 | AI56: 0 | AJ56: 0 | AK56: 0 | AL56: 0 | AM56: 0 | AN56: 0 | AO56: 0 | AP56: 0 | AQ56: 0 | AR56: 0 | AS56: 0 | AT56: 0 | AU56: 0 | AV56: 0 | AW56: 0 | AX56: 0 | AY56: 0 | AZ56: 0 | BA56: 0 | BB56: 0 | BC56: 0 | BD56: 0 | BE56: 0 | BF56: 0 | BG56: 0 | BH56: 0 | BI56: 0 | BJ56: 0 | BK56: 0 | BL56: 0 | BM56: 0 | BN56: 0 | BO56: 0 | BP56: 0 | BQ56: 0 | BR56: 0 | BS56: 0 | BT56: 0 | BU56: 0 | BV56: 0 | BW56: 0 | BX56: 62 | BY56: 0 | BZ56: 1 | CA56: 0 | CB56: 0 | CC56: 0 | CD56: 0 | CE56: 0 | CF56: 0 | CG56: 0 | CH56: 0 | CI56: 0 | CJ56: 0 | CK56: 0 | CL56: 0 | CM56: 0 | CN56: 0 | CO56: 0 | CP56: 0 | CQ56: 0 | CR56: 0 | CS56: 0 | CT56: 0 | CU56: 0 | CV56: 0 | CW56: 0 | CX56: 66442 | CY56: 3984 | CZ56: 70426 | DA56: 47911 | DB56: 28 | DC56: 15661 | DD56: 134026
A57: 053 | B57: 15.86 | C57: Кофе и чай | D57: 0 | E57: 0 | F57: 0 | G57: 0 | H57: 0 | I57: 0 | J57: 0 | K57: 0 | L57: 0 | M57: 0 | N57: 0 | O57: 0 | P57: 0 | Q57: 0 | R57: 10 | S57: 0 | T57: 55 | U57: 0 | V57: 0 | W57: 0 | X57: 136094 | Y57: 0 | Z57: 0 | AA57: 0 | AB57: 0 | AC57: 0 | AD57: 0 | AE57: 0 | AF57: 0 | AG57: 0 | AH57: 0 | AI57: 0 | AJ57: 0 | AK57: 0 | AL57: 0 | AM57: 0 | AN57: 11852 | AO57: 0 | AP57: 0 | AQ57: 0 | AR57: 0 | AS57: 0 | AT57: 0 | AU57: 0 | AV57: 0 | AW57: 0 | AX57: 0 | AY57: 0 | AZ57: 0 | BA57: 0 | BB57: 0 | BC57: 0 | BD57: 0 | BE57: 0 | BF57: 0 | BG57: 0 | BH57: 0 | BI57: 0 | BJ57: 0 | BK57: 0 | BL57: 0 | BM57: 0 | BN57: 0 | BO57: 0 | BP57: 0 | BQ57: 0 | BR57: 0 | BS57: 0 | BT57: 0 | BU57: 0 | BV57: 0 | BW57: 14 | BX57: 0 | BY57: 0 | BZ57: 0 | CA57: 0 | CB57: 0 | CC57: 0 | CD57: 0 | CE57: 0 | CF57: 0 | CG57: 0 | CH57: 0 | CI57: 0 | CJ57: 0 | CK57: 137 | CL57: 0 | CM57: 0 | CN57: 0 | CO57: 637 | CP57: 0 | CQ57: 0 | CR57: 0 | CS57: 0 | CT57: 0 | CU57: 0 | CV57: 0 | CW57: 0 | CX57: 148800 | CY57: 85071 | CZ57: 233871 | DA57: 119310 | DB57: 133 | DC57: 47801 | DD57: 401115
A58: 054 | B58: 15.87 | C58: Приправы и пряности | D58: 2 | E58: 0 | F58: 0 | G58: 0 | H58: 0 | I58: 0 | J58: 0 | K58: 0 | L58: 0 | M58: 0 | N58: 0 | O58: 0 | P58: 0 | Q58: 844 | R58: 0 | S58: 39 | T58: 22719 | U58: 255 | V58: 45 | W58: 0 | X58: 62269 | Y58: 50 | Z58: 0 | AA58: 0 | AB58: 0 | AC58: 0 | AD58: 0 | AE58: 0 | AF58: 0 | AG58: 0 | AH58: 0 | AI58: 0 | AJ58: 21 | AK58: 0 | AL58: 0 | AM58: 0 | AN58: 0 | AO58: 0 | AP58: 0 | AQ58: 0 | AR58: 0 | AS58: 0 | AT58: 0 | AU58: 0 | AV58: 0 | AW58: 0 | AX58: 0 | AY58: 0 | AZ58: 0 | BA58: 0 | BB58: 0 | BC58: 0 | BD58: 0 | BE58: 0 | BF58: 0 | BG58: 0 | BH58: 0 | BI58: 384 | BJ58: 0 | BK58: 0 | BL58: 0 | BM58: 0 | BN58: 0 | BO58: 0 | BP58: 0 | BQ58: 0 | BR58: 0 | BS58: 0 | BT58: 0 | BU58: 0 | BV58: 0 | BW58: 2064 | BX58: 18 | BY58: 0 | BZ58: 0 | CA58: 0 | CB58: 0 | CC58: 0 | CD58: 0 | CE58: 0 | CF58: 0 | CG58: 0 | CH58: 0 | CI58: 0 | CJ58: 0 | CK58: 0 | CL58: 0 | CM58: 0 | CN58: 0 | CO58: 0 | CP58: 0 | CQ58: 0 | CR58: 0 | CS58: 0 | CT58: 0 | CU58: 0 | CV58: 0 | CW58: 0 | CX58: 88709 | CY58: 14451 | CZ58: 103160 | DA58: 40344 | DB58: 92 | DC58: 15691 | DD58: 159288
A59: 055 | B59: 15.88 + 15.89 | C59: Продукты детского питания, диетические и прочие пищевые продукты | D59: 2615 | E59: 0 | F59: 0 | G59: 0 | H59: 0 | I59: 0 | J59: 0 | K59: 0 | L59: 0 | M59: 0 | N59: 0 | O59: 0 | P59: 0 | Q59: 2100 | R59: 6 | S59: 1 | T59: 1447 | U59: 8352 | V59: 51 | W59: 0 | X59: 174953 | Y59: 135 | Z59: 0 | AA59: 0 | AB59: 0 | AC59: 0 | AD59: 0 | AE59: 0 | AF59: 0 | AG59: 0 | AH59: 0 | AI59: 30 | AJ59: 0 | AK59: 0 | AL59: 0 | AM59: 608 | AN59: 6528 | AO59: 0 | AP59: 0 | AQ59: 0 | AR59: 0 | AS59: 0 | AT59: 0 | AU59: 0 | AV59: 0 | AW59: 0 | AX59: 0 | AY59: 0 | AZ59: 0 | BA59: 0 | BB59: 0 | BC59: 0 | BD59: 0 | BE59: 0 | BF59: 0 | BG59: 0 | BH59: 0 | BI59: 0 | BJ59: 0 | BK59: 0 | BL59: 10 | BM59: 0 | BN59: 0 | BO59: 0 | BP59: 0 | BQ59: 0 | BR59: 0 | BS59: 0 | BT59: 0 | BU59: 0 | BV59: 0 | BW59: 452 | BX59: 15355 | BY59: 0 | BZ59: 670 | CA59: 0 | CB59: 0 | CC59: 0 | CD59: 0 | CE59: 0 | CF59: 0 | CG59: 0 | CH59: 0 | CI59: 0 | CJ59: 0 | CK59: 20 | CL59: 0 | CM59: 0 | CN59: 0 | CO59: 25 | CP59: 0 | CQ59: 0 | CR59: 0 | CS59: 0 | CT59: 0 | CU59: 0 | CV59: 0 | CW59: 0 | CX59: 213358 | CY59: 80417 | CZ59: 293775 | DA59: 116516 | DB59: 427 | DC59: 47241 | DD59: 457959
A60: 056 | B60: 15.9 кроме 15.98 | C60: Алкогольные напитки, включая пиво | D60: 8728 | E60: 0 | F60: 0 | G60: 0 | H60: 0 | I60: 0 | J60: 0 | K60: 0 | L60: 0 | M60: 0 | N60: 0 | O60: 0 | P60: 0 | Q60: 8 | R60: 0 | S60: 0 | T60: 42 | U60: 20 | V60: 0 | W60: 0 | X60: 575 | Y60: 604072 | Z60: 0 | AA60: 0 | AB60: 0 | AC60: 0 | AD60: 0 | AE60: 0 | AF60: 0 | AG60: 0 | AH60: 0 | AI60: 0 | AJ60: 0 | AK60: 0 | AL60: 0 | AM60: 20 | AN60: 0 | AO60: 0 | AP60: 0 | AQ60: 0 | AR60: 0 | AS60: 0 | AT60: 0 | AU60: 0 | AV60: 0 | AW60: 0 | AX60: 0 | AY60: 0 | AZ60: 0 | BA60: 0 | BB60: 0 | BC60: 0 | BD60: 0 | BE60: 0 | BF60: 0 | BG60: 0 | BH60: 0 | BI60: 0 | BJ60: 0 | BK60: 0 | BL60: 4 | BM60: 0 | BN60: 0 | BO60: 0 | BP60: 0 | BQ60: 0 | BR60: 0 | BS60: 0 | BT60: 0 | BU60: 0 | BV60: 0 | BW60: 148 | BX60: 19 | BY60: 3 | BZ60: 17 | CA60: 0 | CB60: 0 | CC60: 0 | CD60: 0 | CE60: 0 | CF60: 0 | CG60: 0 | CH60: 0 | CI60: 0 | CJ60: 0 | CK60: 44 | CL60: 168 | CM60: 0 | CN60: 0 | CO60: 7 | CP60: 0 | CQ60: 0 | CR60: 0 | CS60: 0 | CT60: 0 | CU60: 0 | CV60: 0 | CW60: 0 | CX60: 613875 | CY60: 131579 | CZ60: 745454 | DA60: 667135 | DB60: 1149 | DC60: 690036 | DD60: 2103775
A61: 057 | B61: 15.98 | C61: Воды минеральные и напитки безалкогольные | D61: 122 | E61: 0 | F61: 0 | G61: 0 | H61: 0 | I61: 0 | J61: 0 | K61: 0 | L61: 0 | M61: 0 | N61: 0 | O61: 0 | P61: 1 | Q61: 3 | R61: 10 | S61: 13 | T61: 2 | U61: 2883 | V61: 0 | W61: 0 | X61: 3449 | Y61: 268040 | Z61: 0 | AA61: 0 | AB61: 0 | AC61: 0 | AD61: 0 | AE61: 0 | AF61: 0 | AG61: 0 | AH61: 0 | AI61: 4 | AJ61: 0 | AK61: 0 | AL61: 0 | AM61: 39 | AN61: 0 | AO61: 0 | AP61: 0 | AQ61: 0 | AR61: 0 | AS61: 0 | AT61: 0 | AU61: 0 | AV61: 0 | AW61: 0 | AX61: 0 | AY61: 0 | AZ61: 0 | BA61: 0 | BB61: 0 | BC61: 0 | BD61: 0 | BE61: 0 | BF61: 0 | BG61: 0 | BH61: 0 | BI61: 0 | BJ61: 0 | BK61: 0 | BL61: 0 | BM61: 0 | BN61: 0 | BO61: 0 | BP61: 0 | BQ61: 0 | BR61: 1 | BS61: 0 | BT61: 10 | BU61: 0 | BV61: 0 | BW61: 1127 | BX61: 117 | BY61: 0 | BZ61: 6 | CA61: 0 | CB61: 0 | CC61: 0 | CD61: 0 | CE61: 0 | CF61: 0 | CG61: 0 | CH61: 0 | CI61: 0 | CJ61: 0 | CK61: 40 | CL61: 0 | CM61: 0 | CN61: 0 | CO61: 1 | CP61: 0 | CQ61: 0 | CR61: 272 | CS61: 0 | CT61: 0 | CU61: 0 | CV61: 0 | CW61: 0 | CX61: 276141 | CY61: 15133 | CZ61: 291274 | DA61: 170137 | DB61: 37 | DC61: 74387 | DD61: 535835
A62: 058 | B62: 16 | C62: Изделия табачные | D62: 0 | E62: 0 | F62: 0 | G62: 0 | H62: 0 | I62: 0 | J62: 0 | K62: 0 | L62: 0 | M62: 0 | N62: 0 | O62: 0 | P62: 0 | Q62: 0 | R62: 0 | S62: 0 | T62: 0 | U62: 0 | V62: 0 | W62: 0 | X62: 0 | Y62: 0 | Z62: 283044 | AA62: 0 | AB62: 0 | AC62: 0 | AD62: 0 | AE62: 0 | AF62: 0 | AG62: 0 | AH62: 0 | AI62: 0 | AJ62: 0 | AK62: 0 | AL62: 0 | AM62: 0 | AN62: 0 | AO62: 0 | AP62: 0 | AQ62: 0 | AR62: 0 | AS62: 0 | AT62: 0 | AU62: 0 | AV62: 0 | AW62: 0 | AX62: 0 | AY62: 0 | AZ62: 0 | BA62: 0 | BB62: 0 | BC62: 0 | BD62: 0 | BE62: 0 | BF62: 0 | BG62: 0 | BH62: 0 | BI62: 0 | BJ62: 0 | BK62: 0 | BL62: 0 | BM62: 0 | BN62: 0 | BO62: 0 | BP62: 0 | BQ62: 0 | BR62: 0 | BS62: 0 | BT62: 0 | BU62: 0 | BV62: 0 | BW62: 900 | BX62: 0 | BY62: 0 | BZ62: 0 | CA62: 0 | CB62: 0 | CC62: 0 | CD62: 0 | CE62: 0 | CF62: 0 | CG62: 0 | CH62: 0 | CI62: 0 | CJ62: 0 | CK62: 0 | CL62: 0 | CM62: 0 | CN62: 0 | CO62: 0 | CP62: 0 | CQ62: 0 | CR62: 0 | CS62: 0 | CT62: 0 | CU62: 0 | CV62: 0 | CW62: 0 | CX62: 283943 | CY62: 18710 | CZ62: 302654 | DA62: 386317 | DB62: 29 | DC62: 671470 | DD62: 1360470
A63: 059 | B63: 17.1 | C63: Пряжа и нити текстильные | D63: 42 | E63: 0 | F63: 0 | G63: 0 | H63: 0 | I63: 0 | J63: 0 | K63: 0 | L63: 0 | M63: 0 | N63: 0 | O63: 0 | P63: 0 | Q63: 0 | R63: 0 | S63: 0 | T63: 0 | U63: 0 | V63: 0 | W63: 0 | X63: 0 | Y63: 0 | Z63: 0 | AA63: 10942 | AB63: 0 | AC63: 0 | AD63: 0 | AE63: 0 | AF63: 0 | AG63: 0 | AH63: 0 | AI63: 0 | AJ63: 0 | AK63: 0 | AL63: 0 | AM63: 0 | AN63: 0 | AO63: 0 | AP63: 3 | AQ63: 0 | AR63: 500 | AS63: 0 | AT63: 0 | AU63: 0 | AV63: 0 | AW63: 0 | AX63: 0 | AY63: 0 | AZ63: 0 | BA63: 0 | BB63: 0 | BC63: 0 | BD63: 0 | BE63: 0 | BF63: 0 | BG63: 0 | BH63: 0 | BI63: 0 | BJ63: 0 | BK63: 0 | BL63: 0 | BM63: 0 | BN63: 0 | BO63: 0 | BP63: 0 | BQ63: 0 | BR63: 0 | BS63: 1 | BT63: 0 | BU63: 0 | BV63: 0 | BW63: 0 | BX63: 0 | BY63: 0 | BZ63: 0 | CA63: 0 | CB63: 0 | CC63: 0 | CD63: 0 | CE63: 0 | CF63: 0 | CG63: 0 | CH63: 0 | CI63: 0 | CJ63: 0 | CK63: 30 | CL63: 0 | CM63: 0 | CN63: 0 | CO63: 0 | CP63: 0 | CQ63: 0 | CR63: 0 | CS63: 0 | CT63: 0 | CU63: 0 | CV63: 0 | CW63: 0 | CX63: 11519 | CY63: 28734 | CZ63: 40253 | DA63: 11919 | DB63: 120 | DC63: 1893 | DD63: 54186
A64: 060 | B64: 17.2 | C64: Ткани | D64: 0 | E64: 0 | F64: 0 | G64: 0 | H64: 0 | I64: 0 | J64: 0 | K64: 0 | L64: 0 | M64: 0 | N64: 0 | O64: 0 | P64: 0 | Q64: 0 | R64: 0 | S64: 0 | T64: 0 | U64: 0 | V64: 0 | W64: 0 | X64: 0 | Y64: 0 | Z64: 0 | AA64: 43859 | AB64: 0 | AC64: 0 | AD64: 0 | AE64: 1605 | AF64: 0 | AG64: 0 | AH64: 0 | AI64: 0 | AJ64: 0 | AK64: 0 | AL64: 0 | AM64: 0 | AN64: 0 | AO64: 4 | AP64: 0 | AQ64: 0 | AR64: 176 | AS64: 445 | AT64: 0 | AU64: 0 | AV64: 0 | AW64: 0 | AX64: 0 | AY64: 0 | AZ64: 0 | BA64: 0 | BB64: 0 | BC64: 0 | BD64: 0 | BE64: 0 | BF64: 0 | BG64: 0 | BH64: 0 | BI64: 0 | BJ64: 0 | BK64: 0 | BL64: 0 | BM64: 0 | BN64: 0 | BO64: 0 | BP64: 0 | BQ64: 0 | BR64: 0 | BS64: 0 | BT64: 0 | BU64: 0 | BV64: 0 | BW64: 6 | BX64: 0 | BY64: 0 | BZ64: 0 | CA64: 0 | CB64: 0 | CC64: 0 | CD64: 0 | CE64: 0 | CF64: 0 | CG64: 0 | CH64: 0 | CI64: 0 | CJ64: 0 | CK64: 3 | CL64: 0 | CM64: 0 | CN64: 0 | CO64: 121 | CP64: 0 | CQ64: 0 | CR64: 0 | CS64: 0 | CT64: 0 | CU64: 0 | CV64: 0 | CW64: 0 | CX64: 46219 | CY64: 43346 | CZ64: 89565 | DA64: 28530 | DB64: 495 | DC64: 8323 | DD64: 126912
A65: 061 | B65: 17.3 | C65: Услуги по отделке пряжи и тканей | D65: 0 | E65: 0 | F65: 0 | G65: 0 | H65: 0 | I65: 0 | J65: 0 | K65: 0 | L65: 0 | M65: 0 | N65: 0 | O65: 0 | P65: 0 | Q65: 0 | R65: 0 | S65: 0 | T65: 0 | U65: 0 | V65: 0 | W65: 0 | X65: 0 | Y65: 0 | Z65: 0 | AA65: 11087 | AB65: 0 | AC65: 0 | AD65: 0 | AE65: 0 | AF65: 0 | AG65: 0 | AH65: 0 | AI65: 0 | AJ65: 0 | AK65: 0 | AL65: 0 | AM65: 0 | AN65: 0 | AO65: 0 | AP65: 0 | AQ65: 0 | AR65: 0 | AS65: 0 | AT65: 0 | AU65: 0 | AV65: 0 | AW65: 0 | AX65: 0 | AY65: 0 | AZ65: 0 | BA65: 0 | BB65: 0 | BC65: 0 | BD65: 0 | BE65: 0 | BF65: 0 | BG65: 0 | BH65: 0 | BI65: 0 | BJ65: 0 | BK65: 0 | BL65: 0 | BM65: 0 | BN65: 0 | BO65: 0 | BP65: 0 | BQ65: 0 | BR65: 0 | BS65: 0 | BT65: 0 | BU65: 0 | BV65: 0 | BW65: 26 | BX65: 0 | BY65: 0 | BZ65: 0 | CA65: 0 | CB65: 0 | CC65: 0 | CD65: 0 | CE65: 0 | CF65: 0 | CG65: 0 | CH65: 0 | CI65: 0 | CJ65: 0 | CK65: 0 | CL65: 0 | CM65: 0 | CN65: 0 | CO65: 0 | CP65: 0 | CQ65: 0 | CR65: 0 | CS65: 0 | CT65: 0 | CU65: 0 | CV65: 0 | CW65: 0 | CX65: 11113 | CY65: 4 | CZ65: 11118 | DA65: 0 | DB65: 0 | DC65: 28 | DD65: 11146
A66: 062 | B66: 17.4 + 17.5 + 17.6 | C66: Текстильные изделия, кроме одежды и ее аксессуаров | D66: 0 | E66: 0 | F66: 0 | G66: 0 | H66: 0 | I66: 1 | J66: 0 | K66: 0 | L66: 0 | M66: 0 | N66: 0 | O66: 0 | P66: 0 | Q66: 96 | R66: 0 | S66: 0 | T66: 0 | U66: 0 | V66: 0 | W66: 0 | X66: 5 | Y66: 0 | Z66: 0 | AA66: 130149 | AB66: 531 | AC66: 100 | AD66: 0 | AE66: 9 | AF66: 0 | AG66: 0 | AH66: 0 | AI66: 0 | AJ66: 945 | AK66: 0 | AL66: 17 | AM66: 0 | AN66: 6 | AO66: 0 | AP66: 338 | AQ66: 28 | AR66: 331 | AS66: 0 | AT66: 0 | AU66: 0 | AV66: 0 | AW66: 1 | AX66: 0 | AY66: 0 | AZ66: 0 | BA66: 101 | BB66: 2 | BC66: 0 | BD66: 1 | BE66: 0 | BF66: 0 | BG66: 0 | BH66: 0 | BI66: 0 | BJ66: 0 | BK66: 162 | BL66: 178 | BM66: 105 | BN66: 0 | BO66: 145 | BP66: 0 | BQ66: 0 | BR66: 0 | BS66: 0 | BT66: 0 | BU66: 0 | BV66: 0 | BW66: 301 | BX66: 43 | BY66: 0 | BZ66: 6 | CA66: 0 | CB66: 0 | CC66: 0 | CD66: 0 | CE66: 0 | CF66: 0 | CG66: 0 | CH66: 0 | CI66: 0 | CJ66: 0 | CK66: 125 | CL66: 0 | CM66: 0 | CN66: 3196 | CO66: 0 | CP66: 0 | CQ66: 1 | CR66: 0 | CS66: 0 | CT66: 0 | CU66: 0 | CV66: 4 | CW66: 0 | CX66: 136926 | CY66: 144068 | CZ66: 280995 | DA66: 144073 | DB66: 181 | DC66: 52384 | DD66: 477632
A67: 063 | B67: 17.7 | C67: Изделия трикотажные | D67: 0 | E67: 0 | F67: 0 | G67: 0 | H67: 0 | I67: 0 | J67: 0 | K67: 0 | L67: 0 | M67: 0 | N67: 0 | O67: 0 | P67: 0 | Q67: 0 | R67: 0 | S67: 0 | T67: 0 | U67: 0 | V67: 0 | W67: 0 | X67: 0 | Y67: 0 | Z67: 0 | AA67: 23782 | AB67: 693 | AC67: 0 | AD67: 0 | AE67: 0 | AF67: 0 | AG67: 0 | AH67: 0 | AI67: 0 | AJ67: 0 | AK67: 0 | AL67: 0 | AM67: 0 | AN67: 0 | AO67: 0 | AP67: 0 | AQ67: 0 | AR67: 0 | AS67: 0 | AT67: 0 | AU67: 0 | AV67: 0 | AW67: 0 | AX67: 0 | AY67: 0 | AZ67: 0 | BA67: 0 | BB67: 0 | BC67: 0 | BD67: 0 | BE67: 0 | BF67: 0 | BG67: 0 | BH67: 0 | BI67: 0 | BJ67: 0 | BK67: 0 | BL67: 0 | BM67: 69 | BN67: 0 | BO67: 0 | BP67: 0 | BQ67: 0 | BR67: 0 | BS67: 0 | BT67: 0 | BU67: 0 | BV67: 0 | BW67: 8 | BX67: 1 | BY67: 0 | BZ67: 0 | CA67: 0 | CB67: 0 | CC67: 0 | CD67: 0 | CE67: 0 | CF67: 0 | CG67: 0 | CH67: 0 | CI67: 0 | CJ67: 0 | CK67: 3 | CL67: 0 | CM67: 0 | CN67: 0 | CO67: 0 | CP67: 0 | CQ67: 0 | CR67: 0 | CS67: 0 | CT67: 0 | CU67: 0 | CV67: 0 | CW67: 0 | CX67: 24556 | CY67: 101886 | CZ67: 126443 | DA67: 139582 | DB67: 35 | DC67: 39587 | DD67: 305646
A68: 064 | B68: 18 | C68: Одежда и ее аксессуары | D68: 282 | E68: 0 | F68: 24 | G68: 0 | H68: 0 | I68: 17 | J68: 0 | K68: 0 | L68: 0 | M68: 0 | N68: 0 | O68: 540 | P68: 0 | Q68: 102 | R68: 0 | S68: 0 | T68: 0 | U68: 0 | V68: 0 | W68: 0 | X68: 1 | Y68: 1 | Z68: 0 | AA68: 1567 | AB68: 203520 | AC68: 174 | AD68: 0 | AE68: 0 | AF68: 0 | AG68: 0 | AH68: 0 | AI68: 0 | AJ68: 0 | AK68: 0 | AL68: 0 | AM68: 0 | AN68: 64 | AO68: 0 | AP68: 0 | AQ68: 6 | AR68: 7 | AS68: 0 | AT68: 1 | AU68: 0 | AV68: 0 | AW68: 0 | AX68: 0 | AY68: 0 | AZ68: 0 | BA68: 20 | BB68: 26 | BC68: 48 | BD68: 0 | BE68: 0 | BF68: 0 | BG68: 0 | BH68: 1 | BI68: 0 | BJ68: 20 | BK68: 0 | BL68: 0 | BM68: 0 | BN68: 0 | BO68: 1 | BP68: 0 | BQ68: 0 | BR68: 0 | BS68: 1 | BT68: 1 | BU68: 2 | BV68: 0 | BW68: 487 | BX68: 1032 | BY68: 0 | BZ68: 24 | CA68: 0 | CB68: 0 | CC68: 0 | CD68: 0 | CE68: 0 | CF68: 0 | CG68: 0 | CH68: 0 | CI68: 0 | CJ68: 0 | CK68: 362 | CL68: 0 | CM68: 0 | CN68: 0 | CO68: 243 | CP68: 0 | CQ68: 3 | CR68: 0 | CS68: 0 | CT68: 1 | CU68: 0 | CV68: 26 | CW68: 0 | CX68: 208605 | CY68: 529953 | CZ68: 738559 | DA68: 995834 | DB68: 1236 | DC68: 247258 | DD68: 1982887
A69: 065 | B69: 19.1 | C69: Кожа | D69: 0 | E69: 0 | F69: 10 | G69: 0 | H69: 0 | I69: 0 | J69: 0 | K69: 0 | L69: 0 | M69: 0 | N69: 0 | O69: 0 | P69: 0 | Q69: 0 | R69: 0 | S69: 0 | T69: 0 | U69: 0 | V69: 0 | W69: 0 | X69: 0 | Y69: 0 | Z69: 0 | AA69: 0 | AB69: 0 | AC69: 24094 | AD69: 0 | AE69: 0 | AF69: 0 | AG69: 0 | AH69: 0 | AI69: 0 | AJ69: 0 | AK69: 0 | AL69: 0 | AM69: 0 | AN69: 0 | AO69: 0 | AP69: 0 | AQ69: 0 | AR69: 0 | AS69: 0 | AT69: 0 | AU69: 0 | AV69: 0 | AW69: 0 | AX69: 0 | AY69: 0 | AZ69: 0 | BA69: 0 | BB69: 0 | BC69: 0 | BD69: 0 | BE69: 0 | BF69: 0 | BG69: 0 | BH69: 0 | BI69: 0 | BJ69: 0 | BK69: 0 | BL69: 0 | BM69: 0 | BN69: 0 | BO69: 0 | BP69: 0 | BQ69: 0 | BR69: 0 | BS69: 0 | BT69: 0 | BU69: 0 | BV69: 0 | BW69: 0 | BX69: 0 | BY69: 0 | BZ69: 0 | CA69: 0 | CB69: 0 | CC69: 0 | CD69: 0 | CE69: 0 | CF69: 0 | CG69: 0 | CH69: 0 | CI69: 0 | CJ69: 0 | CK69: 0 | CL69: 0 | CM69: 0 | CN69: 0 | CO69: 0 | CP69: 0 | CQ69: 0 | CR69: 0 | CS69: 0 | CT69: 0 | CU69: 0 | CV69: 0 | CW69: 0 | CX69: 24104 | CY69: 2875 | CZ69: 26979 | DA69: 5878 | DB69: 0 | DC69: 201 | DD69: 33058
A70: 066 | B70: 19.2 | C70: Чемоданы, дамские сумки и аналогичные изделия; шорно-седельные изделия и упряжь | D70: 0 | E70: 0 | F70: 0 | G70: 0 | H70: 0 | I70: 0 | J70: 0 | K70: 0 | L70: 0 | M70: 0 | N70: 0 | O70: 0 | P70: 0 | Q70: 0 | R70: 0 | S70: 0 | T70: 0 | U70: 0 | V70: 0 | W70: 0 | X70: 0 | Y70: 0 | Z70: 0 | AA70: 31 | AB70: 41 | AC70: 8776 | AD70: 0 | AE70: 0 | AF70: 0 | AG70: 0 | AH70: 0 | AI70: 0 | AJ70: 0 | AK70: 0 | AL70: 0 | AM70: 0 | AN70: 0 | AO70: 0 | AP70: 0 | AQ70: 0 | AR70: 0 | AS70: 0 | AT70: 0 | AU70: 0 | AV70: 0 | AW70: 0 | AX70: 0 | AY70: 0 | AZ70: 0 | BA70: 0 | BB70: 0 | BC70: 0 | BD70: 0 | BE70: 0 | BF70: 0 | BG70: 0 | BH70: 0 | BI70: 0 | BJ70: 0 | BK70: 0 | BL70: 1 | BM70: 0 | BN70: 0 | BO70: 0 | BP70: 0 | BQ70: 0 | BR70: 0 | BS70: 0 | BT70: 0 | BU70: 0 | BV70: 0 | BW70: 0 | BX70: 0 | BY70: 0 | BZ70: 0 | CA70: 0 | CB70: 0 | CC70: 0 | CD70: 0 | CE70: 0 | CF70: 0 | CG70: 0 | CH70: 0 | CI70: 0 | CJ70: 0 | CK70: 0 | CL70: 0 | CM70: 0 | CN70: 0 | CO70: 0 | CP70: 0 | CQ70: 0 | CR70: 0 | CS70: 0 | CT70: 3 | CU70: 0 | CV70: 0 | CW70: 0 | CX70: 8852 | CY70: 43736 | CZ70: 52587 | DA70: 47443 | DB70: 12 | DC70: 20244 | DD70: 120285
A71: 067 | B71: 19.3 | C71: Обувь | D71: 4 | E71: 0 | F71: 23 | G71: 0 | H71: 0 | I71: 0 | J71: 0 | K71: 0 | L71: 0 | M71: 0 | N71: 0 | O71: 0 | P71: 0 | Q71: 0 | R71: 0 | S71: 0 | T71: 0 | U71: 0 | V71: 0 | W71: 0 | X71: 0 | Y71: 0 | Z71: 0 | AA71: 31 | AB71: 1583 | AC71: 50861 | AD71: 0 | AE71: 0 | AF71: 0 | AG71: 0 | AH71: 0 | AI71: 0 | AJ71: 0 | AK71: 0 | AL71: 0 | AM71: 0 | AN71: 0 | AO71: 0 | AP71: 0 | AQ71: 85 | AR71: 96 | AS71: 0 | AT71: 0 | AU71: 0 | AV71: 0 | AW71: 0 | AX71: 0 | AY71: 0 | AZ71: 0 | BA71: 0 | BB71: 0 | BC71: 0 | BD71: 0 | BE71: 0 | BF71: 0 | BG71: 0 | BH71: 0 | BI71: 0 | BJ71: 16 | BK71: 0 | BL71: 93 | BM71: 0 | BN71: 0 | BO71: 0 | BP71: 0 | BQ71: 0 | BR71: 0 | BS71: 0 | BT71: 0 | BU71: 0 | BV71: 0 | BW71: 31 | BX71: 0 | BY71: 0 | BZ71: 0 | CA71: 0 | CB71: 0 | CC71: 0 | CD71: 0 | CE71: 0 | CF71: 55 | CG71: 0 | CH71: 0 | CI71: 0 | CJ71: 0 | CK71: 18 | CL71: 0 | CM71: 0 | CN71: 0 | CO71: 0 | CP71: 0 | CQ71: 0 | CR71: 0 | CS71: 0 | CT71: 0 | CU71: 0 | CV71: 4 | CW71: 0 | CX71: 52900 | CY71: 269386 | CZ71: 322286 | DA71: 342679 | DB71: 97 | DC71: 103295 | DD71: 768357
A72: 068 | B72: 20.1 | C72: Лесоматериалы, продольно распиленные, строганые или пропитанные | D72: 137 | E72: 0 | F72: 0 | G72: 7513 | H72: 12 | I72: 0 | J72: 0 | K72: 0 | L72: 0 | M72: 0 | N72: 0 | O72: 383 | P72: 0 | Q72: 0 | R72: 0 | S72: 0 | T72: 0 | U72: 0 | V72: 0 | W72: 0 | X72: 0 | Y72: 0 | Z72: 0 | AA72: 0 | AB72: 0 | AC72: 0 | AD72: 255874 | AE72: 296 | AF72: 0 | AG72: 0 | AH72: 0 | AI72: 0 | AJ72: 4 | AK72: 0 | AL72: 0 | AM72: 0 | AN72: 0 | AO72: 0 | AP72: 0 | AQ72: 0 | AR72: 0 | AS72: 0 | AT72: 4 | AU72: 8 | AV72: 164 | AW72: 9 | AX72: 1 | AY72: 0 | AZ72: 15 | BA72: 122 | BB72: 25 | BC72: 16 | BD72: 0 | BE72: 0 | BF72: 0 | BG72: 0 | BH72: 0 | BI72: 3 | BJ72: 0 | BK72: 0 | BL72: 6 | BM72: 1038 | BN72: 0 | BO72: 18 | BP72: 0 | BQ72: 24 | BR72: 0 | BS72: 16 | BT72: 0 | BU72: 271 | BV72: 0 | BW72: 390 | BX72: 3 | BY72: 0 | BZ72: 0 | CA72: 0 | CB72: 0 | CC72: 0 | CD72: 76 | CE72: 0 | CF72: 40 | CG72: 0 | CH72: 0 | CI72: 0 | CJ72: 0 | CK72: 2 | CL72: 0 | CM72: 0 | CN72: 0 | CO72: 6 | CP72: 0 | CQ72: 0 | CR72: 0 | CS72: 4 | CT72: 57 | CU72: 0 | CV72: 0 | CW72: 0 | CX72: 266539 | CY72: 1695 | CZ72: 268234 | DA72: 81151 | DB72: 1889 | DC72: 4352 | DD72: 355626
A73: 069 | B73: 20.2 | C73: Листы для облицовки; фанера клееная, плиты многослойные столярные, плиты древесно-стружечные, плиты древесно-волокнистые, панели и плиты прочие | D73: 0 | E73: 0 | F73: 0 | G73: 84 | H73: 0 | I73: 0 | J73: 0 | K73: 0 | L73: 0 | M73: 0 | N73: 0 | O73: 0 | P73: 0 | Q73: 0 | R73: 0 | S73: 0 | T73: 0 | U73: 0 | V73: 0 | W73: 0 | X73: 0 | Y73: 0 | Z73: 0 | AA73: 0 | AB73: 0 | AC73: 0 | AD73: 224326 | AE73: 1207 | AF73: 0 | AG73: 0 | AH73: 0 | AI73: 0 | AJ73: 0 | AK73: 0 | AL73: 0 | AM73: 0 | AN73: 0 | AO73: 0 | AP73: 0 | AQ73: 0 | AR73: 19 | AS73: 0 | AT73: 0 | AU73: 0 | AV73: 0 | AW73: 0 | AX73: 0 | AY73: 0 | AZ73: 0 | BA73: 0 | BB73: 25 | BC73: 0 | BD73: 0 | BE73: 0 | BF73: 0 | BG73: 0 | BH73: 0 | BI73: 0 | BJ73: 0 | BK73: 0 | BL73: 0 | BM73: 692 | BN73: 0 | BO73: 42 | BP73: 0 | BQ73: 0 | BR73: 0 | BS73: 0 | BT73: 0 | BU73: 0 | BV73: 0 | BW73: 0 | BX73: 0 | BY73: 0 | BZ73: 0 | CA73: 0 | CB73: 0 | CC73: 0 | CD73: 0 | CE73: 0 | CF73: 0 | CG73: 0 | CH73: 0 | CI73: 0 | CJ73: 0 | CK73: 218 | CL73: 0 | CM73: 0 | CN73: 0 | CO73: 0 | CP73: 0 | CQ73: 0 | CR73: 0 | CS73: 0 | CT73: 0 | CU73: 0 | CV73: 0 | CW73: 0 | CX73: 226613 | CY73: 26659 | CZ73: 253273 | DA73: 92946 | DB73: 992 | DC73: 22136 | DD73: 369347
A74: 070 | B74: 20.3 | C74: Конструкции деревянные строительные и изделия столярные | D74: 8 | E74: 0 | F74: 0 | G74: 456 | H74: 0 | I74: 0 | J74: 0 | K74: 0 | L74: 0 | M74: 0 | N74: 0 | O74: 0 | P74: 0 | Q74: 0 | R74: 0 | S74: 0 | T74: 0 | U74: 0 | V74: 0 | W74: 0 | X74: 0 | Y74: 0 | Z74: 0 | AA74: 0 | AB74: 0 | AC74: 0 | AD74: 90345 | AE74: 15 | AF74: 33 | AG74: 0 | AH74: 0 | AI74: 0 | AJ74: 0 | AK74: 0 | AL74: 0 | AM74: 0 | AN74: 0 | AO74: 0 | AP74: 0 | AQ74: 0 | AR74: 415 | AS74: 0 | AT74: 0 | AU74: 0 | AV74: 338 | AW74: 0 | AX74: 0 | AY74: 2 | AZ74: 140 | BA74: 32 | BB74: 19 | BC74: 19 | BD74: 0 | BE74: 0 | BF74: 0 | BG74: 0 | BH74: 0 | BI74: 1 | BJ74: 0 | BK74: 0 | BL74: 17 | BM74: 221 | BN74: 0 | BO74: 0 | BP74: 0 | BQ74: 0 | BR74: 0 | BS74: 8 | BT74: 0 | BU74: 530 | BV74: 0 | BW74: 361 | BX74: 0 | BY74: 0 | BZ74: 0 | CA74: 0 | CB74: 1 | CC74: 0 | CD74: 0 | CE74: 0 | CF74: 0 | CG74: 0 | CH74: 0 | CI74: 0 | CJ74: 0 | CK74: 137 | CL74: 0 | CM74: 0 | CN74: 1 | CO74: 135 | CP74: 0 | CQ74: 0 | CR74: 0 | CS74: 3 | CT74: 0 | CU74: 0 | CV74: 0 | CW74: 0 | CX74: 93237 | CY74: 9001 | CZ74: 102238 | DA74: 37560 | DB74: 618 | DC74: 15152 | DD74: 155568
A75: 071 | B75: 20.4 + 20.5 | C75: Деревянная тара и прочие изделия из дерева, пробки, соломки | D75: 4 | E75: 0 | F75: 0 | G75: 15 | H75: 0 | I75: 0 | J75: 0 | K75: 0 | L75: 0 | M75: 0 | N75: 0 | O75: 0 | P75: 0 | Q75: 0 | R75: 0 | S75: 0 | T75: 0 | U75: 0 | V75: 0 | W75: 0 | X75: 0 | Y75: 8 | Z75: 0 | AA75: 3 | AB75: 0 | AC75: 0 | AD75: 27854 | AE75: 17 | AF75: 0 | AG75: 0 | AH75: 0 | AI75: 0 | AJ75: 14 | AK75: 0 | AL75: 0 | AM75: 0 | AN75: 0 | AO75: 0 | AP75: 0 | AQ75: 1 | AR75: 3 | AS75: 0 | AT75: 103 | AU75: 0 | AV75: 78 | AW75: 5 | AX75: 3 | AY75: 57 | AZ75: 8 | BA75: 36 | BB75: 121 | BC75: 88 | BD75: 26 | BE75: 0 | BF75: 0 | BG75: 16 | BH75: 1 | BI75: 3 | BJ75: 0 | BK75: 1 | BL75: 57 | BM75: 10 | BN75: 0 | BO75: 454 | BP75: 0 | BQ75: 27 | BR75: 0 | BS75: 0 | BT75: 0 | BU75: 1 | BV75: 0 | BW75: 10 | BX75: 0 | BY75: 0 | BZ75: 0 | CA75: 2 | CB75: 0 | CC75: 0 | CD75: 0 | CE75: 0 | CF75: 1 | CG75: 0 | CH75: 0 | CI75: 0 | CJ75: 0 | CK75: 1 | CL75: 0 | CM75: 0 | CN75: 17 | CO75: 48 | CP75: 0 | CQ75: 0 | CR75: 0 | CS75: 3 | CT75: 0 | CU75: 0 | CV75: 142 | CW75: 0 | CX75: 29237 | CY75: 8907 | CZ75: 38144 | DA75: 14253 | DB75: 850 | DC75: 4978 | DD75: 58225
A76: 072 | B76: 21.11 | C76: Целлюлоза | D76: 0 | E76: 0 | F76: 0 | G76: 0 | H76: 0 | I76: 0 | J76: 0 | K76: 0 | L76: 0 | M76: 0 | N76: 0 | O76: 0 | P76: 0 | Q76: 0 | R76: 0 | S76: 0 | T76: 0 | U76: 0 | V76: 0 | W76: 0 | X76: 0 | Y76: 0 | Z76: 0 | AA76: 0 | AB76: 0 | AC76: 0 | AD76: 0 | AE76: 79206 | AF76: 0 | AG76: 0 | AH76: 0 | AI76: 0 | AJ76: 0 | AK76: 0 | AL76: 0 | AM76: 0 | AN76: 0 | AO76: 0 | AP76: 0 | AQ76: 0 | AR76: 0 | AS76: 0 | AT76: 0 | AU76: 0 | AV76: 0 | AW76: 0 | AX76: 0 | AY76: 0 | AZ76: 0 | BA76: 0 | BB76: 0 | BC76: 0 | BD76: 0 | BE76: 0 | BF76: 0 | BG76: 0 | BH76: 0 | BI76: 0 | BJ76: 0 | BK76: 0 | BL76: 0 | BM76: 0 | BN76: 0 | BO76: 0 | BP76: 0 | BQ76: 0 | BR76: 0 | BS76: 0 | BT76: 0 | BU76: 0 | BV76: 0 | BW76: 0 | BX76: 0 | BY76: 0 | BZ76: 0 | CA76: 0 | CB76: 0 | CC76: 0 | CD76: 0 | CE76: 0 | CF76: 0 | CG76: 0 | CH76: 0 | CI76: 0 | CJ76: 0 | CK76: 0 | CL76: 0 | CM76: 0 | CN76: 0 | CO76: 0 | CP76: 0 | CQ76: 0 | CR76: 0 | CS76: 0 | CT76: 0 | CU76: 0 | CV76: 0 | CW76: 0 | CX76: 79207 | CY76: 8119 | CZ76: 87325 | DA76: 14902 | DB76: 936 | DC76: 459 | DD76: 103622
A77: 073 | B77: 21.12 | C77: Бумага и картон | D77: 0 | E77: 0 | F77: 0 | G77: 0 | H77: 0 | I77: 0 | J77: 0 | K77: 0 | L77: 0 | M77: 0 | N77: 0 | O77: 0 | P77: 0 | Q77: 0 | R77: 0 | S77: 0 | T77: 0 | U77: 0 | V77: 0 | W77: 0 | X77: 0 | Y77: 0 | Z77: 0 | AA77: 0 | AB77: 0 | AC77: 0 | AD77: 0 | AE77: 287648 | AF77: 0 | AG77: 5533 | AH77: 0 | AI77: 0 | AJ77: 0 | AK77: 0 | AL77: 0 | AM77: 0 | AN77: 0 | AO77: 0 | AP77: 0 | AQ77: 0 | AR77: 0 | AS77: 0 | AT77: 0 | AU77: 0 | AV77: 659 | AW77: 0 | AX77: 0 | AY77: 0 | AZ77: 0 | BA77: 0 | BB77: 786 | BC77: 0 | BD77: 0 | BE77: 0 | BF77: 0 | BG77: 0 | BH77: 0 | BI77: 0 | BJ77: 0 | BK77: 0 | BL77: 0 | BM77: 0 | BN77: 0 | BO77: 0 | BP77: 0 | BQ77: 0 | BR77: 0 | BS77: 0 | BT77: 0 | BU77: 0 | BV77: 0 | BW77: 0 | BX77: 0 | BY77: 0 | BZ77: 0 | CA77: 0 | CB77: 0 | CC77: 0 | CD77: 0 | CE77: 0 | CF77: 0 | CG77: 0 | CH77: 0 | CI77: 0 | CJ77: 0 | CK77: 0 | CL77: 0 | CM77: 0 | CN77: 0 | CO77: 0 | CP77: 0 | CQ77: 0 | CR77: 0 | CS77: 0 | CT77: 0 | CU77: 0 | CV77: 0 | CW77: 0 | CX77: 294626 | CY77: 103677 | CZ77: 398303 | DA77: 89357 | DB77: 2073 | DC77: 8099 | DD77: 497832
A78: 074 | B78: 21.2 | C78: Изделия из бумаги и картона | D78: 0 | E78: 0 | F78: 0 | G78: 0 | H78: 0 | I78: 0 | J78: 0 | K78: 0 | L78: 0 | M78: 0 | N78: 0 | O78: 0 | P78: 0 | Q78: 3 | R78: 0 | S78: 0 | T78: 0 | U78: 0 | V78: 0 | W78: 0 | X78: 2176 | Y78: 0 | Z78: 0 | AA78: 289 | AB78: 1 | AC78: 0 | AD78: 0 | AE78: 341617 | AF78: 21 | AG78: 2244 | AH78: 0 | AI78: 0 | AJ78: 0 | AK78: 0 | AL78: 0 | AM78: 5 | AN78: 9452 | AO78: 0 | AP78: 0 | AQ78: 0 | AR78: 577 | AS78: 37 | AT78: 0 | AU78: 0 | AV78: 524 | AW78: 0 | AX78: 0 | AY78: 0 | AZ78: 0 | BA78: 30 | BB78: 357 | BC78: 0 | BD78: 0 | BE78: 0 | BF78: 0 | BG78: 2 | BH78: 3 | BI78: 0 | BJ78: 0 | BK78: 51 | BL78: 10 | BM78: 0 | BN78: 0 | BO78: 3 | BP78: 0 | BQ78: 2 | BR78: 0 | BS78: 0 | BT78: 0 | BU78: 7 | BV78: 0 | BW78: 19630 | BX78: 0 | BY78: 0 | BZ78: 0 | CA78: 0 | CB78: 0 | CC78: 0 | CD78: 0 | CE78: 0 | CF78: 0 | CG78: 0 | CH78: 0 | CI78: 0 | CJ78: 0 | CK78: 20 | CL78: 0 | CM78: 0 | CN78: 0 | CO78: 42 | CP78: 0 | CQ78: 0 | CR78: 0 | CS78: 0 | CT78: 0 | CU78: 0 | CV78: 0 | CW78: 0 | CX78: 377105 | CY78: 84124 | CZ78: 461229 | DA78: 146149 | DB78: 761 | DC78: 48927 | DD78: 657067
A79: 075 | B79: 22.1 | C79: Книги, газеты и прочие материалы печатные и носители информации записанные | D79: 0 | E79: 0 | F79: 0 | G79: 0 | H79: 0 | I79: 0 | J79: 8 | K79: 0 | L79: 0 | M79: 0 | N79: 4 | O79: 0 | P79: 0 | Q79: 0 | R79: 0 | S79: 0 | T79: 0 | U79: 0 | V79: 0 | W79: 0 | X79: 0 | Y79: 0 | Z79: 0 | AA79: 2 | AB79: 0 | AC79: 0 | AD79: 0 | AE79: 24 | AF79: 179415 | AG79: 865 | AH79: 0 | AI79: 1 | AJ79: 0 | AK79: 0 | AL79: 0 | AM79: 3 | AN79: 0 | AO79: 0 | AP79: 0 | AQ79: 0 | AR79: 0 | AS79: 0 | AT79: 0 | AU79: 0 | AV79: 0 | AW79: 9 | AX79: 3 | AY79: 0 | AZ79: 0 | BA79: 0 | BB79: 0 | BC79: 0 | BD79: 0 | BE79: 0 | BF79: 0 | BG79: 0 | BH79: 3 | BI79: 0 | BJ79: 0 | BK79: 0 | BL79: 4 | BM79: 0 | BN79: 0 | BO79: 0 | BP79: 0 | BQ79: 0 | BR79: 0 | BS79: 32 | BT79: 0 | BU79: 10933 | BV79: 0 | BW79: 1 | BX79: 5 | BY79: 0 | BZ79: 0 | CA79: 7 | CB79: 0 | CC79: 0 | CD79: 0 | CE79: 0 | CF79: 0 | CG79: 6 | CH79: 0 | CI79: 0 | CJ79: 0 | CK79: 321 | CL79: 116 | CM79: 93 | CN79: 13 | CO79: 72 | CP79: 0 | CQ79: 3 | CR79: 0 | CS79: 1 | CT79: 18 | CU79: 752 | CV79: 0 | CW79: 0 | CX79: 192713 | CY79: 18216 | CZ79: 210930 | DA79: 99631 | DB79: 31 | DC79: 26337 | DD79: 336929
A80: 076 | B80: 22.2 | C80: Услуги печатные и продукция печатная, не включенная в другие группировки | D80: 0 | E80: 0 | F80: 0 | G80: 0 | H80: 0 | I80: 2 | J80: 13 | K80: 0 | L80: 0 | M80: 0 | N80: 4 | O80: 0 | P80: 74 | Q80: 5 | R80: 0 | S80: 0 | T80: 0 | U80: 0 | V80: 0 | W80: 0 | X80: 0 | Y80: 7 | Z80: 0 | AA80: 4 | AB80: 0 | AC80: 0 | AD80: 0 | AE80: 2889 | AF80: 1050 | AG80: 262690 | AH80: 0 | AI80: 95 | AJ80: 1 | AK80: 0 | AL80: 0 | AM80: 16 | AN80: 0 | AO80: 0 | AP80: 0 | AQ80: 0 | AR80: 2847 | AS80: 0 | AT80: 0 | AU80: 0 | AV80: 0 | AW80: 9 | AX80: 0 | AY80: 0 | AZ80: 1 | BA80: 2 | BB80: 189 | BC80: 13 | BD80: 0 | BE80: 0 | BF80: 0 | BG80: 1 | BH80: 1 | BI80: 11 | BJ80: 0 | BK80: 0 | BL80: 3 | BM80: 0 | BN80: 0 | BO80: 0 | BP80: 0 | BQ80: 1 | BR80: 0 | BS80: 0 | BT80: 0 | BU80: 6 | BV80: 0 | BW80: 155 | BX80: 0 | BY80: 0 | BZ80: 12 | CA80: 15 | CB80: 0 | CC80: 119 | CD80: 0 | CE80: 0 | CF80: 76 | CG80: 132 | CH80: 0 | CI80: 0 | CJ80: 0 | CK80: 29 | CL80: 0 | CM80: 1 | CN80: 66 | CO80: 2229 | CP80: 0 | CQ80: 34 | CR80: 0 | CS80: 0 | CT80: 2 | CU80: 19 | CV80: 0 | CW80: 0 | CX80: 272823 | CY80: 20258 | CZ80: 293080 | DA80: 17836 | DB80: 8 | DC80: 14918 | DD80: 325842
A81: 077 | B81: 22.3 | C81: Услуги по копированию звуко- и видеозаписей, а также программных средств | D81: 0 | E81: 0 | F81: 0 | G81: 0 | H81: 0 | I81: 0 | J81: 0 | K81: 0 | L81: 0 | M81: 0 | N81: 0 | O81: 0 | P81: 0 | Q81: 0 | R81: 0 | S81: 0 | T81: 0 | U81: 0 | V81: 0 | W81: 0 | X81: 0 | Y81: 0 | Z81: 0 | AA81: 0 | AB81: 0 | AC81: 0 | AD81: 0 | AE81: 0 | AF81: 0 | AG81: 4267 | AH81: 0 | AI81: 0 | AJ81: 0 | AK81: 0 | AL81: 0 | AM81: 0 | AN81: 0 | AO81: 0 | AP81: 0 | AQ81: 0 | AR81: 0 | AS81: 0 | AT81: 0 | AU81: 0 | AV81: 0 | AW81: 0 | AX81: 0 | AY81: 0 | AZ81: 0 | BA81: 0 | BB81: 0 | BC81: 0 | BD81: 0 | BE81: 0 | BF81: 0 | BG81: 0 | BH81: 0 | BI81: 0 | BJ81: 0 | BK81: 0 | BL81: 0 | BM81: 0 | BN81: 0 | BO81: 0 | BP81: 0 | BQ81: 0 | BR81: 0 | BS81: 0 | BT81: 0 | BU81: 0 | BV81: 0 | BW81: 0 | BX81: 0 | BY81: 0 | BZ81: 0 | CA81: 0 | CB81: 0 | CC81: 0 | CD81: 0 | CE81: 0 | CF81: 0 | CG81: 0 | CH81: 0 | CI81: 0 | CJ81: 0 | CK81: 0 | CL81: 0 | CM81: 1 | CN81: 548 | CO81: 17 | CP81: 0 | CQ81: 0 | CR81: 0 | CS81: 0 | CT81: 0 | CU81: 12 | CV81: 0 | CW81: 0 | CX81: 4844 | CY81: 2 | CZ81: 4846 | DA81: 0 | DB81: 0 | DC81: 3 | DD81: 4849
A82: 078 | B82: 23.1 | C82: Продукция коксовых печей | D82: 0 | E82: 0 | F82: 0 | G82: 0 | H82: 0 | I82: 0 | J82: 0 | K82: 0 | L82: 0 | M82: 0 | N82: 0 | O82: 0 | P82: 0 | Q82: 0 | R82: 0 | S82: 0 | T82: 0 | U82: 0 | V82: 0 | W82: 0 | X82: 0 | Y82: 0 | Z82: 0 | AA82: 0 | AB82: 0 | AC82: 0 | AD82: 0 | AE82: 0 | AF82: 0 | AG82: 0 | AH82: 103091 | AI82: 0 | AJ82: 0 | AK82: 0 | AL82: 0 | AM82: 0 | AN82: 0 | AO82: 0 | AP82: 0 | AQ82: 0 | AR82: 0 | AS82: 0 | AT82: 0 | AU82: 0 | AV82: 0 | AW82: 8486 | AX82: 0 | AY82: 0 | AZ82: 0 | BA82: 0 | BB82: 0 | BC82: 0 | BD82: 0 | BE82: 0 | BF82: 0 | BG82: 0 | BH82: 0 | BI82: 0 | BJ82: 0 | BK82: 0 | BL82: 0 | BM82: 0 | BN82: 0 | BO82: 0 | BP82: 0 | BQ82: 0 | BR82: 0 | BS82: 0 | BT82: 0 | BU82: 0 | BV82: 0 | BW82: 0 | BX82: 0 | BY82: 0 | BZ82: 0 | CA82: 0 | CB82: 0 | CC82: 0 | CD82: 0 | CE82: 0 | CF82: 0 | CG82: 0 | CH82: 0 | CI82: 0 | CJ82: 0 | CK82: 0 | CL82: 0 | CM82: 0 | CN82: 0 | CO82: 0 | CP82: 0 | CQ82: 0 | CR82: 0 | CS82: 0 | CT82: 0 | CU82: 0 | CV82: 0 | CW82: 0 | CX82: 111577 | CY82: 1764 | CZ82: 113341 | DA82: 11758 | DB82: 4276 | DC82: 114 | DD82: 129490
A83: 079 | B83: 23.2 | C83: Нефтепродукты | D83: 0 | E83: 0 | F83: 0 | G83: 0 | H83: 0 | I83: 0 | J83: 548789 | K83: 106333 | L83: 588 | M83: 0 | N83: 0 | O83: 0 | P83: 0 | Q83: 0 | R83: 0 | S83: 0 | T83: 0 | U83: 0 | V83: 0 | W83: 0 | X83: 0 | Y83: 0 | Z83: 0 | AA83: 0 | AB83: 0 | AC83: 0 | AD83: 0 | AE83: 0 | AF83: 0 | AG83: 0 | AH83: 0 | AI83: 5712959 | AJ83: 13003 | AK83: 0 | AL83: 0 | AM83: 0 | AN83: 203 | AO83: 772 | AP83: 0 | AQ83: 0 | AR83: 0 | AS83: 0 | AT83: 0 | AU83: 0 | AV83: 82 | AW83: 0 | AX83: 928 | AY83: 0 | AZ83: 0 | BA83: 0 | BB83: 0 | BC83: 0 | BD83: 0 | BE83: 0 | BF83: 0 | BG83: 0 | BH83: 0 | BI83: 0 | BJ83: 0 | BK83: 0 | BL83: 0 | BM83: 0 | BN83: 0 | BO83: 0 | BP83: 0 | BQ83: 0 | BR83: 190 | BS83: 0 | BT83: 0 | BU83: 24 | BV83: 0 | BW83: 289299 | BX83: 10 | BY83: 0 | BZ83: 0 | CA83: 0 | CB83: 21 | CC83: 2687 | CD83: 0 | CE83: 0 | CF83: 9 | CG83: 0 | CH83: 0 | CI83: 0 | CJ83: 0 | CK83: 0 | CL83: 0 | CM83: 0 | CN83: 1 | CO83: 0 | CP83: 0 | CQ83: 0 | CR83: 0 | CS83: 0 | CT83: 0 | CU83: 0 | CV83: 0 | CW83: 0 | CX83: 6675898 | CY83: 163779 | CZ83: 6839677 | DA83: 1045252 | DB83: 38480 | DC83: 1155747 | DD83: 9079156
A84: 080 | B84: 24.11 | C84: Газы промышленные | D84: 10 | E84: 0 | F84: 0 | G84: 0 | H84: 2 | I84: 2 | J84: 3 | K84: 1 | L84: 39 | M84: 0 | N84: 49 | O84: 29 | P84: 5 | Q84: 0 | R84: 0 | S84: 0 | T84: 2 | U84: 7 | V84: 0 | W84: 0 | X84: 0 | Y84: 117 | Z84: 0 | AA84: 0 | AB84: 0 | AC84: 0 | AD84: 0 | AE84: 5 | AF84: 0 | AG84: 0 | AH84: 0 | AI84: 15542 | AJ84: 39846 | AK84: 0 | AL84: 0 | AM84: 150 | AN84: 0 | AO84: 2 | AP84: 0 | AQ84: 7 | AR84: 0 | AS84: 0 | AT84: 0 | AU84: 0 | AV84: 9 | AW84: 2389 | AX84: 249 | AY84: 19 | AZ84: 17 | BA84: 12 | BB84: 43 | BC84: 75 | BD84: 0 | BE84: 0 | BF84: 0 | BG84: 0 | BH84: 44 | BI84: 2 | BJ84: 0 | BK84: 154 | BL84: 315 | BM84: 0 | BN84: 0 | BO84: 0 | BP84: 1 | BQ84: 2287 | BR84: 0 | BS84: 1175 | BT84: 179 | BU84: 0 | BV84: 0 | BW84: 0 | BX84: 0 | BY84: 0 | BZ84: 0 | CA84: 0 | CB84: 0 | CC84: 3 | CD84: 25 | CE84: 0 | CF84: 20 | CG84: 0 | CH84: 0 | CI84: 0 | CJ84: 0 | CK84: 39 | CL84: 0 | CM84: 0 | CN84: 5 | CO84: 0 | CP84: 0 | CQ84: 0 | CR84: 0 | CS84: 0 | CT84: 0 | CU84: 0 | CV84: 0 | CW84: 0 | CX84: 62880 | CY84: 606 | CZ84: 63486 | DA84: 5140 | DB84: 343 | DC84: 88 | DD84: 69058
A85: 081 | B85: 24.12 | C85: Красители и пигменты | D85: 0 | E85: 0 | F85: 0 | G85: 0 | H85: 0 | I85: 0 | J85: 0 | K85: 0 | L85: 0 | M85: 0 | N85: 0 | O85: 0 | P85: 0 | Q85: 0 | R85: 0 | S85: 0 | T85: 0 | U85: 0 | V85: 0 | W85: 0 | X85: 0 | Y85: 2 | Z85: 0 | AA85: 0 | AB85: 0 | AC85: 0 | AD85: 0 | AE85: 0 | AF85: 0 | AG85: 0 | AH85: 0 | AI85: 0 | AJ85: 19031 | AK85: 0 | AL85: 0 | AM85: 2 | AN85: 32 | AO85: 0 | AP85: 0 | AQ85: 0 | AR85: 0 | AS85: 0 | AT85: 0 | AU85: 0 | AV85: 0 | AW85: 67 | AX85: 1792 | AY85: 0 | AZ85: 0 | BA85: 0 | BB85: 0 | BC85: 0 | BD85: 0 | BE85: 0 | BF85: 0 | BG85: 0 | BH85: 0 | BI85: 0 | BJ85: 0 | BK85: 0 | BL85: 8 | BM85: 0 | BN85: 0 | BO85: 0 | BP85: 0 | BQ85: 0 | BR85: 0 | BS85: 0 | BT85: 0 | BU85: 0 | BV85: 0 | BW85: 0 | BX85: 0 | BY85: 0 | BZ85: 0 | CA85: 0 | CB85: 0 | CC85: 0 | CD85: 0 | CE85: 0 | CF85: 0 | CG85: 0 | CH85: 0 | CI85: 0 | CJ85: 0 | CK85: 0 | CL85: 0 | CM85: 0 | CN85: 0 | CO85: 0 | CP85: 0 | CQ85: 0 | CR85: 0 | CS85: 0 | CT85: 0 | CU85: 0 | CV85: 0 | CW85: 0 | CX85: 20934 | CY85: 30914 | CZ85: 51848 | DA85: 10102 | DB85: 738 | DC85: 985 | DD85: 63672
A86: 082 | B86: 24.13 | C86: Вещества химические неорганические основные прочие | D86: 0 | E86: 0 | F86: 0 | G86: 0 | H86: 0 | I86: 29 | J86: 7 | K86: 4686 | L86: 0 | M86: 0 | N86: 0 | O86: 0 | P86: 3951 | Q86: 0 | R86: 0 | S86: 0 | T86: 0 | U86: 0 | V86: 0 | W86: 0 | X86: 0 | Y86: 0 | Z86: 0 | AA86: 0 | AB86: 329 | AC86: 0 | AD86: 0 | AE86: 64 | AF86: 0 | AG86: 0 | AH86: 0 | AI86: 347 | AJ86: 180519 | AK86: 0 | AL86: 0 | AM86: 0 | AN86: 2 | AO86: 240 | AP86: 0 | AQ86: 0 | AR86: 0 | AS86: 998 | AT86: 215 | AU86: 0 | AV86: 0 | AW86: 5763 | AX86: 18308 | AY86: 0 | AZ86: 3 | BA86: 0 | BB86: 0 | BC86: 0 | BD86: 0 | BE86: 0 | BF86: 0 | BG86: 0 | BH86: 0 | BI86: 0 | BJ86: 0 | BK86: 2 | BL86: 4657 | BM86: 0 | BN86: 0 | BO86: 0 | BP86: 0 | BQ86: 1 | BR86: 0 | BS86: 50 | BT86: 0 | BU86: 0 | BV86: 0 | BW86: 65 | BX86: 0 | BY86: 0 | BZ86: 0 | CA86: 0 | CB86: 0 | CC86: 0 | CD86: 0 | CE86: 0 | CF86: 0 | CG86: 0 | CH86: 0 | CI86: 0 | CJ86: 0 | CK86: 0 | CL86: 0 | CM86: 0 | CN86: 109 | CO86: 0 | CP86: 0 | CQ86: 0 | CR86: 0 | CS86: 0 | CT86: 2 | CU86: 0 | CV86: 0 | CW86: 0 | CX86: 220350 | CY86: 45117 | CZ86: 265466 | DA86: 51124 | DB86: 9321 | DC86: 2248 | DD86: 328159
A87: 083 | B87: 24.14 | C87: Вещества химические органические основные прочие | D87: 0 | E87: 0 | F87: 0 | G87: 0 | H87: 0 | I87: 0 | J87: 0 | K87: 0 | L87: 0 | M87: 0 | N87: 0 | O87: 0 | P87: 0 | Q87: 0 | R87: 0 | S87: 0 | T87: 0 | U87: 0 | V87: 0 | W87: 0 | X87: 0 | Y87: 0 | Z87: 0 | AA87: 0 | AB87: 0 | AC87: 0 | AD87: 22 | AE87: 6491 | AF87: 0 | AG87: 0 | AH87: 2512 | AI87: 61721 | AJ87: 238010 | AK87: 0 | AL87: 67 | AM87: 166 | AN87: 1022 | AO87: 400 | AP87: 0 | AQ87: 0 | AR87: 0 | AS87: 0 | AT87: 0 | AU87: 0 | AV87: 0 | AW87: 10570 | AX87: 0 | AY87: 0 | AZ87: 5 | BA87: 4 | BB87: 1 | BC87: 0 | BD87: 0 | BE87: 0 | BF87: 0 | BG87: 0 | BH87: 0 | BI87: 0 | BJ87: 0 | BK87: 0 | BL87: 2825 | BM87: 0 | BN87: 0 | BO87: 0 | BP87: 0 | BQ87: 0 | BR87: 0 | BS87: 34 | BT87: 0 | BU87: 0 | BV87: 0 | BW87: 228 | BX87: 4 | BY87: 0 | BZ87: 0 | CA87: 0 | CB87: 0 | CC87: 0 | CD87: 0 | CE87: 0 | CF87: 0 | CG87: 0 | CH87: 0 | CI87: 0 | CJ87: 0 | CK87: 27 | CL87: 0 | CM87: 0 | CN87: 516 | CO87: 0 | CP87: 0 | CQ87: 0 | CR87: 0 | CS87: 0 | CT87: 0 | CU87: 0 | CV87: 0 | CW87: 0 | CX87: 324625 | CY87: 151106 | CZ87: 475731 | DA87: 91975 | DB87: 7090 | DC87: 5538 | DD87: 580334
A88: 084 | B88: 24.15 | C88: Удобрения и соединения азотные | D88: 35 | E88: 0 | F88: 0 | G88: 0 | H88: 0 | I88: 0 | J88: 0 | K88: 0 | L88: 0 | M88: 0 | N88: 0 | O88: 0 | P88: 40562 | Q88: 0 | R88: 0 | S88: 0 | T88: 0 | U88: 0 | V88: 0 | W88: 0 | X88: 0 | Y88: 0 | Z88: 0 | AA88: 0 | AB88: 0 | AC88: 0 | AD88: 0 | AE88: 0 | AF88: 0 | AG88: 0 | AH88: 586 | AI88: 10630 | AJ88: 600774 | AK88: 0 | AL88: 0 | AM88: 0 | AN88: 0 | AO88: 0 | AP88: 0 | AQ88: 0 | AR88: 0 | AS88: 0 | AT88: 24 | AU88: 0 | AV88: 0 | AW88: 1419 | AX88: 703 | AY88: 0 | AZ88: 0 | BA88: 0 | BB88: 0 | BC88: 0 | BD88: 0 | BE88: 0 | BF88: 0 | BG88: 0 | BH88: 0 | BI88: 0 | BJ88: 0 | BK88: 0 | BL88: 2 | BM88: 0 | BN88: 0 | BO88: 0 | BP88: 0 | BQ88: 0 | BR88: 0 | BS88: 0 | BT88: 0 | BU88: 0 | BV88: 0 | BW88: 462 | BX88: 0 | BY88: 0 | BZ88: 0 | CA88: 0 | CB88: 0 | CC88: 0 | CD88: 0 | CE88: 0 | CF88: 0 | CG88: 0 | CH88: 0 | CI88: 0 | CJ88: 0 | CK88: 0 | CL88: 0 | CM88: 0 | CN88: 0 | CO88: 0 | CP88: 0 | CQ88: 0 | CR88: 0 | CS88: 0 | CT88: 0 | CU88: 0 | CV88: 0 | CW88: 0 | CX88: 655197 | CY88: 5942 | CZ88: 661139 | DA88: 54238 | DB88: 779 | DC88: 4634 | DD88: 720791
A89: 085 | B89: 24.16 | C89: Пластмассы в первичных формах | D89: 0 | E89: 0 | F89: 0 | G89: 0 | H89: 0 | I89: 0 | J89: 0 | K89: 0 | L89: 0 | M89: 0 | N89: 0 | O89: 0 | P89: 0 | Q89: 0 | R89: 0 | S89: 0 | T89: 0 | U89: 0 | V89: 0 | W89: 0 | X89: 0 | Y89: 0 | Z89: 0 | AA89: 44 | AB89: 0 | AC89: 0 | AD89: 194 | AE89: 0 | AF89: 0 | AG89: 0 | AH89: 0 | AI89: 73396 | AJ89: 398761 | AK89: 0 | AL89: 920 | AM89: 0 | AN89: 0 | AO89: 724 | AP89: 0 | AQ89: 0 | AR89: 266 | AS89: 0 | AT89: 0 | AU89: 0 | AV89: 0 | AW89: 0 | AX89: 0 | AY89: 0 | AZ89: 0 | BA89: 0 | BB89: 67 | BC89: 6 | BD89: 0 | BE89: 0 | BF89: 0 | BG89: 0 | BH89: 0 | BI89: 0 | BJ89: 0 | BK89: 0 | BL89: 1088 | BM89: 13 | BN89: 0 | BO89: 0 | BP89: 0 | BQ89: 0 | BR89: 0 | BS89: 0 | BT89: 0 | BU89: 0 | BV89: 0 | BW89: 11 | BX89: 0 | BY89: 0 | BZ89: 0 | CA89: 0 | CB89: 0 | CC89: 0 | CD89: 0 | CE89: 0 | CF89: 0 | CG89: 0 | CH89: 0 | CI89: 0 | CJ89: 0 | CK89: 0 | CL89: 0 | CM89: 0 | CN89: 303 | CO89: 128 | CP89: 0 | CQ89: 0 | CR89: 0 | CS89: 0 | CT89: 0 | CU89: 0 | CV89: 0 | CW89: 0 | CX89: 475919 | CY89: 233593 | CZ89: 709511 | DA89: 17583 | DB89: 2169 | DC89: 7936 | DD89: 737199
A90: 086 | B90: 24.17 | C90: Каучуки синтетические в первичных формах | D90: 0 | E90: 0 | F90: 0 | G90: 0 | H90: 0 | I90: 0 | J90: 0 | K90: 0 | L90: 0 | M90: 0 | N90: 0 | O90: 0 | P90: 0 | Q90: 0 | R90: 0 | S90: 0 | T90: 0 | U90: 0 | V90: 0 | W90: 0 | X90: 0 | Y90: 0 | Z90: 0 | AA90: 0 | AB90: 0 | AC90: 0 | AD90: 0 | AE90: 0 | AF90: 0 | AG90: 0 | AH90: 0 | AI90: 40044 | AJ90: 102664 | AK90: 0 | AL90: 0 | AM90: 0 | AN90: 0 | AO90: 0 | AP90: 0 | AQ90: 0 | AR90: 0 | AS90: 0 | AT90: 0 | AU90: 0 | AV90: 0 | AW90: 0 | AX90: 0 | AY90: 0 | AZ90: 0 | BA90: 0 | BB90: 0 | BC90: 0 | BD90: 0 | BE90: 0 | BF90: 0 | BG90: 0 | BH90: 0 | BI90: 0 | BJ90: 0 | BK90: 0 | BL90: 42 | BM90: 0 | BN90: 0 | BO90: 0 | BP90: 0 | BQ90: 0 | BR90: 0 | BS90: 0 | BT90: 0 | BU90: 0 | BV90: 0 | BW90: 0 | BX90: 0 | BY90: 0 | BZ90: 0 | CA90: 0 | CB90: 0 | CC90: 0 | CD90: 0 | CE90: 0 | CF90: 0 | CG90: 0 | CH90: 0 | CI90: 0 | CJ90: 0 | CK90: 0 | CL90: 0 | CM90: 0 | CN90: 710 | CO90: 0 | CP90: 0 | CQ90: 0 | CR90: 0 | CS90: 0 | CT90: 0 | CU90: 0 | CV90: 0 | CW90: 0 | CX90: 143459 | CY90: 10469 | CZ90: 153929 | DA90: 604 | DB90: 431 | DC90: 416 | DD90: 155379
A91: 087 | B91: 24.2 | C91: Пестициды и прочие агрохимические продукты | D91: 0 | E91: 0 | F91: 0 | G91: 0 | H91: 0 | I91: 0 | J91: 0 | K91: 0 | L91: 0 | M91: 0 | N91: 0 | O91: 0 | P91: 0 | Q91: 0 | R91: 0 | S91: 0 | T91: 0 | U91: 0 | V91: 0 | W91: 310 | X91: 0 | Y91: 0 | Z91: 0 | AA91: 0 | AB91: 0 | AC91: 0 | AD91: 0 | AE91: 0 | AF91: 0 | AG91: 0 | AH91: 0 | AI91: 0 | AJ91: 0 | AK91: 33697 | AL91: 0 | AM91: 0 | AN91: 1861 | AO91: 0 | AP91: 0 | AQ91: 0 | AR91: 0 | AS91: 0 | AT91: 0 | AU91: 0 | AV91: 0 | AW91: 0 | AX91: 0 | AY91: 0 | AZ91: 0 | BA91: 0 | BB91: 0 | BC91: 0 | BD91: 0 | BE91: 0 | BF91: 0 | BG91: 0 | BH91: 0 | BI91: 0 | BJ91: 0 | BK91: 0 | BL91: 3 | BM91: 0 | BN91: 0 | BO91: 0 | BP91: 0 | BQ91: 0 | BR91: 0 | BS91: 0 | BT91: 0 | BU91: 0 | BV91: 0 | BW91: 4559 | BX91: 0 | BY91: 0 | BZ91: 0 | CA91: 0 | CB91: 0 | CC91: 0 | CD91: 0 | CE91: 0 | CF91: 0 | CG91: 0 | CH91: 0 | CI91: 0 | CJ91: 0 | CK91: 0 | CL91: 0 | CM91: 0 | CN91: 6 | CO91: 0 | CP91: 0 | CQ91: 0 | CR91: 0 | CS91: 0 | CT91: 0 | CU91: 0 | CV91: 0 | CW91: 0 | CX91: 40435 | CY91: 50833 | CZ91: 91268 | DA91: 17502 | DB91: 439 | DC91: 1941 | DD91: 111151
A92: 088 | B92: 24.3 | C92: Материалы лакокрасочные и аналогичные для нанесения покрытий, краски и мастики полиграфические | D92: 0 | E92: 0 | F92: 0 | G92: 0 | H92: 0 | I92: 0 | J92: 0 | K92: 0 | L92: 0 | M92: 0 | N92: 0 | O92: 0 | P92: 16 | Q92: 0 | R92: 0 | S92: 0 | T92: 0 | U92: 0 | V92: 0 | W92: 0 | X92: 0 | Y92: 0 | Z92: 0 | AA92: 0 | AB92: 0 | AC92: 0 | AD92: 0 | AE92: 0 | AF92: 0 | AG92: 0 | AH92: 0 | AI92: 2720 | AJ92: 2451 | AK92: 0 | AL92: 104760 | AM92: 0 | AN92: 0 | AO92: 664 | AP92: 0 | AQ92: 7 | AR92: 9 | AS92: 319 | AT92: 0 | AU92: 0 | AV92: 706 | AW92: 89 | AX92: 0 | AY92: 0 | AZ92: 0 | BA92: 0 | BB92: 222 | BC92: 1 | BD92: 0 | BE92: 0 | BF92: 0 | BG92: 479 | BH92: 0 | BI92: 0 | BJ92: 0 | BK92: 0 | BL92: 755 | BM92: 0 | BN92: 0 | BO92: 0 | BP92: 7 | BQ92: 0 | BR92: 0 | BS92: 0 | BT92: 0 | BU92: 9 | BV92: 0 | BW92: 477 | BX92: 0 | BY92: 0 | BZ92: 0 | CA92: 0 | CB92: 0 | CC92: 0 | CD92: 0 | CE92: 0 | CF92: 0 | CG92: 0 | CH92: 0 | CI92: 0 | CJ92: 0 | CK92: 0 | CL92: 0 | CM92: 0 | CN92: 77 | CO92: 0 | CP92: 0 | CQ92: 0 | CR92: 0 | CS92: 0 | CT92: 1 | CU92: 0 | CV92: 0 | CW92: 0 | CX92: 113770 | CY92: 84000 | CZ92: 197771 | DA92: 51433 | DB92: 3283 | DC92: 10485 | DD92: 262972
A93: 089 | B93: 24.41 | C93: Продукты фармацевтические основные | D93: 0 | E93: 0 | F93: 0 | G93: 0 | H93: 0 | I93: 0 | J93: 0 | K93: 0 | L93: 0 | M93: 0 | N93: 0 | O93: 0 | P93: 0 | Q93: 0 | R93: 0 | S93: 0 | T93: 0 | U93: 0 | V93: 0 | W93: 22 | X93: 0 | Y93: 0 | Z93: 0 | AA93: 0 | AB93: 0 | AC93: 0 | AD93: 0 | AE93: 0 | AF93: 0 | AG93: 0 | AH93: 0 | AI93: 0 | AJ93: 261 | AK93: 0 | AL93: 0 | AM93: 102709 | AN93: 17 | AO93: 58 | AP93: 0 | AQ93: 0 | AR93: 0 | AS93: 0 | AT93: 0 | AU93: 0 | AV93: 0 | AW93: 0 | AX93: 0 | AY93: 0 | AZ93: 0 | BA93: 0 | BB93: 0 | BC93: 0 | BD93: 0 | BE93: 0 | BF93: 0 | BG93: 0 | BH93: 0 | BI93: 0 | BJ93: 0 | BK93: 0 | BL93: 0 | BM93: 0 | BN93: 0 | BO93: 0 | BP93: 0 | BQ93: 0 | BR93: 0 | BS93: 0 | BT93: 0 | BU93: 0 | BV93: 0 | BW93: 7 | BX93: 0 | BY93: 0 | BZ93: 0 | CA93: 0 | CB93: 0 | CC93: 0 | CD93: 0 | CE93: 0 | CF93: 0 | CG93: 0 | CH93: 0 | CI93: 0 | CJ93: 0 | CK93: 0 | CL93: 0 | CM93: 0 | CN93: 1097 | CO93: 0 | CP93: 0 | CQ93: 0 | CR93: 0 | CS93: 0 | CT93: 0 | CU93: 0 | CV93: 0 | CW93: 0 | CX93: 104172 | CY93: 66345 | CZ93: 170517 | DA93: 22119 | DB93: 107 | DC93: 7793 | DD93: 200535
A94: 090 | B94: 24.42 | C94: Препараты фармацевтические | D94: 0 | E94: 0 | F94: 0 | G94: 0 | H94: 0 | I94: 0 | J94: 0 | K94: 0 | L94: 0 | M94: 0 | N94: 0 | O94: 0 | P94: 0 | Q94: 27 | R94: 0 | S94: 0 | T94: 0 | U94: 0 | V94: 0 | W94: 0 | X94: 887 | Y94: 0 | Z94: 0 | AA94: 361 | AB94: 3 | AC94: 0 | AD94: 0 | AE94: 0 | AF94: 0 | AG94: 0 | AH94: 0 | AI94: 0 | AJ94: 66 | AK94: 0 | AL94: 0 | AM94: 341862 | AN94: 70 | AO94: 0 | AP94: 0 | AQ94: 0 | AR94: 0 | AS94: 0 | AT94: 0 | AU94: 0 | AV94: 0 | AW94: 0 | AX94: 0 | AY94: 0 | AZ94: 0 | BA94: 0 | BB94: 0 | BC94: 0 | BD94: 0 | BE94: 0 | BF94: 0 | BG94: 0 | BH94: 0 | BI94: 0 | BJ94: 327 | BK94: 0 | BL94: 220 | BM94: 0 | BN94: 0 | BO94: 0 | BP94: 0 | BQ94: 0 | BR94: 0 | BS94: 0 | BT94: 0 | BU94: 0 | BV94: 0 | BW94: 3453 | BX94: 359 | BY94: 0 | BZ94: 0 | CA94: 0 | CB94: 0 | CC94: 0 | CD94: 0 | CE94: 0 | CF94: 0 | CG94: 0 | CH94: 0 | CI94: 0 | CJ94: 0 | CK94: 0 | CL94: 0 | CM94: 0 | CN94: 2079 | CO94: 541 | CP94: 0 | CQ94: 0 | CR94: 418 | CS94: 0 | CT94: 0 | CU94: 0 | CV94: 0 | CW94: 0 | CX94: 350674 | CY94: 587063 | CZ94: 937736 | DA94: 693444 | DB94: 265 | DC94: 164393 | DD94: 1795838
A95: 091 | B95: 24.5 | C95: Глицерин; мыло и моющие средства, средства чистящие и полирующие, средства парфюмерные и косметические | D95: 0 | E95: 0 | F95: 0 | G95: 0 | H95: 0 | I95: 0 | J95: 0 | K95: 0 | L95: 0 | M95: 0 | N95: 0 | O95: 0 | P95: 0 | Q95: 0 | R95: 0 | S95: 0 | T95: 962 | U95: 0 | V95: 0 | W95: 0 | X95: 2689 | Y95: 0 | Z95: 0 | AA95: 0 | AB95: 0 | AC95: 0 | AD95: 0 | AE95: 0 | AF95: 0 | AG95: 0 | AH95: 0 | AI95: 0 | AJ95: 3285 | AK95: 0 | AL95: 78 | AM95: 9 | AN95: 253270 | AO95: 398 | AP95: 0 | AQ95: 0 | AR95: 0 | AS95: 0 | AT95: 0 | AU95: 0 | AV95: 0 | AW95: 0 | AX95: 0 | AY95: 0 | AZ95: 0 | BA95: 0 | BB95: 0 | BC95: 8 | BD95: 0 | BE95: 0 | BF95: 0 | BG95: 0 | BH95: 0 | BI95: 0 | BJ95: 0 | BK95: 0 | BL95: 66 | BM95: 0 | BN95: 0 | BO95: 0 | BP95: 0 | BQ95: 0 | BR95: 0 | BS95: 0 | BT95: 0 | BU95: 0 | BV95: 0 | BW95: 3478 | BX95: 0 | BY95: 0 | BZ95: 0 | CA95: 0 | CB95: 0 | CC95: 0 | CD95: 0 | CE95: 0 | CF95: 0 | CG95: 0 | CH95: 0 | CI95: 0 | CJ95: 0 | CK95: 0 | CL95: 0 | CM95: 0 | CN95: 1 | CO95: 0 | CP95: 0 | CQ95: 0 | CR95: 0 | CS95: 0 | CT95: 0 | CU95: 0 | CV95: 0 | CW95: 0 | CX95: 264245 | CY95: 227115 | CZ95: 491359 | DA95: 418043 | DB95: 770 | DC95: 139280 | DD95: 1049452
A96: 092 | B96: 24.6 без 24.61 | C96: Продукты химические прочие | D96: 0 | E96: 0 | F96: 0 | G96: 0 | H96: 0 | I96: 0 | J96: 17 | K96: 0 | L96: 817 | M96: 0 | N96: 0 | O96: 0 | P96: 2 | Q96: 0 | R96: 0 | S96: 0 | T96: 2 | U96: 4 | V96: 0 | W96: 0 | X96: 0 | Y96: 0 | Z96: 0 | AA96: 0 | AB96: 663 | AC96: 168 | AD96: 0 | AE96: 81 | AF96: 0 | AG96: 0 | AH96: 1297 | AI96: 18313 | AJ96: 11235 | AK96: 0 | AL96: 1035 | AM96: 75 | AN96: 5830 | AO96: 117016 | AP96: 0 | AQ96: 52 | AR96: 0 | AS96: 0 | AT96: 0 | AU96: 0 | AV96: 313 | AW96: 4003 | AX96: 115 | AY96: 0 | AZ96: 0 | BA96: 0 | BB96: 10 | BC96: 1 | BD96: 0 | BE96: 0 | BF96: 0 | BG96: 0 | BH96: 71 | BI96: 87 | BJ96: 70 | BK96: 0 | BL96: 857 | BM96: 0 | BN96: 0 | BO96: 0 | BP96: 0 | BQ96: 0 | BR96: 0 | BS96: 0 | BT96: 0 | BU96: 0 | BV96: 0 | BW96: 7203 | BX96: 0 | BY96: 0 | BZ96: 0 | CA96: 0 | CB96: 0 | CC96: 0 | CD96: 0 | CE96: 0 | CF96: 0 | CG96: 0 | CH96: 0 | CI96: 0 | CJ96: 0 | CK96: 10 | CL96: 0 | CM96: 0 | CN96: 550 | CO96: 0 | CP96: 0 | CQ96: 0 | CR96: 0 | CS96: 0 | CT96: 0 | CU96: 0 | CV96: 0 | CW96: 0 | CX96: 169898 | CY96: 230155 | CZ96: 400053 | DA96: 84403 | DB96: 5157 | DC96: 15590 | DD96: 505203
A97: 093 | B97: 24.7 | C97: Волокна и нити химические | D97: 0 | E97: 0 | F97: 0 | G97: 0 | H97: 0 | I97: 0 | J97: 0 | K97: 0 | L97: 0 | M97: 0 | N97: 0 | O97: 0 | P97: 0 | Q97: 0 | R97: 0 | S97: 0 | T97: 0 | U97: 0 | V97: 0 | W97: 0 | X97: 0 | Y97: 0 | Z97: 0 | AA97: 437 | AB97: 0 | AC97: 0 | AD97: 0 | AE97: 0 | AF97: 0 | AG97: 0 | AH97: 0 | AI97: 0 | AJ97: 2017 | AK97: 0 | AL97: 0 | AM97: 0 | AN97: 0 | AO97: 0 | AP97: 19578 | AQ97: 0 | AR97: 401 | AS97: 1508 | AT97: 0 | AU97: 0 | AV97: 0 | AW97: 0 | AX97: 0 | AY97: 0 | AZ97: 0 | BA97: 0 | BB97: 0 | BC97: 0 | BD97: 0 | BE97: 0 | BF97: 0 | BG97: 0 | BH97: 0 | BI97: 0 | BJ97: 0 | BK97: 0 | BL97: 0 | BM97: 0 | BN97: 0 | BO97: 0 | BP97: 0 | BQ97: 0 | BR97: 0 | BS97: 0 | BT97: 0 | BU97: 0 | BV97: 0 | BW97: 0 | BX97: 0 | BY97: 0 | BZ97: 0 | CA97: 0 | CB97: 0 | CC97: 0 | CD97: 0 | CE97: 0 | CF97: 0 | CG97: 0 | CH97: 0 | CI97: 0 | CJ97: 0 | CK97: 0 | CL97: 0 | CM97: 0 | CN97: 670 | CO97: 0 | CP97: 0 | CQ97: 0 | CR97: 0 | CS97: 0 | CT97: 0 | CU97: 0 | CV97: 0 | CW97: 0 | CX97: 24611 | CY97: 30626 | CZ97: 55237 | DA97: 7840 | DB97: 228 | DC97: 937 | DD97: 64242
A98: 094 | B98: 25.1 | C98: Изделия резиновые | D98: 0 | E98: 0 | F98: 0 | G98: 0 | H98: 0 | I98: 0 | J98: 0 | K98: 0 | L98: 10 | M98: 0 | N98: 0 | O98: 0 | P98: 1 | Q98: 0 | R98: 0 | S98: 0 | T98: 0 | U98: 0 | V98: 0 | W98: 0 | X98: 0 | Y98: 0 | Z98: 0 | AA98: 852 | AB98: 1 | AC98: 8 | AD98: 0 | AE98: 0 | AF98: 0 | AG98: 0 | AH98: 0 | AI98: 0 | AJ98: 113 | AK98: 0 | AL98: 0 | AM98: 0 | AN98: 0 | AO98: 214 | AP98: 0 | AQ98: 179788 | AR98: 1700 | AS98: 0 | AT98: 0 | AU98: 0 | AV98: 0 | AW98: 3 | AX98: 0 | AY98: 0 | AZ98: 117 | BA98: 145 | BB98: 68 | BC98: 136 | BD98: 14 | BE98: 0 | BF98: 0 | BG98: 129 | BH98: 2 | BI98: 0 | BJ98: 122 | BK98: 0 | BL98: 494 | BM98: 0 | BN98: 0 | BO98: 0 | BP98: 0 | BQ98: 0 | BR98: 0 | BS98: 0 | BT98: 0 | BU98: 114 | BV98: 8322 | BW98: 472 | BX98: 0 | BY98: 0 | BZ98: 0 | CA98: 0 | CB98: 0 | CC98: 0 | CD98: 0 | CE98: 0 | CF98: 0 | CG98: 0 | CH98: 0 | CI98: 0 | CJ98: 0 | CK98: 37 | CL98: 0 | CM98: 0 | CN98: 424 | CO98: 0 | CP98: 0 | CQ98: 0 | CR98: 0 | CS98: 0 | CT98: 0 | CU98: 0 | CV98: 0 | CW98: 0 | CX98: 193284 | CY98: 165955 | CZ98: 359239 | DA98: 121298 | DB98: 1515 | DC98: 34386 | DD98: 516438
A99: 095 | B99: 25.2 | C99: Изделия полимерные | D99: 0 | E99: 0 | F99: 0 | G99: 0 | H99: 0 | I99: 1 | J99: 0 | K99: 0 | L99: 0 | M99: 0 | N99: 0 | O99: 0 | P99: 0 | Q99: 0 | R99: 0 | S99: 0 | T99: 217 | U99: 125 | V99: 0 | W99: 0 | X99: 424 | Y99: 371 | Z99: 0 | AA99: 1286 | AB99: 75 | AC99: 0 | AD99: 722 | AE99: 1870 | AF99: 0 | AG99: 495 | AH99: 0 | AI99: 15035 | AJ99: 3644 | AK99: 0 | AL99: 603 | AM99: 11 | AN99: 1 | AO99: 480 | AP99: 88 | AQ99: 455 | AR99: 765405 | AS99: 25 | AT99: 540 | AU99: 0 | AV99: 2973 | AW99: 259 | AX99: 0 | AY99: 1 | AZ99: 489 | BA99: 251 | BB99: 950 | BC99: 391 | BD99: 222 | BE99: 0 | BF99: 0 | BG99: 2089 | BH99: 215 | BI99: 91 | BJ99: 0 | BK99: 1 | BL99: 170 | BM99: 92 | BN99: 0 | BO99: 80 | BP99: 0 | BQ99: 5 | BR99: 61 | BS99: 0 | BT99: 0 | BU99: 2135 | BV99: 229 | BW99: 3170 | BX99: 0 | BY99: 0 | BZ99: 0 | CA99: 5 | CB99: 8 | CC99: 0 | CD99: 1 | CE99: 0 | CF99: 0 | CG99: 0 | CH99: 0 | CI99: 0 | CJ99: 0 | CK99: 409 | CL99: 523 | CM99: 0 | CN99: 124 | CO99: 65 | CP99: 0 | CQ99: 0 | CR99: 0 | CS99: 0 | CT99: 0 | CU99: 0 | CV99: 0 | CW99: 0 | CX99: 806882 | CY99: 279249 | CZ99: 1086132 | DA99: 185620 | DB99: 5650 | DC99: 51338 | DD99: 1328741
A100: 096 | B100: 26.1 | C100: Стекло и изделия из стекла | D100: 0 | E100: 0 | F100: 0 | G100: 3 | H100: 0 | I100: 0 | J100: 0 | K100: 0 | L100: 0 | M100: 0 | N100: 0 | O100: 1 | P100: 0 | Q100: 0 | R100: 0 | S100: 0 | T100: 0 | U100: 0 | V100: 0 | W100: 0 | X100: 0 | Y100: 0 | Z100: 0 | AA100: 419 | AB100: 0 | AC100: 0 | AD100: 0 | AE100: 0 | AF100: 0 | AG100: 0 | AH100: 0 | AI100: 0 | AJ100: 0 | AK100: 0 | AL100: 0 | AM100: 18 | AN100: 0 | AO100: 0 | AP100: 0 | AQ100: 0 | AR100: 3 | AS100: 183627 | AT100: 3 | AU100: 0 | AV100: 3320 | AW100: 0 | AX100: 0 | AY100: 0 | AZ100: 0 | BA100: 0 | BB100: 0 | BC100: 0 | BD100: 0 | BE100: 0 | BF100: 0 | BG100: 35 | BH100: 3598 | BI100: 5 | BJ100: 0 | BK100: 0 | BL100: 2 | BM100: 0 | BN100: 0 | BO100: 6 | BP100: 0 | BQ100: 0 | BR100: 0 | BS100: 0 | BT100: 0 | BU100: 652 | BV100: 0 | BW100: 330 | BX100: 0 | BY100: 0 | BZ100: 0 | CA100: 0 | CB100: 0 | CC100: 0 | CD100: 0 | CE100: 0 | CF100: 0 | CG100: 0 | CH100: 0 | CI100: 0 | CJ100: 0 | CK100: 1440 | CL100: 0 | CM100: 0 | CN100: 457 | CO100: 0 | CP100: 0 | CQ100: 0 | CR100: 0 | CS100: 0 | CT100: 5 | CU100: 0 | CV100: 0 | CW100: 0 | CX100: 193924 | CY100: 44461 | CZ100: 238385 | DA100: 72691 | DB100: 1301 | DC100: 16623 | DD100: 328999
A101: 097 | B101: 26.2 | C101: Изделия керамические неогнеупорные нестроительные; огнеупоры | D101: 0 | E101: 0 | F101: 0 | G101: 3 | H101: 0 | I101: 0 | J101: 0 | K101: 0 | L101: 765 | M101: 0 | N101: 0 | O101: 0 | P101: 0 | Q101: 0 | R101: 0 | S101: 0 | T101: 0 | U101: 0 | V101: 0 | W101: 0 | X101: 0 | Y101: 0 | Z101: 0 | AA101: 0 | AB101: 0 | AC101: 0 | AD101: 0 | AE101: 0 | AF101: 0 | AG101: 0 | AH101: 0 | AI101: 0 | AJ101: 199 | AK101: 0 | AL101: 0 | AM101: 0 | AN101: 0 | AO101: 32 | AP101: 0 | AQ101: 0 | AR101: 0 | AS101: 961 | AT101: 81378 | AU101: 465 | AV101: 390 | AW101: 196 | AX101: 0 | AY101: 0 | AZ101: 588 | BA101: 8 | BB101: 0 | BC101: 218 | BD101: 0 | BE101: 0 | BF101: 0 | BG101: 0 | BH101: 271 | BI101: 0 | BJ101: 0 | BK101: 0 | BL101: 0 | BM101: 0 | BN101: 0 | BO101: 93 | BP101: 0 | BQ101: 4 | BR101: 0 | BS101: 0 | BT101: 0 | BU101: 73 | BV101: 360 | BW101: 535 | BX101: 0 | BY101: 0 | BZ101: 0 | CA101: 0 | CB101: 0 | CC101: 0 | CD101: 0 | CE101: 0 | CF101: 0 | CG101: 0 | CH101: 0 | CI101: 0 | CJ101: 0 | CK101: 0 | CL101: 0 | CM101: 0 | CN101: 2526 | CO101: 0 | CP101: 0 | CQ101: 0 | CR101: 0 | CS101: 0 | CT101: 0 | CU101: 0 | CV101: 0 | CW101: 0 | CX101: 89064 | CY101: 36871 | CZ101: 125935 | DA101: 32308 | DB101: 5057 | DC101: 9802 | DD101: 173101
A102: 098 | B102: 26.3 | C102: Плиты и плитки керамические | D102: 0 | E102: 0 | F102: 0 | G102: 0 | H102: 0 | I102: 0 | J102: 0 | K102: 0 | L102: 0 | M102: 0 | N102: 0 | O102: 0 | P102: 0 | Q102: 0 | R102: 0 | S102: 0 | T102: 0 | U102: 0 | V102: 0 | W102: 0 | X102: 0 | Y102: 0 | Z102: 0 | AA102: 0 | AB102: 0 | AC102: 0 | AD102: 0 | AE102: 0 | AF102: 0 | AG102: 0 | AH102: 0 | AI102: 0 | AJ102: 0 | AK102: 0 | AL102: 0 | AM102: 0 | AN102: 0 | AO102: 0 | AP102: 0 | AQ102: 0 | AR102: 0 | AS102: 0 | AT102: 52543 | AU102: 0 | AV102: 234 | AW102: 0 | AX102: 0 | AY102: 0 | AZ102: 0 | BA102: 0 | BB102: 0 | BC102: 0 | BD102: 0 | BE102: 0 | BF102: 0 | BG102: 0 | BH102: 0 | BI102: 0 | BJ102: 0 | BK102: 0 | BL102: 0 | BM102: 0 | BN102: 0 | BO102: 0 | BP102: 0 | BQ102: 0 | BR102: 0 | BS102: 0 | BT102: 0 | BU102: 0 | BV102: 0 | BW102: 93 | BX102: 0 | BY102: 0 | BZ102: 0 | CA102: 0 | CB102: 0 | CC102: 0 | CD102: 0 | CE102: 0 | CF102: 0 | CG102: 0 | CH102: 0 | CI102: 0 | CJ102: 0 | CK102: 34 | CL102: 0 | CM102: 0 | CN102: 0 | CO102: 0 | CP102: 0 | CQ102: 0 | CR102: 0 | CS102: 0 | CT102: 0 | CU102: 0 | CV102: 0 | CW102: 0 | CX102: 52904 | CY102: 20795 | CZ102: 73699 | DA102: 23410 | DB102: 1594 | DC102: 5185 | DD102: 103889
A103: 099 | B103: 26.4 | C103: Кирпичи, черепица и изделия строительные из обожженной глины | D103: 115 | E103: 0 | F103: 0 | G103: 0 | H103: 0 | I103: 0 | J103: 0 | K103: 0 | L103: 0 | M103: 0 | N103: 0 | O103: 0 | P103: 0 | Q103: 0 | R103: 0 | S103: 0 | T103: 0 | U103: 0 | V103: 21 | W103: 0 | X103: 58 | Y103: 0 | Z103: 0 | AA103: 0 | AB103: 0 | AC103: 0 | AD103: 0 | AE103: 0 | AF103: 0 | AG103: 0 | AH103: 0 | AI103: 0 | AJ103: 48 | AK103: 0 | AL103: 0 | AM103: 0 | AN103: 0 | AO103: 0 | AP103: 0 | AQ103: 0 | AR103: 0 | AS103: 0 | AT103: 46682 | AU103: 0 | AV103: 780 | AW103: 0 | AX103: 0 | AY103: 0 | AZ103: 0 | BA103: 0 | BB103: 0 | BC103: 8 | BD103: 0 | BE103: 0 | BF103: 0 | BG103: 0 | BH103: 0 | BI103: 0 | BJ103: 0 | BK103: 0 | BL103: 11 | BM103: 0 | BN103: 0 | BO103: 0 | BP103: 0 | BQ103: 0 | BR103: 0 | BS103: 0 | BT103: 0 | BU103: 774 | BV103: 0 | BW103: 125 | BX103: 0 | BY103: 0 | BZ103: 0 | CA103: 0 | CB103: 0 | CC103: 0 | CD103: 0 | CE103: 0 | CF103: 0 | CG103: 0 | CH103: 0 | CI103: 0 | CJ103: 0 | CK103: 0 | CL103: 0 | CM103: 0 | CN103: 0 | CO103: 0 | CP103: 0 | CQ103: 0 | CR103: 0 | CS103: 0 | CT103: 0 | CU103: 0 | CV103: 0 | CW103: 0 | CX103: 48623 | CY103: 2621 | CZ103: 51244 | DA103: 22720 | DB103: 2259 | DC103: 8033 | DD103: 84256
A104: 100 | B104: 26.5 | C104: Цемент, известь и гипс | D104: 0 | E104: 0 | F104: 0 | G104: 0 | H104: 0 | I104: 0 | J104: 0 | K104: 0 | L104: 0 | M104: 0 | N104: 0 | O104: 3 | P104: 971 | Q104: 0 | R104: 0 | S104: 0 | T104: 0 | U104: 0 | V104: 0 | W104: 0 | X104: 15 | Y104: 0 | Z104: 0 | AA104: 0 | AB104: 0 | AC104: 0 | AD104: 0 | AE104: 91 | AF104: 0 | AG104: 0 | AH104: 0 | AI104: 0 | AJ104: 2006 | AK104: 0 | AL104: 0 | AM104: 0 | AN104: 0 | AO104: 0 | AP104: 0 | AQ104: 0 | AR104: 0 | AS104: 0 | AT104: 116 | AU104: 191418 | AV104: 2242 | AW104: 358 | AX104: 624 | AY104: 108 | AZ104: 0 | BA104: 0 | BB104: 0 | BC104: 0 | BD104: 0 | BE104: 0 | BF104: 0 | BG104: 0 | BH104: 0 | BI104: 0 | BJ104: 0 | BK104: 0 | BL104: 0 | BM104: 0 | BN104: 0 | BO104: 0 | BP104: 0 | BQ104: 0 | BR104: 0 | BS104: 0 | BT104: 0 | BU104: 52 | BV104: 0 | BW104: 5441 | BX104: 0 | BY104: 0 | BZ104: 0 | CA104: 0 | CB104: 0 | CC104: 0 | CD104: 0 | CE104: 0 | CF104: 0 | CG104: 0 | CH104: 0 | CI104: 0 | CJ104: 0 | CK104: 0 | CL104: 0 | CM104: 0 | CN104: 0 | CO104: 0 | CP104: 0 | CQ104: 0 | CR104: 0 | CS104: 0 | CT104: 0 | CU104: 0 | CV104: 0 | CW104: 0 | CX104: 203445 | CY104: 7760 | CZ104: 211205 | DA104: 54158 | DB104: 8143 | DC104: 7068 | DD104: 280574
A105: 101 | B105: 26.6 | C105: Изделия из бетона, гипса и цемента | D105: 2 | E105: 0 | F105: 0 | G105: 0 | H105: 0 | I105: 0 | J105: 7 | K105: 0 | L105: 0 | M105: 0 | N105: 0 | O105: 0 | P105: 1047 | Q105: 0 | R105: 0 | S105: 0 | T105: 0 | U105: 2 | V105: 0 | W105: 23 | X105: 21 | Y105: 0 | Z105: 0 | AA105: 1 | AB105: 0 | AC105: 0 | AD105: 103 | AE105: 0 | AF105: 0 | AG105: 0 | AH105: 0 | AI105: 0 | AJ105: 1 | AK105: 0 | AL105: 59 | AM105: 0 | AN105: 0 | AO105: 284 | AP105: 0 | AQ105: 0 | AR105: 63 | AS105: 0 | AT105: 1811 | AU105: 819 | AV105: 484570 | AW105: 269 | AX105: 0 | AY105: 0 | AZ105: 1261 | BA105: 60 | BB105: 414 | BC105: 73 | BD105: 0 | BE105: 0 | BF105: 0 | BG105: 152 | BH105: 2 | BI105: 1 | BJ105: 0 | BK105: 6 | BL105: 146 | BM105: 8 | BN105: 0 | BO105: 0 | BP105: 10 | BQ105: 4 | BR105: 0 | BS105: 1 | BT105: 18 | BU105: 12556 | BV105: 0 | BW105: 2796 | BX105: 88 | BY105: 0 | BZ105: 0 | CA105: 0 | CB105: 48 | CC105: 0 | CD105: 0 | CE105: 0 | CF105: 223 | CG105: 0 | CH105: 0 | CI105: 0 | CJ105: 0 | CK105: 168 | CL105: 1067 | CM105: 0 | CN105: 9 | CO105: 264 | CP105: 0 | CQ105: 0 | CR105: 0 | CS105: 44 | CT105: 0 | CU105: 0 | CV105: 0 | CW105: 0 | CX105: 508504 | CY105: 10392 | CZ105: 518896 | DA105: 88391 | DB105: 5223 | DC105: 14159 | DD105: 626670
A106: 102 | B106: 26.7 | C106: Камень декоративный и строительный разрезанный, обработанный и отделанный и изделия из него | D106: 0 | E106: 0 | F106: 0 | G106: 0 | H106: 0 | I106: 0 | J106: 0 | K106: 0 | L106: 0 | M106: 0 | N106: 0 | O106: 0 | P106: 1260 | Q106: 0 | R106: 0 | S106: 0 | T106: 0 | U106: 37 | V106: 0 | W106: 0 | X106: 0 | Y106: 0 | Z106: 0 | AA106: 0 | AB106: 0 | AC106: 0 | AD106: 0 | AE106: 0 | AF106: 0 | AG106: 0 | AH106: 0 | AI106: 0 | AJ106: 0 | AK106: 0 | AL106: 0 | AM106: 0 | AN106: 0 | AO106: 0 | AP106: 0 | AQ106: 0 | AR106: 0 | AS106: 0 | AT106: 0 | AU106: 2 | AV106: 30022 | AW106: 59 | AX106: 0 | AY106: 0 | AZ106: 2 | BA106: 0 | BB106: 0 | BC106: 0 | BD106: 0 | BE106: 0 | BF106: 0 | BG106: 2 | BH106: 0 | BI106: 736 | BJ106: 0 | BK106: 0 | BL106: 0 | BM106: 0 | BN106: 0 | BO106: 8 | BP106: 0 | BQ106: 0 | BR106: 0 | BS106: 0 | BT106: 0 | BU106: 20 | BV106: 0 | BW106: 0 | BX106: 0 | BY106: 0 | BZ106: 0 | CA106: 0 | CB106: 0 | CC106: 0 | CD106: 0 | CE106: 0 | CF106: 44 | CG106: 0 | CH106: 0 | CI106: 0 | CJ106: 0 | CK106: 0 | CL106: 0 | CM106: 0 | CN106: 0 | CO106: 26 | CP106: 0 | CQ106: 0 | CR106: 0 | CS106: 0 | CT106: 0 | CU106: 0 | CV106: 32 | CW106: 0 | CX106: 32250 | CY106: 9050 | CZ106: 41300 | DA106: 10454 | DB106: 573 | DC106: 2591 | DD106: 54917
A107: 103 | B107: 26.8 | C107: Продукция минеральная неметаллическая прочая | D107: 0 | E107: 0 | F107: 0 | G107: 0 | H107: 0 | I107: 0 | J107: 38 | K107: 0 | L107: 0 | M107: 0 | N107: 0 | O107: 0 | P107: 2373 | Q107: 0 | R107: 0 | S107: 0 | T107: 0 | U107: 0 | V107: 0 | W107: 0 | X107: 0 | Y107: 0 | Z107: 0 | AA107: 0 | AB107: 0 | AC107: 0 | AD107: 0 | AE107: 32 | AF107: 0 | AG107: 0 | AH107: 0 | AI107: 507 | AJ107: 628 | AK107: 0 | AL107: 0 | AM107: 0 | AN107: 0 | AO107: 1315 | AP107: 0 | AQ107: 1 | AR107: 4 | AS107: 50 | AT107: 407 | AU107: 0 | AV107: 193109 | AW107: 51 | AX107: 10 | AY107: 0 | AZ107: 1110 | BA107: 0 | BB107: 59 | BC107: 59 | BD107: 0 | BE107: 0 | BF107: 0 | BG107: 417 | BH107: 0 | BI107: 2 | BJ107: 0 | BK107: 46 | BL107: 47 | BM107: 0 | BN107: 0 | BO107: 117 | BP107: 146 | BQ107: 0 | BR107: 0 | BS107: 43 | BT107: 0 | BU107: 7404 | BV107: 0 | BW107: 1757 | BX107: 0 | BY107: 0 | BZ107: 0 | CA107: 0 | CB107: 32 | CC107: 0 | CD107: 0 | CE107: 0 | CF107: 1553 | CG107: 0 | CH107: 0 | CI107: 0 | CJ107: 0 | CK107: 633 | CL107: 0 | CM107: 0 | CN107: 99 | CO107: 304 | CP107: 0 | CQ107: 0 | CR107: 0 | CS107: 292 | CT107: 0 | CU107: 0 | CV107: 0 | CW107: 0 | CX107: 212646 | CY107: 31907 | CZ107: 244554 | DA107: 52925 | DB107: 5019 | DC107: 6048 | DD107: 308545
A108: 104 | B108: 27.1 | C108: Железо, чугун, сталь и ферросплавы | D108: 0 | E108: 0 | F108: 0 | G108: 0 | H108: 0 | I108: 0 | J108: 0 | K108: 0 | L108: 0 | M108: 0 | N108: 28728 | O108: 32 | P108: 0 | Q108: 0 | R108: 0 | S108: 0 | T108: 0 | U108: 0 | V108: 0 | W108: 0 | X108: 0 | Y108: 0 | Z108: 0 | AA108: 0 | AB108: 0 | AC108: 0 | AD108: 0 | AE108: 0 | AF108: 0 | AG108: 0 | AH108: 0 | AI108: 0 | AJ108: 0 | AK108: 0 | AL108: 0 | AM108: 0 | AN108: 0 | AO108: 0 | AP108: 0 | AQ108: 0 | AR108: 0 | AS108: 0 | AT108: 1 | AU108: 0 | AV108: 298 | AW108: 1902714 | AX108: 9880 | AY108: 247 | AZ108: 317 | BA108: 4682 | BB108: 0 | BC108: 132 | BD108: 0 | BE108: 0 | BF108: 0 | BG108: 0 | BH108: 50 | BI108: 0 | BJ108: 0 | BK108: 1164 | BL108: 54 | BM108: 0 | BN108: 0 | BO108: 0 | BP108: 32 | BQ108: 0 | BR108: 0 | BS108: 0 | BT108: 0 | BU108: 62 | BV108: 0 | BW108: 0 | BX108: 0 | BY108: 0 | BZ108: 0 | CA108: 0 | CB108: 0 | CC108: 0 | CD108: 0 | CE108: 0 | CF108: 0 | CG108: 0 | CH108: 0 | CI108: 0 | CJ108: 0 | CK108: 0 | CL108: 0 | CM108: 0 | CN108: 12 | CO108: 16 | CP108: 0 | CQ108: 0 | CR108: 0 | CS108: 0 | CT108: 0 | CU108: 0 | CV108: 0 | CW108: 0 | CX108: 1948420 | CY108: 183059 | CZ108: 2131479 | DA108: 325976 | DB108: 37985 | DC108: 10561 | DD108: 2506001
A109: 105 | B109: 27.2 | C109: Трубы и элементы трубопроводные соединительные | D109: 0 | E109: 0 | F109: 0 | G109: 0 | H109: 0 | I109: 0 | J109: 4 | K109: 0 | L109: 0 | M109: 0 | N109: 0 | O109: 0 | P109: 0 | Q109: 0 | R109: 0 | S109: 0 | T109: 0 | U109: 0 | V109: 0 | W109: 0 | X109: 0 | Y109: 0 | Z109: 0 | AA109: 0 | AB109: 0 | AC109: 0 | AD109: 0 | AE109: 0 | AF109: 0 | AG109: 0 | AH109: 0 | AI109: 0 | AJ109: 0 | AK109: 0 | AL109: 0 | AM109: 0 | AN109: 0 | AO109: 0 | AP109: 0 | AQ109: 0 | AR109: 19 | AS109: 0 | AT109: 0 | AU109: 0 | AV109: 0 | AW109: 550980 | AX109: 0 | AY109: 232 | AZ109: 653 | BA109: 0 | BB109: 2259 | BC109: 409 | BD109: 0 | BE109: 0 | BF109: 0 | BG109: 0 | BH109: 0 | BI109: 0 | BJ109: 0 | BK109: 32 | BL109: 374 | BM109: 0 | BN109: 0 | BO109: 0 | BP109: 0 | BQ109: 0 | BR109: 0 | BS109: 0 | BT109: 0 | BU109: 0 | BV109: 0 | BW109: 1658 | BX109: 0 | BY109: 0 | BZ109: 0 | CA109: 0 | CB109: 0 | CC109: 0 | CD109: 0 | CE109: 0 | CF109: 0 | CG109: 0 | CH109: 0 | CI109: 0 | CJ109: 0 | CK109: 0 | CL109: 6 | CM109: 0 | CN109: 0 | CO109: 0 | CP109: 0 | CQ109: 0 | CR109: 0 | CS109: 0 | CT109: 0 | CU109: 0 | CV109: 0 | CW109: 0 | CX109: 556625 | CY109: 52204 | CZ109: 608829 | DA109: 101666 | DB109: 2731 | DC109: 4423 | DD109: 717649
A110: 106 | B110: 27.3 | C110: Продукция первичной обработки черных металлов прочая | D110: 13 | E110: 0 | F110: 0 | G110: 0 | H110: 0 | I110: 0 | J110: 0 | K110: 0 | L110: 0 | M110: 0 | N110: 0 | O110: 0 | P110: 0 | Q110: 0 | R110: 0 | S110: 0 | T110: 0 | U110: 0 | V110: 0 | W110: 0 | X110: 0 | Y110: 0 | Z110: 0 | AA110: 0 | AB110: 0 | AC110: 0 | AD110: 0 | AE110: 0 | AF110: 0 | AG110: 0 | AH110: 0 | AI110: 0 | AJ110: 0 | AK110: 0 | AL110: 0 | AM110: 0 | AN110: 0 | AO110: 0 | AP110: 0 | AQ110: 0 | AR110: 0 | AS110: 0 | AT110: 0 | AU110: 0 | AV110: 1598 | AW110: 171648 | AX110: 0 | AY110: 0 | AZ110: 3224 | BA110: 15 | BB110: 3146 | BC110: 13 | BD110: 0 | BE110: 0 | BF110: 0 | BG110: 507 | BH110: 0 | BI110: 6 | BJ110: 0 | BK110: 209 | BL110: 0 | BM110: 0 | BN110: 0 | BO110: 0 | BP110: 0 | BQ110: 0 | BR110: 0 | BS110: 0 | BT110: 0 | BU110: 100 | BV110: 0 | BW110: 7601 | BX110: 17 | BY110: 0 | BZ110: 0 | CA110: 0 | CB110: 0 | CC110: 0 | CD110: 0 | CE110: 0 | CF110: 0 | CG110: 0 | CH110: 0 | CI110: 0 | CJ110: 0 | CK110: 0 | CL110: 0 | CM110: 0 | CN110: 13 | CO110: 0 | CP110: 0 | CQ110: 0 | CR110: 0 | CS110: 0 | CT110: 0 | CU110: 0 | CV110: 0 | CW110: 0 | CX110: 188112 | CY110: 39459 | CZ110: 227571 | DA110: 34977 | DB110: 15057 | DC110: 2866 | DD110: 280470
A111: 107 | B111: 27.41 | C111: Металлы драгоценные | D111: 0 | E111: 0 | F111: 0 | G111: 0 | H111: 0 | I111: 0 | J111: 0 | K111: 0 | L111: 0 | M111: 0 | N111: 0 | O111: 11078 | P111: 0 | Q111: 0 | R111: 0 | S111: 0 | T111: 0 | U111: 0 | V111: 0 | W111: 0 | X111: 0 | Y111: 0 | Z111: 0 | AA111: 0 | AB111: 0 | AC111: 0 | AD111: 0 | AE111: 0 | AF111: 0 | AG111: 0 | AH111: 0 | AI111: 0 | AJ111: 0 | AK111: 0 | AL111: 0 | AM111: 0 | AN111: 0 | AO111: 0 | AP111: 0 | AQ111: 0 | AR111: 0 | AS111: 0 | AT111: 0 | AU111: 0 | AV111: 0 | AW111: 0 | AX111: 816436 | AY111: 0 | AZ111: 0 | BA111: 0 | BB111: 0 | BC111: 0 | BD111: 0 | BE111: 0 | BF111: 0 | BG111: 0 | BH111: 0 | BI111: 0 | BJ111: 0 | BK111: 0 | BL111: 0 | BM111: 0 | BN111: 2300 | BO111: 0 | BP111: 368 | BQ111: 0 | BR111: 0 | BS111: 0 | BT111: 0 | BU111: 0 | BV111: 0 | BW111: 0 | BX111: 0 | BY111: 0 | BZ111: 0 | CA111: 0 | CB111: 0 | CC111: 0 | CD111: 0 | CE111: 0 | CF111: 0 | CG111: 0 | CH111: 0 | CI111: 0 | CJ111: 0 | CK111: 0 | CL111: 0 | CM111: 0 | CN111: 0 | CO111: 0 | CP111: 0 | CQ111: 0 | CR111: 0 | CS111: 0 | CT111: 0 | CU111: 0 | CV111: 0 | CW111: 0 | CX111: 830182 | CY111: 1648 | CZ111: 831830 | DA111: 50250 | DB111: 804 | DC111: 5472 | DD111: 888356
A112: 108 | B112: 27.42 | C112: Алюминий и продукция из алюминия | D112: 0 | E112: 0 | F112: 0 | G112: 0 | H112: 0 | I112: 0 | J112: 0 | K112: 0 | L112: 0 | M112: 0 | N112: 0 | O112: 0 | P112: 0 | Q112: 0 | R112: 0 | S112: 0 | T112: 0 | U112: 0 | V112: 0 | W112: 0 | X112: 0 | Y112: 0 | Z112: 0 | AA112: 0 | AB112: 0 | AC112: 0 | AD112: 0 | AE112: 16 | AF112: 0 | AG112: 0 | AH112: 0 | AI112: 0 | AJ112: 3097 | AK112: 0 | AL112: 0 | AM112: 0 | AN112: 0 | AO112: 0 | AP112: 0 | AQ112: 0 | AR112: 0 | AS112: 0 | AT112: 0 | AU112: 0 | AV112: 0 | AW112: 1343 | AX112: 665075 | AY112: 3 | AZ112: 4 | BA112: 27 | BB112: 0 | BC112: 2 | BD112: 0 | BE112: 0 | BF112: 0 | BG112: 382 | BH112: 0 | BI112: 0 | BJ112: 0 | BK112: 338 | BL112: 0 | BM112: 0 | BN112: 0 | BO112: 0 | BP112: 33 | BQ112: 0 | BR112: 0 | BS112: 0 | BT112: 0 | BU112: 0 | BV112: 0 | BW112: 933 | BX112: 0 | BY112: 0 | BZ112: 0 | CA112: 0 | CB112: 0 | CC112: 0 | CD112: 0 | CE112: 0 | CF112: 0 | CG112: 0 | CH112: 0 | CI112: 0 | CJ112: 0 | CK112: 0 | CL112: 0 | CM112: 0 | CN112: 46 | CO112: 0 | CP112: 0 | CQ112: 0 | CR112: 0 | CS112: 0 | CT112: 0 | CU112: 0 | CV112: 0 | CW112: 0 | CX112: 671298 | CY112: 77673 | CZ112: 748971 | DA112: 56776 | DB112: 5772 | DC112: 2226 | DD112: 813745
A113: 109 | B113: 27.43 | C113: Свинец, цинк, олово и продукция из них | D113: 0 | E113: 0 | F113: 0 | G113: 0 | H113: 0 | I113: 0 | J113: 0 | K113: 0 | L113: 0 | M113: 0 | N113: 0 | O113: 0 | P113: 0 | Q113: 0 | R113: 0 | S113: 0 | T113: 0 | U113: 0 | V113: 0 | W113: 0 | X113: 0 | Y113: 0 | Z113: 0 | AA113: 0 | AB113: 0 | AC113: 0 | AD113: 0 | AE113: 0 | AF113: 0 | AG113: 0 | AH113: 0 | AI113: 0 | AJ113: 0 | AK113: 0 | AL113: 0 | AM113: 0 | AN113: 0 | AO113: 0 | AP113: 0 | AQ113: 0 | AR113: 0 | AS113: 0 | AT113: 0 | AU113: 0 | AV113: 0 | AW113: 0 | AX113: 90724 | AY113: 0 | AZ113: 0 | BA113: 1 | BB113: 0 | BC113: 0 | BD113: 0 | BE113: 0 | BF113: 0 | BG113: 0 | BH113: 0 | BI113: 0 | BJ113: 0 | BK113: 0 | BL113: 0 | BM113: 0 | BN113: 0 | BO113: 0 | BP113: 0 | BQ113: 0 | BR113: 0 | BS113: 0 | BT113: 0 | BU113: 0 | BV113: 0 | BW113: 1 | BX113: 0 | BY113: 0 | BZ113: 0 | CA113: 0 | CB113: 0 | CC113: 0 | CD113: 0 | CE113: 0 | CF113: 0 | CG113: 0 | CH113: 0 | CI113: 0 | CJ113: 0 | CK113: 0 | CL113: 0 | CM113: 0 | CN113: 1 | CO113: 0 | CP113: 0 | CQ113: 0 | CR113: 0 | CS113: 0 | CT113: 0 | CU113: 0 | CV113: 0 | CW113: 0 | CX113: 90726 | CY113: 7691 | CZ113: 98417 | DA113: 14066 | DB113: 875 | DC113: 79 | DD113: 113437
A114: 110 | B114: 27.44 | C114: Продукция из меди | D114: 0 | E114: 0 | F114: 0 | G114: 0 | H114: 0 | I114: 0 | J114: 0 | K114: 0 | L114: 0 | M114: 0 | N114: 0 | O114: 0 | P114: 0 | Q114: 0 | R114: 0 | S114: 0 | T114: 0 | U114: 0 | V114: 0 | W114: 0 | X114: 0 | Y114: 0 | Z114: 0 | AA114: 0 | AB114: 0 | AC114: 0 | AD114: 0 | AE114: 0 | AF114: 0 | AG114: 0 | AH114: 0 | AI114: 0 | AJ114: 0 | AK114: 0 | AL114: 0 | AM114: 0 | AN114: 0 | AO114: 62 | AP114: 0 | AQ114: 0 | AR114: 0 | AS114: 0 | AT114: 0 | AU114: 0 | AV114: 0 | AW114: 0 | AX114: 413170 | AY114: 2315 | AZ114: 0 | BA114: 0 | BB114: 0 | BC114: 262 | BD114: 0 | BE114: 0 | BF114: 0 | BG114: 55 | BH114: 0 | BI114: 0 | BJ114: 0 | BK114: 0 | BL114: 0 | BM114: 0 | BN114: 0 | BO114: 0 | BP114: 0 | BQ114: 0 | BR114: 0 | BS114: 0 | BT114: 0 | BU114: 0 | BV114: 0 | BW114: 8 | BX114: 0 | BY114: 0 | BZ114: 0 | CA114: 0 | CB114: 0 | CC114: 0 | CD114: 0 | CE114: 0 | CF114: 0 | CG114: 0 | CH114: 0 | CI114: 0 | CJ114: 0 | CK114: 0 | CL114: 0 | CM114: 0 | CN114: 0 | CO114: 0 | CP114: 0 | CQ114: 0 | CR114: 0 | CS114: 0 | CT114: 0 | CU114: 0 | CV114: 0 | CW114: 0 | CX114: 415872 | CY114: 23335 | CZ114: 439207 | DA114: 32905 | DB114: 938 | DC114: 640 | DD114: 473690
A115: 111 | B115: 27.45 | C115: Продукция из прочих цветных металлов | D115: 0 | E115: 0 | F115: 0 | G115: 0 | H115: 0 | I115: 0 | J115: 0 | K115: 0 | L115: 0 | M115: 0 | N115: 0 | O115: 0 | P115: 0 | Q115: 0 | R115: 0 | S115: 0 | T115: 0 | U115: 0 | V115: 0 | W115: 0 | X115: 0 | Y115: 0 | Z115: 0 | AA115: 0 | AB115: 0 | AC115: 0 | AD115: 0 | AE115: 0 | AF115: 0 | AG115: 0 | AH115: 0 | AI115: 0 | AJ115: 154 | AK115: 0 | AL115: 0 | AM115: 0 | AN115: 0 | AO115: 0 | AP115: 0 | AQ115: 0 | AR115: 0 | AS115: 0 | AT115: 0 | AU115: 0 | AV115: 0 | AW115: 0 | AX115: 284413 | AY115: 473 | AZ115: 0 | BA115: 176 | BB115: 0 | BC115: 0 | BD115: 0 | BE115: 0 | BF115: 0 | BG115: 0 | BH115: 0 | BI115: 100 | BJ115: 0 | BK115: 0 | BL115: 516 | BM115: 0 | BN115: 0 | BO115: 0 | BP115: 0 | BQ115: 0 | BR115: 0 | BS115: 0 | BT115: 0 | BU115: 0 | BV115: 0 | BW115: 0 | BX115: 0 | BY115: 0 | BZ115: 0 | CA115: 0 | CB115: 0 | CC115: 0 | CD115: 0 | CE115: 0 | CF115: 0 | CG115: 0 | CH115: 0 | CI115: 0 | CJ115: 0 | CK115: 0 | CL115: 0 | CM115: 0 | CN115: 109 | CO115: 0 | CP115: 0 | CQ115: 0 | CR115: 0 | CS115: 0 | CT115: 0 | CU115: 0 | CV115: 0 | CW115: 0 | CX115: 285941 | CY115: 17397 | CZ115: 303339 | DA115: 18414 | DB115: 1226 | DC115: 1079 | DD115: 324058
A116: 112 | B116: 27.5 | C116: Услуги литейного производства | D116: 0 | E116: 0 | F116: 0 | G116: 0 | H116: 0 | I116: 0 | J116: 0 | K116: 0 | L116: 0 | M116: 0 | N116: 0 | O116: 0 | P116: 0 | Q116: 0 | R116: 0 | S116: 0 | T116: 0 | U116: 0 | V116: 0 | W116: 0 | X116: 0 | Y116: 0 | Z116: 0 | AA116: 18 | AB116: 0 | AC116: 0 | AD116: 0 | AE116: 341 | AF116: 0 | AG116: 0 | AH116: 0 | AI116: 0 | AJ116: 18 | AK116: 0 | AL116: 0 | AM116: 0 | AN116: 0 | AO116: 0 | AP116: 0 | AQ116: 0 | AR116: 66 | AS116: 0 | AT116: 1 | AU116: 0 | AV116: 0 | AW116: 1791 | AX116: 1936 | AY116: 47811 | AZ116: 506 | BA116: 1966 | BB116: 152 | BC116: 1723 | BD116: 0 | BE116: 0 | BF116: 0 | BG116: 1 | BH116: 0 | BI116: 2 | BJ116: 0 | BK116: 5615 | BL116: 3545 | BM116: 0 | BN116: 0 | BO116: 0 | BP116: 0 | BQ116: 11 | BR116: 0 | BS116: 0 | BT116: 0 | BU116: 0 | BV116: 0 | BW116: 10 | BX116: 0 | BY116: 0 | BZ116: 0 | CA116: 0 | CB116: 0 | CC116: 0 | CD116: 0 | CE116: 0 | CF116: 0 | CG116: 0 | CH116: 0 | CI116: 0 | CJ116: 0 | CK116: 0 | CL116: 0 | CM116: 0 | CN116: 112 | CO116: 0 | CP116: 0 | CQ116: 0 | CR116: 0 | CS116: 0 | CT116: 0 | CU116: 0 | CV116: 0 | CW116: 0 | CX116: 65625 | CY116: 1 | CZ116: 65626 | DA116: 0 | DB116: 0 | DC116: 8 | DD116: 65634
A117: 113 | B117: 28.11 | C117: Конструкции и части конструкций строительные металлические | D117: 48 | E117: 0 | F117: 0 | G117: 0 | H117: 0 | I117: 0 | J117: 0 | K117: 0 | L117: 0 | M117: 0 | N117: 0 | O117: 0 | P117: 0 | Q117: 0 | R117: 0 | S117: 0 | T117: 0 | U117: 0 | V117: 0 | W117: 0 | X117: 2 | Y117: 0 | Z117: 0 | AA117: 0 | AB117: 0 | AC117: 0 | AD117: 251 | AE117: 0 | AF117: 0 | AG117: 0 | AH117: 0 | AI117: 0 | AJ117: 0 | AK117: 0 | AL117: 0 | AM117: 0 | AN117: 0 | AO117: 0 | AP117: 0 | AQ117: 0 | AR117: 92 | AS117: 4 | AT117: 0 | AU117: 72 | AV117: 2845 | AW117: 3622 | AX117: 241 | AY117: 89 | AZ117: 355483 | BA117: 1560 | BB117: 107 | BC117: 2507 | BD117: 0 | BE117: 0 | BF117: 0 | BG117: 2271 | BH117: 34 | BI117: 0 | BJ117: 24 | BK117: 29 | BL117: 2581 | BM117: 17 | BN117: 0 | BO117: 0 | BP117: 9 | BQ117: 5 | BR117: 0 | BS117: 0 | BT117: 0 | BU117: 7431 | BV117: 0 | BW117: 822 | BX117: 625 | BY117: 0 | BZ117: 0 | CA117: 18 | CB117: 0 | CC117: 1097 | CD117: 0 | CE117: 0 | CF117: 4 | CG117: 0 | CH117: 0 | CI117: 0 | CJ117: 0 | CK117: 38 | CL117: 34 | CM117: 0 | CN117: 0 | CO117: 25 | CP117: 0 | CQ117: 0 | CR117: 0 | CS117: 0 | CT117: 0 | CU117: 0 | CV117: 1 | CW117: 0 | CX117: 381987 | CY117: 38168 | CZ117: 420155 | DA117: 72347 | DB117: 708 | DC117: 5203 | DD117: 498414
A118: 114 | B118: 28.12 | C118: Изделия строительные из металлов | D118: 0 | E118: 0 | F118: 0 | G118: 0 | H118: 0 | I118: 0 | J118: 0 | K118: 0 | L118: 0 | M118: 0 | N118: 0 | O118: 0 | P118: 4 | Q118: 0 | R118: 0 | S118: 0 | T118: 0 | U118: 0 | V118: 0 | W118: 0 | X118: 0 | Y118: 0 | Z118: 0 | AA118: 0 | AB118: 0 | AC118: 0 | AD118: 0 | AE118: 0 | AF118: 0 | AG118: 0 | AH118: 0 | AI118: 0 | AJ118: 0 | AK118: 0 | AL118: 0 | AM118: 0 | AN118: 0 | AO118: 0 | AP118: 0 | AQ118: 0 | AR118: 197 | AS118: 0 | AT118: 4 | AU118: 0 | AV118: 711 | AW118: 209 | AX118: 243 | AY118: 0 | AZ118: 89179 | BA118: 660 | BB118: 2 | BC118: 824 | BD118: 0 | BE118: 0 | BF118: 0 | BG118: 612 | BH118: 0 | BI118: 0 | BJ118: 0 | BK118: 4 | BL118: 129 | BM118: 0 | BN118: 0 | BO118: 0 | BP118: 0 | BQ118: 0 | BR118: 0 | BS118: 0 | BT118: 0 | BU118: 664 | BV118: 0 | BW118: 1662 | BX118: 0 | BY118: 0 | BZ118: 0 | CA118: 0 | CB118: 11 | CC118: 13 | CD118: 0 | CE118: 0 | CF118: 0 | CG118: 0 | CH118: 0 | CI118: 0 | CJ118: 0 | CK118: 1 | CL118: 0 | CM118: 0 | CN118: 0 | CO118: 0 | CP118: 0 | CQ118: 0 | CR118: 0 | CS118: 0 | CT118: 6 | CU118: 0 | CV118: 0 | CW118: 0 | CX118: 95138 | CY118: 12450 | CZ118: 107588 | DA118: 18562 | DB118: 772 | DC118: 1410 | DD118: 128331
A119: 115 | B119: 28.2 + 28.3 | C119: Резервуары, цистерны и аналогичные емкости из металлов; радиаторы, котлы паровые и другие котлы паропроизводящие | D119: 0 | E119: 0 | F119: 0 | G119: 0 | H119: 0 | I119: 0 | J119: 0 | K119: 0 | L119: 0 | M119: 0 | N119: 0 | O119: 0 | P119: 0 | Q119: 0 | R119: 0 | S119: 0 | T119: 1 | U119: 0 | V119: 0 | W119: 0 | X119: 0 | Y119: 0 | Z119: 0 | AA119: 0 | AB119: 0 | AC119: 0 | AD119: 0 | AE119: 0 | AF119: 0 | AG119: 0 | AH119: 0 | AI119: 0 | AJ119: 3 | AK119: 0 | AL119: 0 | AM119: 0 | AN119: 0 | AO119: 0 | AP119: 0 | AQ119: 0 | AR119: 0 | AS119: 0 | AT119: 0 | AU119: 0 | AV119: 3 | AW119: 393 | AX119: 0 | AY119: 502 | AZ119: 132679 | BA119: 31 | BB119: 402 | BC119: 3487 | BD119: 460 | BE119: 0 | BF119: 0 | BG119: 50 | BH119: 34 | BI119: 39 | BJ119: 0 | BK119: 16 | BL119: 1668 | BM119: 0 | BN119: 0 | BO119: 0 | BP119: 0 | BQ119: 655 | BR119: 171 | BS119: 238 | BT119: 3 | BU119: 183 | BV119: 0 | BW119: 67 | BX119: 0 | BY119: 0 | BZ119: 0 | CA119: 0 | CB119: 0 | CC119: 692 | CD119: 0 | CE119: 0 | CF119: 1 | CG119: 0 | CH119: 0 | CI119: 0 | CJ119: 0 | CK119: 14 | CL119: 0 | CM119: 0 | CN119: 2795 | CO119: 71 | CP119: 0 | CQ119: 0 | CR119: 0 | CS119: 1 | CT119: 0 | CU119: 0 | CV119: 0 | CW119: 0 | CX119: 144659 | CY119: 35079 | CZ119: 179738 | DA119: 25769 | DB119: 172 | DC119: 3272 | DD119: 208951
A120: 116 | B120: 28.4 | C120: Услуги по ковке, прессованию, штамповке и профилированию листового металла; услуги по производству изделий методом порошковой металлургии | D120: 0 | E120: 0 | F120: 0 | G120: 0 | H120: 0 | I120: 0 | J120: 0 | K120: 0 | L120: 0 | M120: 0 | N120: 0 | O120: 0 | P120: 0 | Q120: 0 | R120: 0 | S120: 0 | T120: 0 | U120: 0 | V120: 0 | W120: 0 | X120: 0 | Y120: 0 | Z120: 0 | AA120: 0 | AB120: 0 | AC120: 0 | AD120: 0 | AE120: 0 | AF120: 0 | AG120: 0 | AH120: 0 | AI120: 0 | AJ120: 0 | AK120: 0 | AL120: 0 | AM120: 0 | AN120: 0 | AO120: 0 | AP120: 0 | AQ120: 0 | AR120: 0 | AS120: 0 | AT120: 0 | AU120: 0 | AV120: 0 | AW120: 347 | AX120: 4878 | AY120: 1289 | AZ120: 2 | BA120: 49702 | BB120: 379 | BC120: 1052 | BD120: 0 | BE120: 0 | BF120: 0 | BG120: 2 | BH120: 16 | BI120: 0 | BJ120: 0 | BK120: 1727 | BL120: 990 | BM120: 0 | BN120: 0 | BO120: 0 | BP120: 0 | BQ120: 0 | BR120: 0 | BS120: 0 | BT120: 0 | BU120: 0 | BV120: 0 | BW120: 1 | BX120: 0 | BY120: 0 | BZ120: 0 | CA120: 0 | CB120: 0 | CC120: 0 | CD120: 0 | CE120: 0 | CF120: 0 | CG120: 0 | CH120: 0 | CI120: 0 | CJ120: 0 | CK120: 28 | CL120: 0 | CM120: 0 | CN120: 156 | CO120: 0 | CP120: 0 | CQ120: 0 | CR120: 0 | CS120: 0 | CT120: 0 | CU120: 0 | CV120: 0 | CW120: 0 | CX120: 60568 | CY120: 9 | CZ120: 60577 | DA120: 0 | DB120: 0 | DC120: 582 | DD120: 61159
A121: 117 | B121: 28.5 | C121: Услуги по обработке металлов и нанесению покрытий на них; услуги по обработке металлических изделий с использованием основных технологических процессов машиностроения | D121: 0 | E121: 0 | F121: 0 | G121: 0 | H121: 0 | I121: 3 | J121: 1227 | K121: 24 | L121: 500 | M121: 0 | N121: 1 | O121: 52 | P121: 0 | Q121: 0 | R121: 0 | S121: 0 | T121: 0 | U121: 0 | V121: 0 | W121: 0 | X121: 1 | Y121: 0 | Z121: 0 | AA121: 16 | AB121: 0 | AC121: 0 | AD121: 30 | AE121: 27 | AF121: 0 | AG121: 88 | AH121: 0 | AI121: 54 | AJ121: 4 | AK121: 0 | AL121: 0 | AM121: 0 | AN121: 0 | AO121: 0 | AP121: 0 | AQ121: 71 | AR121: 1019 | AS121: 0 | AT121: 7 | AU121: 1 | AV121: 9 | AW121: 5907 | AX121: 787 | AY121: 300 | AZ121: 3393 | BA121: 248019 | BB121: 2351 | BC121: 5934 | BD121: 28 | BE121: 0 | BF121: 24 | BG121: 830 | BH121: 388 | BI121: 1976 | BJ121: 89 | BK121: 638 | BL121: 4302 | BM121: 2 | BN121: 0 | BO121: 21 | BP121: 0 | BQ121: 0 | BR121: 0 | BS121: 8 | BT121: 0 | BU121: 305 | BV121: 197 | BW121: 1412 | BX121: 0 | BY121: 0 | BZ121: 0 | CA121: 37 | CB121: 1 | CC121: 1 | CD121: 0 | CE121: 0 | CF121: 51 | CG121: 0 | CH121: 0 | CI121: 0 | CJ121: 0 | CK121: 218 | CL121: 10 | CM121: 0 | CN121: 13402 | CO121: 10 | CP121: 0 | CQ121: 0 | CR121: 0 | CS121: 0 | CT121: 0 | CU121: 0 | CV121: 0 | CW121: 0 | CX121: 293770 | CY121: 2165 | CZ121: 295934 | DA121: 0 | DB121: 0 | DC121: 1096 | DD121: 297030
A122: 118 | B122: 28.6 | C122: Инструмент, ножевые изделия и универсальные скобяные изделия | D122: 0 | E122: 0 | F122: 0 | G122: 0 | H122: 0 | I122: 0 | J122: 0 | K122: 0 | L122: 195 | M122: 0 | N122: 0 | O122: 0 | P122: 0 | Q122: 0 | R122: 0 | S122: 0 | T122: 0 | U122: 0 | V122: 0 | W122: 0 | X122: 0 | Y122: 0 | Z122: 0 | AA122: 0 | AB122: 0 | AC122: 0 | AD122: 0 | AE122: 0 | AF122: 0 | AG122: 277 | AH122: 0 | AI122: 0 | AJ122: 0 | AK122: 0 | AL122: 0 | AM122: 0 | AN122: 0 | AO122: 0 | AP122: 0 | AQ122: 0 | AR122: 0 | AS122: 0 | AT122: 0 | AU122: 0 | AV122: 0 | AW122: 961 | AX122: 298 | AY122: 0 | AZ122: 66 | BA122: 99 | BB122: 34641 | BC122: 1106 | BD122: 4 | BE122: 0 | BF122: 0 | BG122: 35 | BH122: 184 | BI122: 71 | BJ122: 0 | BK122: 1636 | BL122: 282 | BM122: 0 | BN122: 39 | BO122: 7 | BP122: 0 | BQ122: 0 | BR122: 0 | BS122: 0 | BT122: 0 | BU122: 0 | BV122: 0 | BW122: 1193 | BX122: 0 | BY122: 0 | BZ122: 0 | CA122: 0 | CB122: 0 | CC122: 0 | CD122: 0 | CE122: 0 | CF122: 20 | CG122: 0 | CH122: 0 | CI122: 0 | CJ122: 0 | CK122: 66 | CL122: 0 | CM122: 0 | CN122: 0 | CO122: 0 | CP122: 0 | CQ122: 0 | CR122: 0 | CS122: 0 | CT122: 0 | CU122: 0 | CV122: 0 | CW122: 0 | CX122: 41181 | CY122: 161051 | CZ122: 202232 | DA122: 62858 | DB122: 817 | DC122: 15445 | DD122: 281353
A123: 119 | B123: 28.7 | C123: Металлоизделия готовые прочие | D123: 0 | E123: 12 | F123: 0 | G123: 0 | H123: 0 | I123: 0 | J123: 0 | K123: 0 | L123: 0 | M123: 0 | N123: 0 | O123: 0 | P123: 0 | Q123: 0 | R123: 0 | S123: 0 | T123: 13 | U123: 0 | V123: 0 | W123: 0 | X123: 22 | Y123: 0 | Z123: 0 | AA123: 2 | AB123: 2 | AC123: 0 | AD123: 69 | AE123: 3 | AF123: 0 | AG123: 656 | AH123: 0 | AI123: 0 | AJ123: 65 | AK123: 0 | AL123: 5 | AM123: 0 | AN123: 413 | AO123: 7 | AP123: 0 | AQ123: 0 | AR123: 900 | AS123: 0 | AT123: 0 | AU123: 0 | AV123: 72 | AW123: 20695 | AX123: 3328 | AY123: 359 | AZ123: 2135 | BA123: 423 | BB123: 238609 | BC123: 1990 | BD123: 52 | BE123: 0 | BF123: 0 | BG123: 4397 | BH123: 20 | BI123: 582 | BJ123: 0 | BK123: 510 | BL123: 2994 | BM123: 103 | BN123: 2 | BO123: 23 | BP123: 0 | BQ123: 0 | BR123: 0 | BS123: 2 | BT123: 0 | BU123: 45 | BV123: 0 | BW123: 4078 | BX123: 0 | BY123: 0 | BZ123: 0 | CA123: 102 | CB123: 4 | CC123: 0 | CD123: 0 | CE123: 0 | CF123: 3 | CG123: 0 | CH123: 0 | CI123: 0 | CJ123: 0 | CK123: 5 | CL123: 98 | CM123: 0 | CN123: 17 | CO123: 11 | CP123: 0 | CQ123: 10 | CR123: 0 | CS123: 2 | CT123: 0 | CU123: 0 | CV123: 5 | CW123: 0 | CX123: 282848 | CY123: 205601 | CZ123: 488449 | DA123: 123101 | DB123: 1721 | DC123: 37231 | DD123: 650502
A124: 120 | B124: 29.1 + 29.2 + 29.3 + 29.4 + 29.5 | C124: Механическое оборудование, станки и прочее оборудование общего или специального назначения | D124: 556 | E124: 0 | F124: 0 | G124: 1 | H124: 1 | I124: 994 | J124: 594 | K124: 141 | L124: 2940 | M124: 0 | N124: 10 | O124: 20 | P124: 47 | Q124: 151 | R124: 0 | S124: 0 | T124: 747 | U124: 1 | V124: 5 | W124: 0 | X124: 185 | Y124: 73 | Z124: 0 | AA124: 0 | AB124: 10 | AC124: 3 | AD124: 33 | AE124: 85 | AF124: 0 | AG124: 0 | AH124: 0 | AI124: 132 | AJ124: 865 | AK124: 0 | AL124: 52 | AM124: 0 | AN124: 1 | AO124: 0 | AP124: 0 | AQ124: 19 | AR124: 93 | AS124: 24 | AT124: 317 | AU124: 7 | AV124: 99 | AW124: 7428 | AX124: 684 | AY124: 519 | AZ124: 10271 | BA124: 4740 | BB124: 4166 | BC124: 1354927 | BD124: 794 | BE124: 378 | BF124: 504 | BG124: 7128 | BH124: 3048 | BI124: 7401 | BJ124: 442 | BK124: 7637 | BL124: 21181 | BM124: 302 | BN124: 0 | BO124: 108 | BP124: 103 | BQ124: 1107 | BR124: 13976 | BS124: 2775 | BT124: 726 | BU124: 14856 | BV124: 50 | BW124: 31786 | BX124: 68 | BY124: 0 | BZ124: 5 | CA124: 151 | CB124: 174 | CC124: 6202 | CD124: 8 | CE124: 0 | CF124: 516 | CG124: 0 | CH124: 0 | CI124: 0 | CJ124: 0 | CK124: 3315 | CL124: 590 | CM124: 0 | CN124: 16762 | CO124: 1928 | CP124: 0 | CQ124: 0 | CR124: 0 | CS124: 42 | CT124: 384 | CU124: 32 | CV124: 1 | CW124: 0 | CX124: 1535423 | CY124: 1906934 | CZ124: 3442357 | DA124: 515784 | DB124: 92704 | DC124: 43175 | DD124: 4094020
A125: 121 | B125: 29.7 | C125: Бытовые приборы, не включенные в другие группировки | D125: 0 | E125: 0 | F125: 0 | G125: 0 | H125: 0 | I125: 0 | J125: 0 | K125: 0 | L125: 0 | M125: 0 | N125: 0 | O125: 0 | P125: 0 | Q125: 0 | R125: 0 | S125: 0 | T125: 0 | U125: 0 | V125: 0 | W125: 0 | X125: 18 | Y125: 0 | Z125: 0 | AA125: 0 | AB125: 0 | AC125: 0 | AD125: 0 | AE125: 3 | AF125: 0 | AG125: 0 | AH125: 0 | AI125: 0 | AJ125: 0 | AK125: 0 | AL125: 0 | AM125: 0 | AN125: 0 | AO125: 0 | AP125: 0 | AQ125: 0 | AR125: 0 | AS125: 0 | AT125: 0 | AU125: 0 | AV125: 0 | AW125: 0 | AX125: 0 | AY125: 2 | AZ125: 13 | BA125: 0 | BB125: 57 | BC125: 2964 | BD125: 127158 | BE125: 0 | BF125: 1012 | BG125: 143 | BH125: 5519 | BI125: 782 | BJ125: 0 | BK125: 22 | BL125: 8548 | BM125: 0 | BN125: 0 | BO125: 263 | BP125: 0 | BQ125: 0 | BR125: 0 | BS125: 0 | BT125: 0 | BU125: 0 | BV125: 0 | BW125: 108 | BX125: 0 | BY125: 0 | BZ125: 0 | CA125: 0 | CB125: 0 | CC125: 0 | CD125: 0 | CE125: 0 | CF125: 0 | CG125: 0 | CH125: 0 | CI125: 0 | CJ125: 0 | CK125: 57 | CL125: 0 | CM125: 0 | CN125: 62 | CO125: 0 | CP125: 0 | CQ125: 0 | CR125: 0 | CS125: 0 | CT125: 0 | CU125: 0 | CV125: 0 | CW125: 0 | CX125: 146732 | CY125: 207735 | CZ125: 354467 | DA125: 254442 | DB125: 2089 | DC125: 101651 | DD125: 712649
A126: 122 | B126: 30.01 | C126: Офисное оборудование и его части | D126: 0 | E126: 0 | F126: 0 | G126: 0 | H126: 0 | I126: 0 | J126: 0 | K126: 0 | L126: 0 | M126: 0 | N126: 0 | O126: 0 | P126: 0 | Q126: 0 | R126: 0 | S126: 0 | T126: 0 | U126: 0 | V126: 0 | W126: 0 | X126: 0 | Y126: 0 | Z126: 0 | AA126: 0 | AB126: 0 | AC126: 0 | AD126: 0 | AE126: 0 | AF126: 0 | AG126: 0 | AH126: 0 | AI126: 0 | AJ126: 0 | AK126: 0 | AL126: 0 | AM126: 0 | AN126: 0 | AO126: 0 | AP126: 0 | AQ126: 0 | AR126: 0 | AS126: 0 | AT126: 0 | AU126: 0 | AV126: 0 | AW126: 0 | AX126: 0 | AY126: 0 | AZ126: 0 | BA126: 0 | BB126: 0 | BC126: 14 | BD126: 0 | BE126: 17454 | BF126: 0 | BG126: 0 | BH126: 27 | BI126: 219 | BJ126: 0 | BK126: 216 | BL126: 0 | BM126: 0 | BN126: 0 | BO126: 0 | BP126: 0 | BQ126: 0 | BR126: 0 | BS126: 0 | BT126: 0 | BU126: 0 | BV126: 0 | BW126: 37 | BX126: 0 | BY126: 0 | BZ126: 0 | CA126: 0 | CB126: 0 | CC126: 0 | CD126: 0 | CE126: 0 | CF126: 0 | CG126: 0 | CH126: 0 | CI126: 0 | CJ126: 0 | CK126: 387 | CL126: 0 | CM126: 38 | CN126: 0 | CO126: 0 | CP126: 0 | CQ126: 0 | CR126: 0 | CS126: 0 | CT126: 0 | CU126: 0 | CV126: 0 | CW126: 0 | CX126: 18392 | CY126: 37414 | CZ126: 55806 | DA126: 23115 | DB126: 88 | DC126: 1605 | DD126: 80615
A127: 123 | B127: 30.02 | C127: Вычислительная техника и прочее оборудование для обработки информации | D127: 0 | E127: 0 | F127: 0 | G127: 0 | H127: 0 | I127: 0 | J127: 0 | K127: 0 | L127: 0 | M127: 0 | N127: 0 | O127: 0 | P127: 0 | Q127: 0 | R127: 0 | S127: 0 | T127: 0 | U127: 0 | V127: 0 | W127: 0 | X127: 0 | Y127: 0 | Z127: 0 | AA127: 0 | AB127: 0 | AC127: 0 | AD127: 0 | AE127: 0 | AF127: 0 | AG127: 0 | AH127: 0 | AI127: 0 | AJ127: 0 | AK127: 0 | AL127: 0 | AM127: 0 | AN127: 0 | AO127: 0 | AP127: 0 | AQ127: 0 | AR127: 10 | AS127: 0 | AT127: 0 | AU127: 0 | AV127: 0 | AW127: 0 | AX127: 0 | AY127: 0 | AZ127: 0 | BA127: 0 | BB127: 0 | BC127: 0 | BD127: 1 | BE127: 0 | BF127: 64280 | BG127: 54 | BH127: 1691 | BI127: 585 | BJ127: 0 | BK127: 0 | BL127: 0 | BM127: 0 | BN127: 0 | BO127: 0 | BP127: 0 | BQ127: 17 | BR127: 0 | BS127: 0 | BT127: 0 | BU127: 0 | BV127: 0 | BW127: 2072 | BX127: 89 | BY127: 0 | BZ127: 0 | CA127: 0 | CB127: 0 | CC127: 0 | CD127: 0 | CE127: 0 | CF127: 0 | CG127: 38 | CH127: 0 | CI127: 0 | CJ127: 0 | CK127: 0 | CL127: 0 | CM127: 30 | CN127: 8762 | CO127: 963 | CP127: 0 | CQ127: 0 | CR127: 0 | CS127: 0 | CT127: 0 | CU127: 0 | CV127: 0 | CW127: 0 | CX127: 78593 | CY127: 431462 | CZ127: 510055 | DA127: 238257 | DB127: 14846 | DC127: 24113 | DD127: 787271
A128: 124 | B128: 31.1 + 31.2 + 31.6 | C128: Двигатели, генераторы, трансформаторы и преобразователи электрические; аппаратура распределительная и регулирующая электрическая; электрооборудование, не включенное в другие группировки | D128: 18 | E128: 0 | F128: 0 | G128: 0 | H128: 0 | I128: 1 | J128: 5 | K128: 6 | L128: 182 | M128: 0 | N128: 63 | O128: 7 | P128: 0 | Q128: 0 | R128: 0 | S128: 0 | T128: 0 | U128: 1 | V128: 0 | W128: 0 | X128: 1 | Y128: 0 | Z128: 0 | AA128: 0 | AB128: 0 | AC128: 6 | AD128: 0 | AE128: 0 | AF128: 0 | AG128: 0 | AH128: 0 | AI128: 17 | AJ128: 27 | AK128: 0 | AL128: 0 | AM128: 0 | AN128: 0 | AO128: 0 | AP128: 0 | AQ128: 0 | AR128: 268 | AS128: 0 | AT128: 7 | AU128: 0 | AV128: 2 | AW128: 1632 | AX128: 1346 | AY128: 58 | AZ128: 1801 | BA128: 643 | BB128: 142 | BC128: 17222 | BD128: 53 | BE128: 0 | BF128: 1232 | BG128: 485903 | BH128: 10887 | BI128: 7123 | BJ128: 28 | BK128: 1200 | BL128: 2676 | BM128: 0 | BN128: 0 | BO128: 0 | BP128: 0 | BQ128: 8363 | BR128: 0 | BS128: 796 | BT128: 591 | BU128: 1194 | BV128: 0 | BW128: 13364 | BX128: 18 | BY128: 1 | BZ128: 2 | CA128: 0 | CB128: 5 | CC128: 224 | CD128: 0 | CE128: 0 | CF128: 16 | CG128: 353 | CH128: 0 | CI128: 0 | CJ128: 0 | CK128: 363 | CL128: 0 | CM128: 2108 | CN128: 6639 | CO128: 452 | CP128: 0 | CQ128: 3 | CR128: 0 | CS128: 2 | CT128: 104 | CU128: 0 | CV128: 0 | CW128: 0 | CX128: 567160 | CY128: 418664 | CZ128: 985824 | DA128: 147915 | DB128: 21182 | DC128: 13075 | DD128: 1167996
A129: 125 | B129: 31.3 | C129: Провода и кабели изолированные | D129: 0 | E129: 0 | F129: 0 | G129: 0 | H129: 0 | I129: 0 | J129: 0 | K129: 0 | L129: 0 | M129: 0 | N129: 0 | O129: 0 | P129: 0 | Q129: 0 | R129: 0 | S129: 0 | T129: 0 | U129: 0 | V129: 0 | W129: 0 | X129: 0 | Y129: 0 | Z129: 0 | AA129: 0 | AB129: 0 | AC129: 0 | AD129: 0 | AE129: 0 | AF129: 0 | AG129: 0 | AH129: 0 | AI129: 0 | AJ129: 0 | AK129: 0 | AL129: 0 | AM129: 0 | AN129: 0 | AO129: 0 | AP129: 0 | AQ129: 0 | AR129: 0 | AS129: 0 | AT129: 0 | AU129: 0 | AV129: 0 | AW129: 1275 | AX129: 6725 | AY129: 0 | AZ129: 0 | BA129: 154 | BB129: 0 | BC129: 337 | BD129: 0 | BE129: 0 | BF129: 0 | BG129: 194245 | BH129: 135 | BI129: 13 | BJ129: 0 | BK129: 0 | BL129: 43 | BM129: 0 | BN129: 0 | BO129: 0 | BP129: 0 | BQ129: 0 | BR129: 0 | BS129: 0 | BT129: 0 | BU129: 9 | BV129: 0 | BW129: 648 | BX129: 0 | BY129: 0 | BZ129: 0 | CA129: 0 | CB129: 0 | CC129: 0 | CD129: 0 | CE129: 0 | CF129: 0 | CG129: 0 | CH129: 0 | CI129: 0 | CJ129: 0 | CK129: 0 | CL129: 0 | CM129: 0 | CN129: 2184 | CO129: 0 | CP129: 0 | CQ129: 0 | CR129: 0 | CS129: 0 | CT129: 0 | CU129: 0 | CV129: 0 | CW129: 0 | CX129: 205768 | CY129: 44211 | CZ129: 249978 | DA129: 47131 | DB129: 5382 | DC129: 4071 | DD129: 306562
A130: 126 | B130: 31.4 | C130: Источники тока химические, их части, отходы и лом | D130: 0 | E130: 0 | F130: 0 | G130: 0 | H130: 0 | I130: 0 | J130: 0 | K130: 0 | L130: 0 | M130: 0 | N130: 0 | O130: 0 | P130: 0 | Q130: 0 | R130: 0 | S130: 0 | T130: 0 | U130: 0 | V130: 0 | W130: 0 | X130: 0 | Y130: 0 | Z130: 0 | AA130: 0 | AB130: 0 | AC130: 0 | AD130: 0 | AE130: 0 | AF130: 0 | AG130: 0 | AH130: 0 | AI130: 0 | AJ130: 0 | AK130: 0 | AL130: 0 | AM130: 0 | AN130: 0 | AO130: 0 | AP130: 0 | AQ130: 0 | AR130: 0 | AS130: 0 | AT130: 0 | AU130: 0 | AV130: 0 | AW130: 0 | AX130: 28 | AY130: 0 | AZ130: 0 | BA130: 0 | BB130: 0 | BC130: 0 | BD130: 0 | BE130: 0 | BF130: 0 | BG130: 35663 | BH130: 9 | BI130: 0 | BJ130: 0 | BK130: 0 | BL130: 0 | BM130: 0 | BN130: 0 | BO130: 0 | BP130: 0 | BQ130: 0 | BR130: 0 | BS130: 0 | BT130: 0 | BU130: 0 | BV130: 0 | BW130: 0 | BX130: 0 | BY130: 0 | BZ130: 0 | CA130: 0 | CB130: 0 | CC130: 0 | CD130: 0 | CE130: 0 | CF130: 0 | CG130: 0 | CH130: 0 | CI130: 0 | CJ130: 0 | CK130: 0 | CL130: 0 | CM130: 0 | CN130: 2 | CO130: 0 | CP130: 0 | CQ130: 0 | CR130: 0 | CS130: 0 | CT130: 0 | CU130: 0 | CV130: 0 | CW130: 0 | CX130: 35702 | CY130: 41017 | CZ130: 76719 | DA130: 19856 | DB130: 223 | DC130: 7127 | DD130: 103925
A131: 127 | B131: 31.5 | C131: Оборудование осветительное и лампы электрические | D131: 0 | E131: 0 | F131: 0 | G131: 0 | H131: 0 | I131: 0 | J131: 0 | K131: 0 | L131: 0 | M131: 0 | N131: 0 | O131: 0 | P131: 0 | Q131: 0 | R131: 0 | S131: 0 | T131: 0 | U131: 0 | V131: 0 | W131: 0 | X131: 0 | Y131: 0 | Z131: 0 | AA131: 0 | AB131: 0 | AC131: 0 | AD131: 0 | AE131: 0 | AF131: 0 | AG131: 0 | AH131: 0 | AI131: 0 | AJ131: 0 | AK131: 0 | AL131: 0 | AM131: 0 | AN131: 0 | AO131: 0 | AP131: 0 | AQ131: 0 | AR131: 0 | AS131: 0 | AT131: 0 | AU131: 0 | AV131: 0 | AW131: 0 | AX131: 0 | AY131: 0 | AZ131: 0 | BA131: 25 | BB131: 1 | BC131: 150 | BD131: 0 | BE131: 0 | BF131: 0 | BG131: 38937 | BH131: 365 | BI131: 171 | BJ131: 0 | BK131: 0 | BL131: 270 | BM131: 0 | BN131: 0 | BO131: 0 | BP131: 0 | BQ131: 0 | BR131: 0 | BS131: 0 | BT131: 0 | BU131: 612 | BV131: 0 | BW131: 44 | BX131: 0 | BY131: 0 | BZ131: 0 | CA131: 0 | CB131: 0 | CC131: 0 | CD131: 0 | CE131: 0 | CF131: 0 | CG131: 0 | CH131: 0 | CI131: 0 | CJ131: 0 | CK131: 0 | CL131: 0 | CM131: 0 | CN131: 0 | CO131: 0 | CP131: 0 | CQ131: 0 | CR131: 0 | CS131: 0 | CT131: 0 | CU131: 0 | CV131: 0 | CW131: 0 | CX131: 40575 | CY131: 37437 | CZ131: 78012 | DA131: 28723 | DB131: 1094 | DC131: 11712 | DD131: 119541
A132: 128 | B132: 32 | C132: Компоненты электронные; аппаратура для радио, телевидения и связи | D132: 0 | E132: 0 | F132: 0 | G132: 0 | H132: 0 | I132: 0 | J132: 0 | K132: 0 | L132: 0 | M132: 0 | N132: 0 | O132: 0 | P132: 0 | Q132: 0 | R132: 0 | S132: 0 | T132: 0 | U132: 1 | V132: 0 | W132: 0 | X132: 0 | Y132: 0 | Z132: 0 | AA132: 0 | AB132: 0 | AC132: 0 | AD132: 0 | AE132: 2 | AF132: 0 | AG132: 0 | AH132: 0 | AI132: 0 | AJ132: 0 | AK132: 0 | AL132: 0 | AM132: 0 | AN132: 0 | AO132: 0 | AP132: 0 | AQ132: 0 | AR132: 105 | AS132: 0 | AT132: 0 | AU132: 0 | AV132: 0 | AW132: 0 | AX132: 0 | AY132: 0 | AZ132: 0 | BA132: 0 | BB132: 0 | BC132: 1407 | BD132: 885 | BE132: 0 | BF132: 831 | BG132: 3148 | BH132: 461347 | BI132: 6935 | BJ132: 94 | BK132: 6 | BL132: 177 | BM132: 0 | BN132: 0 | BO132: 0 | BP132: 0 | BQ132: 1 | BR132: 0 | BS132: 6 | BT132: 0 | BU132: 7455 | BV132: 0 | BW132: 1068 | BX132: 0 | BY132: 0 | BZ132: 0 | CA132: 0 | CB132: 26 | CC132: 0 | CD132: 0 | CE132: 0 | CF132: 2 | CG132: 2159 | CH132: 0 | CI132: 0 | CJ132: 0 | CK132: 30 | CL132: 0 | CM132: 4 | CN132: 39311 | CO132: 621 | CP132: 0 | CQ132: 0 | CR132: 0 | CS132: 0 | CT132: 2 | CU132: 0 | CV132: 0 | CW132: 0 | CX132: 525624 | CY132: 803038 | CZ132: 1328661 | DA132: 402037 | DB132: 35597 | DC132: 69865 | DD132: 1836161
A133: 129 | B133: 33.1 | C133: Изделия медицинские, включая хирургическое оборудование, ортопедические приспособления | D133: 0 | E133: 0 | F133: 0 | G133: 0 | H133: 0 | I133: 0 | J133: 0 | K133: 0 | L133: 0 | M133: 0 | N133: 0 | O133: 0 | P133: 0 | Q133: 0 | R133: 0 | S133: 0 | T133: 0 | U133: 0 | V133: 0 | W133: 0 | X133: 0 | Y133: 0 | Z133: 0 | AA133: 0 | AB133: 0 | AC133: 0 | AD133: 0 | AE133: 0 | AF133: 0 | AG133: 0 | AH133: 0 | AI133: 0 | AJ133: 0 | AK133: 0 | AL133: 0 | AM133: 338 | AN133: 0 | AO133: 0 | AP133: 0 | AQ133: 2 | AR133: 0 | AS133: 0 | AT133: 0 | AU133: 0 | AV133: 0 | AW133: 0 | AX133: 0 | AY133: 0 | AZ133: 0 | BA133: 2 | BB133: 14 | BC133: 81 | BD133: 875 | BE133: 0 | BF133: 0 | BG133: 82 | BH133: 197 | BI133: 2491 | BJ133: 89945 | BK133: 0 | BL133: 883 | BM133: 0 | BN133: 0 | BO133: 0 | BP133: 0 | BQ133: 0 | BR133: 0 | BS133: 2 | BT133: 0 | BU133: 67 | BV133: 0 | BW133: 2722 | BX133: 24 | BY133: 0 | BZ133: 0 | CA133: 0 | CB133: 0 | CC133: 0 | CD133: 0 | CE133: 0 | CF133: 0 | CG133: 0 | CH133: 0 | CI133: 0 | CJ133: 0 | CK133: 0 | CL133: 71 | CM133: 0 | CN133: 640 | CO133: 286 | CP133: 0 | CQ133: 0 | CR133: 42 | CS133: 0 | CT133: 0 | CU133: 0 | CV133: 0 | CW133: 0 | CX133: 98767 | CY133: 185835 | CZ133: 284601 | DA133: 106911 | DB133: 7652 | DC133: 24768 | DD133: 423932
A134: 130 | B134: 33.2 + 33.3 | C134: Приборы и инструменты для измерения, контроля, испытаний, навигации, управления, регулирования | D134: 0 | E134: 0 | F134: 0 | G134: 0 | H134: 0 | I134: 0 | J134: 0 | K134: 0 | L134: 390 | M134: 0 | N134: 0 | O134: 0 | P134: 5 | Q134: 0 | R134: 0 | S134: 0 | T134: 0 | U134: 0 | V134: 0 | W134: 0 | X134: 0 | Y134: 0 | Z134: 0 | AA134: 0 | AB134: 0 | AC134: 0 | AD134: 0 | AE134: 1 | AF134: 0 | AG134: 0 | AH134: 0 | AI134: 0 | AJ134: 4 | AK134: 0 | AL134: 0 | AM134: 0 | AN134: 0 | AO134: 1 | AP134: 0 | AQ134: 0 | AR134: 0 | AS134: 0 | AT134: 0 | AU134: 0 | AV134: 0 | AW134: 7 | AX134: 2 | AY134: 0 | AZ134: 724 | BA134: 64 | BB134: 304 | BC134: 1480 | BD134: 48 | BE134: 0 | BF134: 754 | BG134: 4865 | BH134: 16060 | BI134: 562566 | BJ134: 1244 | BK134: 0 | BL134: 7084 | BM134: 449 | BN134: 0 | BO134: 0 | BP134: 0 | BQ134: 2252 | BR134: 51 | BS134: 158 | BT134: 811 | BU134: 499 | BV134: 0 | BW134: 2021 | BX134: 0 | BY134: 0 | BZ134: 0 | CA134: 88 | CB134: 2 | CC134: 813 | CD134: 1 | CE134: 0 | CF134: 22 | CG134: 673 | CH134: 0 | CI134: 0 | CJ134: 0 | CK134: 485 | CL134: 0 | CM134: 11950 | CN134: 92460 | CO134: 5573 | CP134: 0 | CQ134: 0 | CR134: 0 | CS134: 0 | CT134: 0 | CU134: 0 | CV134: 0 | CW134: 0 | CX134: 713913 | CY134: 153003 | CZ134: 866916 | DA134: 174225 | DB134: 27913 | DC134: 9564 | DD134: 1078618
A135: 131 | B135: 33.4 | C135: Приборы оптические и фото- и кинооборудование | D135: 0 | E135: 0 | F135: 0 | G135: 0 | H135: 0 | I135: 0 | J135: 0 | K135: 0 | L135: 0 | M135: 0 | N135: 0 | O135: 0 | P135: 0 | Q135: 0 | R135: 0 | S135: 0 | T135: 0 | U135: 0 | V135: 0 | W135: 0 | X135: 0 | Y135: 0 | Z135: 0 | AA135: 0 | AB135: 0 | AC135: 0 | AD135: 0 | AE135: 0 | AF135: 0 | AG135: 0 | AH135: 0 | AI135: 0 | AJ135: 0 | AK135: 0 | AL135: 0 | AM135: 0 | AN135: 0 | AO135: 0 | AP135: 0 | AQ135: 0 | AR135: 0 | AS135: 0 | AT135: 0 | AU135: 0 | AV135: 0 | AW135: 0 | AX135: 0 | AY135: 0 | AZ135: 0 | BA135: 0 | BB135: 0 | BC135: 0 | BD135: 0 | BE135: 0 | BF135: 0 | BG135: 0 | BH135: 54 | BI135: 39963 | BJ135: 485 | BK135: 0 | BL135: 1505 | BM135: 0 | BN135: 0 | BO135: 0 | BP135: 0 | BQ135: 0 | BR135: 0 | BS135: 0 | BT135: 0 | BU135: 0 | BV135: 0 | BW135: 31 | BX135: 45 | BY135: 0 | BZ135: 0 | CA135: 0 | CB135: 0 | CC135: 0 | CD135: 0 | CE135: 0 | CF135: 0 | CG135: 0 | CH135: 0 | CI135: 0 | CJ135: 0 | CK135: 0 | CL135: 0 | CM135: 0 | CN135: 265 | CO135: 0 | CP135: 0 | CQ135: 0 | CR135: 0 | CS135: 0 | CT135: 0 | CU135: 0 | CV135: 0 | CW135: 0 | CX135: 42349 | CY135: 51052 | CZ135: 93401 | DA135: 24176 | DB135: 90 | DC135: 3385 | DD135: 121053
A136: 132 | B136: 33.5 | C136: Часы всех видов и другие приборы времени | D136: 0 | E136: 0 | F136: 0 | G136: 0 | H136: 0 | I136: 0 | J136: 0 | K136: 0 | L136: 0 | M136: 0 | N136: 0 | O136: 0 | P136: 0 | Q136: 0 | R136: 0 | S136: 0 | T136: 0 | U136: 0 | V136: 0 | W136: 0 | X136: 0 | Y136: 0 | Z136: 0 | AA136: 0 | AB136: 0 | AC136: 0 | AD136: 0 | AE136: 0 | AF136: 0 | AG136: 0 | AH136: 0 | AI136: 0 | AJ136: 0 | AK136: 0 | AL136: 0 | AM136: 0 | AN136: 0 | AO136: 0 | AP136: 0 | AQ136: 0 | AR136: 0 | AS136: 0 | AT136: 0 | AU136: 0 | AV136: 0 | AW136: 0 | AX136: 0 | AY136: 0 | AZ136: 0 | BA136: 0 | BB136: 0 | BC136: 0 | BD136: 0 | BE136: 0 | BF136: 0 | BG136: 56 | BH136: 0 | BI136: 2950 | BJ136: 0 | BK136: 0 | BL136: 0 | BM136: 0 | BN136: 0 | BO136: 0 | BP136: 0 | BQ136: 0 | BR136: 0 | BS136: 0 | BT136: 0 | BU136: 0 | BV136: 0 | BW136: 0 | BX136: 0 | BY136: 0 | BZ136: 0 | CA136: 0 | CB136: 0 | CC136: 0 | CD136: 0 | CE136: 0 | CF136: 0 | CG136: 0 | CH136: 0 | CI136: 0 | CJ136: 0 | CK136: 0 | CL136: 0 | CM136: 0 | CN136: 0 | CO136: 0 | CP136: 0 | CQ136: 0 | CR136: 0 | CS136: 0 | CT136: 0 | CU136: 0 | CV136: 0 | CW136: 0 | CX136: 3006 | CY136: 18157 | CZ136: 21164 | DA136: 11613 | DB136: 4 | DC136: 6210 | DD136: 38991
A137: 133 | B137: 34.10.1 | C137: Двигатели внутреннего сгорания для автотранспортных средств и мотоциклов | D137: 0 | E137: 0 | F137: 0 | G137: 0 | H137: 0 | I137: 0 | J137: 0 | K137: 0 | L137: 0 | M137: 0 | N137: 0 | O137: 0 | P137: 0 | Q137: 0 | R137: 0 | S137: 0 | T137: 0 | U137: 0 | V137: 0 | W137: 0 | X137: 0 | Y137: 0 | Z137: 0 | AA137: 0 | AB137: 0 | AC137: 0 | AD137: 0 | AE137: 0 | AF137: 0 | AG137: 0 | AH137: 0 | AI137: 0 | AJ137: 0 | AK137: 0 | AL137: 0 | AM137: 0 | AN137: 0 | AO137: 0 | AP137: 0 | AQ137: 0 | AR137: 0 | AS137: 0 | AT137: 0 | AU137: 0 | AV137: 0 | AW137: 0 | AX137: 0 | AY137: 0 | AZ137: 0 | BA137: 0 | BB137: 0 | BC137: 68 | BD137: 0 | BE137: 0 | BF137: 0 | BG137: 0 | BH137: 0 | BI137: 0 | BJ137: 0 | BK137: 32667 | BL137: 0 | BM137: 0 | BN137: 0 | BO137: 0 | BP137: 0 | BQ137: 0 | BR137: 0 | BS137: 0 | BT137: 0 | BU137: 0 | BV137: 0 | BW137: 0 | BX137: 0 | BY137: 0 | BZ137: 0 | CA137: 0 | CB137: 0 | CC137: 0 | CD137: 0 | CE137: 0 | CF137: 0 | CG137: 0 | CH137: 0 | CI137: 0 | CJ137: 0 | CK137: 0 | CL137: 0 | CM137: 0 | CN137: 0 | CO137: 0 | CP137: 0 | CQ137: 0 | CR137: 0 | CS137: 0 | CT137: 0 | CU137: 0 | CV137: 0 | CW137: 0 | CX137: 32735 | CY137: 81437 | CZ137: 114173 | DA137: 23469 | DB137: 7982 | DC137: 2862 | DD137: 148487
A138: 134 | B138: 34.10.2 | C138: Автомобили легковые | D138: 0 | E138: 0 | F138: 0 | G138: 0 | H138: 0 | I138: 0 | J138: 0 | K138: 0 | L138: 0 | M138: 0 | N138: 0 | O138: 0 | P138: 0 | Q138: 0 | R138: 0 | S138: 0 | T138: 0 | U138: 0 | V138: 0 | W138: 0 | X138: 0 | Y138: 0 | Z138: 0 | AA138: 0 | AB138: 0 | AC138: 0 | AD138: 0 | AE138: 0 | AF138: 0 | AG138: 0 | AH138: 0 | AI138: 0 | AJ138: 0 | AK138: 0 | AL138: 0 | AM138: 0 | AN138: 0 | AO138: 0 | AP138: 0 | AQ138: 0 | AR138: 0 | AS138: 0 | AT138: 0 | AU138: 0 | AV138: 0 | AW138: 0 | AX138: 0 | AY138: 0 | AZ138: 0 | BA138: 0 | BB138: 0 | BC138: 0 | BD138: 0 | BE138: 0 | BF138: 0 | BG138: 0 | BH138: 0 | BI138: 0 | BJ138: 0 | BK138: 884967 | BL138: 0 | BM138: 0 | BN138: 0 | BO138: 0 | BP138: 0 | BQ138: 0 | BR138: 0 | BS138: 0 | BT138: 0 | BU138: 0 | BV138: 0 | BW138: 0 | BX138: 0 | BY138: 0 | BZ138: 0 | CA138: 0 | CB138: 0 | CC138: 0 | CD138: 0 | CE138: 0 | CF138: 0 | CG138: 0 | CH138: 0 | CI138: 0 | CJ138: 0 | CK138: 0 | CL138: 0 | CM138: 0 | CN138: 0 | CO138: 135 | CP138: 0 | CQ138: 0 | CR138: 0 | CS138: 0 | CT138: 0 | CU138: 0 | CV138: 0 | CW138: 0 | CX138: 885102 | CY138: 404410 | CZ138: 1289512 | DA138: 318448 | DB138: 191 | DC138: 467150 | DD138: 2075302
A139: 135 | B139: 34.10.3 + 34.10.4 + 34.10.5 + 34.10.9 | C139: Автотранспортные средства, кроме легковых автомобилей; услуги по установке узлов и сборке автотранспортных средств | D139: 0 | E139: 0 | F139: 0 | G139: 0 | H139: 0 | I139: 0 | J139: 0 | K139: 0 | L139: 0 | M139: 0 | N139: 0 | O139: 0 | P139: 0 | Q139: 0 | R139: 0 | S139: 0 | T139: 0 | U139: 0 | V139: 0 | W139: 0 | X139: 0 | Y139: 0 | Z139: 0 | AA139: 3 | AB139: 0 | AC139: 0 | AD139: 0 | AE139: 0 | AF139: 0 | AG139: 0 | AH139: 0 | AI139: 0 | AJ139: 0 | AK139: 0 | AL139: 0 | AM139: 0 | AN139: 0 | AO139: 0 | AP139: 0 | AQ139: 0 | AR139: 0 | AS139: 0 | AT139: 0 | AU139: 0 | AV139: 0 | AW139: 0 | AX139: 0 | AY139: 0 | AZ139: 4 | BA139: 0 | BB139: 0 | BC139: 2224 | BD139: 0 | BE139: 0 | BF139: 0 | BG139: 0 | BH139: 0 | BI139: 505 | BJ139: 0 | BK139: 360189 | BL139: 1351 | BM139: 0 | BN139: 0 | BO139: 0 | BP139: 0 | BQ139: 0 | BR139: 0 | BS139: 0 | BT139: 0 | BU139: 0 | BV139: 640 | BW139: 0 | BX139: 0 | BY139: 0 | BZ139: 0 | CA139: 0 | CB139: 0 | CC139: 0 | CD139: 0 | CE139: 0 | CF139: 0 | CG139: 0 | CH139: 0 | CI139: 0 | CJ139: 0 | CK139: 0 | CL139: 0 | CM139: 0 | CN139: 0 | CO139: 0 | CP139: 0 | CQ139: 0 | CR139: 0 | CS139: 0 | CT139: 0 | CU139: 0 | CV139: 0 | CW139: 0 | CX139: 364915 | CY139: 118711 | CZ139: 483626 | DA139: 77801 | DB139: 154 | DC139: 4606 | DD139: 566188
A140: 136 | B140: 34.2 | C140: Кузова (корпуса) для автотранспортных средств; прицепы и полуприцепы | D140: 0 | E140: 0 | F140: 0 | G140: 0 | H140: 0 | I140: 0 | J140: 0 | K140: 0 | L140: 0 | M140: 0 | N140: 0 | O140: 0 | P140: 0 | Q140: 0 | R140: 0 | S140: 0 | T140: 0 | U140: 0 | V140: 0 | W140: 0 | X140: 0 | Y140: 0 | Z140: 0 | AA140: 0 | AB140: 0 | AC140: 0 | AD140: 0 | AE140: 0 | AF140: 0 | AG140: 0 | AH140: 0 | AI140: 0 | AJ140: 0 | AK140: 0 | AL140: 0 | AM140: 0 | AN140: 0 | AO140: 0 | AP140: 0 | AQ140: 0 | AR140: 0 | AS140: 0 | AT140: 0 | AU140: 0 | AV140: 0 | AW140: 0 | AX140: 0 | AY140: 0 | AZ140: 20 | BA140: 444 | BB140: 21 | BC140: 358 | BD140: 0 | BE140: 0 | BF140: 0 | BG140: 0 | BH140: 0 | BI140: 666 | BJ140: 0 | BK140: 51264 | BL140: 70 | BM140: 0 | BN140: 0 | BO140: 0 | BP140: 0 | BQ140: 0 | BR140: 0 | BS140: 0 | BT140: 0 | BU140: 0 | BV140: 0 | BW140: 0 | BX140: 0 | BY140: 0 | BZ140: 0 | CA140: 0 | CB140: 0 | CC140: 0 | CD140: 0 | CE140: 0 | CF140: 0 | CG140: 0 | CH140: 0 | CI140: 0 | CJ140: 0 | CK140: 0 | CL140: 0 | CM140: 0 | CN140: 0 | CO140: 0 | CP140: 0 | CQ140: 0 | CR140: 0 | CS140: 0 | CT140: 0 | CU140: 0 | CV140: 0 | CW140: 0 | CX140: 52844 | CY140: 104974 | CZ140: 157818 | DA140: 7642 | DB140: 1599 | DC140: 25826 | DD140: 192885
A141: 137 | B141: 34.3 | C141: Части и принадлежности для автотранспортных средств и их двигателей | D141: 0 | E141: 0 | F141: 0 | G141: 0 | H141: 0 | I141: 0 | J141: 0 | K141: 0 | L141: 0 | M141: 0 | N141: 0 | O141: 0 | P141: 0 | Q141: 0 | R141: 0 | S141: 0 | T141: 0 | U141: 0 | V141: 0 | W141: 0 | X141: 0 | Y141: 0 | Z141: 0 | AA141: 82 | AB141: 0 | AC141: 0 | AD141: 0 | AE141: 0 | AF141: 0 | AG141: 0 | AH141: 0 | AI141: 0 | AJ141: 0 | AK141: 0 | AL141: 0 | AM141: 70 | AN141: 0 | AO141: 0 | AP141: 0 | AQ141: 471 | AR141: 1547 | AS141: 0 | AT141: 0 | AU141: 0 | AV141: 53 | AW141: 19 | AX141: 0 | AY141: 0 | AZ141: 170 | BA141: 2904 | BB141: 0 | BC141: 2403 | BD141: 27 | BE141: 0 | BF141: 0 | BG141: 429 | BH141: 447 | BI141: 81 | BJ141: 1 | BK141: 297405 | BL141: 2157 | BM141: 25 | BN141: 0 | BO141: 0 | BP141: 54 | BQ141: 0 | BR141: 0 | BS141: 0 | BT141: 0 | BU141: 0 | BV141: 40 | BW141: 301 | BX141: 0 | BY141: 0 | BZ141: 0 | CA141: 0 | CB141: 0 | CC141: 0 | CD141: 0 | CE141: 0 | CF141: 0 | CG141: 0 | CH141: 0 | CI141: 0 | CJ141: 0 | CK141: 0 | CL141: 0 | CM141: 0 | CN141: 280 | CO141: 0 | CP141: 0 | CQ141: 0 | CR141: 0 | CS141: 0 | CT141: 0 | CU141: 0 | CV141: 0 | CW141: 0 | CX141: 308967 | CY141: 432538 | CZ141: 741505 | DA141: 212083 | DB141: 18525 | DC141: 14672 | DD141: 986786
A142: 138 | B142: 35 + 39.9* | C142: Суда, летательные и космические аппараты, прочие транспортные средства и оборудование | D142: 0 | E142: 0 | F142: 0 | G142: 0 | H142: 175 | I142: 32 | J142: 0 | K142: 0 | L142: 0 | M142: 0 | N142: 0 | O142: 0 | P142: 0 | Q142: 0 | R142: 0 | S142: 0 | T142: 0 | U142: 0 | V142: 0 | W142: 0 | X142: 0 | Y142: 0 | Z142: 0 | AA142: 0 | AB142: 0 | AC142: 0 | AD142: 0 | AE142: 10 | AF142: 0 | AG142: 0 | AH142: 0 | AI142: 158 | AJ142: 1261 | AK142: 0 | AL142: 0 | AM142: 0 | AN142: 0 | AO142: 844 | AP142: 0 | AQ142: 39 | AR142: 0 | AS142: 0 | AT142: 0 | AU142: 0 | AV142: 0 | AW142: 0 | AX142: 7513 | AY142: 0 | AZ142: 99 | BA142: 860 | BB142: 1059 | BC142: 13511 | BD142: 87 | BE142: 0 | BF142: 364 | BG142: 4177 | BH142: 28 | BI142: 7010 | BJ142: 276 | BK142: 1231 | BL142: 3112250 | BM142: 714 | BN142: 0 | BO142: 6 | BP142: 118 | BQ142: 334 | BR142: 0 | BS142: 436 | BT142: 0 | BU142: 1802 | BV142: 0 | BW142: 3745 | BX142: 1614 | BY142: 0 | BZ142: 0 | CA142: 17617 | CB142: 19 | CC142: 0 | CD142: 488 | CE142: 92 | CF142: 409 | CG142: 0 | CH142: 0 | CI142: 0 | CJ142: 0 | CK142: 179 | CL142: 202 | CM142: 0 | CN142: 188989 | CO142: 1891 | CP142: 0 | CQ142: 0 | CR142: 0 | CS142: 649 | CT142: 0 | CU142: 0 | CV142: 0 | CW142: 0 | CX142: 3370286 | CY142: 711009 | CZ142: 4081294 | DA142: 233282 | DB142: 26240 | DC142: 67330 | DD142: 4408146
A143: 139 | B143: 36.1 | C143: Мебель | D143: 1 | E143: 0 | F143: 0 | G143: 1 | H143: 0 | I143: 0 | J143: 0 | K143: 0 | L143: 0 | M143: 0 | N143: 0 | O143: 0 | P143: 0 | Q143: 0 | R143: 0 | S143: 0 | T143: 0 | U143: 0 | V143: 0 | W143: 0 | X143: 0 | Y143: 0 | Z143: 0 | AA143: 16 | AB143: 2 | AC143: 0 | AD143: 4300 | AE143: 0 | AF143: 0 | AG143: 0 | AH143: 0 | AI143: 0 | AJ143: 0 | AK143: 0 | AL143: 0 | AM143: 0 | AN143: 0 | AO143: 0 | AP143: 0 | AQ143: 0 | AR143: 103 | AS143: 245 | AT143: 0 | AU143: 0 | AV143: 0 | AW143: 0 | AX143: 0 | AY143: 0 | AZ143: 0 | BA143: 3 | BB143: 384 | BC143: 771 | BD143: 119 | BE143: 0 | BF143: 0 | BG143: 1 | BH143: 9 | BI143: 1 | BJ143: 0 | BK143: 0 | BL143: 89 | BM143: 280740 | BN143: 0 | BO143: 519 | BP143: 0 | BQ143: 0 | BR143: 0 | BS143: 0 | BT143: 0 | BU143: 5 | BV143: 0 | BW143: 705 | BX143: 52 | BY143: 0 | BZ143: 0 | CA143: 0 | CB143: 44 | CC143: 0 | CD143: 0 | CE143: 0 | CF143: 16 | CG143: 0 | CH143: 0 | CI143: 0 | CJ143: 0 | CK143: 195 | CL143: 0 | CM143: 0 | CN143: 0 | CO143: 0 | CP143: 0 | CQ143: 0 | CR143: 0 | CS143: 24 | CT143: 1 | CU143: 0 | CV143: 0 | CW143: 0 | CX143: 288346 | CY143: 100778 | CZ143: 389124 | DA143: 216946 | DB143: 31013 | DC143: 99355 | DD143: 736438
A144: 140 | B144: 36.2 | C144: Изделия ювелирные и изделия аналогичного типа | D144: 0 | E144: 0 | F144: 0 | G144: 0 | H144: 0 | I144: 0 | J144: 0 | K144: 0 | L144: 0 | M144: 0 | N144: 0 | O144: 0 | P144: 7656 | Q144: 0 | R144: 0 | S144: 0 | T144: 0 | U144: 0 | V144: 0 | W144: 0 | X144: 0 | Y144: 0 | Z144: 0 | AA144: 0 | AB144: 0 | AC144: 0 | AD144: 0 | AE144: 0 | AF144: 0 | AG144: 3854 | AH144: 0 | AI144: 0 | AJ144: 0 | AK144: 0 | AL144: 0 | AM144: 0 | AN144: 0 | AO144: 0 | AP144: 0 | AQ144: 0 | AR144: 0 | AS144: 0 | AT144: 0 | AU144: 0 | AV144: 0 | AW144: 0 | AX144: 6330 | AY144: 0 | AZ144: 0 | BA144: 1 | BB144: 0 | BC144: 0 | BD144: 0 | BE144: 0 | BF144: 0 | BG144: 0 | BH144: 0 | BI144: 0 | BJ144: 0 | BK144: 0 | BL144: 127 | BM144: 0 | BN144: 106058 | BO144: 42 | BP144: 0 | BQ144: 0 | BR144: 0 | BS144: 0 | BT144: 0 | BU144: 0 | BV144: 0 | BW144: 247 | BX144: 843 | BY144: 0 | BZ144: 0 | CA144: 0 | CB144: 0 | CC144: 0 | CD144: 0 | CE144: 0 | CF144: 0 | CG144: 0 | CH144: 0 | CI144: 0 | CJ144: 0 | CK144: 0 | CL144: 0 | CM144: 0 | CN144: 57 | CO144: 2 | CP144: 0 | CQ144: 0 | CR144: 0 | CS144: 0 | CT144: 0 | CU144: 0 | CV144: 0 | CW144: 0 | CX144: 125217 | CY144: 16238 | CZ144: 141455 | DA144: 86782 | DB144: 18 | DC144: 24271 | DD144: 252525
A145: 141 | B145: 36.3 | C145: Музыкальные инструменты | D145: 0 | E145: 0 | F145: 0 | G145: 0 | H145: 0 | I145: 0 | J145: 0 | K145: 0 | L145: 0 | M145: 0 | N145: 0 | O145: 0 | P145: 0 | Q145: 0 | R145: 0 | S145: 0 | T145: 0 | U145: 0 | V145: 0 | W145: 0 | X145: 0 | Y145: 0 | Z145: 0 | AA145: 10 | AB145: 0 | AC145: 0 | AD145: 0 | AE145: 0 | AF145: 0 | AG145: 0 | AH145: 0 | AI145: 0 | AJ145: 0 | AK145: 0 | AL145: 0 | AM145: 0 | AN145: 0 | AO145: 0 | AP145: 0 | AQ145: 0 | AR145: 0 | AS145: 0 | AT145: 0 | AU145: 0 | AV145: 0 | AW145: 0 | AX145: 0 | AY145: 0 | AZ145: 0 | BA145: 0 | BB145: 0 | BC145: 0 | BD145: 0 | BE145: 0 | BF145: 0 | BG145: 0 | BH145: 0 | BI145: 0 | BJ145: 0 | BK145: 0 | BL145: 0 | BM145: 0 | BN145: 0 | BO145: 270 | BP145: 0 | BQ145: 0 | BR145: 0 | BS145: 0 | BT145: 0 | BU145: 0 | BV145: 0 | BW145: 116 | BX145: 0 | BY145: 0 | BZ145: 0 | CA145: 0 | CB145: 0 | CC145: 0 | CD145: 0 | CE145: 0 | CF145: 0 | CG145: 0 | CH145: 0 | CI145: 0 | CJ145: 0 | CK145: 0 | CL145: 0 | CM145: 0 | CN145: 0 | CO145: 0 | CP145: 0 | CQ145: 0 | CR145: 0 | CS145: 0 | CT145: 0 | CU145: 0 | CV145: 0 | CW145: 0 | CX145: 397 | CY145: 3308 | CZ145: 3705 | DA145: 2149 | DB145: 190 | DC145: 193 | DD145: 6236
A146: 142 | B146: 36.4 | C146: Товары спортивные | D146: 0 | E146: 0 | F146: 0 | G146: 0 | H146: 0 | I146: 0 | J146: 0 | K146: 0 | L146: 0 | M146: 0 | N146: 0 | O146: 0 | P146: 0 | Q146: 0 | R146: 0 | S146: 0 | T146: 0 | U146: 0 | V146: 0 | W146: 0 | X146: 51 | Y146: 0 | Z146: 0 | AA146: 0 | AB146: 0 | AC146: 9 | AD146: 6 | AE146: 0 | AF146: 0 | AG146: 0 | AH146: 0 | AI146: 0 | AJ146: 0 | AK146: 0 | AL146: 0 | AM146: 0 | AN146: 0 | AO146: 0 | AP146: 0 | AQ146: 0 | AR146: 0 | AS146: 0 | AT146: 0 | AU146: 0 | AV146: 0 | AW146: 132 | AX146: 0 | AY146: 0 | AZ146: 0 | BA146: 0 | BB146: 0 | BC146: 0 | BD146: 0 | BE146: 0 | BF146: 0 | BG146: 0 | BH146: 0 | BI146: 11 | BJ146: 0 | BK146: 0 | BL146: 8 | BM146: 0 | BN146: 0 | BO146: 7045 | BP146: 0 | BQ146: 0 | BR146: 0 | BS146: 0 | BT146: 0 | BU146: 0 | BV146: 0 | BW146: 0 | BX146: 0 | BY146: 0 | BZ146: 0 | CA146: 0 | CB146: 0 | CC146: 0 | CD146: 0 | CE146: 0 | CF146: 0 | CG146: 0 | CH146: 0 | CI146: 0 | CJ146: 0 | CK146: 0 | CL146: 0 | CM146: 0 | CN146: 0 | CO146: 0 | CP146: 0 | CQ146: 0 | CR146: 0 | CS146: 0 | CT146: 0 | CU146: 0 | CV146: 0 | CW146: 0 | CX146: 7262 | CY146: 24569 | CZ146: 31831 | DA146: 12908 | DB146: 11 | DC146: 5538 | DD146: 50287
A147: 143 | B147: 36.5 | C147: Игры и игрушки | D147: 0 | E147: 0 | F147: 0 | G147: 0 | H147: 0 | I147: 0 | J147: 0 | K147: 0 | L147: 0 | M147: 0 | N147: 0 | O147: 0 | P147: 0 | Q147: 0 | R147: 0 | S147: 0 | T147: 0 | U147: 0 | V147: 0 | W147: 0 | X147: 0 | Y147: 0 | Z147: 0 | AA147: 0 | AB147: 0 | AC147: 0 | AD147: 0 | AE147: 65 | AF147: 0 | AG147: 0 | AH147: 0 | AI147: 0 | AJ147: 0 | AK147: 0 | AL147: 10 | AM147: 0 | AN147: 0 | AO147: 0 | AP147: 0 | AQ147: 0 | AR147: 363 | AS147: 0 | AT147: 0 | AU147: 0 | AV147: 0 | AW147: 0 | AX147: 0 | AY147: 0 | AZ147: 0 | BA147: 0 | BB147: 11 | BC147: 0 | BD147: 0 | BE147: 0 | BF147: 0 | BG147: 11 | BH147: 1 | BI147: 0 | BJ147: 0 | BK147: 0 | BL147: 133 | BM147: 2 | BN147: 0 | BO147: 12975 | BP147: 0 | BQ147: 0 | BR147: 0 | BS147: 0 | BT147: 0 | BU147: 0 | BV147: 0 | BW147: 0 | BX147: 0 | BY147: 0 | BZ147: 0 | CA147: 0 | CB147: 0 | CC147: 0 | CD147: 0 | CE147: 0 | CF147: 0 | CG147: 0 | CH147: 0 | CI147: 0 | CJ147: 0 | CK147: 0 | CL147: 0 | CM147: 0 | CN147: 0 | CO147: 0 | CP147: 0 | CQ147: 0 | CR147: 0 | CS147: 0 | CT147: 0 | CU147: 0 | CV147: 0 | CW147: 0 | CX147: 13571 | CY147: 95320 | CZ147: 108890 | DA147: 70336 | DB147: 23 | DC147: 20463 | DD147: 199713
A148: 144 | B148: 36.6 | C148: Разные промышленные изделия, не включенные в другие группировки | D148: 0 | E148: 0 | F148: 0 | G148: 0 | H148: 0 | I148: 0 | J148: 0 | K148: 0 | L148: 0 | M148: 0 | N148: 0 | O148: 0 | P148: 10 | Q148: 0 | R148: 0 | S148: 0 | T148: 0 | U148: 0 | V148: 0 | W148: 0 | X148: 3 | Y148: 2 | Z148: 0 | AA148: 93 | AB148: 2 | AC148: 0 | AD148: 17 | AE148: 5 | AF148: 0 | AG148: 2 | AH148: 0 | AI148: 0 | AJ148: 0 | AK148: 0 | AL148: 47 | AM148: 4 | AN148: 7 | AO148: 0 | AP148: 0 | AQ148: 0 | AR148: 4333 | AS148: 0 | AT148: 410 | AU148: 0 | AV148: 2 | AW148: 1036 | AX148: 32 | AY148: 37 | AZ148: 0 | BA148: 371 | BB148: 154 | BC148: 245 | BD148: 0 | BE148: 0 | BF148: 57 | BG148: 7 | BH148: 132 | BI148: 243 | BJ148: 0 | BK148: 162 | BL148: 2842 | BM148: 228 | BN148: 721 | BO148: 43382 | BP148: 0 | BQ148: 0 | BR148: 0 | BS148: 0 | BT148: 0 | BU148: 2 | BV148: 0 | BW148: 512 | BX148: 0 | BY148: 0 | BZ148: 3 | CA148: 0 | CB148: 0 | CC148: 0 | CD148: 0 | CE148: 0 | CF148: 5 | CG148: 0 | CH148: 0 | CI148: 0 | CJ148: 0 | CK148: 3 | CL148: 0 | CM148: 0 | CN148: 177 | CO148: 0 | CP148: 0 | CQ148: 0 | CR148: 0 | CS148: 0 | CT148: 6 | CU148: 1 | CV148: 142 | CW148: 0 | CX148: 55436 | CY148: 51085 | CZ148: 106521 | DA148: 53668 | DB148: 502 | DC148: 23385 | DD148: 184076
A149: 145 | B149: 37 | C149: Вторичное сырье | D149: 0 | E149: 0 | F149: 0 | G149: 0 | H149: 0 | I149: 0 | J149: 0 | K149: 0 | L149: 0 | M149: 0 | N149: 304 | O149: 0 | P149: 2 | Q149: 0 | R149: 0 | S149: 0 | T149: 0 | U149: 0 | V149: 0 | W149: 0 | X149: 811 | Y149: 0 | Z149: 0 | AA149: 244 | AB149: 0 | AC149: 0 | AD149: 19 | AE149: 147 | AF149: 0 | AG149: 1 | AH149: 0 | AI149: 0 | AJ149: 3 | AK149: 0 | AL149: 0 | AM149: 0 | AN149: 0 | AO149: 0 | AP149: 231 | AQ149: 52 | AR149: 46 | AS149: 0 | AT149: 0 | AU149: 607 | AV149: 0 | AW149: 2550 | AX149: 1112 | AY149: 369 | AZ149: 15 | BA149: 8 | BB149: 126 | BC149: 12 | BD149: 0 | BE149: 0 | BF149: 0 | BG149: 1213 | BH149: 0 | BI149: 30 | BJ149: 0 | BK149: 929 | BL149: 469 | BM149: 0 | BN149: 0 | BO149: 1 | BP149: 296273 | BQ149: 142 | BR149: 0 | BS149: 3 | BT149: 0 | BU149: 2785 | BV149: 0 | BW149: 4382 | BX149: 0 | BY149: 0 | BZ149: 0 | CA149: 1 | CB149: 20 | CC149: 0 | CD149: 0 | CE149: 0 | CF149: 978 | CG149: 0 | CH149: 0 | CI149: 0 | CJ149: 0 | CK149: 12 | CL149: 0 | CM149: 0 | CN149: 23 | CO149: 17 | CP149: 0 | CQ149: 0 | CR149: 0 | CS149: 213 | CT149: 0 | CU149: 0 | CV149: 0 | CW149: 0 | CX149: 314148 | CY149: 0 | CZ149: 314148 | DA149: 94015 | DB149: 6372 | DC149: 3 | DD149: 414539
A150: 146 | B150: 40.1 | C150: Услуги по производству, передаче и распределению электроэнергии | D150: 226 | E150: 0 | F150: 0 | G150: 5 | H150: 141 | I150: 459 | J150: 3350 | K150: 1228 | L150: 931 | M150: 0 | N150: 39 | O150: 51 | P150: 181 | Q150: 12 | R150: 0 | S150: 0 | T150: 191 | U150: 8 | V150: 11 | W150: 0 | X150: 81 | Y150: 25 | Z150: 0 | AA150: 37 | AB150: 0 | AC150: 17 | AD150: 85 | AE150: 2277 | AF150: 0 | AG150: 0 | AH150: 1101 | AI150: 908 | AJ150: 3603 | AK150: 0 | AL150: 1 | AM150: 64 | AN150: 0 | AO150: 64 | AP150: 0 | AQ150: 362 | AR150: 98 | AS150: 7 | AT150: 86 | AU150: 12 | AV150: 87 | AW150: 3249 | AX150: 1026 | AY150: 18 | AZ150: 1720 | BA150: 99 | BB150: 143 | BC150: 497 | BD150: 21 | BE150: 0 | BF150: 44 | BG150: 1236 | BH150: 287 | BI150: 150 | BJ150: 0 | BK150: 209 | BL150: 5577 | BM150: 0 | BN150: 0 | BO150: 0 | BP150: 0 | BQ150: 4362545 | BR150: 7 | BS150: 52873 | BT150: 524 | BU150: 1296 | BV150: 0 | BW150: 164 | BX150: 2 | BY150: 0 | BZ150: 136 | CA150: 7 | CB150: 25 | CC150: 245 | CD150: 0 | CE150: 0 | CF150: 979 | CG150: 0 | CH150: 0 | CI150: 0 | CJ150: 0 | CK150: 1229 | CL150: 0 | CM150: 0 | CN150: 4442 | CO150: 734 | CP150: 0 | CQ150: 0 | CR150: 2 | CS150: 516 | CT150: 2 | CU150: 0 | CV150: 54 | CW150: 0 | CX150: 4455807 | CY150: 6363 | CZ150: 4462170 | DA150: 0 | DB150: 0 | DC150: 86986 | DD150: 4549156
A151: 147 | B151: 40.2 | C151: Газы горючие искусственные и услуги по распределению газообразного топлива по трубопроводам | D151: 2 | E151: 0 | F151: 0 | G151: 0 | H151: 0 | I151: 3 | J151: 56 | K151: 19 | L151: 1 | M151: 0 | N151: 0 | O151: 0 | P151: 5 | Q151: 0 | R151: 0 | S151: 0 | T151: 0 | U151: 0 | V151: 0 | W151: 0 | X151: 2 | Y151: 0 | Z151: 0 | AA151: 0 | AB151: 0 | AC151: 0 | AD151: 0 | AE151: 0 | AF151: 0 | AG151: 0 | AH151: 0 | AI151: 50930 | AJ151: 119 | AK151: 0 | AL151: 0 | AM151: 53 | AN151: 0 | AO151: 0 | AP151: 0 | AQ151: 0 | AR151: 0 | AS151: 57 | AT151: 0 | AU151: 0 | AV151: 1 | AW151: 2838 | AX151: 4 | AY151: 0 | AZ151: 0 | BA151: 99 | BB151: 0 | BC151: 357 | BD151: 0 | BE151: 0 | BF151: 0 | BG151: 61 | BH151: 0 | BI151: 0 | BJ151: 0 | BK151: 18 | BL151: 24 | BM151: 0 | BN151: 0 | BO151: 0 | BP151: 0 | BQ151: 618 | BR151: 1397956 | BS151: 435 | BT151: 0 | BU151: 755 | BV151: 0 | BW151: 0 | BX151: 92 | BY151: 0 | BZ151: 0 | CA151: 4 | CB151: 0 | CC151: 14179 | CD151: 0 | CE151: 0 | CF151: 0 | CG151: 0 | CH151: 0 | CI151: 0 | CJ151: 0 | CK151: 6021 | CL151: 0 | CM151: 0 | CN151: 0 | CO151: 0 | CP151: 0 | CQ151: 0 | CR151: 0 | CS151: 2 | CT151: 0 | CU151: 0 | CV151: 0 | CW151: 0 | CX151: 1474711 | CY151: 600 | CZ151: 1475311 | DA151: 0 | DB151: 0 | DC151: 5791 | DD151: 1481102
A152: 148 | B152: 40.3 | C152: Пар и горячая вода (тепловая энергия), услуги по передаче и распределению пара и горячей воды (тепловой энергии) | D152: 1004 | E152: 13 | F152: 0 | G152: 36 | H152: 32 | I152: 297 | J152: 404 | K152: 135 | L152: 319 | M152: 0 | N152: 1375 | O152: 835 | P152: 1592 | Q152: 91 | R152: 7 | S152: 40 | T152: 228 | U152: 272 | V152: 69 | W152: 58 | X152: 236 | Y152: 169 | Z152: 1 | AA152: 322 | AB152: 14 | AC152: 32 | AD152: 626 | AE152: 3187 | AF152: 1 | AG152: 2 | AH152: 83 | AI152: 3338 | AJ152: 2735 | AK152: 0 | AL152: 5 | AM152: 50 | AN152: 19 | AO152: 46 | AP152: 20 | AQ152: 208 | AR152: 95 | AS152: 200 | AT152: 407 | AU152: 91 | AV152: 1020 | AW152: 6814 | AX152: 4658 | AY152: 21 | AZ152: 548 | BA152: 453 | BB152: 196 | BC152: 1523 | BD152: 35 | BE152: 0 | BF152: 19 | BG152: 760 | BH152: 766 | BI152: 747 | BJ152: 15 | BK152: 554 | BL152: 12049 | BM152: 34 | BN152: 33 | BO152: 25 | BP152: 16 | BQ152: 474628 | BR152: 983 | BS152: 1028988 | BT152: 5760 | BU152: 1396 | BV152: 365 | BW152: 81 | BX152: 51 | BY152: 34 | BZ152: 69 | CA152: 17 | CB152: 347 | CC152: 586 | CD152: 17 | CE152: 0 | CF152: 891 | CG152: 13 | CH152: 0 | CI152: 0 | CJ152: 0 | CK152: 13511 | CL152: 102 | CM152: 0 | CN152: 1377 | CO152: 253 | CP152: 0 | CQ152: 9 | CR152: 364 | CS152: 1871 | CT152: 4 | CU152: 11 | CV152: 50 | CW152: 0 | CX152: 1580761 | CY152: 1925 | CZ152: 1582686 | DA152: 0 | DB152: 0 | DC152: 67047 | DD152: 1649734
A153: 149 | B153: 41 | C153: Вода собранная и очищенная, услуги по распределению воды | D153: 416 | E153: 53 | F153: 0 | G153: 2 | H153: 1 | I153: 17 | J153: 28 | K153: 76 | L153: 50 | M153: 0 | N153: 39 | O153: 65 | P153: 199 | Q153: 1 | R153: 0 | S153: 0 | T153: 3 | U153: 5 | V153: 1 | W153: 3 | X153: 23 | Y153: 8 | Z153: 0 | AA153: 15 | AB153: 1 | AC153: 3 | AD153: 20 | AE153: 253 | AF153: 0 | AG153: 0 | AH153: 19 | AI153: 669 | AJ153: 1131 | AK153: 0 | AL153: 0 | AM153: 1 | AN153: 0 | AO153: 34 | AP153: 0 | AQ153: 153 | AR153: 14 | AS153: 65 | AT153: 14 | AU153: 30 | AV153: 23 | AW153: 556 | AX153: 418 | AY153: 1 | AZ153: 3 | BA153: 0 | BB153: 10 | BC153: 207 | BD153: 0 | BE153: 0 | BF153: 0 | BG153: 41 | BH153: 17 | BI153: 696 | BJ153: 0 | BK153: 91 | BL153: 1075 | BM153: 0 | BN153: 0 | BO153: 1 | BP153: 0 | BQ153: 12987 | BR153: 3 | BS153: 24811 | BT153: 216651 | BU153: 701 | BV153: 26 | BW153: 4 | BX153: 0 | BY153: 1 | BZ153: 0 | CA153: 6 | CB153: 64 | CC153: 89 | CD153: 0 | CE153: 0 | CF153: 161 | CG153: 0 | CH153: 0 | CI153: 0 | CJ153: 0 | CK153: 3417 | CL153: 11 | CM153: 27 | CN153: 65 | CO153: 148 | CP153: 0 | CQ153: 0 | CR153: 44 | CS153: 11911 | CT153: 5 | CU153: 0 | CV153: 12 | CW153: 0 | CX153: 277688 | CY153: 286 | CZ153: 277975 | DA153: 0 | DB153: 0 | DC153: 20068 | DD153: 298043
A154: 150 | B154: 45 | C154: Работы строительные | D154: 10618 | E154: 50 | F154: 0 | G154: 505 | H154: 132 | I154: 10277 | J154: 32885 | K154: 418 | L154: 23550 | M154: 0 | N154: 2607 | O154: 8012 | P154: 12337 | Q154: 1528 | R154: 11 | S154: 24 | T154: 331 | U154: 371 | V154: 271 | W154: 14 | X154: 481 | Y154: 359 | Z154: 0 | AA154: 41 | AB154: 3 | AC154: 10 | AD154: 1414 | AE154: 266 | AF154: 0 | AG154: 776 | AH154: 281 | AI154: 761 | AJ154: 3575 | AK154: 0 | AL154: 74 | AM154: 148 | AN154: 1265 | AO154: 128 | AP154: 38 | AQ154: 98 | AR154: 2217 | AS154: 165 | AT154: 1441 | AU154: 38 | AV154: 9254 | AW154: 2171 | AX154: 3284 | AY154: 57 | AZ154: 4127 | BA154: 1716 | BB154: 682 | BC154: 9283 | BD154: 1 | BE154: 0 | BF154: 142 | BG154: 1075 | BH154: 738 | BI154: 1902 | BJ154: 178 | BK154: 325 | BL154: 10771 | BM154: 31 | BN154: 0 | BO154: 27 | BP154: 326 | BQ154: 18153 | BR154: 18362 | BS154: 4149 | BT154: 5561 | BU154: 10378351 | BV154: 0 | BW154: 23156 | BX154: 2012 | BY154: 537 | BZ154: 827 | CA154: 624 | CB154: 14694 | CC154: 3941 | CD154: 3894 | CE154: 8 | CF154: 16420 | CG154: 5633 | CH154: 0 | CI154: 0 | CJ154: 0 | CK154: 18623 | CL154: 2265 | CM154: 5638 | CN154: 7339 | CO154: 32016 | CP154: 0 | CQ154: 2 | CR154: 246 | CS154: 2510 | CT154: 2451 | CU154: 20 | CV154: 25 | CW154: 0 | CX154: 10731070 | CY154: 295391 | CZ154: 11026461 | DA154: 0 | DB154: 0 | DC154: 140792 | DD154: 11167253
A155: 151 | B155: 50 без 50.5 | C155: Услуги по торговле, техническому обслуживанию и ремонту автотранспортных средств и мотоциклов | D155: 72 | E155: 16 | F155: 0 | G155: 4 | H155: 0 | I155: 9 | J155: 3 | K155: 0 | L155: 1 | M155: 0 | N155: 2 | O155: 5 | P155: 1 | Q155: 14 | R155: 0 | S155: 0 | T155: 58 | U155: 0 | V155: 4 | W155: 0 | X155: 10 | Y155: 0 | Z155: 0 | AA155: 0 | AB155: 0 | AC155: 0 | AD155: 7 | AE155: 0 | AF155: 1059 | AG155: 0 | AH155: 0 | AI155: 0 | AJ155: 1 | AK155: 0 | AL155: 0 | AM155: 0 | AN155: 0 | AO155: 230 | AP155: 0 | AQ155: 14 | AR155: 27 | AS155: 8 | AT155: 0 | AU155: 0 | AV155: 7 | AW155: 7 | AX155: 0 | AY155: 0 | AZ155: 8 | BA155: 2 | BB155: 251 | BC155: 1747 | BD155: 0 | BE155: 0 | BF155: 0 | BG155: 122 | BH155: 5 | BI155: 3 | BJ155: 5 | BK155: 61150 | BL155: 13 | BM155: 0 | BN155: 0 | BO155: 0 | BP155: 0 | BQ155: 4 | BR155: 3 | BS155: 1 | BT155: 1 | BU155: 396 | BV155: 1252683 | BW155: 7560 | BX155: 890 | BY155: 0 | BZ155: 2 | CA155: 1 | CB155: 1545 | CC155: 4 | CD155: 0 | CE155: 0 | CF155: 734 | CG155: 1 | CH155: 0 | CI155: 0 | CJ155: 0 | CK155: 201 | CL155: 724 | CM155: 0 | CN155: 2 | CO155: 241 | CP155: 0 | CQ155: 6 | CR155: 0 | CS155: 28 | CT155: 22 | CU155: 4 | CV155: 45 | CW155: 0 | CX155: 1329966 | CY155: 1654 | CZ155: 1331620 | DA155: -806361 | DB155: 0 | DC155: 51084 | DD155: 576343
A156: 152 | B156: 51 | C156: Услуги по оптовой торговле, включая торговлю через агентов, кроме услуг по торговле автотранспортными средствами и мотоциклами | D156: 2562 | E156: 721 | F156: 20 | G156: 924 | H156: 2405 | I156: 5954 | J156: 25149 | K156: 7958 | L156: 9092 | M156: 0 | N156: 298 | O156: 0 | P156: 4351 | Q156: 9593 | R156: 731 | S156: 1337 | T156: 8128 | U156: 7643 | V156: 2130 | W156: 3528 | X156: 32408 | Y156: 26070 | Z156: 5435 | AA156: 2100 | AB156: 15793 | AC156: 610 | AD156: 3211 | AE156: 22749 | AF156: 1597 | AG156: 1832 | AH156: 231 | AI156: 261407 | AJ156: 8660 | AK156: 2545 | AL156: 6115 | AM156: 6704 | AN156: 41466 | AO156: 349 | AP156: 154 | AQ156: 708 | AR156: 8431 | AS156: 2199 | AT156: 2795 | AU156: 1603 | AV156: 9561 | AW156: 16229 | AX156: 4364 | AY156: 251 | AZ156: 6959 | BA156: 3493 | BB156: 6194 | BC156: 56881 | BD156: 8444 | BE156: 3372 | BF156: 2531 | BG156: 16566 | BH156: 1347 | BI156: 3912 | BJ156: 2457 | BK156: 46610 | BL156: 26814 | BM156: 1135 | BN156: 789 | BO156: 301 | BP156: 2589 | BQ156: 18981 | BR156: 6005 | BS156: 270 | BT156: 31 | BU156: 55065 | BV156: 2596 | BW156: 9687361 | BX156: 133765 | BY156: 276 | BZ156: 990 | CA156: 6769 | CB156: 4978 | CC156: 97514 | CD156: 2485 | CE156: 1026 | CF156: 23107 | CG156: 1794 | CH156: 0 | CI156: 0 | CJ156: 0 | CK156: 5222 | CL156: 1063 | CM156: 7163 | CN156: 3297 | CO156: 47001 | CP156: 0 | CQ156: 12 | CR156: 473 | CS156: 116 | CT156: 274 | CU156: 229 | CV156: 16 | CW156: 0 | CX156: 10876376 | CY156: 5626 | CZ156: 10882002 | DA156: -10208214 | DB156: 0 | DC156: 233 | DD156: 674021
A157: 153 | B157: 52 + 50.5 | C157: Услуги по розничной торговле, кроме услуг по торговле автотранспортными средствами и мотоциклами; услуги по ремонту бытовых изделий и предметов личного пользования; услуги по розничной торговле моторным топливом | D157: 2189 | E157: 33 | F157: 6 | G157: 14 | H157: 77 | I157: 0 | J157: 2 | K157: 45 | L157: 60 | M157: 0 | N157: 128 | O157: 74 | P157: 67 | Q157: 3724 | R157: 14 | S157: 200 | T157: 100 | U157: 507 | V157: 57 | W157: 133 | X157: 1457 | Y157: 631 | Z157: 0 | AA157: 223 | AB157: 176 | AC157: 132 | AD157: 207 | AE157: 16 | AF157: 0 | AG157: 2 | AH157: 1 | AI157: 112 | AJ157: 101 | AK157: 0 | AL157: 114 | AM157: 43 | AN157: 2565 | AO157: 1 | AP157: 0 | AQ157: 3 | AR157: 18 | AS157: 20 | AT157: 87 | AU157: 7 | AV157: 209 | AW157: 419 | AX157: 273 | AY157: 3 | AZ157: 69 | BA157: 8 | BB157: 34 | BC157: 220 | BD157: 619 | BE157: 6 | BF157: 1 | BG157: 85 | BH157: 19 | BI157: 451 | BJ157: 209 | BK157: 23 | BL157: 172 | BM157: 453 | BN157: 74 | BO157: 18 | BP157: 1 | BQ157: 193 | BR157: 1106 | BS157: 334 | BT157: 5 | BU157: 150 | BV157: 30 | BW157: 37207 | BX157: 6325956 | BY157: 363 | BZ157: 1722 | CA157: 45 | CB157: 245 | CC157: 168 | CD157: 33 | CE157: 84 | CF157: 2792 | CG157: 14501 | CH157: 0 | CI157: 0 | CJ157: 0 | CK157: 3835 | CL157: 58 | CM157: 307 | CN157: 1183 | CO157: 8752 | CP157: 0 | CQ157: 26 | CR157: 531 | CS157: 40 | CT157: 237 | CU157: 642 | CV157: 884 | CW157: 0 | CX157: 6418139 | CY157: 6 | CZ157: 6418146 | DA157: -6334445 | DB157: 0 | DC157: 6677 | DD157: 90377
A158: 154 | B158: 55.1 + 55.2 | C158: Услуги гостиниц, кемпингов и прочих мест для временного проживания | D158: 74 | E158: 4 | F158: 0 | G158: 6 | H158: 59 | I158: 35 | J158: 358 | K158: 817 | L158: 230 | M158: 2 | N158: 22 | O158: 164 | P158: 170 | Q158: 132 | R158: 20 | S158: 0 | T158: 0 | U158: 7 | V158: 1 | W158: 12 | X158: 29 | Y158: 12 | Z158: 0 | AA158: 7 | AB158: 29 | AC158: 3 | AD158: 12 | AE158: 57 | AF158: 0 | AG158: 2 | AH158: 13 | AI158: 336 | AJ158: 152 | AK158: 0 | AL158: 0 | AM158: 5 | AN158: 0 | AO158: 0 | AP158: 19 | AQ158: 30 | AR158: 0 | AS158: 12 | AT158: 243 | AU158: 23 | AV158: 11 | AW158: 360 | AX158: 138 | AY158: 1 | AZ158: 6 | BA158: 10 | BB158: 1 | BC158: 307 | BD158: 0 | BE158: 0 | BF158: 0 | BG158: 71 | BH158: 65 | BI158: 179 | BJ158: 11 | BK158: 26 | BL158: 1670 | BM158: 0 | BN158: 7 | BO158: 0 | BP158: 0 | BQ158: 202 | BR158: 57 | BS158: 101 | BT158: 48 | BU158: 935 | BV158: 53 | BW158: 2222 | BX158: 44 | BY158: 284287 | BZ158: 2364 | CA158: 1832 | CB158: 475 | CC158: 1978 | CD158: 82 | CE158: 42 | CF158: 1310 | CG158: 317 | CH158: 0 | CI158: 0 | CJ158: 0 | CK158: 4652 | CL158: 49 | CM158: 7 | CN158: 975 | CO158: 306 | CP158: 0 | CQ158: 942 | CR158: 1437 | CS158: 232 | CT158: 184 | CU158: 1288 | CV158: 152 | CW158: 0 | CX158: 312534 | CY158: 2371 | CZ158: 314905 | DA158: 0 | DB158: 0 | DC158: 9682 | DD158: 324587
A159: 155 | B159: 55.3 + 55.4 + 55.5 | C159: Услуги общественного питания | D159: 2413 | E159: 6 | F159: 0 | G159: 19 | H159: 29 | I159: 187 | J159: 1284 | K159: 20 | L159: 22 | M159: 0 | N159: 66 | O159: 591 | P159: 239 | Q159: 1542 | R159: 22 | S159: 177 | T159: 22 | U159: 189 | V159: 30 | W159: 68 | X159: 665 | Y159: 254 | Z159: 0 | AA159: 41 | AB159: 30 | AC159: 41 | AD159: 171 | AE159: 122 | AF159: 0 | AG159: 121 | AH159: 27 | AI159: 325 | AJ159: 358 | AK159: 0 | AL159: 58 | AM159: 58 | AN159: 24 | AO159: 24 | AP159: 4 | AQ159: 34 | AR159: 39 | AS159: 24 | AT159: 116 | AU159: 117 | AV159: 237 | AW159: 783 | AX159: 346 | AY159: 17 | AZ159: 114 | BA159: 29 | BB159: 43 | BC159: 402 | BD159: 8 | BE159: 0 | BF159: 11 | BG159: 233 | BH159: 268 | BI159: 519 | BJ159: 15 | BK159: 180 | BL159: 2524 | BM159: 18 | BN159: 18 | BO159: 7 | BP159: 4 | BQ159: 273 | BR159: 67 | BS159: 39 | BT159: 49 | BU159: 805 | BV159: 9 | BW159: 2614 | BX159: 24450 | BY159: 10939 | BZ159: 1161281 | CA159: 319 | CB159: 510 | CC159: 525 | CD159: 27 | CE159: 303 | CF159: 1422 | CG159: 62 | CH159: 0 | CI159: 0 | CJ159: 0 | CK159: 3730 | CL159: 76 | CM159: 74 | CN159: 1277 | CO159: 1879 | CP159: 0 | CQ159: 243 | CR159: 995 | CS159: 64 | CT159: 189 | CU159: 2977 | CV159: 989 | CW159: 0 | CX159: 1231540 | CY159: 2657 | CZ159: 1234197 | DA159: 0 | DB159: 0 | DC159: 116383 | DD159: 1350580
A160: 156 | B160: 60.10.1 | C160: Услуги междугородного пассажирского железнодорожного транспорта | D160: 0 | E160: 0 | F160: 0 | G160: 0 | H160: 0 | I160: 0 | J160: 0 | K160: 0 | L160: 0 | M160: 0 | N160: 0 | O160: 0 | P160: 0 | Q160: 0 | R160: 0 | S160: 0 | T160: 0 | U160: 0 | V160: 0 | W160: 0 | X160: 0 | Y160: 0 | Z160: 0 | AA160: 0 | AB160: 0 | AC160: 0 | AD160: 0 | AE160: 0 | AF160: 0 | AG160: 0 | AH160: 0 | AI160: 0 | AJ160: 0 | AK160: 0 | AL160: 0 | AM160: 0 | AN160: 0 | AO160: 0 | AP160: 0 | AQ160: 0 | AR160: 0 | AS160: 0 | AT160: 0 | AU160: 0 | AV160: 0 | AW160: 0 | AX160: 0 | AY160: 0 | AZ160: 0 | BA160: 0 | BB160: 0 | BC160: 0 | BD160: 0 | BE160: 0 | BF160: 0 | BG160: 0 | BH160: 0 | BI160: 0 | BJ160: 0 | BK160: 0 | BL160: 0 | BM160: 0 | BN160: 0 | BO160: 0 | BP160: 0 | BQ160: 0 | BR160: 0 | BS160: 0 | BT160: 0 | BU160: 0 | BV160: 0 | BW160: 0 | BX160: 0 | BY160: 0 | BZ160: 0 | CA160: 194979 | CB160: 0 | CC160: 0 | CD160: 0 | CE160: 0 | CF160: 0 | CG160: 0 | CH160: 0 | CI160: 0 | CJ160: 0 | CK160: 0 | CL160: 0 | CM160: 0 | CN160: 0 | CO160: 0 | CP160: 0 | CQ160: 0 | CR160: 0 | CS160: 0 | CT160: 0 | CU160: 0 | CV160: 0 | CW160: 0 | CX160: 194979 | CY160: 11669 | CZ160: 206647 | DA160: 0 | DB160: 0 | DC160: 282 | DD160: 206929
A161: 157 | B161: 60.10.2 + 60.10.3 | C161: Перевозки грузовые междугородные, включая международные, пригородные и внутригородские по железной дороге; услуги маневровые и буксировочные на железной дороге | D161: 0 | E161: 0 | F161: 0 | G161: 9 | H161: 0 | I161: 1124 | J161: 0 | K161: 0 | L161: 0 | M161: 0 | N161: 178 | O161: 32 | P161: 842 | Q161: 4 | R161: 0 | S161: 0 | T161: 44 | U161: 0 | V161: 30 | W161: 706 | X161: 30 | Y161: 0 | Z161: 0 | AA161: 0 | AB161: 0 | AC161: 0 | AD161: 2 | AE161: 733 | AF161: 0 | AG161: 0 | AH161: 0 | AI161: 1 | AJ161: 308 | AK161: 0 | AL161: 11 | AM161: 0 | AN161: 0 | AO161: 0 | AP161: 0 | AQ161: 10 | AR161: 0 | AS161: 0 | AT161: 3 | AU161: 52 | AV161: 921 | AW161: 1114 | AX161: 792 | AY161: 0 | AZ161: 171 | BA161: 25 | BB161: 0 | BC161: 38 | BD161: 0 | BE161: 0 | BF161: 0 | BG161: 17 | BH161: 0 | BI161: 0 | BJ161: 0 | BK161: 22 | BL161: 595 | BM161: 0 | BN161: 0 | BO161: 0 | BP161: 540 | BQ161: 119 | BR161: 0 | BS161: 1246 | BT161: 0 | BU161: 49 | BV161: 0 | BW161: 1006 | BX161: 0 | BY161: 0 | BZ161: 0 | CA161: 1944267 | CB161: 223 | CC161: 2 | CD161: 0 | CE161: 0 | CF161: 7685 | CG161: 0 | CH161: 0 | CI161: 0 | CJ161: 0 | CK161: 82 | CL161: 31 | CM161: 0 | CN161: 87 | CO161: 109 | CP161: 0 | CQ161: 0 | CR161: 0 | CS161: 0 | CT161: 0 | CU161: 0 | CV161: 0 | CW161: 0 | CX161: 1963261 | CY161: 6492 | CZ161: 1969753 | DA161: 0 | DB161: -747923 | DC161: 519 | DD161: 1222349
A162: 158 | B162: 60.21 + 60.22 + 60.23 | C162: Услуги автомобильного и городского (пригородного) электрического пассажирского транспорта | D162: 12 | E162: 0 | F162: 0 | G162: 0 | H162: 0 | I162: 88 | J162: 248 | K162: 160 | L162: 0 | M162: 0 | N162: 18 | O162: 0 | P162: 10 | Q162: 0 | R162: 0 | S162: 0 | T162: 0 | U162: 2 | V162: 0 | W162: 0 | X162: 0 | Y162: 0 | Z162: 0 | AA162: 0 | AB162: 6 | AC162: 0 | AD162: 1 | AE162: 56 | AF162: 0 | AG162: 0 | AH162: 10 | AI162: 0 | AJ162: 29 | AK162: 0 | AL162: 21 | AM162: 0 | AN162: 0 | AO162: 0 | AP162: 0 | AQ162: 0 | AR162: 0 | AS162: 0 | AT162: 0 | AU162: 0 | AV162: 40 | AW162: 38 | AX162: 17 | AY162: 0 | AZ162: 0 | BA162: 1 | BB162: 0 | BC162: 190 | BD162: 0 | BE162: 0 | BF162: 0 | BG162: 1 | BH162: 0 | BI162: 0 | BJ162: 0 | BK162: 169 | BL162: 13 | BM162: 0 | BN162: 0 | BO162: 0 | BP162: 0 | BQ162: 89 | BR162: 0 | BS162: 295 | BT162: 11 | BU162: 229 | BV162: 131 | BW162: 335 | BX162: 91 | BY162: 957 | BZ162: 162 | CA162: 46 | CB162: 1141726 | CC162: 421 | CD162: 2 | CE162: 27 | CF162: 1556 | CG162: 0 | CH162: 0 | CI162: 0 | CJ162: 0 | CK162: 402 | CL162: 6 | CM162: 0 | CN162: 1 | CO162: 547 | CP162: 0 | CQ162: 4 | CR162: 107 | CS162: 127 | CT162: 26 | CU162: 2 | CV162: 37 | CW162: 0 | CX162: 1148466 | CY162: 3968 | CZ162: 1152434 | DA162: 0 | DB162: 0 | DC162: -115550 | DD162: 1036884
A163: 159 | B163: 60.24 | C163: Услуги грузового автомобильного транспорта | D163: 3882 | E163: 33 | F163: 0 | G163: 248 | H163: 59 | I163: 2683 | J163: 929 | K163: 992 | L163: 662 | M163: 0 | N163: 61 | O163: 944 | P163: 372 | Q163: 522 | R163: 25 | S163: 2 | T163: 1295 | U163: 533 | V163: 92 | W163: 599 | X163: 375 | Y163: 257 | Z163: 12 | AA163: 75 | AB163: 8 | AC163: 3 | AD163: 412 | AE163: 386 | AF163: 0 | AG163: 5 | AH163: 0 | AI163: 34 | AJ163: 130 | AK163: 0 | AL163: 7 | AM163: 3 | AN163: 0 | AO163: 22 | AP163: 6 | AQ163: 3 | AR163: 1050 | AS163: 7 | AT163: 209 | AU163: 291 | AV163: 1976 | AW163: 697 | AX163: 2703 | AY163: 4 | AZ163: 437 | BA163: 25 | BB163: 38 | BC163: 630 | BD163: 2 | BE163: 0 | BF163: 0 | BG163: 52 | BH163: 45 | BI163: 61 | BJ163: 10 | BK163: 209 | BL163: 260 | BM163: 66 | BN163: 3 | BO163: 6 | BP163: 102 | BQ163: 350 | BR163: 79 | BS163: 495 | BT163: 153 | BU163: 10518 | BV163: 373 | BW163: 5869 | BX163: 508 | BY163: 1 | BZ163: 301 | CA163: 434 | CB163: 1299587 | CC163: 1012 | CD163: 2054 | CE163: 0 | CF163: 15733 | CG163: 0 | CH163: 0 | CI163: 0 | CJ163: 0 | CK163: 622 | CL163: 571 | CM163: 0 | CN163: 22 | CO163: 479 | CP163: 0 | CQ163: 0 | CR163: 7 | CS163: 409 | CT163: 0 | CU163: 1 | CV163: 9 | CW163: 0 | CX163: 1364139 | CY163: 14398 | CZ163: 1378537 | DA163: 0 | DB163: -84546 | DC163: 3766 | DD163: 1297757
A164: 160 | B164: 60.3 | C164: Услуги транспортирования по трубопроводам | D164: 0 | E164: 0 | F164: 0 | G164: 0 | H164: 0 | I164: 0 | J164: 8348 | K164: 5545 | L164: 1499 | M164: 0 | N164: 0 | O164: 0 | P164: 85 | Q164: 0 | R164: 0 | S164: 0 | T164: 0 | U164: 0 | V164: 0 | W164: 0 | X164: 0 | Y164: 0 | Z164: 0 | AA164: 0 | AB164: 0 | AC164: 0 | AD164: 0 | AE164: 0 | AF164: 0 | AG164: 0 | AH164: 0 | AI164: 12747 | AJ164: 5 | AK164: 0 | AL164: 0 | AM164: 0 | AN164: 0 | AO164: 0 | AP164: 0 | AQ164: 0 | AR164: 0 | AS164: 0 | AT164: 0 | AU164: 0 | AV164: 1 | AW164: 0 | AX164: 1 | AY164: 0 | AZ164: 0 | BA164: 0 | BB164: 0 | BC164: 0 | BD164: 0 | BE164: 0 | BF164: 0 | BG164: 0 | BH164: 0 | BI164: 0 | BJ164: 0 | BK164: 0 | BL164: 0 | BM164: 0 | BN164: 0 | BO164: 0 | BP164: 0 | BQ164: 56 | BR164: 417 | BS164: 77 | BT164: 42 | BU164: 94 | BV164: 0 | BW164: 239718 | BX164: 0 | BY164: 0 | BZ164: 0 | CA164: 0 | CB164: 0 | CC164: 1887653 | CD164: 0 | CE164: 0 | CF164: 1031 | CG164: 0 | CH164: 0 | CI164: 0 | CJ164: 0 | CK164: 23 | CL164: 0 | CM164: 0 | CN164: 0 | CO164: 0 | CP164: 0 | CQ164: 0 | CR164: 0 | CS164: 0 | CT164: 0 | CU164: 0 | CV164: 0 | CW164: 0 | CX164: 2157342 | CY164: 18156 | CZ164: 2175498 | DA164: 0 | DB164: -171482 | DC164: 0 | DD164: 2004016
A165: 161 | B165: 61.10.1 | C165: Услуги морского пассажирского транспорта | D165: 0 | E165: 0 | F165: 0 | G165: 0 | H165: 0 | I165: 0 | J165: 0 | K165: 0 | L165: 0 | M165: 0 | N165: 0 | O165: 0 | P165: 0 | Q165: 0 | R165: 0 | S165: 0 | T165: 0 | U165: 0 | V165: 0 | W165: 0 | X165: 0 | Y165: 0 | Z165: 0 | AA165: 0 | AB165: 0 | AC165: 0 | AD165: 0 | AE165: 0 | AF165: 0 | AG165: 0 | AH165: 0 | AI165: 0 | AJ165: 0 | AK165: 0 | AL165: 0 | AM165: 0 | AN165: 0 | AO165: 0 | AP165: 0 | AQ165: 0 | AR165: 0 | AS165: 0 | AT165: 0 | AU165: 0 | AV165: 0 | AW165: 0 | AX165: 0 | AY165: 0 | AZ165: 0 | BA165: 0 | BB165: 0 | BC165: 0 | BD165: 0 | BE165: 0 | BF165: 0 | BG165: 0 | BH165: 0 | BI165: 0 | BJ165: 0 | BK165: 0 | BL165: 0 | BM165: 0 | BN165: 0 | BO165: 0 | BP165: 0 | BQ165: 0 | BR165: 0 | BS165: 0 | BT165: 0 | BU165: 0 | BV165: 0 | BW165: 0 | BX165: 0 | BY165: 0 | BZ165: 0 | CA165: 0 | CB165: 0 | CC165: 0 | CD165: 4527 | CE165: 0 | CF165: 1325 | CG165: 146 | CH165: 0 | CI165: 0 | CJ165: 0 | CK165: 0 | CL165: 0 | CM165: 0 | CN165: 0 | CO165: 0 | CP165: 0 | CQ165: 0 | CR165: 0 | CS165: 0 | CT165: 0 | CU165: 0 | CV165: 0 | CW165: 0 | CX165: 5998 | CY165: 267 | CZ165: 6265 | DA165: 0 | DB165: 0 | DC165: 581 | DD165: 6846
A166: 162 | B166: 61.10.2 + 61.10.3 | C166: Услуги морского грузового транспорта (включая услуги буксировочные и маневровые) | D166: 0 | E166: 0 | F166: 0 | G166: 3 | H166: 7908 | I166: 0 | J166: 0 | K166: 0 | L166: 0 | M166: 0 | N166: 0 | O166: 19 | P166: 0 | Q166: 0 | R166: 1408 | S166: 0 | T166: 0 | U166: 0 | V166: 0 | W166: 0 | X166: 0 | Y166: 0 | Z166: 0 | AA166: 0 | AB166: 0 | AC166: 0 | AD166: 0 | AE166: 0 | AF166: 0 | AG166: 0 | AH166: 0 | AI166: 0 | AJ166: 0 | AK166: 0 | AL166: 0 | AM166: 0 | AN166: 5 | AO166: 0 | AP166: 0 | AQ166: 0 | AR166: 0 | AS166: 0 | AT166: 0 | AU166: 0 | AV166: 0 | AW166: 0 | AX166: 2843 | AY166: 0 | AZ166: 0 | BA166: 0 | BB166: 0 | BC166: 0 | BD166: 0 | BE166: 0 | BF166: 0 | BG166: 0 | BH166: 0 | BI166: 0 | BJ166: 0 | BK166: 0 | BL166: 64 | BM166: 0 | BN166: 0 | BO166: 0 | BP166: 0 | BQ166: 0 | BR166: 0 | BS166: 0 | BT166: 0 | BU166: 0 | BV166: 0 | BW166: 887 | BX166: 0 | BY166: 0 | BZ166: 0 | CA166: 0 | CB166: 0 | CC166: 0 | CD166: 114115 | CE166: 0 | CF166: 2037 | CG166: 0 | CH166: 0 | CI166: 0 | CJ166: 0 | CK166: 87 | CL166: 0 | CM166: 0 | CN166: 0 | CO166: 5 | CP166: 0 | CQ166: 0 | CR166: 0 | CS166: 0 | CT166: 0 | CU166: 0 | CV166: 0 | CW166: 0 | CX166: 129382 | CY166: 64184 | CZ166: 193566 | DA166: 0 | DB166: -771 | DC166: 44 | DD166: 192840
A167: 163 | B167: 61.20.1 | C167: Услуги по пассажирским перевозкам транспортными средствами по внутренним водным путям | D167: 0 | E167: 0 | F167: 0 | G167: 1 | H167: 0 | I167: 0 | J167: 0 | K167: 0 | L167: 0 | M167: 0 | N167: 0 | O167: 0 | P167: 41 | Q167: 0 | R167: 0 | S167: 0 | T167: 0 | U167: 0 | V167: 0 | W167: 0 | X167: 0 | Y167: 0 | Z167: 0 | AA167: 0 | AB167: 0 | AC167: 0 | AD167: 0 | AE167: 0 | AF167: 0 | AG167: 0 | AH167: 0 | AI167: 0 | AJ167: 0 | AK167: 0 | AL167: 0 | AM167: 0 | AN167: 0 | AO167: 0 | AP167: 0 | AQ167: 0 | AR167: 0 | AS167: 0 | AT167: 0 | AU167: 0 | AV167: 0 | AW167: 0 | AX167: 0 | AY167: 0 | AZ167: 0 | BA167: 0 | BB167: 0 | BC167: 0 | BD167: 0 | BE167: 0 | BF167: 0 | BG167: 0 | BH167: 0 | BI167: 0 | BJ167: 0 | BK167: 0 | BL167: 0 | BM167: 0 | BN167: 0 | BO167: 0 | BP167: 0 | BQ167: 4 | BR167: 0 | BS167: 0 | BT167: 0 | BU167: 30 | BV167: 0 | BW167: 88 | BX167: 0 | BY167: 0 | BZ167: 0 | CA167: 1 | CB167: 54 | CC167: 1 | CD167: 22164 | CE167: 0 | CF167: 30 | CG167: 0 | CH167: 0 | CI167: 0 | CJ167: 0 | CK167: 0 | CL167: 0 | CM167: 0 | CN167: 6 | CO167: 0 | CP167: 0 | CQ167: 0 | CR167: 0 | CS167: 1 | CT167: 0 | CU167: 0 | CV167: 3 | CW167: 0 | CX167: 22425 | CY167: 4 | CZ167: 22428 | DA167: 0 | DB167: 0 | DC167: -345 | DD167: 22083
A168: 164 | B168: 61.20.2 + 61.20.3 | C168: Услуги внутреннего водного грузового транспорта (включая услуги буксировочные и маневровые) | D168: 3 | E168: 0 | F168: 0 | G168: 6 | H168: 12 | I168: 0 | J168: 0 | K168: 0 | L168: 26 | M168: 0 | N168: 0 | O168: 13 | P168: 491 | Q168: 0 | R168: 0 | S168: 0 | T168: 0 | U168: 0 | V168: 0 | W168: 0 | X168: 0 | Y168: 0 | Z168: 0 | AA168: 0 | AB168: 0 | AC168: 0 | AD168: 0 | AE168: 0 | AF168: 0 | AG168: 0 | AH168: 0 | AI168: 0 | AJ168: 0 | AK168: 0 | AL168: 0 | AM168: 0 | AN168: 0 | AO168: 0 | AP168: 0 | AQ168: 0 | AR168: 0 | AS168: 0 | AT168: 3 | AU168: 0 | AV168: 0 | AW168: 0 | AX168: 0 | AY168: 0 | AZ168: 0 | BA168: 0 | BB168: 0 | BC168: 0 | BD168: 0 | BE168: 0 | BF168: 0 | BG168: 0 | BH168: 0 | BI168: 0 | BJ168: 4 | BK168: 0 | BL168: 106 | BM168: 0 | BN168: 0 | BO168: 0 | BP168: 0 | BQ168: 1 | BR168: 0 | BS168: 25 | BT168: 1 | BU168: 276 | BV168: 0 | BW168: 93 | BX168: 1 | BY168: 0 | BZ168: 0 | CA168: 0 | CB168: 165 | CC168: 14 | CD168: 69890 | CE168: 0 | CF168: 1088 | CG168: 0 | CH168: 0 | CI168: 0 | CJ168: 0 | CK168: 4 | CL168: 0 | CM168: 0 | CN168: 0 | CO168: 249 | CP168: 0 | CQ168: 0 | CR168: 0 | CS168: 0 | CT168: 0 | CU168: 0 | CV168: 0 | CW168: 0 | CX168: 72469 | CY168: 0 | CZ168: 72469 | DA168: 0 | DB168: -48062 | DC168: 27 | DD168: 24434
A169: 165 | B169: 62.10.1 + 62.20.1 | C169: Услуги по пассажирским перевозкам воздушным транспортом | D169: 0 | E169: 0 | F169: 0 | G169: 0 | H169: 0 | I169: 10 | J169: 0 | K169: 25 | L169: 3 | M169: 0 | N169: 0 | O169: 0 | P169: 0 | Q169: 0 | R169: 0 | S169: 0 | T169: 0 | U169: 0 | V169: 0 | W169: 0 | X169: 0 | Y169: 0 | Z169: 0 | AA169: 0 | AB169: 0 | AC169: 0 | AD169: 0 | AE169: 0 | AF169: 0 | AG169: 0 | AH169: 0 | AI169: 0 | AJ169: 0 | AK169: 0 | AL169: 0 | AM169: 0 | AN169: 0 | AO169: 0 | AP169: 0 | AQ169: 0 | AR169: 0 | AS169: 0 | AT169: 0 | AU169: 0 | AV169: 0 | AW169: 0 | AX169: 1 | AY169: 0 | AZ169: 0 | BA169: 0 | BB169: 0 | BC169: 0 | BD169: 0 | BE169: 0 | BF169: 0 | BG169: 0 | BH169: 0 | BI169: 0 | BJ169: 0 | BK169: 0 | BL169: 0 | BM169: 0 | BN169: 0 | BO169: 0 | BP169: 0 | BQ169: 3 | BR169: 0 | BS169: 0 | BT169: 0 | BU169: 0 | BV169: 0 | BW169: 0 | BX169: 0 | BY169: 1 | BZ169: 0 | CA169: 0 | CB169: 15 | CC169: 18 | CD169: 0 | CE169: 907357 | CF169: 623 | CG169: 0 | CH169: 0 | CI169: 0 | CJ169: 0 | CK169: 0 | CL169: 0 | CM169: 0 | CN169: 0 | CO169: 1 | CP169: 0 | CQ169: 0 | CR169: 0 | CS169: 0 | CT169: 3 | CU169: 4 | CV169: 0 | CW169: 0 | CX169: 908063 | CY169: 234736 | CZ169: 1142799 | DA169: 0 | DB169: 0 | DC169: 48409 | DD169: 1191209
A170: 166 | B170: 62.10.2 + 62.20.2 + 62.20.3 | C170: Услуги воздушного грузового транспорта | D170: 1 | E170: 0 | F170: 0 | G170: 0 | H170: 0 | I170: 0 | J170: 0 | K170: 35 | L170: 0 | M170: 0 | N170: 0 | O170: 0 | P170: 0 | Q170: 0 | R170: 0 | S170: 0 | T170: 0 | U170: 0 | V170: 0 | W170: 0 | X170: 0 | Y170: 0 | Z170: 0 | AA170: 0 | AB170: 0 | AC170: 0 | AD170: 0 | AE170: 0 | AF170: 0 | AG170: 0 | AH170: 0 | AI170: 0 | AJ170: 0 | AK170: 0 | AL170: 0 | AM170: 0 | AN170: 0 | AO170: 0 | AP170: 0 | AQ170: 0 | AR170: 0 | AS170: 0 | AT170: 0 | AU170: 0 | AV170: 0 | AW170: 0 | AX170: 0 | AY170: 0 | AZ170: 0 | BA170: 0 | BB170: 0 | BC170: 0 | BD170: 0 | BE170: 0 | BF170: 0 | BG170: 0 | BH170: 0 | BI170: 6 | BJ170: 0 | BK170: 0 | BL170: 46 | BM170: 0 | BN170: 0 | BO170: 0 | BP170: 0 | BQ170: 0 | BR170: 0 | BS170: 0 | BT170: 0 | BU170: 0 | BV170: 0 | BW170: 0 | BX170: 0 | BY170: 0 | BZ170: 0 | CA170: 0 | CB170: 0 | CC170: 2 | CD170: 0 | CE170: 173277 | CF170: 7 | CG170: 0 | CH170: 0 | CI170: 0 | CJ170: 0 | CK170: 0 | CL170: 14 | CM170: 0 | CN170: 0 | CO170: 0 | CP170: 0 | CQ170: 13 | CR170: 0 | CS170: 0 | CT170: 10 | CU170: 0 | CV170: 0 | CW170: 0 | CX170: 173411 | CY170: 45730 | CZ170: 219141 | DA170: 0 | DB170: -5680 | DC170: 870 | DD170: 214331
A171: 167 | B171: 62.3 | C171: Услуги космического транспорта | D171: 0 | E171: 0 | F171: 0 | G171: 0 | H171: 0 | I171: 0 | J171: 0 | K171: 0 | L171: 0 | M171: 0 | N171: 0 | O171: 0 | P171: 0 | Q171: 0 | R171: 0 | S171: 0 | T171: 0 | U171: 0 | V171: 0 | W171: 0 | X171: 0 | Y171: 0 | Z171: 0 | AA171: 0 | AB171: 0 | AC171: 0 | AD171: 0 | AE171: 0 | AF171: 0 | AG171: 0 | AH171: 0 | AI171: 0 | AJ171: 0 | AK171: 0 | AL171: 0 | AM171: 0 | AN171: 0 | AO171: 0 | AP171: 0 | AQ171: 0 | AR171: 0 | AS171: 0 | AT171: 0 | AU171: 0 | AV171: 0 | AW171: 0 | AX171: 0 | AY171: 0 | AZ171: 0 | BA171: 0 | BB171: 0 | BC171: 0 | BD171: 0 | BE171: 0 | BF171: 0 | BG171: 0 | BH171: 0 | BI171: 35 | BJ171: 0 | BK171: 0 | BL171: 9708 | BM171: 0 | BN171: 0 | BO171: 0 | BP171: 0 | BQ171: 0 | BR171: 0 | BS171: 0 | BT171: 0 | BU171: 0 | BV171: 0 | BW171: 0 | BX171: 0 | BY171: 0 | BZ171: 0 | CA171: 0 | CB171: 0 | CC171: 0 | CD171: 0 | CE171: 216 | CF171: 0 | CG171: 0 | CH171: 0 | CI171: 0 | CJ171: 0 | CK171: 0 | CL171: 0 | CM171: 0 | CN171: 0 | CO171: 0 | CP171: 0 | CQ171: 0 | CR171: 0 | CS171: 0 | CT171: 0 | CU171: 0 | CV171: 0 | CW171: 0 | CX171: 9960 | CY171: 16 | CZ171: 9976 | DA171: 0 | DB171: 0 | DC171: 777 | DD171: 10754
A172: 168 | B172: 63.1 | C172: Услуги по транспортной обработке и хранению грузов | D172: 1712 | E172: 2 | F172: 0 | G172: 92 | H172: 97 | I172: 799 | J172: 755 | K172: 2456 | L172: 1782 | M172: 0 | N172: 51 | O172: 153 | P172: 838 | Q172: 33 | R172: 112 | S172: 0 | T172: 1432 | U172: 137 | V172: 1796 | W172: 2116 | X172: 975 | Y172: 43 | Z172: 143 | AA172: 7 | AB172: 0 | AC172: 1 | AD172: 654 | AE172: 125 | AF172: 0 | AG172: 339 | AH172: 0 | AI172: 1054 | AJ172: 98 | AK172: 1 | AL172: 54 | AM172: 1 | AN172: 988 | AO172: 0 | AP172: 0 | AQ172: 28 | AR172: 297 | AS172: 5 | AT172: 99 | AU172: 9 | AV172: 639 | AW172: 573 | AX172: 839 | AY172: 0 | AZ172: 65 | BA172: 184 | BB172: 56 | BC172: 62 | BD172: 214 | BE172: 0 | BF172: 0 | BG172: 33 | BH172: 2 | BI172: 16 | BJ172: 1 | BK172: 264 | BL172: 537 | BM172: 5 | BN172: 0 | BO172: 0 | BP172: 3 | BQ172: 404 | BR172: 7 | BS172: 143 | BT172: 118 | BU172: 946 | BV172: 649 | BW172: 16993 | BX172: 5513 | BY172: 0 | BZ172: 140 | CA172: 386 | CB172: 1242 | CC172: 4708 | CD172: 3710 | CE172: 98 | CF172: 781148 | CG172: 0 | CH172: 0 | CI172: 0 | CJ172: 0 | CK172: 3012 | CL172: 2 | CM172: 530 | CN172: 69 | CO172: 488 | CP172: 0 | CQ172: 0 | CR172: 0 | CS172: 10 | CT172: 0 | CU172: 2 | CV172: 0 | CW172: 0 | CX172: 843097 | CY172: 38384 | CZ172: 881481 | DA172: 0 | DB172: 0 | DC172: 4031 | DD172: 885512
A173: 169 | B173: 63.21 | C173: Услуги вспомогательные для сухопутного транспорта прочие | D173: 8 | E173: 44 | F173: 0 | G173: 1 | H173: 0 | I173: 40 | J173: 80 | K173: 19 | L173: 1 | M173: 0 | N173: 18 | O173: 0 | P173: 600 | Q173: 0 | R173: 1 | S173: 0 | T173: 0 | U173: 0 | V173: 4 | W173: 4 | X173: 3 | Y173: 5 | Z173: 0 | AA173: 1 | AB173: 1 | AC173: 0 | AD173: 2 | AE173: 1 | AF173: 0 | AG173: 2 | AH173: 0 | AI173: 0 | AJ173: 572 | AK173: 0 | AL173: 0 | AM173: 0 | AN173: 0 | AO173: 0 | AP173: 0 | AQ173: 0 | AR173: 0 | AS173: 0 | AT173: 14 | AU173: 0 | AV173: 5 | AW173: 33 | AX173: 59 | AY173: 5 | AZ173: 7 | BA173: 1 | BB173: 16 | BC173: 2 | BD173: 0 | BE173: 0 | BF173: 0 | BG173: 12 | BH173: 5 | BI173: 11 | BJ173: 0 | BK173: 14 | BL173: 58 | BM173: 0 | BN173: 0 | BO173: 2 | BP173: 130 | BQ173: 41 | BR173: 0 | BS173: 565 | BT173: 24 | BU173: 21524 | BV173: 19 | BW173: 42 | BX173: 26 | BY173: 55 | BZ173: 22 | CA173: 135159 | CB173: 1442 | CC173: 4 | CD173: 33 | CE173: 9 | CF173: 277240 | CG173: 7 | CH173: 0 | CI173: 0 | CJ173: 0 | CK173: 331 | CL173: 0 | CM173: 0 | CN173: 45 | CO173: 1030 | CP173: 0 | CQ173: 21 | CR173: 39 | CS173: 712 | CT173: 127 | CU173: 27 | CV173: 28 | CW173: 0 | CX173: 440351 | CY173: 10984 | CZ173: 451335 | DA173: 0 | DB173: 0 | DC173: 27060 | DD173: 478395
A174: 170 | B174: 63.22 | C174: Услуги вспомогательные для водного транспорта прочие | D174: 0 | E174: 0 | F174: 0 | G174: 0 | H174: 111 | I174: 0 | J174: 0 | K174: 6 | L174: 0 | M174: 0 | N174: 0 | O174: 0 | P174: 99 | Q174: 0 | R174: 10 | S174: 0 | T174: 0 | U174: 0 | V174: 0 | W174: 0 | X174: 0 | Y174: 0 | Z174: 0 | AA174: 0 | AB174: 0 | AC174: 0 | AD174: 39 | AE174: 0 | AF174: 0 | AG174: 0 | AH174: 0 | AI174: 9 | AJ174: 19 | AK174: 0 | AL174: 0 | AM174: 0 | AN174: 0 | AO174: 0 | AP174: 0 | AQ174: 0 | AR174: 0 | AS174: 0 | AT174: 0 | AU174: 0 | AV174: 0 | AW174: 0 | AX174: 9 | AY174: 0 | AZ174: 0 | BA174: 0 | BB174: 0 | BC174: 0 | BD174: 0 | BE174: 0 | BF174: 0 | BG174: 0 | BH174: 0 | BI174: 0 | BJ174: 0 | BK174: 0 | BL174: 165 | BM174: 0 | BN174: 0 | BO174: 0 | BP174: 0 | BQ174: 0 | BR174: 0 | BS174: 0 | BT174: 0 | BU174: 548 | BV174: 0 | BW174: 122 | BX174: 0 | BY174: 0 | BZ174: 0 | CA174: 0 | CB174: 1 | CC174: 0 | CD174: 8944 | CE174: 0 | CF174: 84047 | CG174: 0 | CH174: 0 | CI174: 0 | CJ174: 0 | CK174: 98 | CL174: 1 | CM174: 0 | CN174: 0 | CO174: 145 | CP174: 0 | CQ174: 0 | CR174: 0 | CS174: 3 | CT174: 2 | CU174: 0 | CV174: 0 | CW174: 0 | CX174: 94380 | CY174: 5850 | CZ174: 100229 | DA174: 0 | DB174: 0 | DC174: 0 | DD174: 100229
A175: 171 | B175: 63.23 | C175: Услуги вспомогательные для воздушного и космического транспорта прочие | D175: 0 | E175: 0 | F175: 0 | G175: 0 | H175: 0 | I175: 0 | J175: 0 | K175: 0 | L175: 0 | M175: 0 | N175: 0 | O175: 96 | P175: 1107 | Q175: 0 | R175: 0 | S175: 0 | T175: 0 | U175: 0 | V175: 0 | W175: 0 | X175: 0 | Y175: 0 | Z175: 0 | AA175: 0 | AB175: 0 | AC175: 0 | AD175: 0 | AE175: 0 | AF175: 0 | AG175: 0 | AH175: 0 | AI175: 17 | AJ175: 0 | AK175: 0 | AL175: 0 | AM175: 0 | AN175: 0 | AO175: 0 | AP175: 0 | AQ175: 0 | AR175: 0 | AS175: 0 | AT175: 0 | AU175: 0 | AV175: 0 | AW175: 0 | AX175: 0 | AY175: 0 | AZ175: 0 | BA175: 0 | BB175: 0 | BC175: 0 | BD175: 0 | BE175: 0 | BF175: 0 | BG175: 0 | BH175: 0 | BI175: 35 | BJ175: 0 | BK175: 0 | BL175: 288 | BM175: 0 | BN175: 0 | BO175: 0 | BP175: 0 | BQ175: 0 | BR175: 0 | BS175: 0 | BT175: 0 | BU175: 16 | BV175: 0 | BW175: 5483 | BX175: 32 | BY175: 0 | BZ175: 55 | CA175: 0 | CB175: 0 | CC175: 0 | CD175: 0 | CE175: 42589 | CF175: 308800 | CG175: 6 | CH175: 0 | CI175: 0 | CJ175: 0 | CK175: 1735 | CL175: 0 | CM175: 4 | CN175: 1245 | CO175: 1 | CP175: 0 | CQ175: 0 | CR175: 0 | CS175: 0 | CT175: 0 | CU175: 0 | CV175: 0 | CW175: 0 | CX175: 361507 | CY175: 58780 | CZ175: 420287 | DA175: 0 | DB175: 0 | DC175: 0 | DD175: 420287
A176: 172 | B176: 63.3 | C176: Услуги туристических агентств и туроператоров; услуги по обслуживанию туристов, не включенные в другие группировки | D176: 4 | E176: 0 | F176: 1 | G176: 1 | H176: 6 | I176: 140 | J176: 0 | K176: 0 | L176: 0 | M176: 0 | N176: 0 | O176: 0 | P176: 0 | Q176: 0 | R176: 0 | S176: 0 | T176: 0 | U176: 0 | V176: 0 | W176: 0 | X176: 1 | Y176: 1 | Z176: 0 | AA176: 0 | AB176: 0 | AC176: 0 | AD176: 0 | AE176: 0 | AF176: 0 | AG176: 0 | AH176: 0 | AI176: 0 | AJ176: 0 | AK176: 0 | AL176: 0 | AM176: 0 | AN176: 0 | AO176: 0 | AP176: 0 | AQ176: 0 | AR176: 0 | AS176: 0 | AT176: 0 | AU176: 0 | AV176: 4 | AW176: 0 | AX176: 0 | AY176: 0 | AZ176: 0 | BA176: 0 | BB176: 0 | BC176: 0 | BD176: 0 | BE176: 0 | BF176: 0 | BG176: 0 | BH176: 0 | BI176: 0 | BJ176: 0 | BK176: 0 | BL176: 0 | BM176: 0 | BN176: 0 | BO176: 2 | BP176: 0 | BQ176: 0 | BR176: 0 | BS176: 0 | BT176: 0 | BU176: 0 | BV176: 0 | BW176: 0 | BX176: 0 | BY176: 67 | BZ176: 92 | CA176: 0 | CB176: 52 | CC176: 0 | CD176: 6 | CE176: 0 | CF176: 187838 | CG176: 3 | CH176: 0 | CI176: 0 | CJ176: 0 | CK176: 2 | CL176: 0 | CM176: 0 | CN176: 0 | CO176: 1136 | CP176: 0 | CQ176: 0 | CR176: 110 | CS176: 0 | CT176: 24 | CU176: 0 | CV176: 97 | CW176: 0 | CX176: 189587 | CY176: 2265 | CZ176: 191852 | DA176: 0 | DB176: 0 | DC176: 14588 | DD176: 206439
A177: 173 | B177: 63.4 | C177: Услуги транспортно-экспедиционных агентств | D177: 169 | E177: 0 | F177: 0 | G177: 604 | H177: 0 | I177: 421 | J177: 1 | K177: 0 | L177: 116 | M177: 0 | N177: 69 | O177: 184 | P177: 4655 | Q177: 12 | R177: 0 | S177: 0 | T177: 416 | U177: 10 | V177: 3 | W177: 2 | X177: 66 | Y177: 21 | Z177: 1 | AA177: 0 | AB177: 16 | AC177: 0 | AD177: 11 | AE177: 1052 | AF177: 0 | AG177: 683 | AH177: 0 | AI177: 5810 | AJ177: 816 | AK177: 0 | AL177: 12 | AM177: 0 | AN177: 0 | AO177: 0 | AP177: 0 | AQ177: 2 | AR177: 316 | AS177: 7 | AT177: 334 | AU177: 1 | AV177: 1209 | AW177: 641 | AX177: 185 | AY177: 2 | AZ177: 83 | BA177: 181 | BB177: 2 | BC177: 1191 | BD177: 2 | BE177: 0 | BF177: 0 | BG177: 5 | BH177: 8 | BI177: 1 | BJ177: 0 | BK177: 88 | BL177: 1129 | BM177: 84 | BN177: 0 | BO177: 2 | BP177: 4 | BQ177: 18 | BR177: 0 | BS177: 58 | BT177: 17 | BU177: 1394 | BV177: 42 | BW177: 9465 | BX177: 8855 | BY177: 0 | BZ177: 0 | CA177: 12340 | CB177: 11259 | CC177: 260 | CD177: 3197 | CE177: 15 | CF177: 1896116 | CG177: 7 | CH177: 0 | CI177: 0 | CJ177: 0 | CK177: 105 | CL177: 69 | CM177: 13 | CN177: 0 | CO177: 509 | CP177: 0 | CQ177: 0 | CR177: 11 | CS177: 4 | CT177: 0 | CU177: 0 | CV177: 0 | CW177: 0 | CX177: 1964381 | CY177: 9362 | CZ177: 1973743 | DA177: 0 | DB177: 0 | DC177: 999 | DD177: 1974741
A178: 174 | B178: 64.1 | C178: Услуги почты и курьерской связи | D178: 0 | E178: 0 | F178: 0 | G178: 0 | H178: 0 | I178: 0 | J178: 0 | K178: 0 | L178: 0 | M178: 0 | N178: 0 | O178: 0 | P178: 0 | Q178: 0 | R178: 0 | S178: 0 | T178: 0 | U178: 0 | V178: 0 | W178: 0 | X178: 0 | Y178: 0 | Z178: 0 | AA178: 0 | AB178: 0 | AC178: 0 | AD178: 0 | AE178: 0 | AF178: 42 | AG178: 6 | AH178: 0 | AI178: 0 | AJ178: 0 | AK178: 0 | AL178: 0 | AM178: 0 | AN178: 0 | AO178: 0 | AP178: 0 | AQ178: 0 | AR178: 0 | AS178: 0 | AT178: 0 | AU178: 0 | AV178: 0 | AW178: 0 | AX178: 0 | AY178: 0 | AZ178: 0 | BA178: 0 | BB178: 0 | BC178: 0 | BD178: 0 | BE178: 0 | BF178: 0 | BG178: 0 | BH178: 0 | BI178: 0 | BJ178: 0 | BK178: 0 | BL178: 3 | BM178: 0 | BN178: 0 | BO178: 0 | BP178: 0 | BQ178: 0 | BR178: 0 | BS178: 1 | BT178: 0 | BU178: 0 | BV178: 0 | BW178: 220 | BX178: 828 | BY178: 0 | BZ178: 0 | CA178: 3 | CB178: 0 | CC178: 0 | CD178: 0 | CE178: 0 | CF178: 0 | CG178: 205564 | CH178: 0 | CI178: 0 | CJ178: 0 | CK178: 1 | CL178: 0 | CM178: 8 | CN178: 0 | CO178: 61 | CP178: 0 | CQ178: 0 | CR178: 0 | CS178: 0 | CT178: 0 | CU178: 0 | CV178: 0 | CW178: 0 | CX178: 206737 | CY178: 2539 | CZ178: 209275 | DA178: 0 | DB178: 0 | DC178: 15697 | DD178: 224972
A179: 175 | B179: 64.2 | C179: Услуги электросвязи | D179: 340 | E179: 0 | F179: 0 | G179: 0 | H179: 12 | I179: 25 | J179: 49 | K179: 96 | L179: 0 | M179: 0 | N179: 12 | O179: 9 | P179: 111 | Q179: 0 | R179: 0 | S179: 0 | T179: 0 | U179: 0 | V179: 0 | W179: 0 | X179: 0 | Y179: 1 | Z179: 0 | AA179: 1 | AB179: 0 | AC179: 0 | AD179: 0 | AE179: 2 | AF179: 2 | AG179: 632 | AH179: 0 | AI179: 62 | AJ179: 30 | AK179: 0 | AL179: 1 | AM179: 0 | AN179: 0 | AO179: 0 | AP179: 0 | AQ179: 1 | AR179: 1 | AS179: 1 | AT179: 1 | AU179: 0 | AV179: 0 | AW179: 67 | AX179: 3 | AY179: 7 | AZ179: 0 | BA179: 2 | BB179: 2 | BC179: 48 | BD179: 0 | BE179: 0 | BF179: 0 | BG179: 54 | BH179: 5 | BI179: 134 | BJ179: 0 | BK179: 39 | BL179: 102 | BM179: 22 | BN179: 0 | BO179: 0 | BP179: 0 | BQ179: 438 | BR179: 0 | BS179: 140 | BT179: 0 | BU179: 5041 | BV179: 0 | BW179: 209 | BX179: 11 | BY179: 0 | BZ179: 0 | CA179: 6 | CB179: 124 | CC179: 607 | CD179: 4 | CE179: 5 | CF179: 357 | CG179: 1770540 | CH179: 0 | CI179: 0 | CJ179: 0 | CK179: 140 | CL179: 12 | CM179: 5742 | CN179: 916 | CO179: 103 | CP179: 0 | CQ179: 0 | CR179: 0 | CS179: 2 | CT179: 0 | CU179: 110 | CV179: 0 | CW179: 0 | CX179: 1786383 | CY179: 136999 | CZ179: 1923382 | DA179: 0 | DB179: 0 | DC179: 191496 | DD179: 2114878
A180: 176 | B180: 65 | C180: Услуги по финансовому посредничеству | D180: 23 | E180: 23 | F180: 0 | G180: 0 | H180: 0 | I180: 1 | J180: 1 | K180: 0 | L180: 0 | M180: 0 | N180: 0 | O180: 0 | P180: 0 | Q180: 0 | R180: 0 | S180: 0 | T180: 0 | U180: 306 | V180: 0 | W180: 0 | X180: 0 | Y180: 0 | Z180: 0 | AA180: 0 | AB180: 0 | AC180: 0 | AD180: 0 | AE180: 0 | AF180: 0 | AG180: 0 | AH180: 0 | AI180: 0 | AJ180: 64 | AK180: 0 | AL180: 0 | AM180: 0 | AN180: 0 | AO180: 0 | AP180: 0 | AQ180: 0 | AR180: 0 | AS180: 0 | AT180: 6 | AU180: 0 | AV180: 15 | AW180: 5 | AX180: 0 | AY180: 0 | AZ180: 0 | BA180: 0 | BB180: 0 | BC180: 0 | BD180: 0 | BE180: 0 | BF180: 0 | BG180: 0 | BH180: 0 | BI180: 0 | BJ180: 0 | BK180: 2 | BL180: 163 | BM180: 0 | BN180: 0 | BO180: 0 | BP180: 0 | BQ180: 40 | BR180: 3 | BS180: 4 | BT180: 33 | BU180: 350 | BV180: 42 | BW180: 395 | BX180: 3 | BY180: 0 | BZ180: 0 | CA180: 0 | CB180: 7 | CC180: 72 | CD180: 0 | CE180: 0 | CF180: 1 | CG180: 9856 | CH180: 3821624 | CI180: 0 | CJ180: 0 | CK180: 1478 | CL180: 104 | CM180: 0 | CN180: 0 | CO180: 811 | CP180: 0 | CQ180: 1 | CR180: 0 | CS180: 8 | CT180: 9 | CU180: 0 | CV180: 180 | CW180: 0 | CX180: 3835630 | CY180: 136180 | CZ180: 3971809 | DA180: 0 | DB180: 0 | DC180: 0 | DD180: 3971809
A181: 177 | B181: 66 | C181: Услуги по страхованию и негосударственному пенсионному обеспечению, кроме услуг по обязательному социальному страхованию | D181: 0 | E181: 0 | F181: 0 | G181: 0 | H181: 0 | I181: 0 | J181: 0 | K181: 0 | L181: 0 | M181: 0 | N181: 0 | O181: 0 | P181: 0 | Q181: 0 | R181: 0 | S181: 0 | T181: 0 | U181: 0 | V181: 0 | W181: 0 | X181: 0 | Y181: 0 | Z181: 0 | AA181: 0 | AB181: 0 | AC181: 0 | AD181: 0 | AE181: 0 | AF181: 0 | AG181: 0 | AH181: 0 | AI181: 0 | AJ181: 0 | AK181: 0 | AL181: 0 | AM181: 0 | AN181: 0 | AO181: 0 | AP181: 0 | AQ181: 0 | AR181: 0 | AS181: 0 | AT181: 0 | AU181: 0 | AV181: 0 | AW181: 0 | AX181: 0 | AY181: 0 | AZ181: 0 | BA181: 0 | BB181: 0 | BC181: 0 | BD181: 0 | BE181: 0 | BF181: 0 | BG181: 0 | BH181: 0 | BI181: 0 | BJ181: 0 | BK181: 0 | BL181: 0 | BM181: 0 | BN181: 0 | BO181: 0 | BP181: 0 | BQ181: 0 | BR181: 0 | BS181: 0 | BT181: 0 | BU181: 0 | BV181: 0 | BW181: 0 | BX181: 0 | BY181: 0 | BZ181: 0 | CA181: 0 | CB181: 0 | CC181: 0 | CD181: 0 | CE181: 0 | CF181: 0 | CG181: 0 | CH181: 0 | CI181: 793784 | CJ181: 0 | CK181: 0 | CL181: 0 | CM181: 0 | CN181: 0 | CO181: 0 | CP181: 0 | CQ181: 0 | CR181: 0 | CS181: 0 | CT181: 0 | CU181: 0 | CV181: 0 | CW181: 0 | CX181: 793784 | CY181: 64938 | CZ181: 858721 | DA181: 0 | DB181: 0 | DC181: 0 | DD181: 858721
A182: 178 | B182: 67 | C182: Вспомогательные услуги в сфере финансового посредничества | D182: 0 | E182: 0 | F182: 0 | G182: 0 | H182: 0 | I182: 0 | J182: 0 | K182: 0 | L182: 0 | M182: 0 | N182: 0 | O182: 0 | P182: 0 | Q182: 0 | R182: 0 | S182: 0 | T182: 0 | U182: 0 | V182: 0 | W182: 0 | X182: 0 | Y182: 0 | Z182: 0 | AA182: 0 | AB182: 0 | AC182: 0 | AD182: 0 | AE182: 0 | AF182: 0 | AG182: 0 | AH182: 0 | AI182: 0 | AJ182: 0 | AK182: 0 | AL182: 0 | AM182: 0 | AN182: 0 | AO182: 0 | AP182: 0 | AQ182: 0 | AR182: 0 | AS182: 0 | AT182: 0 | AU182: 0 | AV182: 0 | AW182: 0 | AX182: 0 | AY182: 0 | AZ182: 0 | BA182: 0 | BB182: 0 | BC182: 0 | BD182: 0 | BE182: 0 | BF182: 0 | BG182: 0 | BH182: 0 | BI182: 0 | BJ182: 0 | BK182: 0 | BL182: 0 | BM182: 0 | BN182: 0 | BO182: 0 | BP182: 0 | BQ182: 0 | BR182: 0 | BS182: 0 | BT182: 0 | BU182: 0 | BV182: 199 | BW182: 10 | BX182: 0 | BY182: 0 | BZ182: 0 | CA182: 0 | CB182: 2 | CC182: 0 | CD182: 0 | CE182: 0 | CF182: 0 | CG182: 0 | CH182: 77366 | CI182: 16307 | CJ182: 79904 | CK182: 0 | CL182: 0 | CM182: 0 | CN182: 0 | CO182: 516 | CP182: 0 | CQ182: 0 | CR182: 0 | CS182: 0 | CT182: 0 | CU182: 0 | CV182: 0 | CW182: 0 | CX182: 174304 | CY182: 513 | CZ182: 174817 | DA182: 0 | DB182: 0 | DC182: 0 | DD182: 174817
A183: 179 | B183: 70 | C183: Услуги, связанные с недвижимым имуществом | D183: 4570 | E183: 46 | F183: 10 | G183: 79 | H183: 245 | I183: 1311 | J183: 11285 | K183: 3042 | L183: 1168 | M183: 1 | N183: 423 | O183: 360 | P183: 1274 | Q183: 4419 | R183: 517 | S183: 596 | T183: 599 | U183: 1591 | V183: 607 | W183: 368 | X183: 1617 | Y183: 1694 | Z183: 396 | AA183: 4273 | AB183: 324 | AC183: 1339 | AD183: 529 | AE183: 1735 | AF183: 65 | AG183: 1444 | AH183: 9 | AI183: 5567 | AJ183: 3149 | AK183: 0 | AL183: 79 | AM183: 110 | AN183: 121 | AO183: 448 | AP183: 3 | AQ183: 821 | AR183: 772 | AS183: 1076 | AT183: 343 | AU183: 274 | AV183: 2204 | AW183: 3228 | AX183: 3667 | AY183: 138 | AZ183: 1974 | BA183: 564 | BB183: 1018 | BC183: 5381 | BD183: 281 | BE183: 7 | BF183: 69 | BG183: 2924 | BH183: 2719 | BI183: 2927 | BJ183: 144 | BK183: 4228 | BL183: 5762 | BM183: 396 | BN183: 492 | BO183: 130 | BP183: 493 | BQ183: 10577 | BR183: 1298 | BS183: 10811 | BT183: 1174 | BU183: 25267 | BV183: 3415 | BW183: 754987 | BX183: 80084 | BY183: 3833 | BZ183: 8496 | CA183: 2618 | CB183: 2795 | CC183: 5320 | CD183: 936 | CE183: 130 | CF183: 15551 | CG183: 3627 | CH183: 12909 | CI183: 0 | CJ183: 0 | CK183: 10018276 | CL183: 759 | CM183: 599 | CN183: 7526 | CO183: 25158 | CP183: 0 | CQ183: 1361 | CR183: 1129 | CS183: 845 | CT183: 1825 | CU183: 1313 | CV183: 586 | CW183: 0 | CX183: 11100649 | CY183: 85425 | CZ183: 11186075 | DA183: 0 | DB183: 0 | DC183: 10044 | DD183: 11196119
A184: 180 | B184: 71 | C184: Услуги по аренде машин и оборудования (без оператора), бытовых изделий и предметов личного пользования | D184: 2169 | E184: 17 | F184: 0 | G184: 931 | H184: 612 | I184: 3195 | J184: 2380 | K184: 142 | L184: 16978 | M184: 0 | N184: 428 | O184: 3020 | P184: 1163 | Q184: 102 | R184: 452 | S184: 0 | T184: 13 | U184: 303 | V184: 121 | W184: 74 | X184: 580 | Y184: 399 | Z184: 16 | AA184: 19 | AB184: 1050 | AC184: 4 | AD184: 858 | AE184: 691 | AF184: 11 | AG184: 1 | AH184: 0 | AI184: 14398 | AJ184: 1959 | AK184: 0 | AL184: 3 | AM184: 1 | AN184: 7 | AO184: 15 | AP184: 0 | AQ184: 62 | AR184: 328 | AS184: 61 | AT184: 79 | AU184: 55 | AV184: 454 | AW184: 661 | AX184: 1983 | AY184: 46 | AZ184: 23 | BA184: 28 | BB184: 102 | BC184: 7760 | BD184: 6 | BE184: 0 | BF184: 0 | BG184: 114 | BH184: 163 | BI184: 107 | BJ184: 1 | BK184: 1200 | BL184: 1174 | BM184: 15 | BN184: 3 | BO184: 0 | BP184: 386 | BQ184: 5175 | BR184: 31 | BS184: 392 | BT184: 16 | BU184: 4801 | BV184: 2402 | BW184: 10427 | BX184: 281 | BY184: 35 | BZ184: 402 | CA184: 10633 | CB184: 3252 | CC184: 1447 | CD184: 1512 | CE184: 293 | CF184: 10983 | CG184: 1421 | CH184: 0 | CI184: 0 | CJ184: 0 | CK184: 2799 | CL184: 1201499 | CM184: 118 | CN184: 87 | CO184: 3583 | CP184: 0 | CQ184: 25 | CR184: 42 | CS184: 70 | CT184: 6 | CU184: 212 | CV184: 7 | CW184: 0 | CX184: 1328872 | CY184: 182071 | CZ184: 1510943 | DA184: 0 | DB184: 0 | DC184: 2014 | DD184: 1512958
A185: 181 | B185: 72 | C185: Программные продукты и услуги, связанные с использованием вычислительной техники и информационных технологий | D185: 2 | E185: 0 | F185: 0 | G185: 0 | H185: 20 | I185: 3 | J185: 44 | K185: 3 | L185: 0 | M185: 0 | N185: 8 | O185: 0 | P185: 6 | Q185: 0 | R185: 0 | S185: 0 | T185: 0 | U185: 0 | V185: 0 | W185: 0 | X185: 0 | Y185: 0 | Z185: 0 | AA185: 0 | AB185: 0 | AC185: 0 | AD185: 0 | AE185: 10 | AF185: 7 | AG185: 0 | AH185: 0 | AI185: 2790 | AJ185: 5 | AK185: 0 | AL185: 0 | AM185: 42 | AN185: 0 | AO185: 0 | AP185: 0 | AQ185: 0 | AR185: 0 | AS185: 0 | AT185: 0 | AU185: 0 | AV185: 3 | AW185: 3 | AX185: 323 | AY185: 0 | AZ185: 2 | BA185: 2 | BB185: 0 | BC185: 581 | BD185: 0 | BE185: 6 | BF185: 5001 | BG185: 1574 | BH185: 746 | BI185: 835 | BJ185: 93 | BK185: 136 | BL185: 546 | BM185: 0 | BN185: 0 | BO185: 0 | BP185: 0 | BQ185: 1154 | BR185: 0 | BS185: 192 | BT185: 0 | BU185: 2891 | BV185: 150 | BW185: 11109 | BX185: 397 | BY185: 3 | BZ185: 0 | CA185: 4 | CB185: 33 | CC185: 280 | CD185: 0 | CE185: 65 | CF185: 295 | CG185: 10148 | CH185: 0 | CI185: 0 | CJ185: 0 | CK185: 535 | CL185: 0 | CM185: 1344115 | CN185: 31586 | CO185: 3509 | CP185: 0 | CQ185: 41 | CR185: 9 | CS185: 49 | CT185: 10 | CU185: 123 | CV185: 2 | CW185: 0 | CX185: 1419491 | CY185: 314524 | CZ185: 1734016 | DA185: 12442 | DB185: 0 | DC185: 31932 | DD185: 1778389
A186: 182 | B186: 73 | C186: Услуги, связанные с научными исследованиями и экспериментальными разработками | D186: 22 | E186: 0 | F186: 0 | G186: 0 | H186: 0 | I186: 0 | J186: 59 | K186: 0 | L186: 893 | M186: 0 | N186: 0 | O186: 0 | P186: 27 | Q186: 0 | R186: 0 | S186: 0 | T186: 0 | U186: 0 | V186: 0 | W186: 0 | X186: 0 | Y186: 0 | Z186: 0 | AA186: 0 | AB186: 10 | AC186: 0 | AD186: 0 | AE186: 0 | AF186: 0 | AG186: 659 | AH186: 0 | AI186: 0 | AJ186: 226 | AK186: 0 | AL186: 8 | AM186: 214 | AN186: 10 | AO186: 372 | AP186: 0 | AQ186: 58 | AR186: 13 | AS186: 463 | AT186: 18 | AU186: 0 | AV186: 0 | AW186: 0 | AX186: 36 | AY186: 0 | AZ186: 3393 | BA186: 131 | BB186: 3 | BC186: 2427 | BD186: 0 | BE186: 0 | BF186: 96 | BG186: 2066 | BH186: 20481 | BI186: 17245 | BJ186: 326 | BK186: 801 | BL186: 68471 | BM186: 0 | BN186: 0 | BO186: 0 | BP186: 0 | BQ186: 0 | BR186: 0 | BS186: 0 | BT186: 0 | BU186: 462 | BV186: 61 | BW186: 1069 | BX186: 27 | BY186: 46 | BZ186: 0 | CA186: 0 | CB186: 0 | CC186: 125 | CD186: 0 | CE186: 0 | CF186: 0 | CG186: 0 | CH186: 0 | CI186: 0 | CJ186: 0 | CK186: 658 | CL186: 237 | CM186: 2795 | CN186: 1855348 | CO186: 6216 | CP186: 0 | CQ186: 243 | CR186: 0 | CS186: 0 | CT186: 87 | CU186: 85 | CV186: 0 | CW186: 0 | CX186: 1985989 | CY186: 10987 | CZ186: 1996976 | DA186: 0 | DB186: 0 | DC186: 0 | DD186: 1996976
A187: 183 | B187: 74.1 | C187: Услуги юридические, услуги в области бухгалтерского учета и аудита; консультации по вопросам налогообложения, предпринимательской деятельности и управления предприятиями и организациями; услуги по изучению конъюнктуры рынка и общественного мнения; услуги холдингов | D187: 392 | E187: 24 | F187: 1 | G187: 378 | H187: 21 | I187: 1681 | J187: 7135 | K187: 23 | L187: 5661 | M187: 0 | N187: 0 | O187: 20 | P187: 4 | Q187: 8 | R187: 0 | S187: 3 | T187: 0 | U187: 39 | V187: 0 | W187: 86 | X187: 470 | Y187: 1814 | Z187: 0 | AA187: 1 | AB187: 1 | AC187: 0 | AD187: 231 | AE187: 5 | AF187: 61 | AG187: 59 | AH187: 0 | AI187: 132 | AJ187: 2839 | AK187: 0 | AL187: 1 | AM187: 0 | AN187: 0 | AO187: 1 | AP187: 0 | AQ187: 0 | AR187: 0 | AS187: 22 | AT187: 53 | AU187: 143 | AV187: 449 | AW187: 502 | AX187: 476 | AY187: 9 | AZ187: 28 | BA187: 0 | BB187: 4 | BC187: 332 | BD187: 0 | BE187: 0 | BF187: 185 | BG187: 189 | BH187: 308 | BI187: 278 | BJ187: 0 | BK187: 1364 | BL187: 199 | BM187: 27 | BN187: 0 | BO187: 0 | BP187: 0 | BQ187: 7099 | BR187: 22 | BS187: 445 | BT187: 399 | BU187: 5558 | BV187: 372 | BW187: 36381 | BX187: 63923 | BY187: 508 | BZ187: 4628 | CA187: 1 | CB187: 499 | CC187: 2913 | CD187: 1 | CE187: 0 | CF187: 2798 | CG187: 2197 | CH187: 0 | CI187: 0 | CJ187: 0 | CK187: 16839 | CL187: 982 | CM187: 1839 | CN187: 165 | CO187: 1249916 | CP187: 0 | CQ187: 41 | CR187: 3 | CS187: 11 | CT187: 10616 | CU187: 74 | CV187: 3 | CW187: 0 | CX187: 1433888 | CY187: 265218 | CZ187: 1699106 | DA187: 0 | DB187: 0 | DC187: 11998 | DD187: 1711104
A188: 184 | B188: 74.2 + 74.3 | C188: Услуги в области архитектуры, инженерно-технического проектирования и смежных областях; услуги в области технических испытаний и исследований | D188: 36 | E188: 34 | F188: 0 | G188: 0 | H188: 0 | I188: 195 | J188: 310 | K188: 2164 | L188: 2577 | M188: 0 | N188: 19 | O188: 381 | P188: 1261 | Q188: 5 | R188: 0 | S188: 0 | T188: 245 | U188: 0 | V188: 0 | W188: 22 | X188: 0 | Y188: 11 | Z188: 0 | AA188: 0 | AB188: 8 | AC188: 0 | AD188: 2 | AE188: 5 | AF188: 126 | AG188: 13 | AH188: 0 | AI188: 157 | AJ188: 263 | AK188: 0 | AL188: 274 | AM188: 40 | AN188: 44 | AO188: 3 | AP188: 1 | AQ188: 14 | AR188: 29 | AS188: 61 | AT188: 76 | AU188: 0 | AV188: 677 | AW188: 166 | AX188: 583 | AY188: 0 | AZ188: 3988 | BA188: 30 | BB188: 12 | BC188: 833 | BD188: 1 | BE188: 0 | BF188: 0 | BG188: 1820 | BH188: 1046 | BI188: 789 | BJ188: 211 | BK188: 457 | BL188: 5050 | BM188: 2 | BN188: 0 | BO188: 0 | BP188: 4 | BQ188: 1368 | BR188: 989 | BS188: 1737 | BT188: 2544 | BU188: 14109 | BV188: 4 | BW188: 2152 | BX188: 83 | BY188: 9 | BZ188: 71 | CA188: 944 | CB188: 98 | CC188: 774 | CD188: 5733 | CE188: 2 | CF188: 433 | CG188: 262 | CH188: 0 | CI188: 0 | CJ188: 0 | CK188: 4733 | CL188: 39 | CM188: 3522 | CN188: 27517 | CO188: 1184611 | CP188: 0 | CQ188: 125 | CR188: 1 | CS188: 70 | CT188: 235 | CU188: 0 | CV188: 1 | CW188: 0 | CX188: 1276213 | CY188: 313823 | CZ188: 1590036 | DA188: 0 | DB188: 0 | DC188: 59966 | DD188: 1650002
A189: 185 | B189: 74.4 | C189: Услуги по производству и распространению рекламы | D189: 98 | E189: 1 | F189: 0 | G189: 0 | H189: 0 | I189: 1 | J189: 23 | K189: 11 | L189: 0 | M189: 0 | N189: 0 | O189: 0 | P189: 0 | Q189: 0 | R189: 0 | S189: 8 | T189: 0 | U189: 0 | V189: 0 | W189: 0 | X189: 0 | Y189: 0 | Z189: 0 | AA189: 0 | AB189: 0 | AC189: 0 | AD189: 0 | AE189: 30 | AF189: 2306 | AG189: 1393 | AH189: 0 | AI189: 0 | AJ189: 0 | AK189: 0 | AL189: 0 | AM189: 0 | AN189: 0 | AO189: 0 | AP189: 0 | AQ189: 0 | AR189: 0 | AS189: 0 | AT189: 0 | AU189: 0 | AV189: 0 | AW189: 0 | AX189: 1 | AY189: 0 | AZ189: 0 | BA189: 0 | BB189: 0 | BC189: 17 | BD189: 0 | BE189: 0 | BF189: 0 | BG189: 0 | BH189: 0 | BI189: 0 | BJ189: 0 | BK189: 568 | BL189: 0 | BM189: 0 | BN189: 0 | BO189: 0 | BP189: 0 | BQ189: 1 | BR189: 0 | BS189: 0 | BT189: 0 | BU189: 1 | BV189: 32 | BW189: 23197 | BX189: 109080 | BY189: 13 | BZ189: 243 | CA189: 0 | CB189: 853 | CC189: 0 | CD189: 0 | CE189: 1 | CF189: 45 | CG189: 416 | CH189: 0 | CI189: 0 | CJ189: 0 | CK189: 696 | CL189: 168 | CM189: 289 | CN189: 0 | CO189: 826328 | CP189: 0 | CQ189: 0 | CR189: 6 | CS189: 6 | CT189: 147 | CU189: 12689 | CV189: 3 | CW189: 0 | CX189: 978670 | CY189: 16443 | CZ189: 995113 | DA189: 0 | DB189: 0 | DC189: 1541 | DD189: 996654
A190: 186 | B190: 74.5 | C190: Услуги по подбору кадров, найму рабочей силы и предоставлению персонала | D190: 37 | E190: 0 | F190: 0 | G190: 8 | H190: 0 | I190: 105 | J190: 0 | K190: 0 | L190: 1 | M190: 0 | N190: 0 | O190: 0 | P190: 0 | Q190: 0 | R190: 0 | S190: 0 | T190: 387 | U190: 3 | V190: 0 | W190: 0 | X190: 0 | Y190: 11 | Z190: 0 | AA190: 127 | AB190: 3 | AC190: 0 | AD190: 0 | AE190: 29 | AF190: 0 | AG190: 0 | AH190: 0 | AI190: 0 | AJ190: 10 | AK190: 0 | AL190: 0 | AM190: 0 | AN190: 0 | AO190: 0 | AP190: 0 | AQ190: 0 | AR190: 0 | AS190: 0 | AT190: 0 | AU190: 0 | AV190: 8 | AW190: 0 | AX190: 27 | AY190: 0 | AZ190: 1 | BA190: 0 | BB190: 0 | BC190: 5 | BD190: 0 | BE190: 0 | BF190: 0 | BG190: 0 | BH190: 0 | BI190: 0 | BJ190: 0 | BK190: 0 | BL190: 51 | BM190: 0 | BN190: 0 | BO190: 0 | BP190: 0 | BQ190: 0 | BR190: 0 | BS190: 0 | BT190: 18 | BU190: 100 | BV190: 15 | BW190: 135 | BX190: 0 | BY190: 0 | BZ190: 54 | CA190: 0 | CB190: 112 | CC190: 0 | CD190: 5 | CE190: 0 | CF190: 133 | CG190: 0 | CH190: 0 | CI190: 0 | CJ190: 0 | CK190: 425 | CL190: 0 | CM190: 220 | CN190: 28 | CO190: 111735 | CP190: 0 | CQ190: 0 | CR190: 151 | CS190: 0 | CT190: 1 | CU190: 0 | CV190: 0 | CW190: 0 | CX190: 113949 | CY190: 3849 | CZ190: 117798 | DA190: 0 | DB190: 0 | DC190: 404 | DD190: 118202
A191: 187 | B191: 74.6 | C191: Услуги по проведению расследований и обеспечению безопасности | D191: 7 | E191: 0 | F191: 0 | G191: 0 | H191: 0 | I191: 0 | J191: 6 | K191: 0 | L191: 0 | M191: 0 | N191: 0 | O191: 0 | P191: 0 | Q191: 0 | R191: 0 | S191: 0 | T191: 0 | U191: 0 | V191: 0 | W191: 0 | X191: 0 | Y191: 1 | Z191: 0 | AA191: 0 | AB191: 0 | AC191: 3 | AD191: 0 | AE191: 0 | AF191: 0 | AG191: 2 | AH191: 0 | AI191: 24 | AJ191: 10 | AK191: 0 | AL191: 0 | AM191: 2 | AN191: 0 | AO191: 0 | AP191: 0 | AQ191: 0 | AR191: 0 | AS191: 0 | AT191: 0 | AU191: 0 | AV191: 0 | AW191: 23 | AX191: 0 | AY191: 0 | AZ191: 1 | BA191: 0 | BB191: 0 | BC191: 9 | BD191: 0 | BE191: 0 | BF191: 0 | BG191: 13 | BH191: 15 | BI191: 4 | BJ191: 0 | BK191: 2 | BL191: 236 | BM191: 0 | BN191: 0 | BO191: 0 | BP191: 0 | BQ191: 29 | BR191: 0 | BS191: 10 | BT191: 0 | BU191: 15 | BV191: 0 | BW191: 998 | BX191: 0 | BY191: 0 | BZ191: 0 | CA191: 0 | CB191: 1 | CC191: 0 | CD191: 0 | CE191: 0 | CF191: 734 | CG191: 0 | CH191: 0 | CI191: 0 | CJ191: 0 | CK191: 8 | CL191: 0 | CM191: 80 | CN191: 10 | CO191: 475230 | CP191: 32467 | CQ191: 0 | CR191: 0 | CS191: 0 | CT191: 1 | CU191: 0 | CV191: 0 | CW191: 0 | CX191: 509945 | CY191: 295 | CZ191: 510240 | DA191: 0 | DB191: 0 | DC191: 11729 | DD191: 521969
A192: 188 | B192: 74.7 | C192: Услуги по чистке и уборке помещений, оборудования и транспортных средств | D192: 0 | E192: 1525 | F192: 4 | G192: 0 | H192: 0 | I192: 0 | J192: 0 | K192: 0 | L192: 0 | M192: 0 | N192: 0 | O192: 0 | P192: 0 | Q192: 2 | R192: 0 | S192: 0 | T192: 0 | U192: 0 | V192: 0 | W192: 0 | X192: 0 | Y192: 0 | Z192: 0 | AA192: 0 | AB192: 0 | AC192: 0 | AD192: 0 | AE192: 0 | AF192: 0 | AG192: 1 | AH192: 0 | AI192: 0 | AJ192: 3 | AK192: 0 | AL192: 0 | AM192: 2 | AN192: 0 | AO192: 0 | AP192: 0 | AQ192: 9 | AR192: 0 | AS192: 0 | AT192: 0 | AU192: 3 | AV192: 0 | AW192: 8 | AX192: 0 | AY192: 0 | AZ192: 0 | BA192: 6 | BB192: 0 | BC192: 50 | BD192: 0 | BE192: 0 | BF192: 0 | BG192: 15 | BH192: 1 | BI192: 0 | BJ192: 0 | BK192: 19 | BL192: 101 | BM192: 0 | BN192: 0 | BO192: 0 | BP192: 0 | BQ192: 52 | BR192: 0 | BS192: 48 | BT192: 2 | BU192: 5051 | BV192: 6 | BW192: 26 | BX192: 20 | BY192: 140 | BZ192: 3426 | CA192: 5 | CB192: 734 | CC192: 0 | CD192: 60 | CE192: 0 | CF192: 250 | CG192: 0 | CH192: 0 | CI192: 0 | CJ192: 0 | CK192: 1068 | CL192: 0 | CM192: 0 | CN192: 0 | CO192: 158083 | CP192: 0 | CQ192: 1 | CR192: 124 | CS192: 200 | CT192: 44 | CU192: 0 | CV192: 2 | CW192: 0 | CX192: 171092 | CY192: 948 | CZ192: 172039 | DA192: 0 | DB192: 0 | DC192: 11017 | DD192: 183056
A193: 189 | B193: 74.8 | C193: Разные услуги, связанные с предпринимательской деятельностью | D193: 170 | E193: 4 | F193: 0 | G193: 213 | H193: 46 | I193: 138 | J193: 2025 | K193: 154 | L193: 605 | M193: 0 | N193: 7 | O193: 16 | P193: 13 | Q193: 366 | R193: 0 | S193: 64 | T193: 330 | U193: 724 | V193: 1353 | W193: 71 | X193: 2018 | Y193: 681 | Z193: 2957 | AA193: 71 | AB193: 33 | AC193: 409 | AD193: 36 | AE193: 241 | AF193: 48 | AG193: 16 | AH193: 48 | AI193: 4588 | AJ193: 318 | AK193: 0 | AL193: 7 | AM193: 2348 | AN193: 157 | AO193: 44 | AP193: 19 | AQ193: 91 | AR193: 6 | AS193: 108 | AT193: 320 | AU193: 1 | AV193: 421 | AW193: 1661 | AX193: 604 | AY193: 7 | AZ193: 48 | BA193: 210 | BB193: 23 | BC193: 856 | BD193: 59 | BE193: 0 | BF193: 0 | BG193: 330 | BH193: 251 | BI193: 618 | BJ193: 22 | BK193: 2665 | BL193: 1738 | BM193: 33 | BN193: 1 | BO193: 1 | BP193: 990 | BQ193: 30737 | BR193: 399 | BS193: 4590 | BT193: 756 | BU193: 3953 | BV193: 619 | BW193: 47769 | BX193: 88986 | BY193: 31 | BZ193: 1 | CA193: 851 | CB193: 754 | CC193: 9365 | CD193: 20 | CE193: 120 | CF193: 1047 | CG193: 1077 | CH193: 0 | CI193: 0 | CJ193: 0 | CK193: 2024 | CL193: 144 | CM193: 662 | CN193: 3524 | CO193: 372239 | CP193: 0 | CQ193: 49 | CR193: 17 | CS193: 119 | CT193: 142 | CU193: 786 | CV193: 97 | CW193: 0 | CX193: 602277 | CY193: 329815 | CZ193: 932092 | DA193: 0 | DB193: 0 | DC193: 12638 | DD193: 944730
A194: 190 | B194: 75.1 | C194: Услуги в области государственного управления общего характера, экономической и социальной политики государства | D194: 0 | E194: 0 | F194: 0 | G194: 0 | H194: 0 | I194: 0 | J194: 0 | K194: 0 | L194: 0 | M194: 0 | N194: 0 | O194: 0 | P194: 0 | Q194: 0 | R194: 0 | S194: 0 | T194: 0 | U194: 0 | V194: 0 | W194: 0 | X194: 0 | Y194: 0 | Z194: 0 | AA194: 0 | AB194: 0 | AC194: 0 | AD194: 0 | AE194: 0 | AF194: 0 | AG194: 0 | AH194: 0 | AI194: 0 | AJ194: 0 | AK194: 0 | AL194: 0 | AM194: 0 | AN194: 0 | AO194: 0 | AP194: 0 | AQ194: 0 | AR194: 0 | AS194: 0 | AT194: 0 | AU194: 0 | AV194: 0 | AW194: 0 | AX194: 0 | AY194: 0 | AZ194: 0 | BA194: 0 | BB194: 0 | BC194: 0 | BD194: 0 | BE194: 0 | BF194: 0 | BG194: 0 | BH194: 0 | BI194: 0 | BJ194: 0 | BK194: 0 | BL194: 0 | BM194: 0 | BN194: 0 | BO194: 0 | BP194: 0 | BQ194: 0 | BR194: 0 | BS194: 0 | BT194: 0 | BU194: 0 | BV194: 0 | BW194: 0 | BX194: 0 | BY194: 0 | BZ194: 0 | CA194: 0 | CB194: 0 | CC194: 0 | CD194: 0 | CE194: 0 | CF194: 0 | CG194: 0 | CH194: 0 | CI194: 0 | CJ194: 0 | CK194: 0 | CL194: 0 | CM194: 0 | CN194: 0 | CO194: 0 | CP194: 4052212 | CQ194: 0 | CR194: 0 | CS194: 0 | CT194: 0 | CU194: 0 | CV194: 0 | CW194: 0 | CX194: 4052212 | CY194: 0 | CZ194: 4052212 | DA194: 0 | DB194: 0 | DC194: 0 | DD194: 4052212
A195: 191 | B195: 75.2 | C195: Услуги, предоставляемые государством обществу в целом | D195: 0 | E195: 0 | F195: 0 | G195: 0 | H195: 0 | I195: 0 | J195: 0 | K195: 0 | L195: 0 | M195: 0 | N195: 0 | O195: 0 | P195: 0 | Q195: 0 | R195: 0 | S195: 0 | T195: 0 | U195: 0 | V195: 0 | W195: 0 | X195: 0 | Y195: 0 | Z195: 0 | AA195: 0 | AB195: 0 | AC195: 0 | AD195: 0 | AE195: 0 | AF195: 0 | AG195: 0 | AH195: 0 | AI195: 0 | AJ195: 0 | AK195: 0 | AL195: 0 | AM195: 0 | AN195: 0 | AO195: 0 | AP195: 0 | AQ195: 0 | AR195: 0 | AS195: 0 | AT195: 0 | AU195: 0 | AV195: 0 | AW195: 0 | AX195: 0 | AY195: 0 | AZ195: 0 | BA195: 0 | BB195: 0 | BC195: 0 | BD195: 0 | BE195: 0 | BF195: 0 | BG195: 0 | BH195: 0 | BI195: 0 | BJ195: 0 | BK195: 0 | BL195: 0 | BM195: 0 | BN195: 0 | BO195: 0 | BP195: 0 | BQ195: 0 | BR195: 0 | BS195: 0 | BT195: 0 | BU195: 0 | BV195: 0 | BW195: 0 | BX195: 0 | BY195: 0 | BZ195: 0 | CA195: 0 | CB195: 0 | CC195: 0 | CD195: 0 | CE195: 0 | CF195: 0 | CG195: 0 | CH195: 0 | CI195: 0 | CJ195: 0 | CK195: 0 | CL195: 0 | CM195: 0 | CN195: 0 | CO195: 0 | CP195: 5167688 | CQ195: 0 | CR195: 0 | CS195: 0 | CT195: 0 | CU195: 0 | CV195: 0 | CW195: 0 | CX195: 5167688 | CY195: 0 | CZ195: 5167688 | DA195: 0 | DB195: 0 | DC195: 0 | DD195: 5167688
A196: 192 | B196: 75.3 | C196: Услуги в области обязательного социального страхования | D196: 0 | E196: 0 | F196: 0 | G196: 0 | H196: 0 | I196: 0 | J196: 0 | K196: 0 | L196: 0 | M196: 0 | N196: 0 | O196: 0 | P196: 0 | Q196: 0 | R196: 0 | S196: 0 | T196: 0 | U196: 0 | V196: 0 | W196: 0 | X196: 0 | Y196: 0 | Z196: 0 | AA196: 0 | AB196: 0 | AC196: 0 | AD196: 0 | AE196: 0 | AF196: 0 | AG196: 0 | AH196: 0 | AI196: 0 | AJ196: 0 | AK196: 0 | AL196: 0 | AM196: 0 | AN196: 0 | AO196: 0 | AP196: 0 | AQ196: 0 | AR196: 0 | AS196: 0 | AT196: 0 | AU196: 0 | AV196: 0 | AW196: 0 | AX196: 0 | AY196: 0 | AZ196: 0 | BA196: 0 | BB196: 0 | BC196: 0 | BD196: 0 | BE196: 0 | BF196: 0 | BG196: 0 | BH196: 0 | BI196: 0 | BJ196: 0 | BK196: 0 | BL196: 0 | BM196: 0 | BN196: 0 | BO196: 0 | BP196: 0 | BQ196: 0 | BR196: 0 | BS196: 0 | BT196: 0 | BU196: 0 | BV196: 0 | BW196: 0 | BX196: 0 | BY196: 0 | BZ196: 0 | CA196: 0 | CB196: 0 | CC196: 0 | CD196: 0 | CE196: 0 | CF196: 0 | CG196: 0 | CH196: 0 | CI196: 0 | CJ196: 0 | CK196: 0 | CL196: 0 | CM196: 0 | CN196: 0 | CO196: 0 | CP196: 137441 | CQ196: 0 | CR196: 0 | CS196: 0 | CT196: 0 | CU196: 0 | CV196: 0 | CW196: 0 | CX196: 137441 | CY196: 0 | CZ196: 137441 | DA196: 0 | DB196: 0 | DC196: 0 | DD196: 137441
A197: 193 | B197: 80 | C197: Услуги в области образования | D197: 1 | E197: 9 | F197: 0 | G197: 0 | H197: 30 | I197: 33 | J197: 29 | K197: 42 | L197: 6 | M197: 0 | N197: 4 | O197: 1 | P197: 30 | Q197: 0 | R197: 9 | S197: 0 | T197: 0 | U197: 0 | V197: 0 | W197: 0 | X197: 0 | Y197: 1 | Z197: 0 | AA197: 0 | AB197: 0 | AC197: 0 | AD197: 0 | AE197: 0 | AF197: 4 | AG197: 4 | AH197: 0 | AI197: 2 | AJ197: 10 | AK197: 0 | AL197: 0 | AM197: 2 | AN197: 0 | AO197: 0 | AP197: 0 | AQ197: 0 | AR197: 0 | AS197: 0 | AT197: 4 | AU197: 0 | AV197: 0 | AW197: 7 | AX197: 1 | AY197: 0 | AZ197: 5 | BA197: 0 | BB197: 0 | BC197: 3 | BD197: 0 | BE197: 0 | BF197: 0 | BG197: 2 | BH197: 0 | BI197: 118 | BJ197: 0 | BK197: 24 | BL197: 651 | BM197: 0 | BN197: 0 | BO197: 0 | BP197: 0 | BQ197: 328 | BR197: 4 | BS197: 0 | BT197: 93 | BU197: 49 | BV197: 5 | BW197: 56 | BX197: 104 | BY197: 153 | BZ197: 71 | CA197: 84 | CB197: 102 | CC197: 41 | CD197: 22 | CE197: 116 | CF197: 27 | CG197: 0 | CH197: 0 | CI197: 0 | CJ197: 0 | CK197: 107 | CL197: 0 | CM197: 13 | CN197: 192 | CO197: 566 | CP197: 0 | CQ197: 2470925 | CR197: 95 | CS197: 0 | CT197: 1058 | CU197: 102 | CV197: 1 | CW197: 0 | CX197: 2475349 | CY197: 30703 | CZ197: 2506052 | DA197: 0 | DB197: 0 | DC197: 546 | DD197: 2506598
A198: 194 | B198: 85.1 | C198: Услуги в области охраны здоровья человека | D198: 37 | E198: 0 | F198: 0 | G198: 0 | H198: 0 | I198: 80 | J198: 2323 | K198: 735 | L198: 0 | M198: 0 | N198: 54 | O198: 50 | P198: 426 | Q198: 0 | R198: 0 | S198: 0 | T198: 0 | U198: 0 | V198: 1 | W198: 0 | X198: 5 | Y198: 44 | Z198: 0 | AA198: 0 | AB198: 1 | AC198: 0 | AD198: 22 | AE198: 162 | AF198: 0 | AG198: 90 | AH198: 16 | AI198: 237 | AJ198: 468 | AK198: 0 | AL198: 0 | AM198: 342 | AN198: 3 | AO198: 0 | AP198: 0 | AQ198: 4 | AR198: 0 | AS198: 0 | AT198: 59 | AU198: 46 | AV198: 2 | AW198: 396 | AX198: 255 | AY198: 0 | AZ198: 87 | BA198: 16 | BB198: 1 | BC198: 129 | BD198: 0 | BE198: 0 | BF198: 156 | BG198: 76 | BH198: 66 | BI198: 130 | BJ198: 23 | BK198: 34 | BL198: 2260 | BM198: 10 | BN198: 0 | BO198: 0 | BP198: 1 | BQ198: 345 | BR198: 10 | BS198: 45 | BT198: 235 | BU198: 366 | BV198: 5 | BW198: 2769 | BX198: 288 | BY198: 603 | BZ198: 80 | CA198: 1734 | CB198: 876 | CC198: 2486 | CD198: 16 | CE198: 197 | CF198: 1408 | CG198: 169 | CH198: 0 | CI198: 0 | CJ198: 0 | CK198: 1375 | CL198: 0 | CM198: 0 | CN198: 2045 | CO198: 357 | CP198: 0 | CQ198: 260 | CR198: 3301096 | CS198: 42 | CT198: 123 | CU198: 34 | CV198: 11 | CW198: 0 | CX198: 3325827 | CY198: 2849 | CZ198: 3328676 | DA198: 0 | DB198: 0 | DC198: 0 | DD198: 3328676
A199: 195 | B199: 85.2 | C199: Услуги ветеринарные | D199: 21 | E199: 6 | F199: 0 | G199: 0 | H199: 0 | I199: 0 | J199: 0 | K199: 0 | L199: 0 | M199: 0 | N199: 0 | O199: 0 | P199: 0 | Q199: 0 | R199: 0 | S199: 0 | T199: 0 | U199: 0 | V199: 0 | W199: 0 | X199: 0 | Y199: 0 | Z199: 0 | AA199: 0 | AB199: 0 | AC199: 0 | AD199: 0 | AE199: 0 | AF199: 0 | AG199: 0 | AH199: 0 | AI199: 0 | AJ199: 0 | AK199: 0 | AL199: 0 | AM199: 0 | AN199: 0 | AO199: 0 | AP199: 0 | AQ199: 0 | AR199: 0 | AS199: 0 | AT199: 0 | AU199: 0 | AV199: 0 | AW199: 0 | AX199: 0 | AY199: 0 | AZ199: 0 | BA199: 0 | BB199: 0 | BC199: 0 | BD199: 0 | BE199: 0 | BF199: 0 | BG199: 4 | BH199: 0 | BI199: 0 | BJ199: 0 | BK199: 0 | BL199: 0 | BM199: 0 | BN199: 0 | BO199: 0 | BP199: 0 | BQ199: 0 | BR199: 0 | BS199: 0 | BT199: 0 | BU199: 0 | BV199: 0 | BW199: 0 | BX199: 2 | BY199: 0 | BZ199: 0 | CA199: 0 | CB199: 0 | CC199: 0 | CD199: 0 | CE199: 0 | CF199: 0 | CG199: 0 | CH199: 0 | CI199: 0 | CJ199: 0 | CK199: 0 | CL199: 0 | CM199: 0 | CN199: 0 | CO199: 0 | CP199: 0 | CQ199: 0 | CR199: 31488 | CS199: 0 | CT199: 13 | CU199: 0 | CV199: 0 | CW199: 0 | CX199: 31535 | CY199: 4 | CZ199: 31539 | DA199: 0 | DB199: 0 | DC199: 827 | DD199: 32367
A200: 196 | B200: 85.3 | C200: Услуги социальные | D200: 1 | E200: 0 | F200: 0 | G200: 1 | H200: 0 | I200: 0 | J200: 0 | K200: 21 | L200: 0 | M200: 0 | N200: 0 | O200: 1 | P200: 0 | Q200: 3 | R200: 0 | S200: 0 | T200: 0 | U200: 0 | V200: 0 | W200: 0 | X200: 0 | Y200: 533 | Z200: 0 | AA200: 0 | AB200: 0 | AC200: 0 | AD200: 3 | AE200: 0 | AF200: 0 | AG200: 0 | AH200: 0 | AI200: 0 | AJ200: 0 | AK200: 0 | AL200: 0 | AM200: 0 | AN200: 0 | AO200: 0 | AP200: 0 | AQ200: 0 | AR200: 0 | AS200: 0 | AT200: 0 | AU200: 0 | AV200: 0 | AW200: 0 | AX200: 0 | AY200: 4 | AZ200: 0 | BA200: 0 | BB200: 0 | BC200: 0 | BD200: 0 | BE200: 0 | BF200: 0 | BG200: 0 | BH200: 1 | BI200: 0 | BJ200: 9 | BK200: 0 | BL200: 6 | BM200: 0 | BN200: 0 | BO200: 0 | BP200: 0 | BQ200: 0 | BR200: 0 | BS200: 0 | BT200: 0 | BU200: 0 | BV200: 0 | BW200: 0 | BX200: 0 | BY200: 17 | BZ200: 0 | CA200: 1 | CB200: 0 | CC200: 0 | CD200: 0 | CE200: 0 | CF200: 0 | CG200: 0 | CH200: 0 | CI200: 0 | CJ200: 0 | CK200: 2 | CL200: 0 | CM200: 0 | CN200: 55 | CO200: 0 | CP200: 0 | CQ200: 36 | CR200: 1177509 | CS200: 5 | CT200: 122 | CU200: 0 | CV200: 0 | CW200: 0 | CX200: 1178329 | CY200: 0 | CZ200: 1178329 | DA200: 0 | DB200: 0 | DC200: 0 | DD200: 1178329
... 13 more rows

Sheet ТР чист-хоз
A1: ТАБЛИЦА РЕСУРСОВ ТОВАРОВ И УСЛУГ за 2016 год (млн. руб.)
D2: Сельское хозяйство | E2: Предоставление услуг в области растениеводства и животноводства, кроме ветеринарных услуг; декоративное садоводство | F2: Охота и разведение диких животных, включая предоставление услуг в этих областях | G2: Лесное хозяйство и предоставление услуг в этой области | H2: Рыболовство, рыбоводство и предоставление услуг в этих областях | I2: Добыча каменного угля, бурого угля и торфа | J2: Добыча сырой нефти и нефтяного (попутного) газа; извлечение фракций из нефтяного (попутного) газа | K2: Добыча природного газа и газового конденсата; сжижение и регазификация природного газа для транспортирования | L2: Предоставление услуг по добыче нефти и газа | M2: Добыча урановой и ториевой руд | N2: Добыча и обогащение железных руд | O2: Добыча и обогащение руд нежелезных металлов, кроме урановой и ториевой руд | P2: Добыча прочих полезных ископаемых | Q2: Производство мяса и мясопродуктов | R2: Переработка и консервирование рыбо- и морепродуктов | S2: Переработка и консервирование картофеля, фруктов и овощей | T2: Производство растительных и животных масел и жиров | U2: Производство молочных продуктов | V2: Производство продуктов мукомольно-крупяной промышленности, крахмалов и крахмалопродуктов | W2: Производство готовых кормов для животных | X2: Производство прочих пищевых продуктов | Y2: Производство напитков | Z2: Производство табачных изделий | AA2: Текстильное производство | AB2: Производство одежды; выделка и крашение меха | AC2: Производство кожи, изделий из кожи и производство обуви | AD2: Обработка древесины и производство изделий из дерева и пробки, кроме мебели | AE2: Производство целлюлозы, древесной массы, бумаги, картона и изделий из них | AF2: Издательская деятельность | AG2: Деятельность полиграфическая и копирование носителей информации | AH2: Производство кокса | AI2: Производство нефтепродуктов | AJ2: Производство основных химических веществ | AK2: Производство химических средств защиты растений (пестицидов) и прочих агрохимических продуктов | AL2: Производство красок и лаков | AM2: Производство фармацевтической продукции | AN2: Производство мыла; моющих, чистящих и полирующих средств; парфюмерных и косметических средств | AO2: Производство прочих химических продуктов (без производства взрывчатых веществ) | AP2: Производство искусственных и синтетических волокон | AQ2: Производство резиновых изделий | AR2: Производство пластмассовых изделий | AS2: Производство стекла и изделий из стекла | AT2: Производство керамических изделий и кирпича | AU2: Производство цемента, извести и гипса | AV2: Производство неметаллических минеральных изделий, кроме стеклянных и керамических | AW2: Производство чугуна, стали и ферросплавов, чугунных и стальных труб, прочая первичная обработка чугуна и стали | AX2: Производство цветных металлов | AY2: Производство отливок | AZ2: Производство строительных металлических конструкций и изделий, металлических резервуаров, радиаторов и паровых котлов, ядерных реакторов | BA2: Ковка, прессование, штамповка и профилирование, порошковая металлургия; обработка металлов и нанесение покрытий на металлы, обработка металлических изделий с использованием основных технологических процессов | BB2: Производство ножевых изделий, столовых приборов, инструментов, замочных и скобяных изделий и прочих готовых металлических изделий | BC2: Производство механического оборудования, станков и прочего оборудования общего или специального назначения | BD2: Производство бытовых приборов, не включенных в другие группировки | BE2: Производство офисного оборудования | BF2: Производство электронных вычислительных машин и прочего оборудования для обработки информации | BG2: Производство электрических машин и электрооборудования | BH2: Производство электронных компонентов, аппаратуры для радио, телевидения и связи | BI2: Приборы и инструменты для измерения, контроля, испытаний, навигации, управления, регулирования; приборы оптические, фото- и кинооборудование; часы | BJ2: Производство медицинских изделий, включая хирургическое оборудование, и ортопедических приспособлений | BK2: Производство автомобилей, прицепов и полуприцепов | BL2: Производство судов, летательных и космических аппаратов, прочих транспортных средств и оборудования | BM2: Производство мебели | BN2: Производство ювелирных изделий, медалей и технических изделий из драгоценных металлов и драгоценных камней; производство монет | BO2: Производство прочей различной продукции, не включенной в другие группировки | BP2: Обработка вторичного сырья | BQ2: Производство, передача и распределение электроэнергии | BR2: Производство и распределение газообразного топлива | BS2: Производство, передача и распределение пара и горячей воды (тепловой энергии) | BT2: Сбор, очистка и распределение воды | BU2: Строительство | BV2: Торговля автотранспортными средствами и мотоциклами, их техническое обслуживание и ремонт | BW2: Оптовая торговля, включая торговлю через агентов, кроме торговли автотранспортными средствами и мотоциклами | BX2: Розничная торговля, кроме торговли автотранспортными средствами и мотоциклами; ремонт бытовых изделий и предметов личного пользования; розничная торговля моторным топливом | BY2: Деятельность гостиниц и прочих мест для временного проживания | BZ2: Деятельность ресторанов, баров, столовых при предприятиях и учреждениях и поставка продукции общественного питания | CA2: Деятельность железнодорожного транспорта | CB2: Деятельность прочего сухопутного транспорта | CC2: Транспортирование по трубопроводам | CD2: Деятельность водного транспорта | CE2: Деятельность воздушного и космического транспорта | CF2: Услуги транспортные вспомогательные и дополнительные; услуги туристических агентств | CG2: Услуги почты и электросвязи | CH2: Финансовое посредничество | CI2: Страхование | CJ2: Вспомогательная деятельность в сфере финансового посредничества и страхования | CK2: Операции с недвижимым имуществом | CL2: Аренда машин и оборудования без оператора; прокат бытовых изделий и предметов личного пользования | CM2: Деятельность, связанная с использованием вычислительной техники и информационных технологий | CN2: Научные исследования и разработки | CO2: Прочие услуги, связанные с предпринимательской деятельностью | CP2: Государственное управление и обеспечение военной безопасности; социальное обеспечение | CQ2: Образование | CR2: Здравоохранение и предоставление социальных услуг | CS2: Сбор сточных вод, отходов и аналогичная деятельность | CT2: Деятельность общественных объединений | CU2: Деятельность по организации отдыха и развлечений, культуры и спорта | CV2: Предоставление персональных услуг | CW2: Деятельность домашних хозяйств с наемными работниками | CX2: Итого выпуск в основных ценах (сумма граф 001-098) | CY2: Импорт | CZ2: Итого ресурсы в основных ценах (сумма граф 099-100) | DA2: Торговые наценки | DB2: Транспортные наценки | DC2: Налоги за вычетом субсидий на продукты | DD2: Итого ресурсы в ценах покупателей (сумма граф 101-104)
B3: Коды | D3: 01.1 + 01.2 + 01.3 | E3: 01.4 | F3: 01.5 | G3: 02 | H3: 05 | I3: 10 | J3: 11.10.1 | K3: 11.10.2 + 11.10.3 | L3: 11.2 | M3: 12 | N3: 13.1 | O3: 13.2 | P3: 14 | Q3: 15.1 | R3: 15.2 | S3: 15.3 | T3: 15.4 | U3: 15.5 | V3: 15.6 | W3: 15.7 | X3: 15.8 | Y3: 15.9 | Z3: 16 | AA3: 17 | AB3: 18 | AC3: 19 | AD3: 20 | AE3: 21 | AF3: 22.1 | AG3: 22.2 + 22.3 | AH3: 23.1 | AI3: 23.2 | AJ3: 24.1 | AK3: 24.2 | AL3: 24.3 | AM3: 24.4 | AN3: 24.5 | AO3: 24.6 без 24.61 | AP3: 24.7 | AQ3: 25.1 | AR3: 25.2 | AS3: 26.1 | AT3: 26.2 + 26.3 + 26.4 | AU3: 26.5 | AV3: 26.6 + 26.7 + 26.8 | AW3: 27.1 + 27.2 + 27.3 | AX3: 27.4 | AY3: 27.5 | AZ3: 28.1 + 28.2 + 28.3 | BA3: 28.4 + 28.5 | BB3: 28.6 + 28.7 | BC3: 29.1 + 29.2 + 29.3 + 29.4 + 29.5 | BD3: 29.7 | BE3: 30.01 | BF3: 30.02 | BG3: 31 | BH3: 32 | BI3: 33 без 33.1 | BJ3: 33.1 | BK3: 34 | BL3: 35 + 39.9* | BM3: 36.1 | BN3: 36.2 | BO3: 36.3 + 36.4 + 36.5 + 36.6 | BP3: 37 | BQ3: 40.1 | BR3: 40.2 | BS3: 40.3 | BT3: 41 | BU3: 45 | BV3: 50 без 50.5 | BW3: 51 | BX3: 52 + 50.5 | BY3: 55.1 + 55.2 | BZ3: 55.3 + 55.4 + 55.5 | CA3: 60.1 | CB3: 60.2 | CC3: 60.3 | CD3: 61 | CE3: 62 | CF3: 63 | CG3: 64 | CH3: 65 | CI3: 66 | CJ3: 67 | CK3: 70 | CL3: 71 | CM3: 72 | CN3: 73 | CO3: 74 | CP3: 75 | CQ3: 80 | CR3: 85 | CS3: 90 | CT3: 91 | CU3: 92 | CV3: 93 | CW3: 95 | CX3: P1 | CY3: P7 | CZ3: (P1+P7)BP | DA3: P1G | DB3: P1H | DC3: D21-D31 | DD3: (P1+P7)PP | DF3: ОКПД | DG3: ОКВЭД
A4: №№ | D4: 001 | E4: 002 | F4: 003 | G4: 004 | H4: 005 | I4: 006 | J4: 007 | K4: 008 | L4: 009 | M4: 010 | N4: 011 | O4: 012 | P4: 013 | Q4: 014 | R4: 015 | S4: 016 | T4: 017 | U4: 018 | V4: 019 | W4: 020 | X4: 021 | Y4: 022 | Z4: 023 | AA4: 024 | AB4: 025 | AC4: 026 | AD4: 027 | AE4: 028 | AF4: 029 | AG4: 030 | AH4: 031 | AI4: 032 | AJ4: 033 | AK4: 034 | AL4: 035 | AM4: 036 | AN4: 037 | AO4: 038 | AP4: 039 | AQ4: 040 | AR4: 041 | AS4: 042 | AT4: 043 | AU4: 044 | AV4: 045 | AW4: 046 | AX4: 047 | AY4: 048 | AZ4: 049 | BA4: 050 | BB4: 051 | BC4: 052 | BD4: 053 | BE4: 054 | BF4: 055 | BG4: 056 | BH4: 057 | BI4: 058 | BJ4: 059 | BK4: 060 | BL4: 061 | BM4: 062 | BN4: 063 | BO4: 064 | BP4: 065 | BQ4: 066 | BR4: 067 | BS4: 068 | BT4: 069 | BU4: 070 | BV4: 071 | BW4: 072 | BX4: 073 | BY4: 074 | BZ4: 075 | CA4: 076 | CB4: 077 | CC4: 078 | CD4: 079 | CE4: 080 | CF4: 081 | CG4: 082 | CH4: 083 | CI4: 084 | CJ4: 085 | CK4: 086 | CL4: 087 | CM4: 088 | CN4: 089 | CO4: 090 | CP4: 091 | CQ4: 092 | CR4: 093 | CS4: 094 | CT4: 095 | CU4: 096 | CV4: 097 | CW4: 098 | CX4: 099 | CY4: 100 | CZ4: 101 | DA4: 102 | DB4: 103 | DC4: 104 | DD4: 105 | DN4: ОКВЭД | DO4: ОКПД | DP4: Разница
A5: 001 | B5: 01.11.1 + 01.11.22 + 01.11.60.110 | C5: Культуры зерновые и зернобобовые | D5: 1042414 | E5: 585 | F5: 0 | G5: 0 | H5: 26 | I5: 0 | J5: 0 | K5: 0 | L5: 0 | M5: 0 | N5: 0 | O5: 0 | P5: 4 | Q5: 1417 | R5: 16 | S5: 720 | T5: 0 | U5: 272 | V5: 525 | W5: 9 | X5: 111 | Y5: 27 | Z5: 0 | AA5: 69 | AB5: 0 | AC5: 0 | AD5: 0 | AE5: 0 | AF5: 0 | AG5: 0 | AH5: 0 | AI5: 0 | AJ5: 12 | AK5: 0 | AL5: 0 | AM5: 57 | AN5: 0 | AO5: 0 | AP5: 0 | AQ5: 0 | AR5: 15 | AS5: 0 | AT5: 2 | AU5: 0 | AV5: 0 | AW5: 0 | AX5: 0 | AY5: 0 | AZ5: 0 | BA5: 7 | BB5: 0 | BC5: 0 | BD5: 0 | BE5: 0 | BF5: 0 | BG5: 0 | BH5: 6 | BI5: 0 | BJ5: 0 | BK5: 0 | BL5: 34 | BM5: 0 | BN5: 0 | BO5: 0 | BP5: 0 | BQ5: 0 | BR5: 0 | BS5: 0 | BT5: 1 | BU5: 178 | BV5: 0 | BW5: 5 | BX5: 6 | BY5: 0 | BZ5: 0 | CA5: 0 | CB5: 0 | CC5: 0 | CD5: 0 | CE5: 0 | CF5: 47 | CG5: 10 | CH5: 0 | CI5: 0 | CJ5: 0 | CK5: 73 | CL5: 0 | CM5: 0 | CN5: 22 | CO5: 0 | CP5: 0 | CQ5: 0 | CR5: 0 | CS5: 0 | CT5: 1 | CU5: 0 | CV5: 0 | CW5: 0 | CX5: 1046672 | CY5: 20268 | CZ5: 1066940 | DA5: 104732 | DB5: 4789 | DC5: -273 | DD5: 1176188 | DF5: =SUM(CX5:CX21) -> 5083034 | DG5: Сельское хозяйство | DH5: 01.1 + 01.2 + 01.3 | DI5: 5621624 | DJ5: =DF5/DI5 -> 0.9041931655 | DM5: Сельское хозяйство | DN5: 5621624 | DO5: 5083034 | DP5: 0.9041931655
A6: 002 | B6: 01.11.21 + 01.11.23 | C6: Картофель; корнеплоды столовые и клубнеплоды с высоким содержанием крахмала или инулина | D6: 317287 | E6: 0 | F6: 0 | G6: 0 | H6: 1 | I6: 0 | J6: 0 | K6: 0 | L6: 0 | M6: 0 | N6: 0 | O6: 0 | P6: 0 | Q6: 171 | R6: 0 | S6: 0 | T6: 0 | U6: 0 | V6: 0 | W6: 0 | X6: 0 | Y6: 0 | Z6: 0 | AA6: 82 | AB6: 0 | AC6: 0 | AD6: 0 | AE6: 0 | AF6: 0 | AG6: 0 | AH6: 0 | AI6: 0 | AJ6: 0 | AK6: 0 | AL6: 0 | AM6: 0 | AN6: 0 | AO6: 0 | AP6: 0 | AQ6: 0 | AR6: 0 | AS6: 0 | AT6: 0 | AU6: 0 | AV6: 0 | AW6: 0 | AX6: 0 | AY6: 0 | AZ6: 0 | BA6: 48 | BB6: 0 | BC6: 0 | BD6: 0 | BE6: 0 | BF6: 0 | BG6: 0 | BH6: 0 | BI6: 0 | BJ6: 0 | BK6: 0 | BL6: 0 | BM6: 0 | BN6: 0 | BO6: 0 | BP6: 0 | BQ6: 0 | BR6: 0 | BS6: 0 | BT6: 0 | BU6: 0 | BV6: 0 | BW6: 18 | BX6: 0 | BY6: 0 | BZ6: 0 | CA6: 0 | CB6: 0 | CC6: 0 | CD6: 0 | CE6: 0 | CF6: 0 | CG6: 0 | CH6: 0 | CI6: 0 | CJ6: 0 | CK6: 0 | CL6: 0 | CM6: 0 | CN6: 0 | CO6: 0 | CP6: 0 | CQ6: 0 | CR6: 0 | CS6: 0 | CT6: 0 | CU6: 0 | CV6: 0 | CW6: 0 | CX6: 317608 | CY6: 8733 | CZ6: 326341 | DA6: 24361 | DB6: 307 | DC6: 6042 | DD6: 357051 | DM6: Предоставление услуг в области растениеводства и животноводства, кроме ветеринарных услуг; декоративное садоводство | DN6: 101080 | DO6: 105204 | DP6: 1.040799367
A7: 003 | B7: 01.11.3 | C7: Семена и плоды масличных культур | D7: 364309 | E7: 206 | F7: 0 | G7: 0 | H7: 50 | I7: 0 | J7: 0 | K7: 0 | L7: 0 | M7: 0 | N7: 0 | O7: 0 | P7: 0 | Q7: 72 | R7: 0 | S7: 0 | T7: 0 | U7: 24 | V7: 0 | W7: 0 | X7: 0 | Y7: 0 | Z7: 0 | AA7: 0 | AB7: 0 | AC7: 0 | AD7: 0 | AE7: 0 | AF7: 0 | AG7: 0 | AH7: 0 | AI7: 0 | AJ7: 0 | AK7: 0 | AL7: 0 | AM7: 0 | AN7: 0 | AO7: 0 | AP7: 0 | AQ7: 0 | AR7: 0 | AS7: 0 | AT7: 0 | AU7: 0 | AV7: 0 | AW7: 0 | AX7: 0 | AY7: 0 | AZ7: 0 | BA7: 0 | BB7: 0 | BC7: 0 | BD7: 0 | BE7: 0 | BF7: 0 | BG7: 0 | BH7: 2 | BI7: 0 | BJ7: 0 | BK7: 0 | BL7: 0 | BM7: 0 | BN7: 0 | BO7: 0 | BP7: 0 | BQ7: 0 | BR7: 0 | BS7: 0 | BT7: 0 | BU7: 0 | BV7: 0 | BW7: 0 | BX7: 0 | BY7: 0 | BZ7: 0 | CA7: 0 | CB7: 0 | CC7: 0 | CD7: 0 | CE7: 0 | CF7: 0 | CG7: 0 | CH7: 0 | CI7: 0 | CJ7: 0 | CK7: 0 | CL7: 0 | CM7: 0 | CN7: 0 | CO7: 0 | CP7: 0 | CQ7: 0 | CR7: 0 | CS7: 0 | CT7: 0 | CU7: 0 | CV7: 0 | CW7: 0 | CX7: 364663 | CY7: 95194 | CZ7: 459857 | DA7: 8554 | DB7: 1944 | DC7: 976 | DD7: 471331 | DM7: Охота и разведение диких животных, включая предоставление услуг в этих областях | DN7: 8505 | DO7: 8749 | DP7: 1.028689006
A8: 004 | B8: 01.11.4 | C8: Табак необработанный и махорка | D8: 1 | E8: 0 | F8: 0 | G8: 0 | H8: 0 | I8: 0 | J8: 0 | K8: 0 | L8: 0 | M8: 0 | N8: 0 | O8: 0 | P8: 0 | Q8: 0 | R8: 0 | S8: 0 | T8: 0 | U8: 0 | V8: 0 | W8: 0 | X8: 0 | Y8: 0 | Z8: 0 | AA8: 0 | AB8: 0 | AC8: 0 | AD8: 0 | AE8: 0 | AF8: 0 | AG8: 0 | AH8: 0 | AI8: 0 | AJ8: 0 | AK8: 0 | AL8: 0 | AM8: 0 | AN8: 0 | AO8: 0 | AP8: 0 | AQ8: 0 | AR8: 0 | AS8: 0 | AT8: 0 | AU8: 0 | AV8: 0 | AW8: 0 | AX8: 0 | AY8: 0 | AZ8: 0 | BA8: 0 | BB8: 0 | BC8: 0 | BD8: 0 | BE8: 0 | BF8: 0 | BG8: 0 | BH8: 0 | BI8: 0 | BJ8: 0 | BK8: 0 | BL8: 0 | BM8: 0 | BN8: 0 | BO8: 0 | BP8: 0 | BQ8: 0 | BR8: 0 | BS8: 0 | BT8: 0 | BU8: 0 | BV8: 0 | BW8: 0 | BX8: 0 | BY8: 0 | BZ8: 0 | CA8: 0 | CB8: 0 | CC8: 0 | CD8: 0 | CE8: 0 | CF8: 0 | CG8: 0 | CH8: 0 | CI8: 0 | CJ8: 0 | CK8: 0 | CL8: 0 | CM8: 0 | CN8: 0 | CO8: 0 | CP8: 0 | CQ8: 0 | CR8: 0 | CS8: 0 | CT8: 0 | CU8: 0 | CV8: 0 | CW8: 0 | CX8: 1 | CY8: 59277 | CZ8: 59278 | DA8: 10240 | DB8: 21 | DC8: 2032 | DD8: 71570 | DM8: Лесное хозяйство и предоставление услуг в этой области | DN8: 272303 | DO8: 280788 | DP8: 1.031160141
A9: 005 | B9: 01.11.5 | C9: Растения, используемые для производства сахара | D9: 132435 | E9: 51 | F9: 0 | G9: 0 | H9: 0 | I9: 0 | J9: 0 | K9: 0 | L9: 0 | M9: 0 | N9: 0 | O9: 0 | P9: 0 | Q9: 12 | R9: 0 | S9: 0 | T9: 0 | U9: 0 | V9: 0 | W9: 0 | X9: 0 | Y9: 0 | Z9: 0 | AA9: 0 | AB9: 0 | AC9: 0 | AD9: 0 | AE9: 0 | AF9: 0 | AG9: 0 | AH9: 0 | AI9: 0 | AJ9: 0 | AK9: 0 | AL9: 0 | AM9: 0 | AN9: 0 | AO9: 0 | AP9: 0 | AQ9: 0 | AR9: 0 | AS9: 0 | AT9: 0 | AU9: 0 | AV9: 0 | AW9: 0 | AX9: 0 | AY9: 0 | AZ9: 0 | BA9: 0 | BB9: 0 | BC9: 0 | BD9: 0 | BE9: 0 | BF9: 0 | BG9: 0 | BH9: 0 | BI9: 0 | BJ9: 0 | BK9: 0 | BL9: 0 | BM9: 0 | BN9: 0 | BO9: 0 | BP9: 0 | BQ9: 0 | BR9: 0 | BS9: 0 | BT9: 0 | BU9: 0 | BV9: 0 | BW9: 0 | BX9: 0 | BY9: 0 | BZ9: 0 | CA9: 0 | CB9: 0 | CC9: 0 | CD9: 0 | CE9: 0 | CF9: 0 | CG9: 0 | CH9: 0 | CI9: 0 | CJ9: 0 | CK9: 0 | CL9: 0 | CM9: 0 | CN9: 0 | CO9: 0 | CP9: 0 | CQ9: 0 | CR9: 0 | CS9: 0 | CT9: 0 | CU9: 0 | CV9: 0 | CW9: 0 | CX9: 132498 | CY9: 0 | CZ9: 132498 | DA9: 2764 | DB9: 1012 | DC9: -149 | DD9: 136125 | DM9: Рыболовство, рыбоводство и предоставление услуг в этих областях | DN9: 397336 | DO9: 255132 | DP9: 0.6421064288
A10: 006 | B10: 01.11.6 кроме 01.11.60.110 | C10: Солома и культуры кормовые | D10: 133339 | E10: 10 | F10: 0 | G10: 0 | H10: 0 | I10: 0 | J10: 0 | K10: 0 | L10: 0 | M10: 0 | N10: 0 | O10: 0 | P10: 0 | Q10: 9 | R10: 0 | S10: 0 | T10: 0 | U10: 1 | V10: 13 | W10: 0 | X10: 0 | Y10: 0 | Z10: 0 | AA10: 1 | AB10: 0 | AC10: 0 | AD10: 0 | AE10: 0 | AF10: 0 | AG10: 0 | AH10: 0 | AI10: 0 | AJ10: 0 | AK10: 0 | AL10: 0 | AM10: 0 | AN10: 0 | AO10: 0 | AP10: 0 | AQ10: 0 | AR10: 0 | AS10: 0 | AT10: 0 | AU10: 0 | AV10: 0 | AW10: 0 | AX10: 0 | AY10: 0 | AZ10: 0 | BA10: 0 | BB10: 0 | BC10: 0 | BD10: 0 | BE10: 0 | BF10: 0 | BG10: 0 | BH10: 0 | BI10: 0 | BJ10: 0 | BK10: 0 | BL10: 0 | BM10: 0 | BN10: 0 | BO10: 0 | BP10: 0 | BQ10: 0 | BR10: 0 | BS10: 0 | BT10: 0 | BU10: 0 | BV10: 0 | BW10: 0 | BX10: 0 | BY10: 0 | BZ10: 0 | CA10: 0 | CB10: 0 | CC10: 0 | CD10: 0 | CE10: 0 | CF10: 0 | CG10: 0 | CH10: 0 | CI10: 0 | CJ10: 0 | CK10: 0 | CL10: 0 | CM10: 0 | CN10: 52 | CO10: 0 | CP10: 0 | CQ10: 0 | CR10: 0 | CS10: 0 | CT10: 0 | CU10: 0 | CV10: 0 | CW10: 0 | CX10: 133426 | CY10: 20 | CZ10: 133446 | DA10: 13631 | DB10: 151 | DC10: -178 | DD10: 147050 | DM10: Добыча каменного угля, бурого угля и торфа | DN10: 934784 | DO10: 905866 | DP10: 0.9690645112
A11: 007 | B11: 01.11.7 + 01.11.8 + 01.11.9 | C11: Прочая продукция растениеводства | D11: 6161 | E11: 1 | F11: 0 | G11: 0 | H11: 0 | I11: 0 | J11: 0 | K11: 0 | L11: 0 | M11: 0 | N11: 0 | O11: 0 | P11: 0 | Q11: 0 | R11: 0 | S11: 0 | T11: 0 | U11: 0 | V11: 0 | W11: 0 | X11: 8 | Y11: 0 | Z11: 0 | AA11: 0 | AB11: 0 | AC11: 0 | AD11: 0 | AE11: 0 | AF11: 0 | AG11: 0 | AH11: 0 | AI11: 0 | AJ11: 0 | AK11: 0 | AL11: 0 | AM11: 0 | AN11: 0 | AO11: 0 | AP11: 0 | AQ11: 0 | AR11: 0 | AS11: 0 | AT11: 0 | AU11: 0 | AV11: 0 | AW11: 0 | AX11: 0 | AY11: 0 | AZ11: 0 | BA11: 2 | BB11: 0 | BC11: 0 | BD11: 0 | BE11: 0 | BF11: 0 | BG11: 0 | BH11: 0 | BI11: 0 | BJ11: 0 | BK11: 0 | BL11: 0 | BM11: 0 | BN11: 0 | BO11: 0 | BP11: 0 | BQ11: 0 | BR11: 0 | BS11: 25 | BT11: 0 | BU11: 0 | BV11: 0 | BW11: 0 | BX11: 0 | BY11: 0 | BZ11: 0 | CA11: 0 | CB11: 0 | CC11: 0 | CD11: 0 | CE11: 0 | CF11: 0 | CG11: 0 | CH11: 0 | CI11: 0 | CJ11: 0 | CK11: 0 | CL11: 0 | CM11: 0 | CN11: 0 | CO11: 0 | CP11: 0 | CQ11: 0 | CR11: 0 | CS11: 2 | CT11: 0 | CU11: 0 | CV11: 0 | CW11: 0 | CX11: 6199 | CY11: 26612 | CZ11: 32811 | DA11: 6532 | DB11: 272 | DC11: 152 | DD11: 39767 | DM11: Добыча сырой нефти и нефтяного (попутного) газа; извлечение фракций из нефтяного (попутного) газа | DN11: 6190402 | DO11: 6320650 | DP11: 1.021040314
A12: 008 | B12: 01.12.1 | C12: Овощи свежие или охлажденные, не включенные в другие группировки | D12: 430817 | E12: 10 | F12: 0 | G12: 0 | H12: 2 | I12: 0 | J12: 0 | K12: 0 | L12: 0 | M12: 0 | N12: 0 | O12: 0 | P12: 1 | Q12: 42 | R12: 0 | S12: 78 | T12: 0 | U12: 0 | V12: 0 | W12: 0 | X12: 0 | Y12: 0 | Z12: 0 | AA12: 0 | AB12: 0 | AC12: 0 | AD12: 0 | AE12: 2 | AF12: 0 | AG12: 0 | AH12: 0 | AI12: 0 | AJ12: 0 | AK12: 0 | AL12: 0 | AM12: 0 | AN12: 0 | AO12: 0 | AP12: 0 | AQ12: 0 | AR12: 0 | AS12: 0 | AT12: 0 | AU12: 0 | AV12: 0 | AW12: 0 | AX12: 0 | AY12: 0 | AZ12: 1 | BA12: 0 | BB12: 0 | BC12: 1 | BD12: 0 | BE12: 0 | BF12: 0 | BG12: 0 | BH12: 1 | BI12: 6 | BJ12: 0 | BK12: 0 | BL12: 6 | BM12: 0 | BN12: 0 | BO12: 0 | BP12: 0 | BQ12: 6 | BR12: 0 | BS12: 0 | BT12: 0 | BU12: 0 | BV12: 0 | BW12: 1 | BX12: 0 | BY12: 0 | BZ12: 0 | CA12: 0 | CB12: 0 | CC12: 7 | CD12: 0 | CE12: 0 | CF12: 0 | CG12: 0 | CH12: 0 | CI12: 0 | CJ12: 0 | CK12: 0 | CL12: 0 | CM12: 0 | CN12: 0 | CO12: 0 | CP12: 0 | CQ12: 0 | CR12: 0 | CS12: 4 | CT12: 0 | CU12: 0 | CV12: 1 | CW12: 0 | CX12: 430988 | CY12: 98494 | CZ12: 529482 | DA12: 218824 | DB12: 8780 | DC12: 20149 | DD12: 777234 | DM12: Добыча природного газа и газового конденсата; сжижение и регазификация природного газа для транспортирования | DN12: 1512750 | DO12: 1412235 | DP12: 0.9335547843
A13: 009 | B13: 01.12.2 | C13: Растения живые; цветы и бутоны цветочные срезанные; семена цветов и фруктовых деревьев; семена овощей | D13: 26041 | E13: 131 | F13: 0 | G13: 0 | H13: 0 | I13: 0 | J13: 0 | K13: 0 | L13: 0 | M13: 0 | N13: 0 | O13: 0 | P13: 0 | Q13: 0 | R13: 0 | S13: 0 | T13: 0 | U13: 0 | V13: 0 | W13: 0 | X13: 0 | Y13: 0 | Z13: 0 | AA13: 0 | AB13: 0 | AC13: 0 | AD13: 0 | AE13: 0 | AF13: 0 | AG13: 0 | AH13: 0 | AI13: 0 | AJ13: 0 | AK13: 0 | AL13: 0 | AM13: 0 | AN13: 0 | AO13: 0 | AP13: 0 | AQ13: 0 | AR13: 0 | AS13: 0 | AT13: 0 | AU13: 0 | AV13: 0 | AW13: 0 | AX13: 0 | AY13: 0 | AZ13: 0 | BA13: 0 | BB13: 0 | BC13: 0 | BD13: 0 | BE13: 0 | BF13: 0 | BG13: 0 | BH13: 0 | BI13: 3 | BJ13: 0 | BK13: 0 | BL13: 36 | BM13: 0 | BN13: 0 | BO13: 0 | BP13: 0 | BQ13: 0 | BR13: 0 | BS13: 0 | BT13: 0 | BU13: 1 | BV13: 0 | BW13: 0 | BX13: 0 | BY13: 0 | BZ13: 0 | CA13: 0 | CB13: 0 | CC13: 0 | CD13: 0 | CE13: 0 | CF13: 0 | CG13: 0 | CH13: 0 | CI13: 0 | CJ13: 0 | CK13: 0 | CL13: 0 | CM13: 0 | CN13: 0 | CO13: 0 | CP13: 0 | CQ13: 0 | CR13: 0 | CS13: 15 | CT13: 0 | CU13: 0 | CV13: 1 | CW13: 0 | CX13: 26228 | CY13: 43212 | CZ13: 69440 | DA13: 104373 | DB13: 120 | DC13: 5823 | DD13: 179756 | DM13: Предоставление услуг по добыче нефти и газа | DN13: 1467125 | DO13: 1536760 | DP13: 1.047463577
A14: 010 | B14: 01.13.1 + 01.13.2 | C14: Фрукты, ягоды и орехи | D14: 250203 | E14: 0 | F14: 0 | G14: 0 | H14: 4 | I14: 0 | J14: 0 | K14: 0 | L14: 0 | M14: 0 | N14: 0 | O14: 0 | P14: 0 | Q14: 0 | R14: 0 | S14: 0 | T14: 0 | U14: 0 | V14: 0 | W14: 0 | X14: 0 | Y14: 149 | Z14: 0 | AA14: 0 | AB14: 0 | AC14: 0 | AD14: 0 | AE14: 0 | AF14: 0 | AG14: 0 | AH14: 0 | AI14: 0 | AJ14: 0 | AK14: 0 | AL14: 0 | AM14: 0 | AN14: 0 | AO14: 0 | AP14: 0 | AQ14: 0 | AR14: 0 | AS14: 0 | AT14: 0 | AU14: 0 | AV14: 0 | AW14: 0 | AX14: 0 | AY14: 0 | AZ14: 0 | BA14: 0 | BB14: 0 | BC14: 0 | BD14: 0 | BE14: 0 | BF14: 0 | BG14: 0 | BH14: 0 | BI14: 0 | BJ14: 0 | BK14: 0 | BL14: 0 | BM14: 0 | BN14: 0 | BO14: 0 | BP14: 0 | BQ14: 0 | BR14: 0 | BS14: 0 | BT14: 0 | BU14: 0 | BV14: 0 | BW14: 0 | BX14: 0 | BY14: 0 | BZ14: 0 | CA14: 0 | CB14: 0 | CC14: 0 | CD14: 0 | CE14: 0 | CF14: 0 | CG14: 0 | CH14: 0 | CI14: 0 | CJ14: 0 | CK14: 0 | CL14: 0 | CM14: 0 | CN14: 0 | CO14: 0 | CP14: 0 | CQ14: 2 | CR14: 0 | CS14: 0 | CT14: 4 | CU14: 0 | CV14: 0 | CW14: 0 | CX14: 250363 | CY14: 275734 | CZ14: 526098 | DA14: 264228 | DB14: 8372 | DC14: 33493 | DD14: 832192 | DM14: Добыча урановой и ториевой руд | DN14: 4427 | DO14: 4423 | DP14: 0.9990964536
A15: 011 | B15: 01.13.3 + 01.13.4 | C15: Культуры для производства напитков, пряности необработанные | D15: 1591 | E15: 0 | F15: 0 | G15: 0 | H15: 0 | I15: 0 | J15: 0 | K15: 0 | L15: 0 | M15: 0 | N15: 0 | O15: 0 | P15: 0 | Q15: 0 | R15: 0 | S15: 0 | T15: 0 | U15: 0 | V15: 0 | W15: 0 | X15: 0 | Y15: 124 | Z15: 0 | AA15: 0 | AB15: 0 | AC15: 0 | AD15: 0 | AE15: 0 | AF15: 0 | AG15: 0 | AH15: 0 | AI15: 0 | AJ15: 0 | AK15: 0 | AL15: 0 | AM15: 0 | AN15: 0 | AO15: 0 | AP15: 0 | AQ15: 0 | AR15: 0 | AS15: 0 | AT15: 0 | AU15: 0 | AV15: 0 | AW15: 0 | AX15: 0 | AY15: 0 | AZ15: 0 | BA15: 0 | BB15: 0 | BC15: 0 | BD15: 0 | BE15: 0 | BF15: 0 | BG15: 0 | BH15: 0 | BI15: 0 | BJ15: 0 | BK15: 0 | BL15: 0 | BM15: 0 | BN15: 0 | BO15: 0 | BP15: 0 | BQ15: 0 | BR15: 0 | BS15: 0 | BT15: 0 | BU15: 0 | BV15: 0 | BW15: 0 | BX15: 0 | BY15: 0 | BZ15: 0 | CA15: 0 | CB15: 0 | CC15: 0 | CD15: 0 | CE15: 0 | CF15: 0 | CG15: 0 | CH15: 0 | CI15: 0 | CJ15: 0 | CK15: 0 | CL15: 0 | CM15: 0 | CN15: 0 | CO15: 0 | CP15: 0 | CQ15: 0 | CR15: 0 | CS15: 0 | CT15: 0 | CU15: 0 | CV15: 0 | CW15: 0 | CX15: 1716 | CY15: 39710 | CZ15: 41425 | DA15: 7323 | DB15: 55 | DC15: 171 | DD15: 48975 | DM15: Добыча и обогащение железных руд | DN15: 313439 | DO15: 249047 | DP15: 0.7945628974
A16: 012 | B16: 01.21 | C16: Скот крупный рогатый живой и продукция его разведения, животные дикие жвачные живые | D16: 1075163 | E16: 506 | F16: 0 | G16: 1 | H16: 227 | I16: 0 | J16: 0 | K16: 0 | L16: 0 | M16: 0 | N16: 0 | O16: 0 | P16: 2 | Q16: 1868 | R16: 38 | S16: 0 | T16: 0 | U16: 1055 | V16: 32 | W16: 3 | X16: 8 | Y16: 0 | Z16: 0 | AA16: 5 | AB16: 0 | AC16: 0 | AD16: 0 | AE16: 2 | AF16: 0 | AG16: 0 | AH16: 0 | AI16: 0 | AJ16: 0 | AK16: 0 | AL16: 0 | AM16: 1 | AN16: 0 | AO16: 0 | AP16: 0 | AQ16: 0 | AR16: 0 | AS16: 1 | AT16: 0 | AU16: 0 | AV16: 0 | AW16: 0 | AX16: 0 | AY16: 0 | AZ16: 3 | BA16: 51 | BB16: 0 | BC16: 0 | BD16: 0 | BE16: 0 | BF16: 0 | BG16: 0 | BH16: 0 | BI16: 0 | BJ16: 0 | BK16: 0 | BL16: 9 | BM16: 0 | BN16: 0 | BO16: 0 | BP16: 0 | BQ16: 0 | BR16: 0 | BS16: 9 | BT16: 0 | BU16: 95 | BV16: 0 | BW16: 0 | BX16: 0 | BY16: 0 | BZ16: 0 | CA16: 0 | CB16: 1 | CC16: 0 | CD16: 0 | CE16: 0 | CF16: 6 | CG16: 0 | CH16: 0 | CI16: 0 | CJ16: 0 | CK16: 136 | CL16: 0 | CM16: 0 | CN16: 64 | CO16: 0 | CP16: 0 | CQ16: 0 | CR16: 0 | CS16: 0 | CT16: 1 | CU16: 0 | CV16: 0 | CW16: 0 | CX16: 1079287 | CY16: 7679 | CZ16: 1086967 | DA16: 11631 | DB16: 126 | DC16: -2400 | DD16: 1096324 | DM16: Добыча и обогащение руд нежелезных металлов, кроме урановой и ториевой руд | DN16: 259574 | DO16: 259433 | DP16: 0.9994568023
A17: 013 | B17: 01.22 | C17: Овцы, козы, лошади, ослы, мулы и лошаки живые и продукция их разведения | D17: 92926 | E17: 19 | F17: 0 | G17: 0 | H17: 0 | I17: 0 | J17: 0 | K17: 0 | L17: 0 | M17: 0 | N17: 0 | O17: 0 | P17: 9 | Q17: 0 | R17: 0 | S17: 0 | T17: 0 | U17: 81 | V17: 0 | W17: 0 | X17: 0 | Y17: 0 | Z17: 0 | AA17: 0 | AB17: 0 | AC17: 0 | AD17: 0 | AE17: 0 | AF17: 0 | AG17: 0 | AH17: 0 | AI17: 0 | AJ17: 0 | AK17: 0 | AL17: 0 | AM17: 0 | AN17: 0 | AO17: 0 | AP17: 0 | AQ17: 0 | AR17: 0 | AS17: 0 | AT17: 0 | AU17: 0 | AV17: 0 | AW17: 0 | AX17: 0 | AY17: 0 | AZ17: 0 | BA17: 0 | BB17: 0 | BC17: 0 | BD17: 0 | BE17: 0 | BF17: 0 | BG17: 0 | BH17: 0 | BI17: 0 | BJ17: 0 | BK17: 0 | BL17: 0 | BM17: 0 | BN17: 0 | BO17: 0 | BP17: 0 | BQ17: 0 | BR17: 0 | BS17: 0 | BT17: 0 | BU17: 0 | BV17: 0 | BW17: 0 | BX17: 0 | BY17: 0 | BZ17: 0 | CA17: 0 | CB17: 0 | CC17: 0 | CD17: 0 | CE17: 0 | CF17: 0 | CG17: 0 | CH17: 0 | CI17: 0 | CJ17: 0 | CK17: 0 | CL17: 0 | CM17: 0 | CN17: 0 | CO17: 0 | CP17: 0 | CQ17: 0 | CR17: 1 | CS17: 0 | CT17: 0 | CU17: 0 | CV17: 0 | CW17: 0 | CX17: 93038 | CY17: 367 | CZ17: 93405 | DA17: 1738 | DB17: 2 | DC17: -1687 | DD17: 93458 | DM17: Добыча прочих полезных ископаемых | DN17: 728054 | DO17: 692698 | DP17: 0.9514376681
A18: 014 | B18: 01.23 | C18: Свиньи живые | D18: 446396 | E18: 0 | F18: 0 | G18: 0 | H18: 0 | I18: 0 | J18: 0 | K18: 0 | L18: 0 | M18: 0 | N18: 0 | O18: 40 | P18: 0 | Q18: 6803 | R18: 0 | S18: 0 | T18: 0 | U18: 5 | V18: 4 | W18: 0 | X18: 3 | Y18: 0 | Z18: 0 | AA18: 0 | AB18: 0 | AC18: 0 | AD18: 0 | AE18: 0 | AF18: 0 | AG18: 0 | AH18: 0 | AI18: 0 | AJ18: 0 | AK18: 0 | AL18: 0 | AM18: 0 | AN18: 0 | AO18: 0 | AP18: 0 | AQ18: 0 | AR18: 0 | AS18: 0 | AT18: 0 | AU18: 0 | AV18: 0 | AW18: 0 | AX18: 0 | AY18: 0 | AZ18: 0 | BA18: 0 | BB18: 0 | BC18: 0 | BD18: 0 | BE18: 0 | BF18: 0 | BG18: 0 | BH18: 0 | BI18: 0 | BJ18: 0 | BK18: 0 | BL18: 0 | BM18: 0 | BN18: 0 | BO18: 0 | BP18: 0 | BQ18: 0 | BR18: 0 | BS18: 0 | BT18: 0 | BU18: 0 | BV18: 0 | BW18: 68 | BX18: 29 | BY18: 0 | BZ18: 0 | CA18: 0 | CB18: 0 | CC18: 0 | CD18: 0 | CE18: 0 | CF18: 0 | CG18: 0 | CH18: 0 | CI18: 0 | CJ18: 0 | CK18: 109 | CL18: 0 | CM18: 0 | CN18: 55 | CO18: 0 | CP18: 0 | CQ18: 9 | CR18: 0 | CS18: 0 | CT18: 0 | CU18: 0 | CV18: 0 | CW18: 0 | CX18: 453522 | CY18: 857 | CZ18: 454379 | DA18: 1950 | DB18: 88 | DC18: -1011 | DD18: 455406 | DM18: Производство мяса и мясопродуктов | DN18: 1676160 | DO18: 2113308 | DP18: 1.260803265
A19: 015 | B19: 01.24.1 | C19: Птица сельскохозяйственная живая | D19: 456144 | E19: 0 | F19: 0 | G19: 0 | H19: 0 | I19: 0 | J19: 0 | K19: 0 | L19: 0 | M19: 0 | N19: 0 | O19: 0 | P19: 292 | Q19: 8657 | R19: 0 | S19: 0 | T19: 0 | U19: 3 | V19: 47 | W19: 0 | X19: 0 | Y19: 0 | Z19: 0 | AA19: 0 | AB19: 1 | AC19: 0 | AD19: 0 | AE19: 0 | AF19: 0 | AG19: 0 | AH19: 0 | AI19: 0 | AJ19: 0 | AK19: 0 | AL19: 0 | AM19: 0 | AN19: 0 | AO19: 0 | AP19: 0 | AQ19: 0 | AR19: 5 | AS19: 0 | AT19: 0 | AU19: 0 | AV19: 0 | AW19: 0 | AX19: 0 | AY19: 0 | AZ19: 0 | BA19: 23 | BB19: 0 | BC19: 0 | BD19: 0 | BE19: 0 | BF19: 0 | BG19: 0 | BH19: 0 | BI19: 0 | BJ19: 0 | BK19: 0 | BL19: 0 | BM19: 0 | BN19: 0 | BO19: 0 | BP19: 0 | BQ19: 0 | BR19: 0 | BS19: 0 | BT19: 0 | BU19: 0 | BV19: 0 | BW19: 0 | BX19: 1 | BY19: 0 | BZ19: 0 | CA19: 0 | CB19: 0 | CC19: 0 | CD19: 0 | CE19: 0 | CF19: 0 | CG19: 0 | CH19: 0 | CI19: 0 | CJ19: 0 | CK19: 0 | CL19: 0 | CM19: 0 | CN19: 0 | CO19: 0 | CP19: 0 | CQ19: 0 | CR19: 0 | CS19: 0 | CT19: 0 | CU19: 0 | CV19: 0 | CW19: 0 | CX19: 465174 | CY19: 2445 | CZ19: 467619 | DA19: 2152 | DB19: 83 | DC19: -705 | DD19: 469150 | DM19: Переработка и консервирование рыбо- и морепродуктов | DN19: 310934 | DO19: 444619 | DP19: 1.429946548
A20: 016 | B20: 01.24.2 | C20: Яйца в скорлупе | D20: 202510 | E20: 0 | F20: 0 | G20: 0 | H20: 0 | I20: 0 | J20: 0 | K20: 0 | L20: 0 | M20: 0 | N20: 0 | O20: 0 | P20: 0 | Q20: 0 | R20: 0 | S20: 0 | T20: 0 | U20: 0 | V20: 0 | W20: 0 | X20: 0 | Y20: 0 | Z20: 0 | AA20: 0 | AB20: 0 | AC20: 0 | AD20: 0 | AE20: 0 | AF20: 0 | AG20: 0 | AH20: 0 | AI20: 0 | AJ20: 0 | AK20: 0 | AL20: 0 | AM20: 0 | AN20: 0 | AO20: 0 | AP20: 0 | AQ20: 0 | AR20: 0 | AS20: 0 | AT20: 0 | AU20: 0 | AV20: 0 | AW20: 0 | AX20: 0 | AY20: 0 | AZ20: 0 | BA20: 0 | BB20: 0 | BC20: 0 | BD20: 0 | BE20: 0 | BF20: 0 | BG20: 0 | BH20: 0 | BI20: 0 | BJ20: 0 | BK20: 0 | BL20: 0 | BM20: 0 | BN20: 0 | BO20: 0 | BP20: 0 | BQ20: 0 | BR20: 0 | BS20: 0 | BT20: 0 | BU20: 0 | BV20: 0 | BW20: 0 | BX20: 0 | BY20: 0 | BZ20: 0 | CA20: 0 | CB20: 0 | CC20: 0 | CD20: 0 | CE20: 0 | CF20: 0 | CG20: 0 | CH20: 0 | CI20: 0 | CJ20: 0 | CK20: 0 | CL20: 0 | CM20: 0 | CN20: 0 | CO20: 0 | CP20: 0 | CQ20: 0 | CR20: 0 | CS20: 0 | CT20: 0 | CU20: 0 | CV20: 0 | CW20: 0 | CX20: 202510 | CY20: 15286 | CZ20: 217796 | DA20: 67783 | DB20: 73 | DC20: 13774 | DD20: 299426 | DM20: Переработка и консервирование картофеля, фруктов и овощей | DN20: 159921 | DO20: 169948 | DP20: 1.062699708
A21: 017 | B21: 01.25 | C21: Животные живые прочие и продукция их разведения | D21: 78918 | E21: 0 | F21: 0 | G21: 1 | H21: 16 | I21: 0 | J21: 0 | K21: 0 | L21: 0 | M21: 0 | N21: 0 | O21: 0 | P21: 0 | Q21: 0 | R21: 0 | S21: 0 | T21: 0 | U21: 1 | V21: 0 | W21: 0 | X21: 0 | Y21: 0 | Z21: 0 | AA21: 0 | AB21: 0 | AC21: 0 | AD21: 0 | AE21: 0 | AF21: 0 | AG21: 0 | AH21: 0 | AI21: 0 | AJ21: 0 | AK21: 0 | AL21: 0 | AM21: 4 | AN21: 0 | AO21: 0 | AP21: 0 | AQ21: 0 | AR21: 0 | AS21: 0 | AT21: 0 | AU21: 0 | AV21: 0 | AW21: 0 | AX21: 0 | AY21: 0 | AZ21: 0 | BA21: 0 | BB21: 0 | BC21: 2 | BD21: 0 | BE21: 0 | BF21: 0 | BG21: 0 | BH21: 0 | BI21: 0 | BJ21: 0 | BK21: 0 | BL21: 0 | BM21: 0 | BN21: 0 | BO21: 0 | BP21: 0 | BQ21: 0 | BR21: 0 | BS21: 0 | BT21: 1 | BU21: 0 | BV21: 0 | BW21: 0 | BX21: 0 | BY21: 0 | BZ21: 0 | CA21: 0 | CB21: 0 | CC21: 0 | CD21: 0 | CE21: 0 | CF21: 0 | CG21: 0 | CH21: 0 | CI21: 0 | CJ21: 0 | CK21: 199 | CL21: 0 | CM21: 0 | CN21: 0 | CO21: 0 | CP21: 0 | CQ21: 0 | CR21: 0 | CS21: 0 | CT21: 0 | CU21: 0 | CV21: 0 | CW21: 0 | CX21: 79141 | CY21: 1791 | CZ21: 80931 | DA21: 10367 | DB21: 42 | DC21: -2841 | DD21: 88499 | DM21: Производство растительных и животных масел и жиров | DN21: 465714 | DO21: 470597 | DP21: 1.010484976
A22: 018 | B22: 01.4 | C22: Услуги в области растениеводства и животноводства, кроме ветеринарных услуг, услуги в области декоративного садоводства | D22: 7497 | E22: 95962 | F22: 0 | G22: 1 | H22: 6 | I22: 0 | J22: 0 | K22: 0 | L22: 0 | M22: 0 | N22: 0 | O22: 0 | P22: 0 | Q22: 35 | R22: 0 | S22: 103 | T22: 60 | U22: 38 | V22: 32 | W22: 18 | X22: 20 | Y22: 0 | Z22: 0 | AA22: 0 | AB22: 0 | AC22: 0 | AD22: 0 | AE22: 0 | AF22: 0 | AG22: 0 | AH22: 0 | AI22: 0 | AJ22: 33 | AK22: 0 | AL22: 0 | AM22: 0 | AN22: 0 | AO22: 0 | AP22: 0 | AQ22: 0 | AR22: 0 | AS22: 0 | AT22: 0 | AU22: 0 | AV22: 0 | AW22: 0 | AX22: 0 | AY22: 0 | AZ22: 0 | BA22: 0 | BB22: 0 | BC22: 0 | BD22: 0 | BE22: 0 | BF22: 0 | BG22: 0 | BH22: 0 | BI22: 0 | BJ22: 0 | BK22: 0 | BL22: 0 | BM22: 0 | BN22: 0 | BO22: 1 | BP22: 0 | BQ22: 14 | BR22: 0 | BS22: 13 | BT22: 10 | BU22: 132 | BV22: 0 | BW22: 121 | BX22: 12 | BY22: 0 | BZ22: 0 | CA22: 0 | CB22: 378 | CC22: 0 | CD22: 9 | CE22: 0 | CF22: 68 | CG22: 0 | CH22: 0 | CI22: 0 | CJ22: 0 | CK22: 54 | CL22: 21 | CM22: 0 | CN22: 0 | CO22: 93 | CP22: 0 | CQ22: 0 | CR22: 0 | CS22: 456 | CT22: 0 | CU22: 1 | CV22: 14 | CW22: 0 | CX22: 105204 | CY22: 1670 | CZ22: 106874 | DA22: 0 | DB22: 0 | DC22: 2489 | DD22: 109363 | DF22: =CX22 -> 105204 | DG22: Предоставление услуг в области растениеводства и животноводства, кроме ветеринарных услуг; декоративное садоводство | DH22: 01.4 | DI22: 101080 | DJ22: =DF22/DI22 -> 1.040799367 | DM22: Производство молочных продуктов | DN22: 980913 | DO22: 990935 | DP22: 1.010217012
A23: 019 | B23: 01.5 | C23: Услуги, связанные с охотой, ловлей и разведением диких животных | D23: 14 | E23: 0 | F23: 8389 | G23: 0 | H23: 3 | I23: 0 | J23: 0 | K23: 0 | L23: 0 | M23: 0 | N23: 0 | O23: 0 | P23: 0 | Q23: 0 | R23: 1 | S23: 0 | T23: 0 | U23: 0 | V23: 0 | W23: 0 | X23: 0 | Y23: 0 | Z23: 0 | AA23: 0 | AB23: 0 | AC23: 0 | AD23: 0 | AE23: 0 | AF23: 0 | AG23: 0 | AH23: 0 | AI23: 0 | AJ23: 1 | AK23: 0 | AL23: 0 | AM23: 0 | AN23: 0 | AO23: 0 | AP23: 0 | AQ23: 0 | AR23: 0 | AS23: 0 | AT23: 0 | AU23: 0 | AV23: 0 | AW23: 0 | AX23: 0 | AY23: 0 | AZ23: 0 | BA23: 1 | BB23: 0 | BC23: 0 | BD23: 0 | BE23: 0 | BF23: 0 | BG23: 0 | BH23: 0 | BI23: 0 | BJ23: 0 | BK23: 0 | BL23: 2 | BM23: 0 | BN23: 0 | BO23: 0 | BP23: 0 | BQ23: 0 | BR23: 0 | BS23: 0 | BT23: 0 | BU23: 0 | BV23: 0 | BW23: 0 | BX23: 0 | BY23: 10 | BZ23: 0 | CA23: 0 | CB23: 1 | CC23: 0 | CD23: 0 | CE23: 0 | CF23: 0 | CG23: 0 | CH23: 0 | CI23: 0 | CJ23: 0 | CK23: 0 | CL23: 0 | CM23: 0 | CN23: 0 | CO23: 0 | CP23: 0 | CQ23: 0 | CR23: 0 | CS23: 6 | CT23: 321 | CU23: 0 | CV23: 0 | CW23: 0 | CX23: 8749 | CY23: 0 | CZ23: 8749 | DA23: 0 | DB23: 0 | DC23: 236 | DD23: 8985 | DF23: =CX23 -> 8749 | DG23: Охота и разведение диких животных, включая предоставление услуг в этих областях | DH23: 01.5 | DI23: 8505 | DJ23: =DF23/DI23 -> 1.028689006 | DM23: Производство продуктов мукомольно-крупяной промышленности, крахмалов и крахмалопродуктов | DN23: 226348 | DO23: 248077 | DP23: 1.095998197
A24: 020 | B24: 02.01 | C24: Древесина необработанная; смолы природные; пробка натуральная; продукция лесоводства прочая | D24: 449 | E24: 132 | F24: 12 | G24: 223300 | H24: 4 | I24: 0 | J24: 0 | K24: 0 | L24: 0 | M24: 0 | N24: 0 | O24: 190 | P24: 0 | Q24: 0 | R24: 1 | S24: 0 | T24: 0 | U24: 0 | V24: 0 | W24: 0 | X24: 0 | Y24: 0 | Z24: 0 | AA24: 0 | AB24: 0 | AC24: 0 | AD24: 10899 | AE24: 7825 | AF24: 0 | AG24: 0 | AH24: 0 | AI24: 0 | AJ24: 78 | AK24: 0 | AL24: 0 | AM24: 0 | AN24: 0 | AO24: 0 | AP24: 0 | AQ24: 0 | AR24: 0 | AS24: 0 | AT24: 0 | AU24: 0 | AV24: 0 | AW24: 0 | AX24: 4 | AY24: 0 | AZ24: 0 | BA24: 0 | BB24: 0 | BC24: 1 | BD24: 0 | BE24: 0 | BF24: 0 | BG24: 0 | BH24: 0 | BI24: 0 | BJ24: 0 | BK24: 0 | BL24: 0 | BM24: 133 | BN24: 0 | BO24: 1 | BP24: 0 | BQ24: 3 | BR24: 0 | BS24: 29 | BT24: 4 | BU24: 303 | BV24: 0 | BW24: 51 | BX24: 0 | BY24: 0 | BZ24: 0 | CA24: 80 | CB24: 0 | CC24: 0 | CD24: 8 | CE24: 0 | CF24: 10 | CG24: 0 | CH24: 0 | CI24: 0 | CJ24: 0 | CK24: 25 | CL24: 0 | CM24: 0 | CN24: 11 | CO24: 0 | CP24: 0 | CQ24: 0 | CR24: 0 | CS24: 3 | CT24: 0 | CU24: 0 | CV24: 0 | CW24: 0 | CX24: 243558 | CY24: 3570 | CZ24: 247128 | DA24: 90904 | DB24: 10668 | DC24: 19429 | DD24: 368128 | DF24: =CX24+CX25 -> 280788 | DG24: Лесное хозяйство и предоставление услуг в этой области | DH24: 02 | DI24: 272303 | DJ24: =DF24/DI24 -> 1.031160141 | DM24: Производство готовых кормов для животных | DN24: 403190 | DO24: 444470 | DP24: 1.102383492
A25: 021 | B25: 02.02 | C25: Услуги, связанные с лесоводством и лесозаготовками | D25: 2 | E25: 0 | F25: 0 | G25: 36683 | H25: 2 | I25: 0 | J25: 0 | K25: 0 | L25: 0 | M25: 0 | N25: 0 | O25: 0 | P25: 1 | Q25: 0 | R25: 0 | S25: 0 | T25: 0 | U25: 0 | V25: 0 | W25: 0 | X25: 0 | Y25: 0 | Z25: 0 | AA25: 0 | AB25: 0 | AC25: 0 | AD25: 267 | AE25: 75 | AF25: 0 | AG25: 0 | AH25: 0 | AI25: 0 | AJ25: 6 | AK25: 0 | AL25: 0 | AM25: 0 | AN25: 0 | AO25: 0 | AP25: 0 | AQ25: 0 | AR25: 0 | AS25: 0 | AT25: 0 | AU25: 0 | AV25: 0 | AW25: 0 | AX25: 0 | AY25: 0 | AZ25: 0 | BA25: 0 | BB25: 0 | BC25: 0 | BD25: 0 | BE25: 0 | BF25: 0 | BG25: 0 | BH25: 0 | BI25: 0 | BJ25: 0 | BK25: 0 | BL25: 0 | BM25: 0 | BN25: 0 | BO25: 0 | BP25: 0 | BQ25: 0 | BR25: 0 | BS25: 1 | BT25: 0 | BU25: 28 | BV25: 0 | BW25: 76 | BX25: 0 | BY25: 0 | BZ25: 0 | CA25: 0 | CB25: 0 | CC25: 0 | CD25: 0 | CE25: 0 | CF25: 39 | CG25: 0 | CH25: 0 | CI25: 0 | CJ25: 0 | CK25: 0 | CL25: 23 | CM25: 0 | CN25: 0 | CO25: 3 | CP25: 0 | CQ25: 25 | CR25: 0 | CS25: 0 | CT25: 0 | CU25: 0 | CV25: 0 | CW25: 0 | CX25: 37230 | CY25: 11 | CZ25: 37241 | DA25: 0 | DB25: 0 | DC25: 1099 | DD25: 38341 | DM25: Производство прочих пищевых продуктов | DN25: 1765067 | DO25: 1741163 | DP25: 0.9864571713
A26: 022 | B26: 05 | C26: Рыба и прочая продукция рыболовства и рыбоводства; услуги, связанные с рыболовством и рыбоводством | D26: 102 | E26: 0 | F26: 0 | G26: 0 | H26: 251989 | I26: 0 | J26: 0 | K26: 0 | L26: 0 | M26: 0 | N26: 0 | O26: 0 | P26: 5 | Q26: 0 | R26: 1663 | S26: 0 | T26: 0 | U26: 0 | V26: 3 | W26: 1 | X26: 0 | Y26: 0 | Z26: 0 | AA26: 0 | AB26: 0 | AC26: 0 | AD26: 0 | AE26: 357 | AF26: 0 | AG26: 0 | AH26: 0 | AI26: 0 | AJ26: 535 | AK26: 0 | AL26: 0 | AM26: 0 | AN26: 17 | AO26: 25 | AP26: 0 | AQ26: 0 | AR26: 136 | AS26: 0 | AT26: 0 | AU26: 0 | AV26: 0 | AW26: 0 | AX26: 0 | AY26: 0 | AZ26: 0 | BA26: 0 | BB26: 0 | BC26: 0 | BD26: 0 | BE26: 0 | BF26: 0 | BG26: 0 | BH26: 0 | BI26: 0 | BJ26: 0 | BK26: 0 | BL26: 2 | BM26: 0 | BN26: 0 | BO26: 0 | BP26: 0 | BQ26: 6 | BR26: 0 | BS26: 1 | BT26: 0 | BU26: 0 | BV26: 0 | BW26: 52 | BX26: 2 | BY26: 0 | BZ26: 0 | CA26: 0 | CB26: 0 | CC26: 2 | CD26: 0 | CE26: 0 | CF26: 0 | CG26: 0 | CH26: 0 | CI26: 0 | CJ26: 0 | CK26: 214 | CL26: 0 | CM26: 0 | CN26: 0 | CO26: 0 | CP26: 0 | CQ26: 0 | CR26: 0 | CS26: 0 | CT26: 21 | CU26: 0 | CV26: 0 | CW26: 0 | CX26: 255132 | CY26: 13603 | CZ26: 268736 | DA26: 26434 | DB26: 248 | DC26: 2530 | DD26: 297948 | DF26: =CX26 -> 255132 | DG26: Рыболовство, рыбоводство и предоставление услуг в этих областях | DH26: 05 | DI26: 397336 | DJ26: =DF26/DI26 -> 0.6421064288 | DM26: Производство напитков | DN26: 908648 | DO26: 890016 | DP26: 0.9794948099
A27: 023 | B27: 10.1 + 10.2 | C27: Уголь | D27: 0 | E27: 0 | F27: 0 | G27: 0 | H27: 0 | I27: 901248 | J27: 0 | K27: 0 | L27: 0 | M27: 0 | N27: 0 | O27: 0 | P27: 0 | Q27: 0 | R27: 0 | S27: 0 | T27: 0 | U27: 0 | V27: 0 | W27: 0 | X27: 0 | Y27: 0 | Z27: 0 | AA27: 0 | AB27: 0 | AC27: 0 | AD27: 0 | AE27: 0 | AF27: 0 | AG27: 0 | AH27: 0 | AI27: 0 | AJ27: 0 | AK27: 0 | AL27: 0 | AM27: 0 | AN27: 0 | AO27: 0 | AP27: 0 | AQ27: 0 | AR27: 0 | AS27: 0 | AT27: 0 | AU27: 0 | AV27: 0 | AW27: 0 | AX27: 118 | AY27: 0 | AZ27: 0 | BA27: 0 | BB27: 0 | BC27: 0 | BD27: 0 | BE27: 0 | BF27: 0 | BG27: 0 | BH27: 0 | BI27: 0 | BJ27: 0 | BK27: 0 | BL27: 1067 | BM27: 0 | BN27: 0 | BO27: 0 | BP27: 0 | BQ27: 0 | BR27: 0 | BS27: 0 | BT27: 0 | BU27: 0 | BV27: 0 | BW27: 294 | BX27: 0 | BY27: 0 | BZ27: 0 | CA27: 0 | CB27: 0 | CC27: 0 | CD27: 231 | CE27: 0 | CF27: 0 | CG27: 0 | CH27: 0 | CI27: 0 | CJ27: 0 | CK27: 3 | CL27: 0 | CM27: 0 | CN27: 0 | CO27: 107 | CP27: 0 | CQ27: 0 | CR27: 0 | CS27: 0 | CT27: 0 | CU27: 0 | CV27: 0 | CW27: 0 | CX27: 903068 | CY27: 18972 | CZ27: 922040 | DA27: 87236 | DB27: 253625 | DC27: 4026 | DD27: 1266927 | DF27: =CX27+CX28 -> 905866 | DG27: Добыча каменного угля, бурого угля и торфа | DH27: 10 | DI27: 934784 | DJ27: =DF27/DI27 -> 0.9690645112 | DM27: Производство табачных изделий | DN27: 292004 | DO27: 283943 | DP27: 0.9723942138
A28: 024 | B28: 10.3 | C28: Торф | D28: 0 | E28: 0 | F28: 0 | G28: 0 | H28: 0 | I28: 2769 | J28: 0 | K28: 1 | L28: 0 | M28: 0 | N28: 0 | O28: 0 | P28: 0 | Q28: 0 | R28: 0 | S28: 0 | T28: 0 | U28: 0 | V28: 0 | W28: 0 | X28: 0 | Y28: 0 | Z28: 0 | AA28: 0 | AB28: 0 | AC28: 0 | AD28: 0 | AE28: 0 | AF28: 0 | AG28: 0 | AH28: 0 | AI28: 1 | AJ28: 0 | AK28: 0 | AL28: 0 | AM28: 0 | AN28: 0 | AO28: 0 | AP28: 0 | AQ28: 0 | AR28: 0 | AS28: 0 | AT28: 0 | AU28: 0 | AV28: 2 | AW28: 0 | AX28: 0 | AY28: 0 | AZ28: 0 | BA28: 0 | BB28: 0 | BC28: 16 | BD28: 0 | BE28: 0 | BF28: 0 | BG28: 0 | BH28: 0 | BI28: 0 | BJ28: 0 | BK28: 0 | BL28: 0 | BM28: 0 | BN28: 0 | BO28: 0 | BP28: 0 | BQ28: 0 | BR28: 0 | BS28: 0 | BT28: 0 | BU28: 0 | BV28: 0 | BW28: 5 | BX28: 0 | BY28: 0 | BZ28: 0 | CA28: 0 | CB28: 0 | CC28: 0 | CD28: 0 | CE28: 0 | CF28: 0 | CG28: 0 | CH28: 0 | CI28: 0 | CJ28: 0 | CK28: 0 | CL28: 0 | CM28: 0 | CN28: 0 | CO28: 4 | CP28: 0 | CQ28: 0 | CR28: 0 | CS28: 0 | CT28: 0 | CU28: 0 | CV28: 0 | CW28: 0 | CX28: 2798 | CY28: 97 | CZ28: 2895 | DA28: 296 | DB28: 292 | DC28: 34 | DD28: 3518 | DM28: Текстильное производство | DN28: 233280 | DO28: 230333 | DP28: 0.9873671125
A29: 025 | B29: 11.10.1 + 11.10.4 | C29: Нефть, включая нефть, получаемую из битуминозных минералов; сланцы горючие (битуминозные) и песчаники битуминозные | D29: 0 | E29: 0 | F29: 0 | G29: 0 | H29: 0 | I29: 0 | J29: 5278257 | K29: 154119 | L29: 309 | M29: 0 | N29: 0 | O29: 0 | P29: 0 | Q29: 0 | R29: 0 | S29: 0 | T29: 0 | U29: 0 | V29: 0 | W29: 0 | X29: 0 | Y29: 0 | Z29: 0 | AA29: 0 | AB29: 0 | AC29: 0 | AD29: 0 | AE29: 0 | AF29: 0 | AG29: 0 | AH29: 0 | AI29: 886886 | AJ29: 0 | AK29: 0 | AL29: 0 | AM29: 0 | AN29: 0 | AO29: 0 | AP29: 0 | AQ29: 0 | AR29: 0 | AS29: 0 | AT29: 0 | AU29: 0 | AV29: 0 | AW29: 0 | AX29: 0 | AY29: 0 | AZ29: 0 | BA29: 0 | BB29: 0 | BC29: 0 | BD29: 0 | BE29: 0 | BF29: 0 | BG29: 0 | BH29: 0 | BI29: 0 | BJ29: 0 | BK29: 0 | BL29: 0 | BM29: 0 | BN29: 0 | BO29: 0 | BP29: 0 | BQ29: 0 | BR29: 0 | BS29: 0 | BT29: 0 | BU29: 0 | BV29: 0 | BW29: 0 | BX29: 0 | BY29: 0 | BZ29: 0 | CA29: 0 | CB29: 0 | CC29: 0 | CD29: 0 | CE29: 0 | CF29: 0 | CG29: 0 | CH29: 0 | CI29: 0 | CJ29: 0 | CK29: 0 | CL29: 0 | CM29: 0 | CN29: 0 | CO29: 1078 | CP29: 0 | CQ29: 0 | CR29: 0 | CS29: 0 | CT29: 0 | CU29: 0 | CV29: 0 | CW29: 0 | CX29: 6320650 | CY29: 5351 | CZ29: 6326001 | DA29: 149977 | DB29: 201052 | DC29: 1030781 | DD29: 7707811 | DF29: =CX29 -> 6320650 | DG29: Добыча сырой нефти и нефтяного (попутного) газа; извлечение фракций из нефтяного (попутного) газа | DH29: 11.10.1 | DI29: 6190402 | DJ29: =DF29/DI29 -> 1.021040314 | DM29: Производство одежды; выделка и крашение меха | DN29: 224992 | DO29: 208605 | DP29: 0.9271662992
A30: 026 | B30: 11.10.2 + 11.10.3 | C30: Газ природный в газообразном или сжиженном состоянии, включая услуги по сжижению и регазификации природного газа для транспортирования | D30: 0 | E30: 0 | F30: 0 | G30: 0 | H30: 0 | I30: 0 | J30: 163836 | K30: 1208836 | L30: 226 | M30: 0 | N30: 0 | O30: 0 | P30: 0 | Q30: 0 | R30: 0 | S30: 0 | T30: 0 | U30: 0 | V30: 0 | W30: 0 | X30: 0 | Y30: 0 | Z30: 0 | AA30: 0 | AB30: 0 | AC30: 0 | AD30: 0 | AE30: 0 | AF30: 0 | AG30: 0 | AH30: 0 | AI30: 38200 | AJ30: 0 | AK30: 0 | AL30: 0 | AM30: 0 | AN30: 0 | AO30: 0 | AP30: 0 | AQ30: 0 | AR30: 0 | AS30: 0 | AT30: 0 | AU30: 0 | AV30: 0 | AW30: 0 | AX30: 0 | AY30: 0 | AZ30: 0 | BA30: 0 | BB30: 0 | BC30: 0 | BD30: 0 | BE30: 0 | BF30: 0 | BG30: 0 | BH30: 0 | BI30: 0 | BJ30: 0 | BK30: 0 | BL30: 0 | BM30: 0 | BN30: 0 | BO30: 0 | BP30: 0 | BQ30: 1 | BR30: 137 | BS30: 34 | BT30: 0 | BU30: 90 | BV30: 0 | BW30: 489 | BX30: 0 | BY30: 0 | BZ30: 0 | CA30: 0 | CB30: 0 | CC30: 345 | CD30: 0 | CE30: 0 | CF30: 0 | CG30: 0 | CH30: 0 | CI30: 0 | CJ30: 0 | CK30: 0 | CL30: 0 | CM30: 0 | CN30: 0 | CO30: 40 | CP30: 0 | CQ30: 0 | CR30: 0 | CS30: 0 | CT30: 0 | CU30: 0 | CV30: 0 | CW30: 0 | CX30: 1412235 | CY30: 0 | CZ30: 1412235 | DA30: 1491347 | DB30: 0 | DC30: 582182 | DD30: 3485763 | DF30: =CX30 -> 1412235 | DG30: Добыча природного газа и газового конденсата; сжижение и регазификация природного газа для транспортирования | DH30: 11.10.2 + 11.10.3 | DI30: 1512750 | DJ30: =DF30/DI30 -> 0.9335547843 | DM30: Производство кожи, изделий из кожи и производство обуви | DN30: 86845 | DO30: 85856 | DP30: 0.9886118948
A31: 027 | B31: 11.2 | C31: Услуги, связанные с добычей нефти и горючего природного газа, кроме геологоразведочных работ | D31: 0 | E31: 0 | F31: 0 | G31: 0 | H31: 0 | I31: 0 | J31: 97137 | K31: 11710 | L31: 1390763 | M31: 0 | N31: 0 | O31: 0 | P31: 0 | Q31: 0 | R31: 0 | S31: 0 | T31: 0 | U31: 0 | V31: 0 | W31: 0 | X31: 0 | Y31: 0 | Z31: 0 | AA31: 0 | AB31: 0 | AC31: 0 | AD31: 0 | AE31: 0 | AF31: 0 | AG31: 0 | AH31: 0 | AI31: 68 | AJ31: 0 | AK31: 0 | AL31: 0 | AM31: 0 | AN31: 0 | AO31: 257 | AP31: 0 | AQ31: 0 | AR31: 0 | AS31: 0 | AT31: 0 | AU31: 0 | AV31: 83 | AW31: 0 | AX31: 0 | AY31: 0 | AZ31: 0 | BA31: 670 | BB31: 0 | BC31: 4664 | BD31: 0 | BE31: 0 | BF31: 0 | BG31: 0 | BH31: 0 | BI31: 0 | BJ31: 0 | BK31: 0 | BL31: 9 | BM31: 0 | BN31: 0 | BO31: 0 | BP31: 0 | BQ31: 0 | BR31: 0 | BS31: 0 | BT31: 0 | BU31: 21588 | BV31: 0 | BW31: 772 | BX31: 0 | BY31: 0 | BZ31: 0 | CA31: 0 | CB31: 899 | CC31: 344 | CD31: 0 | CE31: 0 | CF31: 293 | CG31: 0 | CH31: 0 | CI31: 0 | CJ31: 0 | CK31: 0 | CL31: 692 | CM31: 178 | CN31: 3642 | CO31: 2991 | CP31: 0 | CQ31: 0 | CR31: 0 | CS31: 0 | CT31: 0 | CU31: 0 | CV31: 0 | CW31: 0 | CX31: 1536760 | CY31: 156777 | CZ31: 1693537 | DA31: 0 | DB31: 0 | DC31: 0 | DD31: 1693537 | DF31: =CX31 -> 1536760 | DG31: Предоставление услуг по добыче нефти и газа | DH31: 11.2 | DI31: 1467125 | DJ31: =DF31/DI31 -> 1.047463577 | DM31: Обработка древесины и производство изделий из дерева и пробки, кроме мебели | DN31: 624103 | DO31: 615626 | DP31: 0.9864173061
A32: 028 | B32: 12 | C32: Руды урановые и ториевые | D32: 0 | E32: 0 | F32: 0 | G32: 0 | H32: 0 | I32: 0 | J32: 0 | K32: 0 | L32: 0 | M32: 4423 | N32: 0 | O32: 0 | P32: 0 | Q32: 0 | R32: 0 | S32: 0 | T32: 0 | U32: 0 | V32: 0 | W32: 0 | X32: 0 | Y32: 0 | Z32: 0 | AA32: 0 | AB32: 0 | AC32: 0 | AD32: 0 | AE32: 0 | AF32: 0 | AG32: 0 | AH32: 0 | AI32: 0 | AJ32: 0 | AK32: 0 | AL32: 0 | AM32: 0 | AN32: 0 | AO32: 0 | AP32: 0 | AQ32: 0 | AR32: 0 | AS32: 0 | AT32: 0 | AU32: 0 | AV32: 0 | AW32: 0 | AX32: 0 | AY32: 0 | AZ32: 0 | BA32: 0 | BB32: 0 | BC32: 0 | BD32: 0 | BE32: 0 | BF32: 0 | BG32: 0 | BH32: 0 | BI32: 0 | BJ32: 0 | BK32: 0 | BL32: 0 | BM32: 0 | BN32: 0 | BO32: 0 | BP32: 0 | BQ32: 0 | BR32: 0 | BS32: 0 | BT32: 0 | BU32: 0 | BV32: 0 | BW32: 0 | BX32: 0 | BY32: 0 | BZ32: 0 | CA32: 0 | CB32: 0 | CC32: 0 | CD32: 0 | CE32: 0 | CF32: 0 | CG32: 0 | CH32: 0 | CI32: 0 | CJ32: 0 | CK32: 0 | CL32: 0 | CM32: 0 | CN32: 0 | CO32: 0 | CP32: 0 | CQ32: 0 | CR32: 0 | CS32: 0 | CT32: 0 | CU32: 0 | CV32: 0 | CW32: 0 | CX32: 4423 | CY32: 1 | CZ32: 4424 | DA32: 0 | DB32: 3 | DC32: 0 | DD32: 4427 | DF32: =CX32 -> 4423 | DG32: Добыча урановой и ториевой руд | DH32: 12 | DI32: 4427 | DJ32: =DF32/DI32 -> 0.9990964536 | DM32: Производство целлюлозы, древесной массы, бумаги, картона и изделий из них | DN32: 766780 | DO32: 750938 | DP32: 0.9793395759
A33: 029 | B33: 13.1 | C33: Руды железные | D33: 0 | E33: 0 | F33: 0 | G33: 0 | H33: 0 | I33: 0 | J33: 0 | K33: 0 | L33: 0 | M33: 0 | N33: 248973 | O33: 0 | P33: 5 | Q33: 0 | R33: 0 | S33: 0 | T33: 0 | U33: 0 | V33: 0 | W33: 0 | X33: 0 | Y33: 0 | Z33: 0 | AA33: 0 | AB33: 0 | AC33: 0 | AD33: 0 | AE33: 0 | AF33: 0 | AG33: 0 | AH33: 0 | AI33: 0 | AJ33: 0 | AK33: 0 | AL33: 0 | AM33: 0 | AN33: 0 | AO33: 0 | AP33: 0 | AQ33: 0 | AR33: 0 | AS33: 0 | AT33: 0 | AU33: 0 | AV33: 0 | AW33: 0 | AX33: 70 | AY33: 0 | AZ33: 0 | BA33: 0 | BB33: 0 | BC33: 0 | BD33: 0 | BE33: 0 | BF33: 0 | BG33: 0 | BH33: 0 | BI33: 0 | BJ33: 0 | BK33: 0 | BL33: 0 | BM33: 0 | BN33: 0 | BO33: 0 | BP33: 0 | BQ33: 0 | BR33: 0 | BS33: 0 | BT33: 0 | BU33: 0 | BV33: 0 | BW33: 0 | BX33: 0 | BY33: 0 | BZ33: 0 | CA33: 0 | CB33: 0 | CC33: 0 | CD33: 0 | CE33: 0 | CF33: 0 | CG33: 0 | CH33: 0 | CI33: 0 | CJ33: 0 | CK33: 0 | CL33: 0 | CM33: 0 | CN33: 0 | CO33: 0 | CP33: 0 | CQ33: 0 | CR33: 0 | CS33: 0 | CT33: 0 | CU33: 0 | CV33: 0 | CW33: 0 | CX33: 249047 | CY33: 25616 | CZ33: 274663 | DA33: 6881 | DB33: 7051 | DC33: 0 | DD33: 288595 | DF33: =CX33 -> 249047 | DG33: Добыча и обогащение железных руд | DH33: 13.1 | DI33: 313439 | DJ33: =DF33/DI33 -> 0.7945628974 | DM33: Издательская деятельность | DN33: 186139 | DO33: 192713 | DP33: 1.035317693
